Workbook

Sheet App.2-X_CoS_Flowchart
F1: File Number: | G1: ='LDC Info'!$E$18 -> EB-2013-0139
F2: Exhibit:
F3: Tab:
F4: Schedule:
F5: Page:
F7: Date:
B13: Appendix 2-X
B14: Cost of Service Rate Application Schematic
B16: The Cost of Service Rate Application Schematic is a flowchart appended to Chapter 2 of the Filing Requirements as a guide for the components of an application and how demand and costs interrelate to derive the revenue requirement and then how the revenue requirement is allocated between classes and through fixed/variable splits to derive rates that will be compensatory for the annual revenue requirement, based on the the forecasted demand. There is no form to be filled out; therefore, this Schedule is not required to be filed.

Sheet Index (hidden)
B3: Prefiling | D3: LDC Information Sheet
B4: Prefiling | D4: Index
B5: Prefiling | D5: Customer Classes | E5: TESI
B6: Prefiling | D6: Current Rates | E6: TESI
B7: Prefiling | D7: Historical Balances (RRR) | E7: TESI
B8: Exhibit 8 | D8: Revenues at Curr Rates | E8: TESI
B9: Exhibit 2 | D9: Appendix 2-A Capital Projects | E9: OEB
B10: Exhibit 2 | D10: Appendix 2-B FixAsset2010-CGAAP | E10: OEB
B11: Exhibit 2 | D11: Appendix 2-B FixAsset2011-CGAAP | E11: OEB
B12: Exhibit 2 | D12: Appendix 2-B FixAsset2012-CGAAP | E12: OEB
B13: Exhibit 2 | D13: Appendix 2-B FixAsset2013-CGAAP | E13: OEB
B14: Exhibit 2 | D14: Appendix 2-B FixAsset2013-MIFRS | E14: OEB
B15: Exhibit 2 | D15: Appendix 2-B FixAsset2014-CGAAP | E15: OEB
B16: Exhibit 2 | D16: Appendix 2-B FixAsset2014-MIFRS | E16: OEB
B17: Exhibit 2 | D17: Appendix 2-CA CGAAP Depreciation Expense 2012 | E17: OEB
B18: Exhibit 2 | D18: Appendix 2-CB MIFRS Depreciation Expense 2012 | E18: OEB
B19: Exhibit 2 | D19: Appendix 2-CC MIFRS Depreciation Expense 2013 | E19: OEB
B20: Exhibit 2 | D20: Appendix 2-CD MIFRS Depreciation Expense 2014 | E20: OEB
B21: Exhibit 2 | D21: Appendix 2-CE CGAAP Depreciation Expense 2012 | E21: OEB
B22: Exhibit 2 | D22: Appendix 2-CF CGAAP Depreciation Expense 2013 | E22: OEB
B23: Exhibit 2 | D23: Appendix 2-CG MIFRS Depreciation Expense 2013 | E23: OEB
B24: Exhibit 2 | D24: Appendix 2-CH MIFRS Depreciation Expense 2014 | E24: OEB
B25: Exhibit 2 | D25: Appendix 2-CI Alternative Accounting Standards Depreciation Expense | E25: OEB
B26: Exhibit 2 | D26: Appendix 2-D Overhead | E26: OEB
B27: Exhibit 2 | D27: Appendix 2-EA PP&E Deferral Account - 2013 IFRS Adopters | E27: OEB
B28: Exhibit 2 | D28: Appendix 2-EB PP&E Deferral Account - 2014 IFRS Adopters | E28: OEB
B29: Exhibit 4 | D29: Appendix 2-G Detailed OM&A Expenses | E29: OEB
B30: Exhibit 4 | D30: Appendix 2-H OM&A Detailed Analysis | E30: OEB
B31: Exhibit 4 | D31: Appendix 2-I OM&A Summary Analysis | E31: OEB
B32: Exhibit 4 | D32: Appendix 2-J OM&A Cost Drivers | E32: OEB
B33: Exhibit 4 | D33: Appendix 2-K Employee Costs | E33: OEB
B34: Exhibit 4 | D34: Appendix 2-L OM&A per Cust FTEE | E34: OEB
B35: Exhibit 4 | D35: Appendix 2-M Regulatory Costs | E35: OEB
B36: Exhibit 4 | D36: Appendix 2-N Corp Cost Allocation | E36: OEB
B37: Exhibit 8 | D37: Appendix 2-R Loss Factors | E37: OEB
B38: Exhibit 3 | D38: Appendix 2-F Other Operating Revenue | E38: OEB
B39: Exhibit 3 | D39: Appendix 2-T 1592 Tax Variance | E39: OEB
B40: Exhibit 8 | D40: Load Forecast | E40: TESI
B41: Exhibit 8 | D41: PowerSupplExp | E41: TESI
B42: Exhibit 8 | D42: RateBase | E42: TESI
B43: Exhibit 5 | D43: Appendix 2-OA CapStructure-CGAAP | E43: OEB
B44: Exhibit 5 | D44: Appendix 2-OA CapStructure-MIFRS | E44: OEB
B45: Exhibit 5 | D45: Appendix 2-OB Debt Instruments | E45: OEB
B46: Exhibit 7 | D46: Revenue Requirement | E46: TESI
B47: Exhibit 7 | D47: Appendix 2-P Cost Allocation | E47: OEB
B48: Exhibit 7 | D48: Cost Allocation and Revenue Allocation | E48: TESI
B49: Exhibit 8 | D49: RateDesign | E49: TESI
B50: Exhibit 8 | D50: Summary of Bill Impacts | E50: TESI
D51: Appendix 2-Q Cost of Service Embedded Distributor | E51: OEB
B52: Exhibit 9 | D52: Appendix 2-S Stranded Meters | E52: OEB
D53: Appendix 2-U IFRS Transition Costs | E53: OEB
B54: Exhibit 8 | D54: Appendix 2-V Rev Reconciliation | E54: OEB
B55: Exhibit 8 | D55: DVA RR | E55: TESI
B56: Exhibit 8 | D56: Summary Sheet | E56: TESI
B57: Exhibit 8 | D57: Appendix 2-W Bill Impacts | E57: OEB
B58: output | D58: Rate Base Trend | E58: TESI
B59: output | D59: Trends | E59: TESI
B60: output | D60: VarianceAnalysis | E60: TESI

Sheet LDC Info
D14: Utility Name | E14: Hydro Hawkesbury Inc.
D16: Service Territory
D18: Assigned EB Number | E18: EB-2013-0139
D20: Name of Contact and Title | E20: Michel Poulin
D22: Phone Number | E22: 613-632-6689
D24: Email Address | E24: MichelPoulin@HydroHawkesbury.ca
D26: Bridge Year | E26: 2013
D28: Test Year | E28: 2014
D30: Last Rebasing Year | E30: 2010
B32: Notes
C34: Pale green cells represent input cells.
C36: Pale blue cells represent drop-down lists. The applicant should select the appropriate item from the drop-down list.
C38: White cells contain fixed values, automatically generated values or formulae.

Sheet CustomerClass (hidden)
F1: File Number: | G1: ='LDC Info'!$E$18 -> EB-2013-0139
F2: Exhibit:
F3: Tab:
F4: Schedule:
F5: Page:
F7: Date:
A9: TESI-1
A10: Customer Class
A13: Customer Class Name | B13: Existing | C13: Proposed | D13: Status | E13: MSC Metric | F13: Usage Metric | G13: USA #
A14: Residential | B14: YES | C14: YES | D14: Continued | E14: Customer | F14: kWh
A15: General Service < 50 kW | B15: YES | C15: YES | D15: Continued | E15: Customer | F15: kWh
A16: General Service > 50 to 4999 kW | B16: YES | C16: YES | D16: Continued | E16: Customer | F16: kW
A17: Unmetered Scattered Load | B17: YES | C17: YES | D17: Continued | E17: Customer | F17: kWh
A18: Sentinel Lighting | B18: YES | C18: YES | D18: Continued | E18: Connection | F18: kW
A19: Street Lighting | B19: YES | C19: YES | D19: Continued | E19: Connection | F19: kW
A20: MicroFit | B20: YES | C20: YES | D20: Continued | E20: Customer | F20: Monthly

Sheet CurrentTariff (hidden)
C1: File Number: | D1: ='LDC Info'!$E$18 -> EB-2013-0139
C2: Exhibit: | D2: 8
C3: Tab: | D3: 1
C4: Schedule: | D4: 2
C5: Page:
C7: Date:
A9: TESI-2
A10: Current Tariff Sheet
A12: Loss Factor
A14: Total Loss Factor – Secondary Metered Customer < 5,000 kW | B14: 1.0446
A15: Total Loss Factor – Secondary Metered Customer > 5,000 kW
A16: Total Loss Factor – Primary Metered Customer < 5,000 kW | B16: 1.0342
A17: Total Loss Factor – Primary Metered Customer > 5,000 KW
A19: =CustomerClass!A14 -> Residential | B19: Effective Until mm/dd/yy | C19: rate | D19: Connection Type
A21: Service Charge | C21: 5.99 | D21: $
A22: Distribution Volumetric Rate | C22: 0.0081 | D22: kWh
A23: Rate Rider for Disposition of Residual Historical Smart Meter Costs - effective until April 30, 2014 | C23: -1.35 | D23: kWh
A24: Rate Rider for Recovery of Smart Meter Incremental Revenue Requirement - in effective until the effective date of the next cost of service-based rate order | C24: 1.39 | D24: kWh
A25: Rate Rider for Smart Metering Entity Charge - effective until October 31, 2018 | C25: 0.79 | D25: kWh
A26: Low Voltage Service Rate | C26: 0.0004 | D26: kWh
A27: Rate Rider for Recovery of Incremental Capital Costs | C27: 0.0024 | D27: kWh
A28: Rate Rider for Disposition of Deferral/Variance Account (2013) - effective until April 30, 2014 | C28: 0.0011 | D28: kWh
A29: Rate Rider for Disposition of Global Adjustment Sub-Account (2013) - effective until April 30, 2014 Applicable only for Non-RPP Customers | C29: 0.006 | D29: kWh
A34: Retail Transmission Rate – Network Service Rate | C34: 0.0069 | D34: kWh
A35: Retail Transmission Rate – Line and Transformation Connection Service Rate | C35: 0.0031 | D35: kWh
A36: Wholesale Market Service Rate | C36: 0.0044 | D36: kWh
A37: Rural Rate Protection Charge | C37: 0.0012 | D37: kWh
A38: Standard Supply Service – Administrative Charge (if applicable) | C38: 0.25 | D38: $
A40: =CustomerClass!A15 -> General Service < 50 kW | B40: Effective Until mm/dd/yy | C40: rate | D40: Connection Type
A42: Service Charge | C42: 13.84 | D42: $
A43: Distribution Volumetric Rate | C43: 0.0055 | D43: kWh
A44: Rate Rider for Disposition of Residual Historical Smart Meter Costs - effective until April 30, 2014 | C44: -0.09 | D44: kWh
A45: Rate Rider for Recovery of Smart Meter Incremental Revenue Requirement - in effective until the effective date of the next cost of service-based rate order | C45: 2.46 | D45: kWh
A46: Rate Rider for Smart Metering Entity Charge - effective until October 31, 2018 | C46: 0.79 | D46: kWh
A47: Low Voltage Service Rate | C47: 0.0004 | D47: kWh
A48: Rate Rider for Recovery of Incremental Capital Costs | C48: 0.0017 | D48: kWh
A49: Rate Rider for Disposition of Deferral/Variance Account (2013) - effective until April 30, 2014 | C49: 0.0011 | D49: kWh
A50: Rate Rider for Disposition of Global Adjustment Sub-Account (2013) - effective until April 30, 2014 Applicable only for Non-RPP Customers | C50: 0.006 | D50: kWh
A55: Retail Transmission Rate – Network Service Rate | C55: 0.0063 | D55: kWh
A56: Retail Transmission Rate – Line and Transformation Connection Service Rate | C56: 0.0027 | D56: kWh
A57: Wholesale Market Service Rate | C57: 0.0044 | D57: kWh
A58: Rural Rate Protection Charge | C58: 0.0012 | D58: kWh
A59: Standard Supply Service – Administrative Charge (if applicable) | C59: 0.25 | D59: $
A61: =CustomerClass!A16 -> General Service > 50 to 4999 kW | B61: Effective Until mm/dd/yy | C61: rate | D61: Connection Type
A63: Service Charge | C63: 97.35 | D63: $
A64: Distribution Volumetric Rate | C64: 1.5558 | D64: kW
A65: Low Voltage Service Rate | C65: 0.1369 | D65: kW
A66: Rate Rider for Recovery of Incremental Capital Costs | C66: 0.327 | D66: kW
A67: Rate Rider for Disposition of Deferral/Variance Account (2013) - effective until April 30, 2014 | C67: 0.4219 | D67: kW
A68: Rate Rider for Disposition of Global Adjustment Sub-Account (2013) - effective until April 30, 2014 Applicable only for Non-RPP Customers | C68: 2.3612 | D68: kW
D69: kW
A76: Retail Transmission Rate – Network Service Rate | C76: 2.5533 | D76: kW
A77: Retail Transmission Rate – Line and Transformation Connection Service Rate | C77: 1.1197 | D77: kW
A78: Wholesale Market Service Rate | C78: 0.0044 | D78: kWh
A79: Rural Rate Protection Charge | C79: 0.0012 | D79: kWh
A80: Standard Supply Service – Administrative Charge (if applicable) | C80: 0.25 | D80: $
A82: =CustomerClass!A17 -> Unmetered Scattered Load | B82: Effective Until mm/dd/yy | C82: rate | D82: Connection Type
A84: Service Charge | C84: 6.39 | D84: $
A85: Distribution Volumetric Rate | C85: 0.0021 | D85: kWh
A86: Low Voltage Service Rate | C86: 0.0004 | D86: kWh
A87: Rate Rider for Recovery of Incremental Capital Costs | C87: 0.0006 | D87: kWh
A88: Rate Rider for Disposition of Deferral/Variance Account (2013) - effective until April 30, 2014 | C88: 0.0011 | D88: kWh
A89: Rate Rider for Disposition of Global Adjustment Sub-Account (2013) - effective until April 30, 2014 Applicable only for Non-RPP Customers | C89: 0.006 | D89: kWh
A97: Retail Transmission Rate – Network Service Rate | C97: 0.0063 | D97: kWh
A98: Retail Transmission Rate – Line and Transformation Connection Service Rate | C98: 0.0027 | D98: kWh
A99: Wholesale Market Service Rate | C99: 0.0044 | D99: kWh
A100: Rural Rate Protection Charge | C100: 0.0012 | D100: kWh
A101: Standard Supply Service – Administrative Charge (if applicable) | C101: 0.25 | D101: $
A103: =CustomerClass!A18 -> Sentinel Lighting | B103: Effective Until mm/dd/yy | C103: rate | D103: Connection Type
A105: Service Charge | C105: 1.63 | D105: $
A106: Distribution Volumetric Rate | C106: 3.2285 | D106: kW
A107: Low Voltage Service Rate | C107: 0.2162 | D107: kW
A108: Rate Rider for Recovery of Incremental Capital Costs | C108: 0.7496 | D108: kW
A118: Retail Transmission Rate – Network Service Rate | C118: 1.9264 | D118: kW
A119: Retail Transmission Rate – Line and Transformation Connection Service Rate | C119: 1.7674 | D119: kW
A120: Wholesale Market Service Rate | C120: 0.0044 | D120: kWh
A121: Rural Rate Protection Charge | C121: 0.0012 | D121: kWh
A122: Standard Supply Service – Administrative Charge (if applicable) | C122: 0.25 | D122: $
A124: =CustomerClass!A19 -> Street Lighting | B124: Effective Until mm/dd/yy | C124: rate | D124: Connection Type
A126: Service Charge | C126: 0.62 | D126: $
A127: Distribution Volumetric Rate | C127: 6.7744 | D127: kW
A128: Low Voltage Service Rate | C128: 0.1059 | D128: kW
A129: Rate Rider for Recovery of Incremental Capital Costs | C129: 1.5987 | D129: kW
A130: Rate Rider for Disposition of Deferral/Variance Account (2013) - effective until April 30, 2014 | C130: 0.3889 | D130: kW
A131: Rate Rider for Disposition of Global Adjustment Sub-Account (2013) - effective until April 30, 2014 Applicable only for Non-RPP Customers | C131: 2.1767 | D131: kW
A139: Retail Transmission Rate – Network Service Rate | C139: 1.9258 | D139: kW
A140: Retail Transmission Rate – Line and Transformation Connection Service Rate | C140: 0.8656 | D140: kW
A141: Wholesale Market Service Rate | C141: 0.0044 | D141: kWh
A142: Rural Rate Protection Charge | C142: 0.0012 | D142: kWh
A143: Standard Supply Service – Administrative Charge (if applicable) | C143: 0.25 | D143: $

Sheet HistoricalBalances (hidden)
A1: Precedent: CurrentTariff | J1: File Number: | K1: ='LDC Info'!$E$18 -> EB-2013-0139
A2: Step 1: Use RRR to populate Actual 3/2/1/Board Appr (COLUMNS I,J,K) | J2: Exhibit:
A3: Step 2: Enter MIFRS/CGAAP projections for Bridge and Test Year (GREEN CELLS) | J3: Tab:
J4: Schedule:
J5: Page:
J7: Date:
A9: TESI-3
A10: Historical Balances
G12: 2.1.7 RRR FILINGS
E13: Modified CGAAP | G13: CGAAP
A14: OEB | B14: Description | E14: 2014 Test Year | F14: 2013 Bridge Year | G14: 2012 Actual | H14: 2011 Actual | I14: 2010 Actual | J14: 2010 Board Appr | L14: 2009 Actual
A15: 1050-Current Assets | B15: 1005-Cash | C15: BS | E15: 300000 | F15: 534515 | G15: 215504.35 | H15: 1001965.25 | I15: 92785.99 | J15: 575000 | L15: 381885.7
A16: 1050-Current Assets | B16: 1010-Cash Advances and Working Funds | C16: BS | E16: 1200 | F16: 1200 | G16: 1200 | H16: 1200 | I16: 1200 | J16: 1200 | L16: 1200
A17: 1050-Current Assets | B17: 1020-Interest Special Deposits | C17: BS
A18: 1050-Current Assets | B18: 1030-Dividend Special Deposits | C18: BS
A19: 1050-Current Assets | B19: 1040-Other Special Deposits | C19: BS
A20: 1050-Current Assets | B20: 1060-Term Deposits | C20: BS | E20: 0 | F20: 0 | G20: 0 | H20: 0 | I20: 1012190.49 | J20: 1270692 | L20: 2001355.39
A21: 1050-Current Assets | B21: 1070-Current Investments | C21: BS
A22: 1050-Current Assets | B22: 1100-Customer Accounts Receivable | C22: BS | E22: 1400000 | F22: 1400000 | G22: 1375289.2 | H22: 1211801 | I22: 1674532.06 | J22: 145000 | L22: 1518210.46
A23: 1050-Current Assets | B23: 1102-Accounts Receivable - Services | C23: BS | E23: 20000 | F23: 20000 | G23: 18142.31 | H23: 38602.5 | I23: 168724.45 | J23: 24000 | L23: 21124.61
A24: 1050-Current Assets | B24: 1104-Accounts Receivable - Recoverable Work | C24: BS
A25: 1050-Current Assets | B25: 1105-Accounts Receivable - Merchandise | C25: BS
A26: 1050-Current Assets | B26: 1110-Other Accounts Receivable | C26: BS
A27: 1050-Current Assets | B27: 1120-Accrued Utility Revenues | C27: BS | E27: 1160000 | F27: 1160000 | G27: 1151702.76 | H27: 1095307.57 | I27: 1275333.18 | J27: 1478000 | L27: 1318771.21
A28: 1050-Current Assets | B28: 1130-Accumulated Provision for Uncollectible Accounts--Credit | C28: BS | E28: -17000 | F28: -17000 | G28: -16608.89 | H28: -16601.17 | I28: -21101.49 | J28: -8280 | L28: -14077.34
A29: 1050-Current Assets | B29: 1140-Interest and Dividends Receivable | C29: BS | J29: 2000
A30: 1050-Current Assets | B30: 1150-Rents Receivable | C30: BS
A31: 1050-Current Assets | B31: 1170-Notes Receivable | C31: BS
A32: 1050-Current Assets | B32: 1180-Prepayments | C32: BS | E32: 28000 | F32: 28000 | G32: 28054.26 | H32: 23232.08 | I32: 27904.86 | J32: 31400 | L32: 24770.52
A33: 1050-Current Assets | B33: 1190-Miscellaneous Current and Accrued Assets | C33: BS | E33: 0 | F33: 0 | G33: 9691.46 | H33: 11811.29 | I33: 27333.01 | J33: 1550 | L33: 26633.2
A34: 1050-Current Assets | B34: 1200-Accounts Receivable from Associated Companies | C34: BS
A35: 1050-Current Assets | B35: 1210-Notes Receivable from Associated Companies | C35: BS
A36: 1100-Inventory | B36: 1305-Fuel Stock | C36: BS
A37: 1100-Inventory | B37: 1330-Plant Materials and Operating Supplies | C37: BS | E37: 111000 | F37: 111000 | G37: 111021.71 | H37: 118433.87 | I37: 125668.58 | J37: 218 | L37: 126956.68
A38: 1100-Inventory | B38: 1340-Merchandise | C38: BS
A39: 1100-Inventory | B39: 1350-Non-Regulated Materials and Supplies | C39: BS
A40: 1150-Non-Current Assets | B40: 1405-Non-Current Investments in Non-Associated Companies | C40: BS
A41: 1150-Non-Current Assets | B41: 1407 Finance Lease Receivable | C41: BS
A42: 1150-Non-Current Assets | B42: 1408-Long Term Receivable - Street Lighting Transfer | C42: BS
A43: 1150-Non-Current Assets | B43: 1410-Other Special or Collateral Funds | C43: BS
A44: 1150-Non-Current Assets | B44: 1415-Sinking Funds | C44: BS
A45: 1150-Non-Current Assets | B45: 1425-Unamortized Debt Expense | C45: BS
A46: 1150-Non-Current Assets | B46: 1445-Unamortized Discount on Long-Term Debt--Debit | C46: BS
A47: 1150-Non-Current Assets | B47: 1455-Unamortized Deferred Foreign Currency Translation Gains and Losses | C47: BS
A48: 1150-Non-Current Assets | B48: 1460-Other Non-Current Assets | C48: BS | E48: 0 | F48: 0 | G48: 69202 | H48: 148421.06 | I48: 183559.5 | J48: 21200 | L48: 157654.17
A49: 1150-Non-Current Assets | B49: 1470-Past Service Costs - Other Post-Employment Benefits | C49: BS
A50: 1150-Non-Current Assets | B50: 1475-Past Service Costs - Other Pension Plans | C50: BS
A51: 1150-Non-Current Assets | B51: 1480-Portfolio Investments - Associated Companies | C51: BS
A52: 1150-Non-Current Assets | B52: 1481-Investment in Equity-Accounted Joint Venture | C52: BS
A53: 1150-Non-Current Assets | B53: 1485-Investment in Associated Companies - Significant Influence | C53: BS
A54: 1150-Non-Current Assets | B54: 1490-Investment in Subsidiary Companies | C54: BS
A55: 1150-Non-Current Assets | B55: 1495-Deferred Taxes - Non-Current Assets | C55: BS
A56: 1200-Other Assets and Deferred Charges | B56: 1505-Unrecovered Plant and Regulatory Study Costs | C56: BS
A57: 1200-Other Assets and Deferred Charges | B57: 1508-Other Regulatory Assets,Sub-account IFRS Transition Cost Variance | C57: BS | E57: 7500 | F57: 7500 | G57: 5104.17 | H57: 4308.84 | I57: 3218.25 | J57: 46607 | L57: 46619.01
A58: 1200-Other Assets and Deferred Charges | B58: 1508-Other Regulatory Assets,Sub-account Incremental Capital Charges | C58: BS | E58: 0 | F58: 0 | G58: 3194.71
A59: 1200-Other Assets and Deferred Charges | B59: 1508-Other Regulatory Assets, Sub-account ICM | C59: BS | E59: 0 | F59: 0 | G59: =84497.41+785788.64-119260.14+7525.49 -> 758551.4
A60: 1200-Other Assets and Deferred Charges | B60: 1510-Preliminary Survey and Investigation Charges | C60: BS | H60: 265449.94 | I60: 9400
A61: 1200-Other Assets and Deferred Charges | B61: 1515-Emission Allowance Inventory | C61: BS
A62: 1200-Other Assets and Deferred Charges | B62: 1516-Emission Allowances Withheld | C62: BS
A63: 1200-Other Assets and Deferred Charges | B63: 1518-RCVARetail | C63: BS | E63: 2000 | F63: 2000 | G63: 1830.19 | H63: -114.62 | I63: -685.82 | J63: 2188 | L63: 1686.26
A64: 1200-Other Assets and Deferred Charges | B64: 1520-Power Purchase Variance Account | C64: BS
A65: 1200-Other Assets and Deferred Charges | B65: 1521-Special Purpose Charge Assessment Variance Account | C65: BS | H65: 13143.9 | I65: 50683.09
A66: 1200-Other Assets and Deferred Charges | B66: 1525-Miscellaneous Deferred Debits | C66: BS | H66: 4 | I66: 4.09 | J66: 272300 | L66: 272374.19
A67: 1200-Other Assets and Deferred Charges | B67: 1530-Deferred Losses from Disposition of Utility Plant | C67: BS
A68: 1200-Other Assets and Deferred Charges | B68: 1531-Renewable Connection Capital Deferral | C68: BS
A69: 1200-Other Assets and Deferred Charges | B69: 1532-Renewable Connection OM&A Deferral | C69: BS
A70: 1200-Other Assets and Deferred Charges | B70: 1534-Smart Grid Capital Deferral Account | C70: BS
A71: 1200-Other Assets and Deferred Charges | B71: 1535-Smart Grid OM&A Deferral Account | C71: BS | E71: 0 | F71: 0 | G71: 1874.39 | H71: 1847.27 | I71: -8161.66
A72: 1200-Other Assets and Deferred Charges | B72: 1536-Smart Grid Funding Adder Deferral Account | C72: BS
A73: 1200-Other Assets and Deferred Charges | B73: 1540-Unamortized Loss on Reacquired Debt | C73: BS
A74: 1200-Other Assets and Deferred Charges | B74: 1548-RCVASTR | C74: BS | E74: =+F74+2000 -> 13454.81 | F74: =+G74+2000 -> 11454.81 | G74: 9454.81 | H74: 6825.77 | I74: 4365 | J74: 10607 | L74: 12971.55
A75: 1200-Other Assets and Deferred Charges | B75: 1550-LV Variance Account | C75: BS | E75: =+F75+17000 -> 81958.17 | F75: =+G75+17000-39191 -> 64958.17 | G75: 87149.17 | H75: 70504.17 | I75: 47960.11 | J75: 146173 | L75: 162637.3
A76: 1200-Other Assets and Deferred Charges | B76: 1555-Smart Meters Capital Variance Account | C76: BS | H76: 313842.47 | I76: 293197.29 | J76: -45191 | L76: 89781.38
A77: 1200-Other Assets and Deferred Charges | B77: 1556-Smart Meters OM&A Variance Account | C77: BS | H77: 80391.3 | I77: 33402.9 | J77: 82105 | L77: 3556.43
A78: 1200-Other Assets and Deferred Charges | B78: 1560-Deferred Development Costs | C78: BS
A79: 1200-Other Assets and Deferred Charges | B79: 1562-Deferred Payments in Lieu of Taxes | C79: BS | H79: -6299 | I79: -59857.75 | J79: -53723 | L79: -59433.94
A80: 1200-Other Assets and Deferred Charges | B80: 1563-Account 1563 - Deferred PILs Contra Account | C80: BS | E80: 0 | F80: 0 | G80: 2916.36 | H80: 6299 | I80: 59857.75 | J80: 53723 | L80: 59433.94
A81: 1200-Other Assets and Deferred Charges | B81: 1565-CDM Expenditures and Recoveries (former) | C81: BS | J81: -805
A82: 1200-Other Assets and Deferred Charges | B82: 1566-CDM Expenditures and Recoveries (former) | C82: BS | J82: 805
A83: 1200-Other Assets and Deferred Charges | B83: 1567-Board-Approved CDM Programs Variance Account | C83: BS
A84: 1200-Other Assets and Deferred Charges | B84: 1570-Qualifying Transition Costs (former) | C84: BS | H84: 22611.1 | I84: 22611 | J84: 22611 | L84: 22611.1
A85: 1200-Other Assets and Deferred Charges | B85: 1571-Pre-market Opening Energy Variance (former) | C85: BS | H85: -10682.28 | I85: -10682.28 | J85: -10682 | L85: -10682.28
A86: 1200-Other Assets and Deferred Charges | B86: 1572-Extraordinary Event Costs | C86: BS
A87: 1200-Other Assets and Deferred Charges | B87: 1574-Deferred Rate Impact Amounts | C87: BS
A88: 1200-Other Assets and Deferred Charges | B88: 1575-IFRS-CGAAP Transitional PP&E Amounts | C88: BS
A89: 1200-Other Assets and Deferred Charges | B89: 1580-RSVAWMS | C89: BS | E89: =+F89-125000 -> -364110.41 | F89: =+G89+177604-125000 -> -239110.41 | G89: -291714.41 | H89: -381988.43 | I89: -336755.4 | J89: -318722 | L89: -449774.55
A90: 1200-Other Assets and Deferred Charges | B90: 1582-RSVAONE-TIME | C90: BS | J90: 13413 | L90: 13416.06
A91: 1200-Other Assets and Deferred Charges | B91: 1584-RSVANW | C91: BS | E91: =+F91+5000 -> 64699.76 | F91: =+G91+4424+67000 -> 59699.76 | G91: -11724.24 | H91: 55163.97 | I91: 53444.42 | J91: 233817 | L91: -239448.71
A92: 1200-Other Assets and Deferred Charges | B92: 1586-RSVACN | C92: BS | E92: =+F92-20000 -> -54328.74 | F92: =+G92+35141-13300 -> -34328.74 | G92: -56169.74 | H92: -69429.83 | I92: -89395.03 | J92: -1460449 | L92: -1517536.62
A93: 1200-Other Assets and Deferred Charges | B93: 1588-RSVAPOWER Main Account | C93: BS | E93: =+F93+175000 -> 464287.02 | F93: =+G93-344350+174960 -> 289287.02 | G93: 458677.02 | H93: 1204628.32 | I93: 964143.37 | J93: 395976 | L93: 225345.67
A94: 1200-Other Assets and Deferred Charges | B94: 1589 RSVA GA | C94: BS | E94: =+F94+250000 -> 747322.18 | F94: =+G94-537669+232000 -> 497322.18 | G94: 802991.18 | J94: 63999 | L94: 63422.66
A95: 1200-Other Assets and Deferred Charges | B95: 1590-Recovery of Reg Assets | C95: BS | H95: 75.81 | I95: 495.63
A96: 1200-Other Assets and Deferred Charges | B96: 1592-2006 PILs/Taxes Variance for 2006 and Subsequent Years, Sub-account HST OVAT Input Tax Credits (ITCs) | C96: BS
A97: 1200-Other Assets and Deferred Charges | B97: 1595-Disposition and Recovery/Refund of Regulatory Balances, Control Account | C97: BS
A98: 1200-Other Assets and Deferred Charges | B98: 1595-Disposition and Recovery/Refund of Regulatory Balances, Sub-account Principal Balances Approved in 2010 | C98: BS | E98: 0 | F98: =+G98 -> -193536 | G98: -193536 | H98: =-381629.92-70800.46-19880.8-83755.94+15819.75 -> -540247.37 | I98: -1370954.21
A99: 1200-Other Assets and Deferred Charges | B99: 1595-Disposition and Recovery/Refund of Regulatory Balances, Sub-account Carrying Charges Approved in 2011 | C99: BS | E99: 8000 | F99: 8000 | G99: 127933.5 | H99: =-452632.79+776856.7+9536.02+31988.01 -> 365747.94
A100: 1200-Other Assets and Deferred Charges | B100: 1595-Disposition and Recovery/Refund of Regulatory Balances, Sub-account Carrying Charges for Net Principal in 2012 | C100: BS | E100: 24000 | F100: 24000 | G100: 79108.88
A101: 1300-Intangible Plant | B101: 1606-Organization | C101: BS
A102: 1300-Intangible Plant | B102: 1608-Franchises and Consents | C102: BS
A103: 1300-Intangible Plant | B103: 1609-Capital Contribution Paid | C103: BS
A104: 1300-Intangible Plant | B104: 1610-Miscellaneous Intangible Plant | C104: BS
A105: 1300-Intangible Plant | B105: 1611-Computer Software (Former 1925 until 2011) | C105: BS | E105: =+F105+17000 -> 226024.11 | F105: =+G105+28000 -> 209024.11 | G105: 181024.11 | H105: 136792.61 | I105: 128153.27 | J105: 129242 | L105: 113795.64
A106: 1300-Intangible Plant | B106: 1612-Land Rights | C106: BS
A107: 1350-Not for distributor use | B107: 1615-Land | C107: BS
A108: 1350-Not for distributor use | B108: 1616-Land Rights | C108: BS
A109: 1350-Not for distributor use | B109: 1620-Buildings and Fixtures | C109: BS
A110: 1350-Not for distributor use | B110: 1630-Leasehold Improvements | C110: BS
A111: 1350-Not for distributor use | B111: 1635-Boiler Plant Equipment | C111: BS
A112: 1350-Not for distributor use | B112: 1640-Engines and Engine-Driven Generators | C112: BS
A113: 1350-Not for distributor use | B113: 1645-Turbogenerator Units | C113: BS
A114: 1350-Not for distributor use | B114: 1650-Reservoirs, Dams and Waterways | C114: BS
A115: 1350-Not for distributor use | B115: 1655-Water Wheels, Turbines and Generators | C115: BS
A116: 1350-Not for distributor use | B116: 1660-Roads, Railroads and Bridges | C116: BS
A117: 1350-Not for distributor use | B117: 1665-Fuel Holders, Producers and Accessories | C117: BS
A118: 1350-Not for distributor use | B118: 1670-Prime Movers | C118: BS
A119: 1350-Not for distributor use | B119: 1675-Generators | C119: BS
A120: 1350-Not for distributor use | B120: 1680-Accessory Electric Equipment | C120: BS
A121: 1350-Not for distributor use | B121: 1685-Miscellaneous Power Plant Equipment | C121: BS
A122: 1350-Not for distributor use | B122: 1705-Land | C122: BS | E122: 10000 | F122: 10000 | G122: 10000 | H122: 10000 | I122: 10000 | L122: 10000
A123: 1350-Not for distributor use | B123: 1706-Land Rights | C123: BS
A124: 1350-Not for distributor use | B124: 1708-Buildings and Fixtures | C124: BS
A125: 1350-Not for distributor use | B125: 1710-Leasehold Improvements | C125: BS
A126: 1350-Not for distributor use | B126: 1715-Station Equipment | C126: BS
A127: 1350-Not for distributor use | B127: 1720-Towers and Fixtures | C127: BS
A128: 1350-Not for distributor use | B128: 1725-Poles and Fixtures | C128: BS
A129: 1350-Not for distributor use | B129: 1730-Overhead Conductors and Devices | C129: BS
A130: 1350-Not for distributor use | B130: 1735-Underground Conduit | C130: BS
A131: 1350-Not for distributor use | B131: 1740-Underground Conductors and Devices | C131: BS
A132: 1350-Not for distributor use | B132: 1745-Roads and Trails | C132: BS
A133: 1450-Distribution Plant | B133: 1805-Land | C133: BS | E133: 10000 | F133: 10000 | G133: 10000 | H133: 10000 | I133: 10000 | J133: 20000 | L133: 10000
A134: 1450-Distribution Plant | B134: 1806-Land Rights | C134: BS | E134: 8588 | F134: 8588 | G134: 8588 | H134: 8588 | I134: 8588 | J134: 8588 | L134: 8588
A135: 1450-Distribution Plant | B135: 1808-Buildings and Fixtures | C135: BS
A136: 1450-Distribution Plant | B136: 1810-Leasehold Improvements | C136: BS
A137: 1450-Distribution Plant | B137: 1815-Transformer Station Equipment - Normally Primary above 50 kV | C137: BS | E137: =+F137+25000 -> 2055701.74 | F137: =+G137+1547900 -> 2030701.74 | G137: 482801.74 | H137: 457911.74 | I137: 402411.74 | J137: 454188 | L137: 349916.94
A138: 1450-Distribution Plant | B138: 1820-Distribution Station Equipment - Normally Primary below 50 kV | C138: BS | E138: =+F138+60000 -> 1116183.09 | F138: =+G138+800000 -> 1056183.09 | G138: 256183.09 | H138: 251550.82 | I138: 184860 | J138: 279376 | L138: 175800.99
A139: 1450-Distribution Plant | B139: 1825-Storage Battery Equipment | C139: BS
A140: 1450-Distribution Plant | B140: 1830-Poles, Towers and Fixtures | C140: BS | E140: =+F140+89000 -> 647627.23 | F140: =+G140+99000 -> 558627.23 | G140: 459627.23 | H140: 378725.15 | I140: 351066.63 | J140: 420257 | L140: 322655.88
A141: 1450-Distribution Plant | B141: 1835-Overhead Conductors and Devices | C141: BS | E141: =+F141+20000 -> 520830.16 | F141: =+G141+25000 -> 500830.16 | G141: 475830.16 | H141: 405942.53 | I141: 402306.23 | J141: 423383 | L141: 367500.19
A142: 1450-Distribution Plant | B142: 1840-Underground Conduit | C142: BS | E142: =+F142+500 -> 114855.12 | F142: =+G142+500 -> 114355.12 | G142: 113855.12 | H142: 113855.12 | I142: 113855.12 | J142: 113634 | L142: 113707.7
A143: 1450-Distribution Plant | B143: 1845-Underground Conductors and Devices | C143: BS | E143: =+F143+17500 -> 300412.57 | F143: =+G143+17000 -> 282912.57 | G143: 265912.57 | H143: 260976.91 | I143: 260391.6 | J143: 237283 | L143: 212731.5
A144: 1450-Distribution Plant | B144: 1850-Line Transformers | C144: BS | E144: =+F144+12500 -> 447744.76 | F144: =+G144+28000-1548 -> 435244.76 | G144: 408792.76 | H144: 403173.06 | I144: 397148.41 | J144: 334028 | L144: 372827.19
A145: 1450-Distribution Plant | B145: 1855-Services | C145: BS | E145: =+F145+3100 -> 38519.82 | F145: =+G145+3000 -> 35419.82 | G145: 32419.82 | H145: 30185.7 | I145: 26835.48 | J145: 21013 | L145: 23261.26
A146: 1450-Distribution Plant | B146: 1860-Meters | C146: BS | E146: 0 | F146: =+G146 -> 254843.38 | G146: =254843.38 -> 254843.38 | H146: 254708.77 | I146: 246912.13 | J146: 224822 | L146: 246912.13
A147: 1450-Distribution Plant | B147: 1860-Smart Meter | C147: BS | E147: =+F147+3500 -> 625898.5 | F147: =+G147+3500 -> 622398.5 | G147: 618898.5
A148: 1450-Distribution Plant | B148: 1870-Leased Property on Customer Premises | C148: BS
A149: 1450-Distribution Plant | B149: 1875-Street Lighting and Signal Systems | C149: BS
A150: 1500-General Plant | B150: 1905-Land | C150: BS | E150: 28299.7 | F150: 28299.7 | G150: 28299.7 | H150: 28299.7 | I150: 28299.7 | J150: 28300 | L150: 28299.7
A151: 1500-General Plant | B151: 1906-Land Rights | C151: BS
A152: 1500-General Plant | B152: 1908-Buildings and Fixtures | C152: BS | E152: =+F152+12500 -> 874123.77 | F152: =+G152+37500 -> 861623.77 | G152: 824123.77 | H152: 824123.77 | I152: 824123.77 | J152: 849124 | L152: 824123.77
A153: 1500-General Plant | B153: 1910-Leasehold Improvements | C153: BS
A154: 1500-General Plant | B154: 1915-Office Furniture and Equipment | C154: BS | E154: =+F154+3500 -> 42983.96 | F154: =+G154+5700 -> 39483.96 | G154: 33783.96 | H154: 33783.96 | I154: 32653.73 | J154: 58011 | L154: 30527.53
A155: 1500-General Plant | B155: 1920-Computer Equipment - Hardware | C155: BS | E155: =+F155+3100 -> 60978.11 | F155: =+G155+3000 -> 57878.11 | G155: 54878.11 | H155: 52221.79 | I155: 50118.41 | J155: 59614 | L155: 46427.21
A156: 1500-General Plant | B156: 1925-Computer Software (former) | C156: BS
A157: 1500-General Plant | B157: 1930-Transportation Equipment | C157: BS | E157: 204794 | F157: 204794 | G157: 204793.8 | H157: 205345.8 | I157: 205345.8 | J157: 205346 | L157: 205345.8
A158: 1500-General Plant | B158: 1935-Stores Equipment | C158: BS
A159: 1500-General Plant | B159: 1940-Tools, Shop and Garage Equipment | C159: BS | E159: =+F159+3100 -> 34096.47 | F159: =+G159+3000 -> 30996.47 | G159: 27996.47 | H159: 25029.47 | I159: 19966.2 | J159: 29648 | L159: 13959.53
A160: 1500-General Plant | B160: 1945-Measurement and Testing Equipment | C160: BS
A161: 1500-General Plant | B161: 1950-Power Operated Equipment | C161: BS | E161: =+F161+2000 -> 8363.29 | F161: =+G161+2000 -> 6363.29 | G161: 4363.29 | H161: 4363.29 | I161: 4363.29 | J161: 34363 | L161: 4363.29
A162: 1500-General Plant | B162: 1955-Communication Equipment | C162: BS
A163: 1500-General Plant | B163: 1960-Miscellaneous Equipment | C163: BS
A164: 1500-General Plant | B164: 1965-Water Heater Rental Units | C164: BS
A165: 1500-General Plant | B165: 1970-Load Management Controls - Customer Premises | C165: BS
A166: 1500-General Plant | B166: 1975-Load Management Controls - Utility Premises | C166: BS
A167: 1500-General Plant | B167: 1980-System Supervisory Equipment | C167: BS
A168: 1500-General Plant | B168: 1985-Sentinel Lighting Rental Units | C168: BS
A169: 1500-General Plant | B169: 1990-Other Tangible Property | C169: BS
A170: 1550-Other Capital Assets | B170: 1995-Contributions and Grants - Credit | C170: BS | E170: =SUM('App.2-B_FixAsset 2014-NewCGAAP'!H53:H57) -> -302077.18 | F170: =SUM('App 2-B FixAsset 2013-NewCGAAP'!H53:H57) -> -274627.18 | G170: ='App 2-B FixAsset 2012-CGAAP'!I51 -> -254514.18 | H170: ='App 2-B FixAsset 2011-CGAAP'!H51 -> -144473.61 | I170: ='App 2-B FixAsset2010-CGAAP'!H51 -> -144473.61 | J170: -55867 | L170: -66537
A171: 1550-Other Capital Assets | B171: 2005-Property Under Finance Leases | C171: BS
A172: 1550-Other Capital Assets | B172: 2010-Electric Plant Purchased or Sold | C172: BS
A173: 1550-Other Capital Assets | B173: 2020-Experimental Electric Plant Unclassified | C173: BS
A174: 1550-Other Capital Assets | B174: 2030-Electric Plant and Equipment Leased to Others | C174: BS
A175: 1550-Other Capital Assets | B175: 2040-Electric Plant Held for Future Use | C175: BS
A176: 1550-Other Capital Assets | B176: 2050-Completed Construction Not Classified--Electric | C176: BS
A177: 1550-Other Capital Assets | B177: 2055-Construction Work in Progress--Electric | C177: BS
A178: 1550-Other Capital Assets | B178: 2060-Electric Plant Acquisition Adjustment | C178: BS
A179: 1550-Other Capital Assets | B179: 2065-Other Electric Plant Adjustment | C179: BS
A180: 1550-Other Capital Assets | B180: 2070-Other Utility Plant | C180: BS
A181: 1550-Other Capital Assets | B181: 2075-Non-Rate Regulated Utility Property Owned or Under Finance Leases | C181: BS
A182: 1600-Accumulated Amortization | B182: 2105-Accumulated Depreciation of Electric Utility Plant - Property, Plant, & Equipment | C182: BS | E182: ='App.2-B_FixAsset 2014-NewCGAAP'!M60 -> -2270454.72 | F182: ='App 2-B FixAsset 2013-NewCGAAP'!M60 -> -2240791.85 | G182: -2061308.66 | H182: -1779449.81 | I182: -1614112.81 | J182: -1620320 | L182: -1451310.55
A183: 1600-Accumulated Amortization | B183: 2120-Accumulated Amortization of Electric Utility Plant - Intangibles | C183: BS
A184: 1600-Accumulated Amortization | B184: 2140-Accumulated Amortization of Electric Plant Acquisition Adjustment | C184: BS | E184: 34486 | F184: 28084 | G184: 21682 | H184: 13705 | I184: 7928
A185: 1600-Accumulated Amortization | B185: 2160-Accumulated Depreciation of Other Utility Plant | C185: BS
A186: 1600-Accumulated Amortization | B186: 2180-Accumulated Depreciation of Non-Rate-Regulated Property | C186: BS
A187: 1650-Current Liabilities | B187: 2205-Accounts Payable | C187: BS | E187: -2400000 | F187: -2400000 | G187: -2264508.54 | H187: -2956289.23 | I187: -2229071.54 | J187: -2220900 | L187: -2325266.88
A188: 1650-Current Liabilities | B188: 2208-Customer Credit Balances | C188: BS | E188: -55000 | F188: -55000 | G188: -55411.15 | H188: -148439.89 | I188: -129283.39 | J188: -158200 | L188: -203687.97
A189: 1650-Current Liabilities | B189: 2210-Customer Deposits | C189: BS | E189: -270000 | F189: -270000 | G189: -270160.24 | H189: -303483.39 | I189: -326572.92 | J189: -240000 | L189: -192282
A190: 1650-Current Liabilities | B190: 2215-Dividends Declared | C190: BS
A191: 1650-Current Liabilities | B191: 2220-Miscellaneous Current and Accrued Liabilities | C191: BS | E191: -77000 | F191: -77000 | G191: -77675.13 | H191: -64507.11 | I191: -58560.57 | J191: -46000 | L191: -69611.63
A192: 1650-Current Liabilities | B192: 2225-Notes and Loans Payable | C192: BS
A193: 1650-Current Liabilities | B193: 2240-Accounts Payable to Associated Companies | C193: BS
A194: 1650-Current Liabilities | B194: 2242-Notes Payable to Associated Companies | C194: BS
A195: 1650-Current Liabilities | B195: 2250-Debt Retirement Charges( DRC) Payable | C195: BS
A196: 1650-Current Liabilities | B196: 2252-Transmission Charges Payable | C196: BS
A197: 1650-Current Liabilities | B197: 2254-Electrical Safety Authority Fees Payable | C197: BS
A198: 1650-Current Liabilities | B198: 2256-Independent Market Operator Fees and Penalties Payable | C198: BS
A199: 1650-Current Liabilities | B199: 2260-Current Long Term Debt | C199: BS
A200: 1650-Current Liabilities | B200: 2264-OMERS - Current | C200: BS
A201: 1650-Current Liabilities | B201: 2265-Non-Omers - Current | C201: BS
A202: 1650-Current Liabilities | B202: 2268-Accrued Interest on Long Term Debt | C202: BS
A203: 1650-Current Liabilities | B203: 2270-Matured Long Term Debt | C203: BS
... 285 more rows

Sheet Revenues at Curr Rates (hidden)
A1: Precedent: LoadForecast | H1: File Number:
H2: Exhibit:
H3: Tab:
H4: Schedule:
H5: Page:
H7: Date:
A9: TESI-4
A10: Distribution Revenues at Current Rates
A12: Bridge Year
B13: Bridge Year Projected Revenue from Existing Variable Charges
A14: Customer Class Name | B14: Variable Distribution Rate | C14: per | D14: Bridge Year Volume | E14: Gross Variable Revenue | F14: Transform. Allowance Rate | G14: Transform. Allowance kW's | H14: Transform. Allowance $'s | I14: Net Variable Revenue
A15: =CustomerClass!A14 -> Residential | B15: =CurrentTariff!C22 -> 0.0081 | C15: =CustomerClass!F14 -> kWh | D15: =CHOOSE(MATCH(C15,{"","kWh","kW"},0),1,LoadForecast!$H36,LoadForecast!$H59) -> 54711761.72 | E15: =B15*D15 -> 443165.2699 | H15: =F15*G15 -> 0 | I15: =E15+H15 -> 443165.2699
A16: =CustomerClass!A15 -> General Service < 50 kW | B16: =CurrentTariff!C43 -> 0.0055 | C16: =CustomerClass!F15 -> kWh | D16: =CHOOSE(MATCH(C16,{"","kWh","kW"},0),1,LoadForecast!$H37,LoadForecast!$H60) -> 20128592.11 | E16: 110707.2566 | H16: 0 | I16: 110707.2566
A17: =CustomerClass!A16 -> General Service > 50 to 4999 kW | B17: =CurrentTariff!C64 -> 1.5558 | C17: =CustomerClass!F16 -> kW | D17: =CHOOSE(MATCH(C17,{"","kWh","kW"},0),1,LoadForecast!$H38,LoadForecast!$H61) -> 206144 | E17: 320718.8352 | F17: -0.6 | G17: 189205 | H17: -113523 | I17: 207195.8352
A18: =CustomerClass!A17 -> Unmetered Scattered Load | B18: =CurrentTariff!C85 -> 0.0021 | C18: =CustomerClass!F17 -> kWh | D18: =CHOOSE(MATCH(C18,{"","kWh","kW"},0),1,LoadForecast!$H39,LoadForecast!$H62) -> 224238 | E18: 470.8998 | H18: 0 | I18: 470.8998
A19: =CustomerClass!A18 -> Sentinel Lighting | B19: =CurrentTariff!C106 -> 3.2285 | C19: =CustomerClass!F18 -> kW | D19: =CHOOSE(MATCH(C19,{"","kWh","kW"},0),1,LoadForecast!$H40,LoadForecast!$H63) -> 297 | E19: 958.8645 | F19: -0.6 | H19: 0 | I19: 958.8645
A20: =CustomerClass!A19 -> Street Lighting | B20: =CurrentTariff!C127 -> 6.7744 | C20: =CustomerClass!F19 -> kW | D20: =CHOOSE(MATCH(C20,{"","kWh","kW"},0),1,LoadForecast!$H41,LoadForecast!$H64) -> 3250 | E20: 22016.8 | F20: -0.6 | H20: 0 | I20: 22016.8
A21: Total Variable Revenue | D21: =SUM(D15:D20) -> 75274282.83 | E21: =SUM(E15:E20) -> 898037.926 | G21: =SUM(G15:G20) -> 189205 | H21: =SUM(H15:H20) -> -113523 | I21: =SUM(I15:I20) -> 784514.926
A23: Bridge Year
B24: Bridge Year Projected Revenue from Existing Fixed Charges
A25: Customer Class Name | B25: Fixed Rate | C25: Customers (Connections) | D25: Fixed Charge Revenue | E25: Variable Revenue | F25: TOTAL | G25: % Fixed Revenue | H25: % Variable Revenue | I25: % Total Revenue
A26: =CustomerClass!A14 -> Residential | B26: =CurrentTariff!C21 -> 5.99 | C26: =LoadForecast!H14 -> 4905 | D26: =B26*12*C26 -> 352571.4 | E26: =I15 -> 443165.2699 | F26: =D26+E26 -> 795736.6699 | G26: =D26/F26 -> 0.4430754712 | H26: =E26/F26 -> 0.5569245288 | I26: =F26/$F$32 -> 0.5835299021
A27: =CustomerClass!A15 -> General Service < 50 kW | B27: =CurrentTariff!C42 -> 13.84 | C27: =LoadForecast!H15 -> 630 | D27: 104630.4 | E27: 110707.2566 | F27: 215337.6566 | G27: 0.4858899352 | H27: 0.5141100648 | I27: 0.1579114881
A28: =CustomerClass!A16 -> General Service > 50 to 4999 kW | B28: =CurrentTariff!C63 -> 97.35 | C28: =LoadForecast!H16 -> 96 | D28: 112147.2 | E28: 207195.8352 | F28: 319343.0352 | G28: 0.3511809798 | H28: 0.6488190202 | I28: 0.2341807499
A29: =CustomerClass!A17 -> Unmetered Scattered Load | B29: =CurrentTariff!C84 -> 6.39 | C29: =LoadForecast!H17 -> 5 | D29: 383.4 | E29: 470.8998 | F29: 854.2998 | G29: 0.4487885869 | H29: 0.5512114131 | I29: 0.0006264754378
A30: =CustomerClass!A18 -> Sentinel Lighting | B30: =CurrentTariff!C105 -> 1.63 | C30: =LoadForecast!H18 -> 21 | D30: 410.76 | E30: 958.8645 | F30: 1369.6245 | G30: 0.2999070183 | H30: 0.7000929817 | I30: 0.001004373533
A31: =CustomerClass!A19 -> Street Lighting | B31: =CurrentTariff!C126 -> 0.62 | C31: =LoadForecast!H19 -> 1210 | D31: 9002.4 | E31: 22016.8 | F31: 31019.2 | G31: 0.2902202507 | H31: 0.7097797493 | I31: 0.02274701094
A32: Total Fixed Revenue | C32: =SUM(C26:C31) -> 6867 | D32: =SUM(D26:D31) -> 579145.56 | E32: =SUM(E26:E31) -> 784514.926 | F32: =SUM(F26:F31) -> 1363660.486
A34: Test Year
B35: Test Year Projected Revenue from Existing Variable Charges
A36: Customer Class Name | B36: Variable Distribution Rate | C36: per | D36: Test Year Volume | E36: Gross Variable Revenue | F36: Transform. Allowance Rate | G36: Transform. Allowance kW's | H36: Transform. Allowance $'s | I36: Net Variable Revenue
A37: =CustomerClass!A14 -> Residential | B37: =CurrentTariff!C22 -> 0.0081 | C37: =CustomerClass!F14 -> kWh | D37: =CHOOSE(MATCH(C15,{"","kWh","kW"},0),1,LoadForecast!$I36,LoadForecast!$I59) -> 53488924.26 | E37: =B37*D37 -> 433260.2865 | H37: =F37*G37 -> 0 | I37: =E37+H37 -> 433260.2865
A38: =CustomerClass!A15 -> General Service < 50 kW | B38: =CurrentTariff!C43 -> 0.0055 | C38: =CustomerClass!F15 -> kWh | D38: =CHOOSE(MATCH(C16,{"","kWh","kW"},0),1,LoadForecast!$I37,LoadForecast!$I60) -> 19235278.13 | E38: 105794.0297 | H38: =F38*G38 -> 0 | I38: 105794.0297
A39: =CustomerClass!A16 -> General Service > 50 to 4999 kW | B39: =CurrentTariff!C64 -> 1.5558 | C39: =CustomerClass!F16 -> kW | D39: =CHOOSE(MATCH(C17,{"","kWh","kW"},0),1,LoadForecast!$I38,LoadForecast!$I61) -> 201122 | E39: 312905.6076 | F39: -0.6 | G39: 189205 | H39: =F39*G39 -> -113523 | I39: 199382.6076
A40: =CustomerClass!A17 -> Unmetered Scattered Load | B40: =CurrentTariff!C85 -> 0.0021 | C40: =CustomerClass!F17 -> kWh | D40: =CHOOSE(MATCH(C18,{"","kWh","kW"},0),1,LoadForecast!$I39,LoadForecast!$I62) -> 220649.1 | E40: 463.36311 | H40: =F40*G40 -> 0 | I40: 463.36311
A41: =CustomerClass!A18 -> Sentinel Lighting | B41: =CurrentTariff!C106 -> 3.2285 | C41: =CustomerClass!F18 -> kW | D41: =CHOOSE(MATCH(C19,{"","kWh","kW"},0),1,LoadForecast!$I40,LoadForecast!$I63) -> 292 | E41: 942.722 | F41: -0.6 | I41: 942.722
A42: =CustomerClass!A19 -> Street Lighting | B42: =CurrentTariff!C127 -> 6.7744 | C42: =CustomerClass!F19 -> kW | D42: =CHOOSE(MATCH(C20,{"","kWh","kW"},0),1,LoadForecast!$I41,LoadForecast!$I64) -> 3211 | E42: 21752.5984 | F42: -0.6 | H42: =F42*G42 -> 0 | I42: 21752.5984
A43: Total Variable Revenue | D43: =SUM(D37:D42) -> 73149476.49 | E43: =SUM(E37:E42) -> 875118.6073 | G43: =SUM(G37:G42) -> 189205 | H43: =SUM(H37:H42) -> -113523 | I43: =SUM(I37:I42) -> 761595.6073
A45: Test Year
B46: Test Year Projected Revenue from Existing Fixed Charges
A47: Customer Class Name | B47: Fixed Rate | C47: Customers (Connections) | D47: Fixed Charge Revenue | E47: Variable Revenue | F47: TOTAL | G47: % Fixed Revenue | H47: % Variable Revenue | I47: % Total Revenue
A48: =CustomerClass!A14 -> Residential | B48: =CurrentTariff!C21 -> 5.99 | C48: =LoadForecast!I14 -> 4950 | D48: =B48*12*C48 -> 355806 | E48: =I37 -> 433260.2865 | F48: =D48+E48 -> 789066.2865 | G48: =D48/F48 -> 0.4509202916 | H48: =E48/F48 -> 0.5490797084 | I48: =F48/$F$54 -> 0.5857893605
A49: =CustomerClass!A15 -> General Service < 50 kW | B49: =CurrentTariff!C42 -> 13.84 | C49: =LoadForecast!I15 -> 634 | D49: 105294.72 | E49: 105794.0297 | F49: 211088.7497 | G49: 0.4988172991 | H49: 0.5011827009 | I49: 0.1567086895
A50: =CustomerClass!A16 -> General Service > 50 to 4999 kW | B50: =CurrentTariff!C63 -> 97.35 | C50: =LoadForecast!I16 -> 98 | D50: 114483.6 | E50: 199382.6076 | F50: 313866.2076 | G50: 0.3647528699 | H50: 0.6352471301 | I50: 0.2330089223
A51: =CustomerClass!A17 -> Unmetered Scattered Load | B51: =CurrentTariff!C84 -> 6.39 | C51: =LoadForecast!I17 -> 5 | D51: 383.4 | E51: 463.36311 | F51: 846.76311 | G51: 0.4527830694 | H51: 0.5472169306 | I51: 0.0006286224988
A52: =CustomerClass!A18 -> Sentinel Lighting | B52: =CurrentTariff!C105 -> 1.63 | C52: =LoadForecast!I18 -> 21 | D52: 410.76 | E52: 942.722 | F52: 1353.482 | G52: 0.303483903 | H52: 0.696516097 | I52: 0.001004801965
A53: =CustomerClass!A19 -> Street Lighting | B53: =CurrentTariff!C126 -> 0.62 | C53: =LoadForecast!I19 -> 1215 | D53: 9039.6 | E53: 21752.5984 | F53: 30792.1984 | G53: 0.2935678669 | H53: 0.7064321331 | I53: 0.0228596032
A54: Total Fixed Revenue | C54: =SUM(C48:C53) -> 6923 | D54: =SUM(D48:D53) -> 585418.08 | E54: =SUM(E48:E53) -> 761595.6073 | F54: =SUM(F48:F53) -> 1347013.687
A56: Variance Analysis
B57: Bridge Year to Test Year Variance
A58: Customer Class Name | B58: 2013 | C58: 2014 | D58: Variance | E58: % change
A59: Residential | B59: =F26 -> 795736.6699 | C59: =F48 -> 789066.2865 | D59: =C59-B59 -> -6670.383396 | E59: =(C59-B59)/B59 -> -0.00838265176
A60: General Service < 50 kW | B60: 215337.6566 | C60: 211088.7497 | D60: =C60-B60 -> -4248.906883 | E60: =(C60-B60)/B60 -> -0.01973136956
A61: General Service > 50 to 4999 kW | B61: 319343.0352 | C61: 313866.2076 | D61: =C61-B61 -> -5476.8276 | E61: -0.01715029607
A62: Unmetered Scattered Load | B62: 854.2998 | C62: 846.76311 | D62: =C62-B62 -> -7.53669 | E62: -0.008822066914
A63: Street Lighting | B63: 1369.6245 | C63: 1353.482 | D63: =C63-B63 -> -16.1425 | E63: -0.01178607713
A64: MicroFit | B64: 31019.2 | C64: 30792.1984
A65: Total Fixed Revenue | B65: =SUM(B59:B64) -> 1363660.486 | C65: =SUM(C59:C64) -> 1347013.687 | D65: =SUM(D59:D64) -> -16419.79707 | E65: -0.01220743641

Sheet App.2-A_Capital Projects
G1: File Number: | H1: EB-2012-0000
G2: Exhibit: | H2: 2
G3: Tab: | H3: 2
G4: Schedule: | H4: 2
G5: Page:
G7: Date:
A13: projects | B13: 2008 | C13: 2009 | D13: 2010 | E13: 2011 | F13: 2012 | G13: 2013 Bridge Year | H13: 2014 Test Year
A14: reporting basis
A15: (1815) 1 reclosers (new) ms#1 | B15: 20663.96
A16: (1815) major transformer ( gasing transformer 55t2) maintenance (degas) | C16: 47728.62
A17: (1815) add 1 recloser betterment to 55t1 and 55t2 tap changers externally add inhibitor | D17: 52494.8
A18: (1815) replacement of arcing contact on both tap changers | E18: 55500
A19: (1815) meetering and assure all ct's are not affected by operations. dismanttle meetering and assure all ct's are not affected by operations. internal tap changer repairs following recongnision that 55t1 is faulty. change all auxiliary contacts 55t1 and 55t2 | F19: 24890
A20: (1815) revamp 110 kv station as per oeb approval eb-2011-0173 & regular expenditures on 55t1 and 55t2 | G20: 1547900
A21: regular expenditures on the new 55t1 and 55t2 and 55t3 ( on pot) | H21: 25000
A22: sub-total | B22: =SUM(B15:B19) -> 20663.96 | C22: =SUM(C15:C19) -> 47728.62 | D22: 52494.8 | E22: 55500 | F22: =SUM(F15:F19) -> 24890 | G22: =SUM(G15:G21) -> 1547900 | H22: =SUM(H15:H21) -> 25000
A24: (1820) new recloser 44kv sub | C24: 23424.54
A25: (1820) add inhibitor to 10mva transformer | D25: 9059.01
A26: (1820) 2 new recloser 44kv sub ( replacement complete), plus 44kv transformer maintenance and inspection, by-pass tap changer. high gas. change rotten x-arms on incoming and outgoind structures at 44 kv sub new fence | E26: 66690.82
A27: (1820) stone at sub for lineman safety | F27: 4632.27
A28: (1820) Expenditures of SUB 44KV recorded upon completion and annual maintenance on SUB 44KV structure. | G28: 800000
A29: (1820) Expenditures to obtain a report on the anomalies that caused the high combustible gases of transformer 43t1 of SUB 44KV. Obtain a re-vamp solution and quote and if feasible, repair the transformer in order to reach HHI's goal to have proper transformation capacity and mainly redundancy. | H29: 60000
A30: sub-total | B30: =SUM(B24:B29) -> 0 | C30: =SUM(C24:C29) -> 23424.54 | D30: 9059.01 | E30: 66690.82 | F30: 4632.27 | G30: 800000 | H30: 60000
A32: (1830) riser pole new subdivision | B32: 1064.56
A33: (1830) pole replacement & riser pole new subdivision | C33: 24399.13
A34: (1830) pole replacement, x-arms and hardware several location following annual inspections | D34: 28410.75
A35: (1830) pole replacement, x-arms and hardware several location following annual inspections | E35: 27658.52
A36: (1830) pole replacement, x-arms and hardware several location following annual inspections plus line extention on west st. for new customer on hwy 17, plus 44kv feeder between 44kv station and spence st. | F36: 80902.08
A37: (1830) replace poles, fixtures as per asset management plan | G37: 99000
A38: (1830) replace poles, fixtures as per asset management plan | H38: 89000
A43: sub-total | B43: =SUM(B32:B42) -> 1064.56 | C43: =SUM(C32:C42) -> 24399.13 | D43: 28410.75 | E43: 27658.52 | F43: =SUM(F32:F42) -> 80902.08 | G43: 99000 | H43: 89000
A45: (1835) oh conductor (remove copper conductor) | B45: 7361.03
A46: (1835) oh conductor betterment increase size primary and neutral | C46: 5117.57
A47: (1835) oh conductor betterment increase size primary feeder 43f2 to 336 mcm | D47: 34806.04
A48: (1835) oh conductor (cooper) and new in-line switch | E48: 3636.3
A49: (1835) oh conductor line extention west st. and 44kv feeder betterment | F49: 69887.63
A50: (1835) replace 3/0 o.h. primary on circuit 43f2 with 336 mcm tulip continuity of work performed in 2011 and 2012 | G50: 25000
A51: (1835) replace 3/0 o.h. primary on circuit 55f1. part of main st. pole # 304 to # 332 with 336 mcm tulip | H51: 20000
A52: sub-total | B52: =SUM(B45:B51) -> 7361.03 | C52: =SUM(C45:C51) -> 5117.57 | D52: 34806.04 | E52: 3636.3 | F52: 69887.63 | G52: 25000 | H52: 20000
A54: underground
A55: (1840) conduit (loop system) & (1845) conductor ( subdivision) | B55: =219.86+26378.06 -> 26597.92
A56: (1840) conduit & (1845) ug conductor subdivision | C56: =73.71+10448.85 -> 10522.56
A57: (1840) conduit & (1845) ug conductor subdivision east end town & nelson | D57: =147.42+47660.1 -> 47807.52
A58: (1840) conduit & (1845) ug conductor ( single service, no subdivision in 2011) | E58: 585.31
A59: (1840) conduit & (1845) ug conductor ( single service, no subdivision in 2011)
A60: (1840) conduit & (1845) ug conductor ( loop at paul cres.) | F60: 4935.66
A61: (1840) & ( 1845)subdivision plan submitted for approval in january 2012 section on ruppert and jacinthe st | G61: 17500
A62: (1840) & (1845) subdivision and u.g facilities section on ruppert and jacinthe st. | H62: 18000
A65: sub-total | B65: =SUM(B55:B58) -> 26597.92 | C65: =SUM(C55:C58) -> 10522.56 | D65: 47807.52 | E65: 585.31 | F65: =SUM(F55:F64) -> 4935.66 | G65: =SUM(G55:G64) -> 17500 | H65: 18000
A67: (1850) line transformers for subdivision and oh services | B67: 21908.16
A68: (1850) line transformers for subdivision and oh services also re-distribute inventory transformers nto 1850 as per oeb | C68: 62799.66
A69: (1850) line transformers for subdivision ( east end and nelson) and oh services | D69: 24321.22
A70: (1850) line transformers 167 kva & equipment | E70: 6024.65
A71: (1850) line transformers refurbish padmount plus hardware betterment on several oh transformers ( cut-outs and lightning arresters | F71: 5619.7
A72: (1850) transformers for the proposed subdivision | G72: 28000
A73: (1850) transformers for the proposed subdivision and ldc needs | H73: 12500
A74: sub-total | B74: =SUM(B67:B73) -> 21908.16 | C74: =SUM(C67:C73) -> 62799.66 | D74: 24321.22 | E74: 6024.65 | F74: 5619.7 | G74: 28000 | H74: 12500
A76: (1855) new services | B76: 1600.35
A77: (1855) new services | C77: 2248.11
A78: (1855) new services | D78: 3574.22
A79: (1855) new services | E79: 3350.22
A80: (1855) new services | F80: 2234.12
A81: (1855) new services | G81: 3000
A82: (1855) new services | H82: 3100
A86: sub-total | B86: =SUM(B76:B85) -> 1600.35 | C86: =SUM(C76:C85) -> 2248.11 | D86: 3574.22 | E86: 3350.22 | F86: 2234.12 | G86: 3000 | H86: 3100
A88: (1860) meters ( conventional & intervals meters) | B88: 1936.44
A89: (1860) meters ( conventional & intervals meters) | C89: 22090.5
A90: (1860) meters ( metering sub 110kv) | E90: 7796.64
A91: (1860 & 1860.01) redistribute capital expenses as per oeb guidelines | F91: 619033.11
A92: (1860-01) smart meters | G92: 3500
A93: (1860-01) smart meters | H93: 3500
A97: sub-total | B97: =SUM(B87:B96) -> 1936.44 | C97: 22090.5 | D97: 0 | E97: 7796.64 | F97: 619033.11 | G97: 3500 | H97: 3500
A99: (1908) building and fixtures | B99: 0
A100: (1908) building and fixtures | C100: 0
A101: (1908) building and fixtures | D101: 0
A102: (1908) building and fixtures | E102: 0
A103: (1908) building and fixtures | F103: 0
A104: (1908) building and fixtures building 21 years old eater infiltration into curtain wall. corrections required & replace carpets in common area and 2 offices & roof inspection report by garlan canada. remove existing caulking, termination bars and detoriated butyl tape na dreplace same. also re-seals the seams with new butyl tape and urethane caulking | G104: 37500
A105: replace last 3 furnaces ( 3 out of 5) | H105: 12500
A106: sub-total | B106: =SUM(B99:B105) -> 0 | C106: =SUM(C99:C105) -> 0 | D106: 0 | E106: 0 | F106: 0 | G106: 37500 | H106: 12500
A108: (1915) office furniture plus 1 fireproof safe ass. manager's office | B108: 7084.26
A109: (1915) office chairs + fireproof safe+ 2 printers furniture plus 1 fireproof safe ass. manager's office | C109: 5016.54
A110: (1915) telephone head set (csr) and projector | D110: 2126.2
A111: (1915) new fridge employees kitchen | E111: 1130.23
A112: (1915) regular office equipement and commercial shredder | G112: 5700
A113: (1915) regular office equipement | H113: 3500
A118: sub-total | B118: =SUM(B108:B117) -> 7084.26 | C118: =SUM(C108:C117) -> 5016.54 | D118: 2126.2 | E118: 1130.23 | F118: 0 | G118: 5700 | H118: 3500
A120: (1920) computer -harware 2 desktop computers ( management) | B120: 2222.69
A121: (1920) computer -harware 3 desktop computers (csr) | C121: 3813.59
A122: (1920) computer -harware | D122: 3691.2
A123: (1920) computer -computer screens +apc smart ( computer protection) and watchgard | E123: 2103.38
A124: (1920) computer - laptop, tablets + firewall hardware | F124: 2656.32
A125: (1920) regular computer equipment and hardware | G125: 3000
A126: (1920) regular computer equipment and hardware | H126: 3100
A130: sub-total | B130: =SUM(B119:B129) -> 2222.69 | C130: 3813.59 | D130: 3691.2 | E130: 2103.38 | F130: 2656.32 | G130: 3000 | H130: 3100
A132: (1611 formelly 1925) ets. new cis system & destop software | B132: 63308.11
A133: (1611 formelly 1925) destop software | C133: 753.73
A134: (1611 formelly 1925) software licensing & i.t. for accpac solutions. windows 7 and ms office software and licenses | D134: 14357.63
A135: (1611 formelly 1925) ets ecare module and e-billing, plus hansen software to collect phone calls for oeb reporting | E135: 8639.34
A136: (1611 formelly 1925) accpac upgrades and licensing, plus sm capital cost transfer following oeb guidelines | F136: 44231.5
A137: (1611 formelly 1925) yearly upgrades and licensing requirements accpac, hansen (call log software ) & web presentment & asset management software to support oeb requirement on asset management plan | G137: 28000
A138: (1611() yearly upgrades and licensing requirements accpac, hansen ( call log software ) | H138: 17000
A142: sub-total | B142: =SUM(B132:B141) -> 63308.11 | C142: =SUM(C132:C141) -> 753.73 | D142: 14357.63 | E142: 8639.34 | F142: 44231.5 | G142: 28000 | H142: 17000
A144: (1930) transportation equipment new pickup | B144: 20449.8
A150: sub-total | B150: =SUM(B144:B149) -> 20449.8 | C150: =SUM(C144:C149) -> 0 | D150: 0 | E150: 0 | F150: 0 | G150: 0 | H150: 0
A152: (1940) tools, shop equipment | B152: 708.84
A153: (1940) tools, shop equipment | C153: 1311.34
A154: (1940) tools, shop equipment crimping tools , road signs & rubber blankets etc | D154: 6006.67
A155: (1940) tools, shop equipment plus ug temporary cable & adapters | E155: 5063.27
A156: (1940) tools, shop equipment | F156: 2967
A157: (1940) misc tools for line crew | G157: 3000
A158: (1940) misc tools for line crew | H158: 3100
A159: sub-total | B159: =SUM(B152:B158) -> 708.84 | C159: =SUM(C152:C158) -> 1311.34 | D159: 6006.67 | E159: 5063.27 | F159: 2967 | G159: 3000 | H159: 3100
A161: (1950) powered tool | G161: 2000
A162: (1950) powered tool | H162: 2000
B163: =SUM(B161:B162) -> 0 | C163: =SUM(C161:C162) -> 0 | D163: 0 | E163: 0 | F163: 0 | G163: 2000 | H163: 2000
B165: =SUM(B22,B30,B43,B52,B65,B74,B86,B97,B106,B118,B130,B142,B150,B159,B163) -> 174906.12 | C165: =SUM(C22,C30,C43,C52,C65,C74,C86,C97,C106,C118,C130,C142,C150,C159,C163) -> 209225.89 | D165: 226655.26 | E165: 188178.68 | F165: 861989.39 | G165: 2603100 | H165: 272300

Sheet App 2-B FixAsset2010-CGAAP
M1: File Number: | N1: ='LDC Info'!$E$18 -> EB-2013-0139
M2: Exhibit: | N2: 2
M3: Tab: | N3: 1
M4: Schedule: | N4: 5
M5: Page: | N5: 1
M7: Date:
A9: Appendix 2-B
A10: Fixed Asset Continuity Schedule
F12: Year | G12: 2010
E14: Cost | K14: Accumulated Depreciation
A15: CCA Class | B15: OEB | C15: Description | D15: Depreciation Rate | E15: Opening Balance | F15: Additions | G15: Disposals | H15: Closing Balance | J15: Opening Balance | K15: Additions | L15: Disposals | M15: Closing Balance | N15: Net Book Value
A16: 12 | B16: 1611 | C16: Computer Software (Formally known as Account 1925) | E16: 113795.64 | F16: 14357.63 | H16: =E16+F16+G16 -> 128153.27 | J16: -50288.64 | K16: -23123.63 | M16: =J16+K16+L16 -> -73412.27 | N16: =H16+M16 -> 54741
A17: CEC | B17: 1612 | C17: Land Rights (Formally known as Account 1906) | E17: 8588 | F17: 0 | H17: =E17+F17+G17 -> 8588 | J17: -2608 | K17: 0 | M17: =J17+K17+L17 -> -2608 | N17: =H17+M17 -> 5980
A18: N/A | B18: 1805 | C18: Land | E18: 10000 | H18: =E18+F18+G18 -> 10000 | J18: 0 | K18: 0 | M18: =J18+K18+L18 -> 0 | N18: =H18+M18 -> 10000
A19: 47 | B19: 1808 | C19: Buildings | H19: =E19+F19+G19 -> 0 | M19: =J19+K19+L19 -> 0 | N19: =H19+M19 -> 0
A20: 13 | B20: 1810 | C20: Leasehold Improvements | H20: 0 | M20: 0 | N20: 0
A21: 47 | B21: 1815 | C21: Transformer Station Equipment >50 kV | E21: 349916.94 | F21: 52494.8 | H21: 402411.74 | J21: -68847.94 | K21: -8884.8 | M21: -77732.74 | N21: 324679
A22: 47 | B22: 1820 | C22: Distribution Station Equipment <50 kV | E22: 175800.99 | F22: 9059.01 | H22: 184860 | J22: -88860.99 | K22: -10597.01 | M22: -99458 | N22: 85402
A23: 47 | B23: 1825 | C23: Storage Battery Equipment | H23: 0 | M23: 0 | N23: 0
A24: 47 | B24: 1830 | C24: Poles, Towers & Fixtures | E24: 322655.88 | F24: 28410.75 | H24: 351066.63 | J24: -171008.88 | K24: -18315.75 | M24: -189324.63 | N24: 161742
A25: 47 | B25: 1835 | C25: Overhead Conductors & Devices | E25: 367500.19 | F25: 34806.04 | H25: 402306.23 | J25: -198824.19 | K25: -22294.04 | M25: -221118.23 | N25: 181188
A26: 47 | B26: 1840 | C26: Underground Conduit | E26: 113707.7 | F26: 147.42 | H26: 113855.12 | J26: -54220.7 | K26: -5937.42 | M26: -60158.12 | N26: 53697
A27: 47 | B27: 1845 | C27: Underground Conductors & Devices | E27: 212731.5 | F27: 47660.1 | H27: 260391.6 | J27: -84446.5 | K27: -11544.1 | M27: -95990.6 | N27: 164401
A28: 47 | B28: 1850 | C28: Line Transformers | E28: 372827.19 | F28: 24321.22 | H28: 397148.41 | J28: -170766.19 | K28: -16654.22 | M28: -187420.41 | N28: 209728
A29: 47 | B29: 1855 | C29: Services (Overhead & Underground) | E29: 23261.26 | F29: 3574.22 | H29: 26835.48 | J29: -5121.26 | K29: -1001.22 | M29: -6122.48 | N29: 20713
A30: 47 | B30: 1860 | C30: Meters | E30: 246912.13 | H30: 246912.13 | J30: -140473.13 | K30: -15656 | M30: -156129.13 | N30: 90783
A31: 47 | B31: 1860 | C31: Meters (Smart Meters) | H31: 0 | M31: 0 | N31: 0
A32: N/A | B32: 1905 | C32: Land | E32: 28299.7 | H32: 28299.7 | J32: 0 | K32: 0 | M32: 0 | N32: 28299.7
A33: 47 | B33: 1908 | C33: Buildings & Fixtures | E33: 824123.77 | H33: 824123.77 | J33: -169572.77 | K33: -16999 | M33: -186571.77 | N33: 637552
A34: 13 | B34: 1910 | C34: Leasehold Improvements | H34: 0 | M34: 0 | N34: 0
A35: 8 | B35: 1915 | C35: Office Furniture & Equipment (10 years) | E35: 30527.53 | F35: 2126.2 | H35: 32653.73 | J35: -12210.53 | K35: -2616.2 | M35: -14826.73 | N35: 17827
A36: 8 | B36: 1915 | C36: Office Furniture & Equipment (5 years) | H36: 0 | M36: 0 | N36: 0
A37: 10 | B37: 1920 | C37: Computer Equipment - Hardware | E37: 46427.21 | F37: 3691.2 | H37: 50118.41 | J37: -35048.21 | K37: -4725.2 | M37: -39773.41 | N37: 10345
A38: 45 | B38: 1920 | C38: Computer Equip.-Hardware(Post Mar. 22/04) | H38: 0 | M38: 0 | N38: 0
A39: 45.1 | B39: 1920 | C39: Computer Equip.-Hardware(Post Mar. 19/07) | H39: 0 | M39: 0 | N39: 0
A40: 10 | B40: 1930 | C40: Transportation Equipment | E40: 205345.8 | H40: 205345.8 | J40: -188729.8 | K40: -2556 | M40: -191285.8 | N40: 14060
A41: 8 | B41: 1935 | C41: Stores Equipment | H41: 0 | M41: 0 | N41: 0
A42: 8 | B42: 1940 | C42: Tools, Shop & Garage Equipment | E42: 13959.53 | F42: 6006.67 | H42: 19966.2 | J42: -7829.53 | K42: -1352.67 | M42: -9182.2 | N42: 10784
A43: 8 | B43: 1945 | C43: Measurement & Testing Equipment | H43: 0 | M43: 0 | N43: 0
A44: 8 | B44: 1950 | C44: Power Operated Equipment | E44: 4363.29 | H44: 4363.29 | J44: -2453.29 | K44: -545 | M44: -2998.29 | N44: 1365
A45: 8 | B45: 1955 | C45: Communications Equipment | H45: 0 | M45: 0 | N45: 0
A46: 8 | B46: 1955 | C46: Communication Equipment (Smart Meters) | H46: 0 | M46: 0 | N46: 0
A47: 8 | B47: 1960 | C47: Miscellaneous Equipment | H47: 0 | M47: 0 | N47: 0
A48: 47 | B48: 1975 | C48: Load Management Controls Utility Premises | H48: 0 | M48: 0 | N48: 0
A49: 47 | B49: 1980 | C49: System Supervisor Equipment | H49: 0 | M49: 0 | N49: 0
A50: 47 | B50: 1985 | C50: Miscellaneous Fixed Assets | H50: 0 | M50: 0 | N50: 0
A51: 47 | B51: 1995 | C51: Contributions & Grants | E51: -70173.64 | F51: -74299.97 | H51: -144473.61 | J51: 3636.64 | K51: 4290.97 | M51: 7927.61 | N51: -136546
B52: etc. | H52: 0 | M52: 0 | N52: 0
C54: Total | E54: =SUM(E16:E53) -> 3400570.61 | F54: =SUM(F16:F53) -> 152355.29 | G54: =SUM(G16:G53) -> 0 | H54: =SUM(H16:H53) -> 3552925.9 | J54: =SUM(J16:J53) -> -1447673.91 | K54: =SUM(K16:K53) -> -158511.29 | L54: =SUM(L16:L53) -> 0 | M54: =SUM(M16:M53) -> -1606185.2 | N54: =SUM(N16:N53) -> 1946740.7
J56: Less: Fully Allocated Depreciation
A57: 10 | C57: Transportation | J57: Transportation
A58: 8 | C58: Stores Equipment | J58: Stores Equipment
J59: Net Depreciation | L59: =L54-L57-L58 -> 0
A61: Notes:
A63: 1 | B63: Tables in the format outlined above covering all fixed asset accounts should be submitted for the Test Year, Bridge Year and all relevant historical years. At a minimum , the applicant must provide data for the earlier of: 1) all historical years back to its last rebasing; or 2) at least three years of historical actuals, in addition to Bridge Year and Test Year forecasts.
A66: 2 | B66: The "CCA Class" for fixed assets should agree with the CCA Class used for tax purposes in Tax Returns. Fixed Assets sub-components may be used where the underlying asset components are classified under multiple CCA Classes for tax purposes. If an applicant uses any different classes from those shown in the table, an explanation should be provided. (also see note 3 below).
A69: 3 | B69: The table may need to be customized for a utility's asset categories or for any new asset accounts announced or authorized by the Board.
A71: 4 | B71: The depreciation column (D) is not required as the relevant information will be provided in the following 2-C series of appendices.

Sheet App 2-B FixAsset 2011-CGAAP
M1: File Number: | N1: ='LDC Info'!$E$18 -> EB-2013-0139
M2: Exhibit: | N2: 2
M3: Tab: | N3: 1
M4: Schedule: | N4: 5
M5: Page: | N5: 2
M7: Date:
A9: Appendix 2-B
A10: Fixed Asset Continuity Schedule
F12: Year | G12: 2011
E14: Cost | K14: Accumulated Depreciation
A15: CCA Class | B15: OEB | C15: Description | D15: Depreciation Rate | E15: Opening Balance | F15: Additions | G15: Disposals | H15: Closing Balance | J15: Opening Balance | K15: Additions | L15: Disposals | M15: Closing Balance | N15: Net Book Value
A16: 12 | B16: 1611 | C16: Computer Software (Formally known as Account 1925) | E16: 128153.27 | F16: 8639.34 | H16: =E16+F16+G16 -> 136792.61 | J16: -73412.27 | K16: -23439 | M16: =J16+K16+L16 -> -96851.27 | N16: =H16+M16 -> 39941.34
A17: CEC | B17: 1612 | C17: Land Rights (Formally known as Account 1906) | E17: 8588 | F17: 0 | H17: =E17+F17+G17 -> 8588 | J17: -2608 | K17: 0 | M17: =J17+K17+L17 -> -2608 | N17: =H17+M17 -> 5980
A18: N/A | B18: 1805 | C18: Land | E18: 10000 | H18: =E18+F18+G18 -> 10000 | J18: 0 | K18: 0 | M18: =J18+K18+L18 -> 0 | N18: =H18+M18 -> 10000
A19: 47 | B19: 1808 | C19: Buildings | E19: 0 | H19: =E19+F19+G19 -> 0 | J19: 0 | M19: =J19+K19+L19 -> 0 | N19: =H19+M19 -> 0
A20: 13 | B20: 1810 | C20: Leasehold Improvements | E20: 0 | H20: 0 | J20: 0 | M20: 0 | N20: 0
A21: 47 | B21: 1815 | C21: Transformer Station Equipment >50 kV | E21: 402411.74 | F21: 55500 | H21: 457911.74 | J21: -77732.74 | K21: -9744 | M21: -87476.74 | N21: 370435
A22: 47 | B22: 1820 | C22: Distribution Station Equipment <50 kV | E22: 184860 | F22: 66690.82 | H22: 251550.82 | J22: -99458 | K22: -11860 | M22: -111318 | N22: 140232.82
A23: 47 | B23: 1825 | C23: Storage Battery Equipment | E23: 0 | H23: 0 | J23: 0 | M23: 0 | N23: 0
A24: 47 | B24: 1830 | C24: Poles, Towers & Fixtures | E24: 351066.63 | F24: 27658.52 | H24: 378725.15 | J24: -189324.63 | K24: -18599 | M24: -207923.63 | N24: 170801.52
A25: 47 | B25: 1835 | C25: Overhead Conductors & Devices | E25: 402306.23 | F25: 3636.3 | H25: 405942.53 | J25: -221118.23 | K25: -22027 | M25: -243145.23 | N25: 162797.3
A26: 47 | B26: 1840 | C26: Underground Conduit | E26: 113855.12 | F26: 0 | H26: 113855.12 | J26: -60158.12 | K26: -5942 | M26: -66100.12 | N26: 47755
A27: 47 | B27: 1845 | C27: Underground Conductors & Devices | E27: 260391.6 | F27: 585.31 | H27: 260976.91 | J27: -95990.6 | K27: -12507 | M27: -108497.6 | N27: 152479.31
A28: 47 | B28: 1850 | C28: Line Transformers | E28: 397148.41 | F28: 6024.65 | H28: 403173.06 | J28: -187420.41 | K28: -15567 | M28: -202987.41 | N28: 200185.65
A29: 47 | B29: 1855 | C29: Services (Overhead & Underground) | E29: 26835.48 | F29: 3350.22 | H29: 30185.7 | J29: -6122.48 | K29: -1140 | M29: -7262.48 | N29: 22923.22
A30: 47 | B30: 1860 | C30: Meters | E30: 246912.13 | F30: 7796.64 | H30: 254708.77 | J30: -156129.13 | K30: -15406 | M30: -171535.13 | N30: 83173.64
A31: 47 | B31: 1860 | C31: Meters (Smart Meters) | E31: 0 | H31: 0 | J31: 0 | M31: 0 | N31: 0
A32: N/A | B32: 1905 | C32: Land | E32: 28299.7 | F32: 0 | H32: 28299.7 | J32: 0 | K32: 0 | M32: 0 | N32: 28299.7
A33: 47 | B33: 1908 | C33: Buildings & Fixtures | E33: 824123.77 | F33: 0 | H33: 824123.77 | J33: -186571.77 | K33: -16999 | M33: -203570.77 | N33: 620553
A34: 13 | B34: 1910 | C34: Leasehold Improvements | E34: 0 | H34: 0 | J34: 0 | M34: 0 | N34: 0
A35: 8 | B35: 1915 | C35: Office Furniture & Equipment (10 years) | E35: 32653.73 | F35: 1130.23 | H35: 33783.96 | J35: -14826.73 | K35: -2738 | M35: -17564.73 | N35: 16219.23
A36: 8 | B36: 1915 | C36: Office Furniture & Equipment (5 years) | E36: 0 | H36: 0 | J36: 0 | M36: 0 | N36: 0
A37: 10 | B37: 1920 | C37: Computer Equipment - Hardware | E37: 50118.41 | F37: 2103.38 | H37: 52221.79 | J37: -39773.41 | K37: -4392 | M37: -44165.41 | N37: 8056.38
A38: 45 | B38: 1920 | C38: Computer Equip.-Hardware(Post Mar. 22/04) | E38: 0 | H38: 0 | J38: 0 | M38: 0 | N38: 0
A39: 45.1 | B39: 1920 | C39: Computer Equip.-Hardware(Post Mar. 19/07) | E39: 0 | H39: 0 | J39: 0 | M39: 0 | N39: 0
A40: 10 | B40: 1930 | C40: Transportation Equipment | E40: 205345.8 | F40: 0 | H40: 205345.8 | J40: -191285.8 | K40: -2556 | M40: -193841.8 | N40: 11504
A41: 8 | B41: 1935 | C41: Stores Equipment | E41: 0 | H41: 0 | J41: 0 | M41: 0 | N41: 0
A42: 8 | B42: 1940 | C42: Tools, Shop & Garage Equipment | E42: 19966.2 | F42: 5063.27 | H42: 25029.47 | J42: -9182.2 | K42: -1876 | M42: -11058.2 | N42: 13971.27
A43: 8 | B43: 1945 | C43: Measurement & Testing Equipment | E43: 0 | H43: 0 | J43: 0 | M43: 0 | N43: 0
A44: 8 | B44: 1950 | C44: Power Operated Equipment | E44: 4363.29 | F44: 0 | H44: 4363.29 | J44: -2998.29 | K44: -545 | M44: -3543.29 | N44: 820
A45: 8 | B45: 1955 | C45: Communications Equipment | E45: 0 | H45: 0 | J45: 0 | M45: 0 | N45: 0
A46: 8 | B46: 1955 | C46: Communication Equipment (Smart Meters) | E46: 0 | H46: 0 | J46: 0 | M46: 0 | N46: 0
A47: 8 | B47: 1960 | C47: Miscellaneous Equipment | E47: 0 | H47: 0 | J47: 0 | M47: 0 | N47: 0
A48: 47 | B48: 1975 | C48: Load Management Controls Utility Premises | E48: 0 | H48: 0 | J48: 0 | M48: 0 | N48: 0
A49: 47 | B49: 1980 | C49: System Supervisor Equipment | E49: 0 | H49: 0 | J49: 0 | M49: 0 | N49: 0
A50: 47 | B50: 1985 | C50: Miscellaneous Fixed Assets | E50: 0 | H50: 0 | J50: 0 | M50: 0 | N50: 0
A51: 47 | B51: 1995 | C51: Contributions & Grants | E51: -144473.61 | F51: 0 | H51: -144473.61 | J51: 7927.61 | K51: 5777 | M51: 13704.61 | N51: -130769
B52: etc. | E52: 0 | H52: 0 | J52: 0 | M52: 0 | N52: 0
C54: Total | E54: =SUM(E16:E53) -> 3552925.9 | F54: =SUM(F16:F53) -> 188178.68 | G54: =SUM(G16:G53) -> 0 | H54: =SUM(H16:H53) -> 3741104.58 | J54: =SUM(J16:J53) -> -1606185.2 | K54: =SUM(K16:K53) -> -159560 | L54: =SUM(L16:L53) -> 0 | M54: =SUM(M16:M53) -> -1765745.2 | N54: =SUM(N16:N53) -> 1975359.38
J56: Less: Fully Allocated Depreciation
A57: 10 | C57: Transportation | J57: Transportation
A58: 8 | C58: Stores Equipment | J58: Stores Equipment
J59: Net Depreciation | L59: =L54-L57-L58 -> 0
A61: Notes:
A63: 1 | B63: Tables in the format outlined above covering all fixed asset accounts should be submitted for the Test Year, Bridge Year and all relevant historical years. At a minimum , the applicant must provide data for the earlier of: 1) all historical years back to its last rebasing; or 2) at least three years of historical actuals, in addition to Bridge Year and Test Year forecasts.
A66: 2 | B66: The "CCA Class" for fixed assets should agree with the CCA Class used for tax purposes in Tax Returns. Fixed Assets sub-components may be used where the underlying asset components are classified under multiple CCA Classes for tax purposes. If an applicant uses any different classes from those shown in the table, an explanation should be provided. (also see note 3 below).
A69: 3 | B69: The table may need to be customized for a utility's asset categories or for any new asset accounts announced or authorized by the Board.
A71: 4 | B71: The depreciation column (D) is not required as the relevant information will be provided in the following 2-C series of appendices.

Sheet App 2-B FixAsset 2012-CGAAP
O1: File Number: | P1: ='LDC Info'!$E$18 -> EB-2013-0139
O2: Exhibit: | P2: 2
O3: Tab: | P3: 1
O4: Schedule: | P4: 5
O5: Page: | P5: 3
O7: Date:
A9: Appendix 2-B
A10: Fixed Asset Continuity Schedule
F12: Year | H12: 2012
E14: Cost | L14: Accumulated Depreciation
A15: CCA Class | B15: OEB | C15: Description | D15: Depreciation Rate | E15: Opening Balance | F15: Additions | G15: Smart Meter Additions | H15: Disposals | I15: Closing Balance | K15: Opening Balance | L15: Additions | M15: Smart Meter Additions | N15: Disposals | O15: Closing Balance | P15: Net Book Value
A16: 12 | B16: 1611 | C16: Computer Software (Formally known as Account 1925) | E16: 136792.61 | F16: =2682.5 -> 2682.5 | G16: 41549 | I16: =E16+F16+G16+H16 -> 181024.11 | K16: -96851.27 | L16: =-'App.2-CF_CGAAP_DepExp_2012'!L16 -> -28739 | M16: -4360.86 | O16: =K16+L16+M16+N16 -> -129951.13 | P16: =I16+O16 -> 51072.98
A17: CEC | B17: 1612 | C17: Land Rights (Formally known as Account 1906) | E17: 8588 | F17: 0 | I17: =E17+F17+H17 -> 8588 | K17: -2608 | L17: =-'App.2-CF_CGAAP_DepExp_2012'!L17 -> 0 | O17: =K17+L17+N17 -> -2608 | P17: =I17+O17 -> 5980
A18: N/A | B18: 1805 | C18: Land | E18: 10000 | F18: 0 | I18: =E18+F18+H18 -> 10000 | K18: 0 | L18: =-'App.2-CF_CGAAP_DepExp_2012'!L18 -> 0 | O18: =K18+L18+N18 -> 0 | P18: =I18+O18 -> 10000
A19: 47 | B19: 1808 | C19: Buildings | E19: 0 | I19: =E19+F19+H19 -> 0 | K19: 0 | L19: =-'App.2-CF_CGAAP_DepExp_2012'!L19 -> 0 | O19: =K19+L19+N19 -> 0 | P19: =I19+O19 -> 0
A20: 13 | B20: 1810 | C20: Leasehold Improvements | E20: 0 | I20: 0 | K20: 0 | L20: =-'App.2-CF_CGAAP_DepExp_2012'!L20 -> 0 | O20: 0 | P20: 0
A21: 47 | B21: 1815 | C21: Transformer Station Equipment >50 kV | E21: 457911.74 | F21: 24890 | I21: 482801.74 | K21: -87476.74 | L21: =-'App.2-CF_CGAAP_DepExp_2012'!L21 -> -10749 | O21: -98225.74 | P21: 384576
A22: 47 | B22: 1820 | C22: Distribution Station Equipment <50 kV | E22: 251550.82 | F22: 4632.27 | I22: 256183.09 | K22: -111318 | L22: =-'App.2-CF_CGAAP_DepExp_2012'!L22 -> -13048 | O22: -124366 | P22: 131817.09
A23: 47 | B23: 1825 | C23: Storage Battery Equipment | E23: 0 | I23: 0 | K23: 0 | L23: =-'App.2-CF_CGAAP_DepExp_2012'!L23 -> 0 | O23: 0 | P23: 0
A24: 47 | B24: 1830 | C24: Poles, Towers & Fixtures | E24: 378725.15 | F24: 80902.08 | I24: 459627.23 | K24: -207923.63 | L24: =-'App.2-CF_CGAAP_DepExp_2012'!L24 -> -20770 | O24: -228693.63 | P24: 230933.6
A25: 47 | B25: 1835 | C25: Overhead Conductors & Devices | E25: 405942.53 | F25: 69887.63 | I25: 475830.16 | K25: -243145.23 | L25: =-'App.2-CF_CGAAP_DepExp_2012'!L25 -> -22615 | O25: -265760.23 | P25: 210069.93
A26: 47 | B26: 1840 | C26: Underground Conduit | E26: 113855.12 | F26: 0 | I26: 113855.12 | K26: -66100.12 | L26: =-'App.2-CF_CGAAP_DepExp_2012'!L26 -> -5735 | O26: -71835.12 | P26: 42020
A27: 47 | B27: 1845 | C27: Underground Conductors & Devices | E27: 260976.91 | F27: 4935.66 | I27: 265912.57 | K27: -108497.6 | L27: =-'App.2-CF_CGAAP_DepExp_2012'!L27 -> -12310 | O27: -120807.6 | P27: 145104.97
A28: 47 | B28: 1850 | C28: Line Transformers | E28: 403173.06 | F28: 5619.7 | I28: 408792.76 | K28: -202987.41 | L28: =-'App.2-CF_CGAAP_DepExp_2012'!L28 -> -15664 | O28: -218651.41 | P28: 190141.35
A29: 47 | B29: 1855 | C29: Services (Overhead & Underground) | E29: 30185.7 | F29: 2234.12 | I29: 32419.82 | K29: -7262.48 | L29: =-'App.2-CF_CGAAP_DepExp_2012'!L29 -> -1252 | O29: -8514.48 | P29: 23905.34
A30: 47 | B30: 1860 | C30: Meters | E30: 254708.77 | F30: 134.61 | I30: 254843.38 | K30: -171535.13 | L30: =-'App.2-CF_CGAAP_DepExp_2012'!L30 -> -12753 | O30: -184288.13 | P30: 70555.25
A31: 47 | B31: 1860 | C31: Meters (Smart Meters) | E31: 0 | F31: =17081.77 -> 17081.77 | G31: 601816.73 | I31: =E31+F31+G31+H31 -> 618898.5 | K31: 0 | L31: =-'App.2-CF_CGAAP_DepExp_2012'!L31 -> -40690 | M31: -64642.69 | O31: =K31+L31+M31+N31 -> -105332.69 | P31: 513565.81
A32: N/A | B32: 1905 | C32: Land | E32: 28299.7 | F32: 0 | I32: 28299.7 | K32: 0 | L32: =-'App.2-CF_CGAAP_DepExp_2012'!L32 -> 0 | O32: 0 | P32: 28299.7
A33: 47 | B33: 1908 | C33: Buildings & Fixtures | E33: 824123.77 | F33: 0 | I33: 824123.77 | K33: -203570.77 | L33: =-'App.2-CF_CGAAP_DepExp_2012'!L33 -> -16999 | O33: -220569.77 | P33: 603554
A34: 13 | B34: 1910 | C34: Leasehold Improvements | E34: 0 | I34: 0 | K34: 0 | L34: =-'App.2-CF_CGAAP_DepExp_2012'!L34 -> 0 | O34: 0 | P34: 0
A35: 8 | B35: 1915 | C35: Office Furniture & Equipment (10 years) | E35: 33783.96 | F35: 0 | I35: 33783.96 | K35: -17564.73 | L35: =-'App.2-CF_CGAAP_DepExp_2012'!L35 -> -2755 | O35: -20319.73 | P35: 13464.23
A36: 8 | B36: 1915 | C36: Office Furniture & Equipment (5 years) | E36: 0 | I36: 0 | K36: 0 | L36: =-'App.2-CF_CGAAP_DepExp_2012'!L36 -> 0 | O36: 0 | P36: 0
A37: 10 | B37: 1920 | C37: Computer Equipment - Hardware | E37: 52221.79 | F37: 2656.32 | I37: 54878.11 | K37: -44165.41 | L37: =-'App.2-CF_CGAAP_DepExp_2012'!L37 -> -3639 | O37: -47804.41 | P37: 7073.7
A38: 45 | B38: 1920 | C38: Computer Equip.-Hardware(Post Mar. 22/04) | E38: 0 | I38: 0 | K38: 0 | L38: =-'App.2-CF_CGAAP_DepExp_2012'!L38 -> 0 | O38: 0 | P38: 0
A39: 45.1 | B39: 1920 | C39: Computer Equip.-Hardware(Post Mar. 19/07) | E39: 0 | I39: 0 | K39: 0 | L39: =-'App.2-CF_CGAAP_DepExp_2012'!L39 -> 0 | O39: 0 | P39: 0
A40: 10 | B40: 1930 | C40: Transportation Equipment | E40: 205345.8 | F40: 0 | H40: -552 | I40: 204793.8 | K40: =-193842 -> -193842 | L40: =-'App.2-CF_CGAAP_DepExp_2012'!L40 -> -2556 | N40: 552 | O40: -195846 | P40: 8947.8
A41: 8 | B41: 1935 | C41: Stores Equipment | E41: 0 | I41: 0 | K41: 0 | L41: =-'App.2-CF_CGAAP_DepExp_2012'!L41 -> 0 | O41: 0 | P41: 0
A42: 8 | B42: 1940 | C42: Tools, Shop & Garage Equipment | E42: 25029.47 | F42: =794 -> 794 | G42: 2173 | I42: =E42+F42+G42+H42 -> 27996.47 | K42: -11058.2 | L42: =-'App.2-CF_CGAAP_DepExp_2012'!L42 -> -2281 | M42: -307.3 | O42: =K42+L42+M42+N42 -> -13646.5 | P42: 14349.97
A43: 8 | B43: 1945 | C43: Measurement & Testing Equipment | E43: 0 | I43: 0 | K43: 0 | L43: =-'App.2-CF_CGAAP_DepExp_2012'!L43 -> 0 | O43: 0 | P43: 0
A44: 8 | B44: 1950 | C44: Power Operated Equipment | E44: 4363.29 | F44: 0 | I44: 4363.29 | K44: -3543.29 | L44: =-'App.2-CF_CGAAP_DepExp_2012'!L44 -> -545.41 | O44: -4088.7 | P44: 274.59
A45: 8 | B45: 1955 | C45: Communications Equipment | E45: 0 | I45: 0 | K45: 0 | L45: =-'App.2-CF_CGAAP_DepExp_2012'!L45 -> 0 | O45: 0 | P45: 0
A46: 8 | B46: 1955 | C46: Communication Equipment (Smart Meters) | E46: 0 | I46: 0 | K46: 0 | L46: =-'App.2-CF_CGAAP_DepExp_2012'!L46 -> 0 | O46: 0 | P46: 0
A47: 8 | B47: 1960 | C47: Miscellaneous Equipment | E47: 0 | I47: 0 | K47: 0 | L47: =-'App.2-CF_CGAAP_DepExp_2012'!L47 -> 0 | O47: 0 | P47: 0
A48: 47 | B48: 1975 | C48: Load Management Controls Utility Premises | E48: 0 | I48: 0 | K48: 0 | L48: =-'App.2-CF_CGAAP_DepExp_2012'!L48 -> 0 | O48: 0 | P48: 0
A49: 47 | B49: 1980 | C49: System Supervisor Equipment | E49: 0 | I49: 0 | K49: 0 | L49: =-'App.2-CF_CGAAP_DepExp_2012'!L49 -> 0 | O49: 0 | P49: 0
A50: 47 | B50: 1985 | C50: Miscellaneous Fixed Assets | E50: 0 | I50: 0 | K50: 0 | L50: =-'App.2-CF_CGAAP_DepExp_2012'!L50 -> 0 | O50: 0 | P50: 0
A51: 47 | B51: 1995 | C51: Contributions & Grants | E51: -144473.61 | F51: -110040.57 | I51: -254514.18 | K51: 13704.61 | L51: =-'App.2-CF_CGAAP_DepExp_2012'!L51 -> 7977.81 | O51: 21682.42 | P51: -232831.76
E52: 0 | I52: 0 | K52: 0 | O52: =K52+L52+N52 -> 0 | P52: =I52+O52 -> 0
I53: 0 | O53: 0 | P53: 0
H54: 0 | I54: 0 | O54: 0 | P54: 0
H55: 0 | I55: 0 | O55: 0 | P55: 0
B56: etc. | H56: 0 | I56: 0 | O56: 0 | P56: 0
C58: Total | E58: =SUM(E16:E57) -> 3741104.58 | F58: =SUM(F16:F57) -> 106410.09 | G58: =SUM(G16:G57) -> 645538.73 | H58: =SUM(H16:H57) -> -552 | I58: =SUM(I16:I57) -> 4492501.4 | K58: =SUM(K16:K57) -> -1765745.4 | L58: -205122.6 | M58: -69310.85 | N58: 552 | O58: -2039626.85 | P58: 2452874.55
K60: Less: Fully Allocated Depreciation
A61: 10 | C61: Transportation | K61: Transportation
A62: 8 | C62: Stores Equipment | E62: =3741105-E58 -> 0.4199999999 | K62: Stores Equipment
K63: Net Depreciation | N63: =N58-N61-N62 -> 552
A65: Notes:
A67: 1 | B67: Tables in the format outlined above covering all fixed asset accounts should be submitted for the Test Year, Bridge Year and all relevant historical years. At a minimum , the applicant must provide data for the earlier of: 1) all historical years back to its last rebasing; or 2) at least three years of historical actuals, in addition to Bridge Year and Test Year forecasts.
A70: 2 | B70: The "CCA Class" for fixed assets should agree with the CCA Class used for tax purposes in Tax Returns. Fixed Assets sub-components may be used where the underlying asset components are classified under multiple CCA Classes for tax purposes. If an applicant uses any different classes from those shown in the table, an explanation should be provided. (also see note 3 below).
A73: 3 | B73: The table may need to be customized for a utility's asset categories or for any new asset accounts announced or authorized by the Board.
A75: 4 | B75: The depreciation column (D) is not required as the relevant information will be provided in the following 2-C series of appendices.

Sheet App 2-B FixAsset 2013-OldCGAAP
M1: File Number: | N1: ='LDC Info'!$E$18 -> EB-2013-0139
M2: Exhibit: | N2: 2
M3: Tab: | N3: 1
M4: Schedule: | N4: 5
M5: Page: | N5: 2
M7: Date:
A9: Appendix 2-B
A10: Fixed Asset Continuity Schedule - OldCGAAP
F12: Year | G12: 2013
E14: Cost | K14: Accumulated Depreciation
A15: CCA Class | B15: OEB | C15: Description | D15: Depreciation Rate | E15: Opening Balance | F15: Additions | G15: Disposals | H15: Closing Balance | J15: Opening Balance | K15: Additions | L15: Disposals | M15: Closing Balance | N15: Net Book Value
A16: 12 | B16: 1611 | C16: Computer Software (Formally known as Account 1925) | E16: 181024.11 | F16: 28000 | H16: =E16+F16+G16 -> 209024.11 | J16: -129951.13 | K16: -22727 | M16: =J16+K16+L16 -> -152678.13 | N16: =H16+M16 -> 56345.98
A17: CEC | B17: 1612 | C17: Land Rights (Formally known as Account 1906) | E17: 8588 | F17: 0 | H17: =E17+F17+G17 -> 8588 | J17: -2608 | K17: 0 | L17: 0 | M17: =J17+K17+L17 -> -2608 | N17: =H17+M17 -> 5980
A18: N/A | B18: 1805 | C18: Land | E18: 10000 | F18: 0 | H18: =E18+F18+G18 -> 10000 | J18: 0 | M18: =J18+K18+L18 -> 0 | N18: =H18+M18 -> 10000
A19: 47 | B19: 1808 | C19: Buildings | E19: 0 | H19: =E19+F19+G19 -> 0 | J19: 0 | M19: =J19+K19+L19 -> 0 | N19: =H19+M19 -> 0
A20: 13 | B20: 1810 | C20: Leasehold Improvements | E20: 0 | H20: 0 | J20: 0 | M20: 0 | N20: 0
A21: 47 | B21: 1815 | C21: Transformer Station Equipment >50 kV | E21: 482801.74 | F21: 1547900 | H21: 2030701.74 | J21: -98225.74 | K21: -30409 | M21: -128634.74 | N21: 1902067
A22: 47 | B22: 1820 | C22: Distribution Station Equipment <50 kV | E22: 256183.09 | F22: 800000 | H22: 1056183.09 | J22: -124366 | K22: -26458 | M22: -150824 | N22: 905359.09
A23: 47 | B23: 1825 | C23: Storage Battery Equipment | E23: 0 | H23: 0 | J23: 0 | M23: 0 | N23: 0
A24: 47 | B24: 1830 | C24: Poles, Towers & Fixtures | E24: 459627.23 | F24: 99000 | H24: 558627.23 | J24: -228693.63 | K24: -23448 | M24: -252141.63 | N24: 306485.6
A25: 47 | B25: 1835 | C25: Overhead Conductors & Devices | E25: 475830.16 | F25: 25000 | H25: 500830.16 | J25: -265760.23 | K25: -24513 | M25: -290273.23 | N25: 210556.93
A26: 47 | B26: 1840 | C26: Underground Conduit | E26: 113855.12 | F26: 500 | H26: 114355.12 | J26: -71835.12 | K26: -5505 | M26: -77340.12 | N26: 37015
A27: 47 | B27: 1845 | C27: Underground Conductors & Devices | E27: 265912.57 | F27: 17000 | H27: 282912.57 | J27: -120807.6 | K27: -12382 | M27: -133189.6 | N27: 149722.97
A28: 47 | B28: 1850 | C28: Line Transformers | E28: 408792.76 | F28: 28000 | G28: -1548 | H28: 435244.76 | J28: -218651.41 | K28: -16016 | L28: 1548 | M28: -233119.41 | N28: 202125.35
A29: 47 | B29: 1855 | C29: Services (Overhead & Underground) | E29: 32419.82 | F29: 3000 | H29: 35419.82 | J29: -8514.48 | K29: -1356 | M29: -9870.48 | N29: 25549.34
A30: 47 | B30: 1860 | C30: Meters | E30: 254843.38 | H30: 254843.38 | J30: -184288.13 | K30: -9054 | M30: -193342.13 | N30: 61501.25
A31: 47 | B31: 1860 | C31: Meters (Smart Meters) | E31: 618898.5 | F31: 3500 | H31: 622398.5 | J31: -105332.69 | K31: -41377 | M31: -146709.69 | N31: 475688.81
A32: N/A | B32: 1905 | C32: Land | E32: 28299.7 | F32: 0 | H32: 28299.7 | J32: 0 | M32: 0 | N32: 28299.7
A33: 47 | B33: 1908 | C33: Buildings & Fixtures | E33: 824123.77 | F33: 37500 | H33: 861623.77 | J33: -220569 | K33: -17374 | M33: -237943 | N33: 623680.77
A34: 13 | B34: 1910 | C34: Leasehold Improvements | E34: 0 | H34: 0 | J34: 0 | M34: 0 | N34: 0
A35: 8 | B35: 1915 | C35: Office Furniture & Equipment (10 years) | E35: 33783.96 | F35: 5700 | H35: 39483.96 | J35: -20319.73 | K35: -3040 | M35: -23359.73 | N35: 16124.23
A36: 8 | B36: 1915 | C36: Office Furniture & Equipment (5 years) | E36: 0 | H36: 0 | J36: 0 | M36: 0 | N36: 0
A37: 10 | B37: 1920 | C37: Computer Equipment - Hardware | E37: 54878.11 | F37: 3000 | H37: 57878.11 | J37: -47804.41 | K37: -2974 | M37: -50778.41 | N37: 7099.7
A38: 45 | B38: 1920 | C38: Computer Equip.-Hardware(Post Mar. 22/04) | E38: 0 | H38: 0 | J38: 0 | M38: 0 | N38: 0
A39: 45.1 | B39: 1920 | C39: Computer Equip.-Hardware(Post Mar. 19/07) | E39: 0 | H39: 0 | J39: 0 | M39: 0 | N39: 0
A40: 10 | B40: 1930 | C40: Transportation Equipment | E40: 204793.8 | F40: 0 | H40: 204793.8 | J40: -195846 | K40: -2556 | M40: -198402 | N40: 6391.8
A41: 8 | B41: 1935 | C41: Stores Equipment | E41: 0 | H41: 0 | J41: 0 | M41: 0 | N41: 0
A42: 8 | B42: 1940 | C42: Tools, Shop & Garage Equipment | E42: 27996.47 | F42: 3000 | H42: 30996.47 | J42: -13646.5 | K42: -2443 | M42: -16089.5 | N42: 14906.97
A43: 8 | B43: 1945 | C43: Measurement & Testing Equipment | E43: 0 | H43: 0 | J43: 0 | M43: 0 | N43: 0
A44: 8 | B44: 1950 | C44: Power Operated Equipment | E44: 4363.29 | F44: 2000 | H44: 6363.29 | J44: -4088.7 | K44: -400 | M44: -4488.7 | N44: 1874.59
A45: 8 | B45: 1955 | C45: Communications Equipment | E45: 0 | H45: 0 | J45: 0 | M45: 0 | N45: 0
A46: 8 | B46: 1955 | C46: Communication Equipment (Smart Meters) | E46: 0 | H46: 0 | J46: 0 | M46: 0 | N46: 0
A47: 8 | B47: 1960 | C47: Miscellaneous Equipment | E47: 0 | H47: 0 | J47: 0 | M47: 0 | N47: 0
A48: 47 | B48: 1975 | C48: Load Management Controls Utility Premises | E48: 0 | H48: 0 | J48: 0 | M48: 0 | N48: 0
A49: 47 | B49: 1980 | C49: System Supervisor Equipment | E49: 0 | H49: 0 | J49: 0 | M49: 0 | N49: 0
A50: 47 | B50: 1985 | C50: Miscellaneous Fixed Assets | E50: 0 | H50: 0 | J50: 0 | M50: 0 | N50: 0
A51: 47 | B51: 1995 | C51: Contributions & Grants | E51: -254514 | F51: -20113 | H51: -274627 | J51: 21682 | K51: 10581.81 | M51: 32263.81 | N51: -242363.19
B52: etc. | E52: 0 | H52: 0 | J52: 0 | M52: 0 | N52: 0
C53: Burdens | F53: 5000
C54: Total | E54: =SUM(E16:E53) -> 4492501.58 | F54: =SUM(F16:F53) -> 2587987 | G54: =SUM(G16:G53) -> -1548 | H54: =SUM(H16:H53) -> 7073940.58 | J54: =SUM(J16:J53) -> -2039626.5 | K54: =SUM(K16:K53) -> -231450.19 | L54: =SUM(L16:L53) -> 1548 | M54: =SUM(M16:M53) -> -2269528.69 | N54: =SUM(N16:N53) -> 4804411.89
J56: Less: Fully Allocated Depreciation
A57: 10 | C57: Transportation | J57: Transportation
A58: 8 | C58: Stores Equipment | J58: Stores Equipment
J59: Net Depreciation | L59: =L54-L57-L58 -> 1548
A61: Notes:
A63: 1 | B63: Tables in the format outlined above covering all fixed asset accounts should be submitted for the Test Year, Bridge Year and all relevant historical years. At a minimum , the applicant must provide data for the earlier of: 1) all historical years back to its last rebasing; or 2) at least three years of historical actuals, in addition to Bridge Year and Test Year forecasts.
A66: 2 | B66: The "CCA Class" for fixed assets should agree with the CCA Class used for tax purposes in Tax Returns. Fixed Assets sub-components may be used where the underlying asset components are classified under multiple CCA Classes for tax purposes. If an applicant uses any different classes from those shown in the table, an explanation should be provided. (also see note 3 below).
A69: 3 | B69: The table may need to be customized for a utility's asset categories or for any new asset accounts announced or authorized by the Board.
A71: 4 | B71: The depreciation column (D) is not required as the relevant information will be provided in the following 2-C series of appendices.

Sheet App 2-B FixAsset 2013-NewCGAAP
M1: File Number: | N1: ='LDC Info'!$E$18 -> EB-2013-0139
M2: Exhibit: | N2: 2
M3: Tab: | N3: 1
M4: Schedule: | N4: 5
M5: Page: | N5: 4
M7: Date:
A9: Appendix 2-B
A10: Fixed Asset Continuity Schedule - New CGAAP
F12: Year | G12: 2013
E14: Cost | K14: Accumulated Depreciation
A15: CCA Class | B15: OEB | C15: Description | D15: Depreciation Rate | E15: Opening Balance | F15: Additions | G15: Disposals | H15: Closing Balance | J15: Opening Balance | K15: Additions | L15: Disposals | M15: Closing Balance | N15: Net Book Value
A16: 12 | B16: 1611 | C16: Computer Software (Formally known as Account 1925) | E16: 181024.11 | F16: 28000 | G16: 0 | H16: =E16+F16+G16 -> 209024.11 | J16: ='App 2-B FixAsset 2012-CGAAP'!O16 -> -129951.13 | K16: -22727 | M16: =J16+K16+L16 -> -152678.13 | N16: =H16+M16 -> 56345.98
A17: CEC | B17: 1612 | C17: Land Rights (Formally known as Account 1906) | E17: 8588 | F17: 0 | G17: 0 | H17: =E17+F17+G17 -> 8588 | J17: ='App 2-B FixAsset 2012-CGAAP'!O17 -> -2608 | K17: 0 | M17: =J17+K17+L17 -> -2608 | N17: =H17+M17 -> 5980
A18: N/A | B18: 1805 | C18: Land | E18: 10000 | F18: 0 | G18: 0 | H18: =E18+F18+G18 -> 10000 | J18: ='App 2-B FixAsset 2012-CGAAP'!O18 -> 0 | M18: =J18+K18+L18 -> 0 | N18: =H18+M18 -> 10000
A19: 47 | B19: 1808 | C19: Buildings | E19: 0 | G19: 0 | H19: =E19+F19+G19 -> 0 | J19: ='App 2-B FixAsset 2012-CGAAP'!O19 -> 0 | M19: =J19+K19+L19 -> 0 | N19: =H19+M19 -> 0
A20: 13 | B20: 1810 | C20: Leasehold Improvements | E20: 0 | G20: 0 | H20: 0 | J20: ='App 2-B FixAsset 2012-CGAAP'!O20 -> 0 | M20: 0 | N20: 0
A21: 47 | B21: 1815 | C21: Transformer Station Equipment >50 kV | E21: 482801.74 | F21: 1547900 | G21: 0 | H21: 2030701.74 | J21: ='App 2-B FixAsset 2012-CGAAP'!O21 -> -98225.74 | K21: -27030 | M21: -125255.74 | N21: 1905446
A22: 47 | B22: 1820 | C22: Distribution Station Equipment <50 kV | E22: 256183.09 | F22: 800000 | G22: 0 | H22: 1056183.09 | J22: ='App 2-B FixAsset 2012-CGAAP'!O22 -> -124366 | K22: -17639 | M22: -142005 | N22: 914178.09
A23: 47 | B23: 1825 | C23: Storage Battery Equipment | E23: 0 | G23: 0 | H23: 0 | J23: ='App 2-B FixAsset 2012-CGAAP'!O23 -> 0 | M23: 0 | N23: 0
A24: 47 | B24: 1830 | C24: Poles, Towers & Fixtures | E24: 459627.23 | F24: 99000 | G24: 0 | H24: 558627.23 | J24: ='App 2-B FixAsset 2012-CGAAP'!O24 -> -228693.63 | K24: -13447 | M24: -242140.63 | N24: 316486.6
A25: 47 | B25: 1835 | C25: Overhead Conductors & Devices | E25: 475830.16 | F25: 25000 | G25: 0 | H25: 500830.16 | J25: ='App 2-B FixAsset 2012-CGAAP'!O25 -> -265760.23 | K25: -10212 | M25: -275972.23 | N25: 224857.93
A26: 47 | B26: 1840 | C26: Underground Conduit | E26: 113855.12 | F26: 500 | G26: 0 | H26: 114355.12 | J26: ='App 2-B FixAsset 2012-CGAAP'!O26 -> -71835.12 | K26: -2756 | M26: -74591.12 | N26: 39764
A27: 47 | B27: 1845 | C27: Underground Conductors & Devices | E27: 265912.57 | F27: 17000 | G27: 0 | H27: 282912.57 | J27: ='App 2-B FixAsset 2012-CGAAP'!O27 -> -120807.6 | K27: -10321 | M27: -131128.6 | N27: 151783.97
A28: 47 | B28: 1850 | C28: Line Transformers | E28: 408792.76 | F28: 28000 | G28: -1548 | H28: 435244.76 | J28: ='App 2-B FixAsset 2012-CGAAP'!O28 -> -218651.41 | K28: -10012 | L28: 1548 | M28: -227115.41 | N28: 208129.35
A29: 47 | B29: 1855 | C29: Services (Overhead & Underground) | E29: 32419.82 | F29: 3000 | G29: 0 | H29: 35419.82 | J29: ='App 2-B FixAsset 2012-CGAAP'!O29 -> -8514.48 | K29: -1130 | M29: -9644.48 | N29: 25775.34
A30: 47 | B30: 1860 | C30: Meters | E30: 254843.38 | G30: 0 | H30: 254843.38 | J30: ='App 2-B FixAsset 2012-CGAAP'!O30 -> -184288.13 | K30: -9055 | M30: -193343.13 | N30: 61500.25
A31: 47 | B31: 1860 | C31: Meters (Smart Meters) | E31: 618898.5 | F31: 3500 | G31: 0 | H31: 622398.5 | J31: ='App 2-B FixAsset 2012-CGAAP'!O31 -> -105332.69 | K31: -41377 | M31: -146709.69 | N31: 475688.81
A32: N/A | B32: 1905 | C32: Land | E32: 28299.7 | F32: 0 | G32: 0 | H32: 28299.7 | J32: ='App 2-B FixAsset 2012-CGAAP'!O32 -> 0 | M32: 0 | N32: 28299.7
A33: 47 | B33: 1908 | C33: Buildings & Fixtures - BUILDING ROOF | E33: 165167 | F33: 18040 | G33: 0 | H33: 183207 | J33: -44363 | K33: -6968 | M33: -51331 | N33: 131876
A34: 47 | B34: 1908 | C34: Buildings & Fixtures - INTERIOR FIXTURES | E34: 246040.77 | F34: 19460 | G34: 0 | H34: 265500.77 | J34: -65297.77 | K34: -17053 | M34: -82350.77 | N34: 183150
A35: 47 | B35: 1908 | C35: Buildings & Fixtures - STRUCTURE | E35: 412916 | F35: 0 | G35: 0 | H35: 412916 | J35: -110908 | K35: -8258 | M35: -119166 | N35: 293750
A36: 13 | B36: 1910 | C36: Leasehold Improvements | E36: 0 | G36: 0 | H36: 0 | J36: ='App 2-B FixAsset 2012-CGAAP'!O34 -> 0 | M36: 0 | N36: 0
A37: 8 | B37: 1915 | C37: Office Furniture & Equipment (10 years) | E37: 33783.96 | F37: 5700 | G37: 0 | H37: 39483.96 | J37: ='App 2-B FixAsset 2012-CGAAP'!O35 -> -20319.73 | K37: -3041 | M37: -23360.73 | N37: 16123.23
A38: 8 | B38: 1915 | C38: Office Furniture & Equipment (5 years) | E38: 0 | G38: 0 | H38: 0 | J38: ='App 2-B FixAsset 2012-CGAAP'!O36 -> 0 | M38: 0 | N38: 0
A39: 10 | B39: 1920 | C39: Computer Equipment - Hardware | E39: 54878.11 | F39: 3000 | G39: 0 | H39: 57878.11 | J39: ='App 2-B FixAsset 2012-CGAAP'!O37 -> -47804.41 | K39: -2974 | M39: -50778.41 | N39: 7099.7
A40: 45 | B40: 1920 | C40: Computer Equip.-Hardware(Post Mar. 22/04) | E40: 0 | G40: 0 | H40: 0 | J40: ='App 2-B FixAsset 2012-CGAAP'!O38 -> 0 | M40: 0 | N40: 0
A41: 45.1 | B41: 1920 | C41: Computer Equip.-Hardware(Post Mar. 19/07) | E41: 0 | G41: 0 | H41: 0 | J41: ='App 2-B FixAsset 2012-CGAAP'!O39 -> 0 | M41: 0 | N41: 0
A42: 10 | B42: 1930 | C42: Transportation Equipment | E42: 204793.8 | F42: 0 | G42: 0 | H42: 204793.8 | J42: ='App 2-B FixAsset 2012-CGAAP'!O40 -> -195846 | K42: -2556 | M42: -198402 | N42: 6391.8
A43: 8 | B43: 1935 | C43: Stores Equipment | E43: 0 | G43: 0 | H43: 0 | J43: ='App 2-B FixAsset 2012-CGAAP'!O41 -> 0 | M43: 0 | N43: 0
A44: 8 | B44: 1940 | C44: Tools, Shop & Garage Equipment | E44: 27996.47 | F44: 3000 | G44: 0 | H44: 30996.47 | J44: ='App 2-B FixAsset 2012-CGAAP'!O42 -> -13646.5 | K44: -2443 | M44: -16089.5 | N44: 14906.97
A45: 8 | B45: 1945 | C45: Measurement & Testing Equipment | E45: 0 | G45: 0 | H45: 0 | J45: ='App 2-B FixAsset 2012-CGAAP'!O43 -> 0 | M45: 0 | N45: 0
A46: 8 | B46: 1950 | C46: Power Operated Equipment | E46: 4363.29 | F46: 2000 | G46: 0 | H46: 6363.29 | J46: ='App 2-B FixAsset 2012-CGAAP'!O44 -> -4088.7 | K46: -400 | M46: -4488.7 | N46: 1874.59
A47: 8 | B47: 1955 | C47: Communications Equipment | E47: 0 | G47: 0 | H47: 0 | J47: ='App 2-B FixAsset 2012-CGAAP'!O45 -> 0 | M47: 0 | N47: 0
A48: 8 | B48: 1955 | C48: Communication Equipment (Smart Meters) | E48: 0 | G48: 0 | H48: 0 | J48: ='App 2-B FixAsset 2012-CGAAP'!O46 -> 0 | M48: 0 | N48: 0
A49: 8 | B49: 1960 | C49: Miscellaneous Equipment | E49: 0 | G49: 0 | H49: 0 | J49: ='App 2-B FixAsset 2012-CGAAP'!O47 -> 0 | M49: 0 | N49: 0
A50: 47 | B50: 1975 | C50: Load Management Controls Utility Premises | E50: 0 | G50: 0 | H50: 0 | J50: ='App 2-B FixAsset 2012-CGAAP'!O48 -> 0 | M50: 0 | N50: 0
A51: 47 | B51: 1980 | C51: System Supervisor Equipment | E51: 0 | G51: 0 | H51: 0 | J51: ='App 2-B FixAsset 2012-CGAAP'!O49 -> 0 | M51: 0 | N51: 0
A52: 47 | B52: 1985 | C52: Miscellaneous Fixed Assets | E52: 0 | G52: 0 | H52: 0 | J52: ='App 2-B FixAsset 2012-CGAAP'!O50 -> 0 | M52: 0 | N52: 0
A53: 47 | B53: 1995 | C53: Contributions & Grants - ACCT 1830 | E53: -77570.38 | F53: 0 | G53: 0 | H53: -77570.38 | J53: 2509.38 | K53: 1724 | M53: 4233.38 | N53: -73337
A54: 47 | B54: 1995 | C54: Contributions & Grants - ACCT 1835 | E54: -49660.65 | F54: 0 | G54: 0 | H54: -49660.65 | J54: 2189.65 | K54: 828 | M54: =J54+K54+L54 -> 3017.65 | N54: =H54+M54 -> -46643
A55: 47 | B55: 1995 | C55: Contributions & Grants - ACCT 1840 | E55: -219.86 | F55: 0 | G55: 0 | H55: -219.86 | J55: 39.86 | K55: 4 | M55: 43.86 | N55: -176
A56: 47 | B56: 1995 | C56: Contributions & Grants - ACCT 1845 | E56: -80350.46 | F56: -7643 | G56: 0 | H56: -87993.46 | J56: 10441.7 | K56: 2805 | M56: 13246.7 | N56: -74746.76
A57: 47 | B57: 1995 | C57: Contributions & Grants - ACCT 1850 | E57: -46712.83 | F57: -12470 | G57: 0 | H57: -59182.83 | J57: 6501.83 | K57: 1324 | M57: 7825.83 | N57: -51357
B58: etc. | G58: 0 | H58: 0 | M58: 0 | N58: 0
C60: Total | E60: =SUM(E16:E59) -> 4492501.4 | F60: =SUM(F16:F59) -> 2582987 | G60: =SUM(G16:G59) -> -1548 | H60: =SUM(H16:H59) -> 7073940.4 | J60: =SUM(J16:J59) -> -2039625.85 | K60: =SUM(K16:K59) -> -202714 | L60: =SUM(L16:L59) -> 1548 | M60: =SUM(M16:M59) -> -2240791.85 | N60: =SUM(N16:N59) -> 4833148.55
J62: Less: Fully Allocated Depreciation
A63: 10 | C63: Transportation | J63: Transportation
A64: 8 | C64: Stores Equipment | J64: Stores Equipment
J65: Net Depreciation | L65: =L60-L63-L64 -> 1548
A67: Notes:
A69: 1 | B69: Tables in the format outlined above covering all fixed asset accounts should be submitted for the Test Year, Bridge Year and all relevant historical years. At a minimum , the applicant must provide data for the earlier of: 1) all historical years back to its last rebasing; or 2) at least three years of historical actuals, in addition to Bridge Year and Test Year forecasts.
A72: 2 | B72: The "CCA Class" for fixed assets should agree with the CCA Class used for tax purposes in Tax Returns. Fixed Assets sub-components may be used where the underlying asset components are classified under multiple CCA Classes for tax purposes. If an applicant uses any different classes from those shown in the table, an explanation should be provided. (also see note 3 below).
A75: 3 | B75: The table may need to be customized for a utility's asset categories or for any new asset accounts announced or authorized by the Board.
A77: 4 | B77: The depreciation column (D) is not required as the relevant information will be provided in the following 2-C series of appendices.

Sheet App.2-B_FixAsset 2013-MIFRS (hidden)
M1: File Number: | N1: ='LDC Info'!$E$18 -> EB-2013-0139
M2: Exhibit:
M3: Tab:
M4: Schedule:
M5: Page:
M7: Date:
A9: Appendix 2-B
A10: Fixed Asset Continuity Schedule
F12: Year | G12: 2014
E14: Cost | K14: Accumulated Depreciation
A15: CCA Class | B15: OEB | C15: Description | D15: Depreciation Rate | E15: Opening Balance | F15: Additions | G15: Disposals | H15: Closing Balance | J15: Opening Balance | K15: Additions | L15: Disposals | M15: Closing Balance | N15: Net Book Value
A16: 12 | B16: 1611 | C16: Computer Software (Formally known as Account 1925) | H16: =E16+F16+G16 -> 0 | M16: =J16+K16+L16 -> 0 | N16: =H16+M16 -> 0
A17: CEC | B17: 1612 | C17: Land Rights (Formally known as Account 1906) | H17: =E17+F17+G17 -> 0 | M17: =J17+K17+L17 -> 0 | N17: =H17+M17 -> 0
A18: N/A | B18: 1805 | C18: Land | H18: =E18+F18+G18 -> 0 | M18: =J18+K18+L18 -> 0 | N18: =H18+M18 -> 0
A19: 47 | B19: 1808 | C19: Buildings | H19: =E19+F19+G19 -> 0 | M19: =J19+K19+L19 -> 0 | N19: =H19+M19 -> 0
A20: 13 | B20: 1810 | C20: Leasehold Improvements | H20: 0 | M20: 0 | N20: 0
A21: 47 | B21: 1815 | C21: Transformer Station Equipment >50 kV | H21: 0 | M21: 0 | N21: 0
A22: 47 | B22: 1820 | C22: Distribution Station Equipment <50 kV | H22: 0 | M22: 0 | N22: 0
A23: 47 | B23: 1825 | C23: Storage Battery Equipment | H23: 0 | M23: 0 | N23: 0
A24: 47 | B24: 1830 | C24: Poles, Towers & Fixtures | H24: 0 | M24: 0 | N24: 0
A25: 47 | B25: 1835 | C25: Overhead Conductors & Devices | H25: 0 | M25: 0 | N25: 0
A26: 47 | B26: 1840 | C26: Underground Conduit | H26: 0 | M26: 0 | N26: 0
A27: 47 | B27: 1845 | C27: Underground Conductors & Devices | H27: 0 | M27: 0 | N27: 0
A28: 47 | B28: 1850 | C28: Line Transformers | H28: 0 | M28: 0 | N28: 0
A29: 47 | B29: 1855 | C29: Services (Overhead & Underground) | H29: 0 | M29: 0 | N29: 0
A30: 47 | B30: 1860 | C30: Meters | H30: 0 | M30: 0 | N30: 0
A31: 47 | B31: 1860 | C31: Meters (Smart Meters) | H31: 0 | M31: 0 | N31: 0
A32: N/A | B32: 1905 | C32: Land | H32: 0 | M32: 0 | N32: 0
A33: 47 | B33: 1908 | C33: Buildings & Fixtures | H33: 0 | M33: 0 | N33: 0
A34: 13 | B34: 1910 | C34: Leasehold Improvements | H34: 0 | M34: 0 | N34: 0
A35: 8 | B35: 1915 | C35: Office Furniture & Equipment (10 years) | H35: 0 | M35: 0 | N35: 0
A36: 8 | B36: 1915 | C36: Office Furniture & Equipment (5 years) | H36: 0 | M36: 0 | N36: 0
A37: 10 | B37: 1920 | C37: Computer Equipment - Hardware | H37: 0 | M37: 0 | N37: 0
A38: 45 | B38: 1920 | C38: Computer Equip.-Hardware(Post Mar. 22/04) | H38: 0 | M38: 0 | N38: 0
A39: 45.1 | B39: 1920 | C39: Computer Equip.-Hardware(Post Mar. 19/07) | H39: 0 | M39: 0 | N39: 0
A40: 10 | B40: 1930 | C40: Transportation Equipment | H40: 0 | M40: 0 | N40: 0
A41: 8 | B41: 1935 | C41: Stores Equipment | H41: 0 | M41: 0 | N41: 0
A42: 8 | B42: 1940 | C42: Tools, Shop & Garage Equipment | H42: 0 | M42: 0 | N42: 0
A43: 8 | B43: 1945 | C43: Measurement & Testing Equipment | H43: 0 | M43: 0 | N43: 0
A44: 8 | B44: 1950 | C44: Power Operated Equipment | H44: 0 | M44: 0 | N44: 0
A45: 8 | B45: 1955 | C45: Communications Equipment | H45: 0 | M45: 0 | N45: 0
A46: 8 | B46: 1955 | C46: Communication Equipment (Smart Meters) | H46: 0 | M46: 0 | N46: 0
A47: 8 | B47: 1960 | C47: Miscellaneous Equipment | H47: 0 | M47: 0 | N47: 0
A48: 47 | B48: 1975 | C48: Load Management Controls Utility Premises | H48: 0 | M48: 0 | N48: 0
A49: 47 | B49: 1980 | C49: System Supervisor Equipment | H49: 0 | M49: 0 | N49: 0
A50: 47 | B50: 1985 | C50: Miscellaneous Fixed Assets | H50: 0 | M50: 0 | N50: 0
A51: 47 | B51: 1995 | C51: Contributions & Grants | H51: 0 | M51: 0 | N51: 0
B56: etc. | H56: 0 | M56: 0 | N56: 0
C58: Total | E58: =SUM(E16:E57) -> 0 | F58: =SUM(F16:F57) -> 0 | G58: =SUM(G16:G57) -> 0 | H58: =SUM(H16:H57) -> 0 | J58: =SUM(J16:J57) -> 0 | K58: =SUM(K16:K57) -> 0 | L58: =SUM(L16:L57) -> 0 | M58: =SUM(M16:M57) -> 0 | N58: =SUM(N16:N57) -> 0
J60: Less: Fully Allocated Depreciation
A61: 10 | C61: Transportation | J61: Transportation
A62: 8 | C62: Stores Equipment | J62: Stores Equipment
J63: Net Depreciation | L63: =L58-L61-L62 -> 0
A65: Notes:
A67: 1 | B67: Tables in the format outlined above covering all fixed asset accounts should be submitted for the Test Year, Bridge Year and all relevant historical years. At a minimum , the applicant must provide data for the earlier of: 1) all historical years back to its last rebasing; or 2) at least three years of historical actuals, in addition to Bridge Year and Test Year forecasts.
A70: 2 | B70: The "CCA Class" for fixed assets should agree with the CCA Class used for tax purposes in Tax Returns. Fixed Assets sub-components may be used where the underlying asset components are classified under multiple CCA Classes for tax purposes. If an applicant uses any different classes from those shown in the table, an explanation should be provided. (also see note 3 below).
A73: 3 | B73: The table may need to be customized for a utility's asset categories or for any new asset accounts announced or authorized by the Board.
A75: 4 | B75: The depreciation column (D) is not required as the relevant information will be provided in the following 2-C series of appendices.

Sheet App.2-B_FixAsset 2014-OldCGAAP
M1: File Number: | N1: =#REF! -> 
M2: Exhibit: | N2: 2
M3: Tab: | N3: 1
M4: Schedule: | N4: 5
M5: Page: | N5: 5
M7: Date:
A9: Appendix 2-B
A10: Fixed Asset Continuity Schedule - OldCGAAP
F12: Year | G12: 2014
E14: Cost | K14: Accumulated Depreciation | P14: Input to Cost Allocation Model
A15: CCA Class | B15: OEB | C15: Description | D15: Depreciation Rate | E15: Opening Balance | F15: Additions | G15: Disposals | H15: Closing Balance | J15: Opening Balance | K15: Additions | L15: Disposals | M15: Closing Balance | N15: Net Book Value | P15: AVGGrossCloBal | Q15: AVG AccDep
A16: 12 | B16: 1611 | C16: Computer Software (Formally known as Account 1925) | E16: 209024.11 | F16: 17000 | H16: =E16+F16+G16 -> 226024.11 | J16: ='[5]App 2-B FixAsset 2013-NewCGAAP'!M16 -> -152678.13 | K16: ='[5]App.2-CF_OldCGAAP_DepExp_2014'!J16 *-1 -> -20822 | M16: =J16+K16+L16 -> -173500.13 | N16: =H16+M16 -> 52523.98 | P16: =AVERAGE(H16,'[5]App 2-B FixAsset 2013-NewCGAAP'!H16) -> 217524.11 | Q16: =AVERAGE(M16,'[5]App 2-B FixAsset 2013-NewCGAAP'!M16) -> -163089.13
A17: CEC | B17: 1612 | C17: Land Rights (Formally known as Account 1906) | E17: 8588 | H17: =E17+F17+G17 -> 8588 | J17: ='[5]App 2-B FixAsset 2013-NewCGAAP'!M17 -> -2608 | K17: ='[5]App.2-CF_OldCGAAP_DepExp_2014'!J17 *-1 -> 0 | M17: =J17+K17+L17 -> -2608 | N17: =H17+M17 -> 5980 | P17: =AVERAGE(H17,'[5]App 2-B FixAsset 2013-NewCGAAP'!H17) -> 8588 | Q17: =AVERAGE(M17,'[5]App 2-B FixAsset 2013-NewCGAAP'!M17) -> -2608
A18: N/A | B18: 1805 | C18: Land | E18: 10000 | H18: =E18+F18+G18 -> 10000 | J18: ='[5]App 2-B FixAsset 2013-NewCGAAP'!M18 -> 0 | K18: ='[5]App.2-CF_OldCGAAP_DepExp_2014'!J18 *-1 -> 0 | M18: =J18+K18+L18 -> 0 | N18: =H18+M18 -> 10000 | P18: =AVERAGE(H18,'[5]App 2-B FixAsset 2013-NewCGAAP'!H18) -> 10000 | Q18: =AVERAGE(M18,'[5]App 2-B FixAsset 2013-NewCGAAP'!M18) -> 0
A19: 47 | B19: 1808 | C19: Buildings | E19: 0 | H19: =E19+F19+G19 -> 0 | J19: ='[5]App 2-B FixAsset 2013-NewCGAAP'!M19 -> 0 | K19: ='[5]App.2-CF_OldCGAAP_DepExp_2014'!J19 *-1 -> 0 | M19: =J19+K19+L19 -> 0 | N19: =H19+M19 -> 0 | P19: =AVERAGE(H19,'[5]App 2-B FixAsset 2013-NewCGAAP'!H19) -> 0 | Q19: =AVERAGE(M19,'[5]App 2-B FixAsset 2013-NewCGAAP'!M19) -> 0
A20: 13 | B20: 1810 | C20: Leasehold Improvements | E20: 0 | H20: 0 | J20: ='[5]App 2-B FixAsset 2013-NewCGAAP'!M20 -> 0 | K20: ='[5]App.2-CF_OldCGAAP_DepExp_2014'!J20 *-1 -> 0 | M20: 0 | N20: 0 | P20: =AVERAGE(H20,'[5]App 2-B FixAsset 2013-NewCGAAP'!H20) -> 0 | Q20: =AVERAGE(M20,'[5]App 2-B FixAsset 2013-NewCGAAP'!M20) -> 0
A21: 47 | B21: 1815 | C21: Transformer Station Equipment >50 kV | E21: 2030701.74 | F21: 25000 | H21: 2055701.74 | J21: -128635 | K21: ='[5]App.2-CF_OldCGAAP_DepExp_2014'!J21 *-1 -> -50070.375 | M21: -178705.375 | N21: 1876996.365 | P21: =AVERAGE(H21,'[5]App 2-B FixAsset 2013-NewCGAAP'!H21) -> 2043201.74 | Q21: =AVERAGE(M21,'[5]App 2-B FixAsset 2013-NewCGAAP'!M21) -> -151980.5575
A22: 47 | B22: 1820 | C22: Distribution Station Equipment <50 kV | E22: 1056183 | F22: 60000 | H22: 1116183 | J22: -150824 | K22: ='[5]App.2-CF_OldCGAAP_DepExp_2014'!J22 *-1 -> -40792.5 | M22: -191616.5 | N22: 924566.5 | P22: =AVERAGE(H22,'[5]App 2-B FixAsset 2013-NewCGAAP'!H22) -> 1086183.045 | Q22: =AVERAGE(M22,'[5]App 2-B FixAsset 2013-NewCGAAP'!M22) -> -166810.75
A23: 47 | B23: 1825 | C23: Storage Battery Equipment | E23: 0 | H23: 0 | J23: ='[5]App 2-B FixAsset 2013-NewCGAAP'!M23 -> 0 | K23: ='[5]App.2-CF_OldCGAAP_DepExp_2014'!J23 *-1 -> 0 | M23: 0 | N23: 0 | P23: =AVERAGE(H23,'[5]App 2-B FixAsset 2013-NewCGAAP'!H23) -> 0 | Q23: =AVERAGE(M23,'[5]App 2-B FixAsset 2013-NewCGAAP'!M23) -> 0
A24: 47 | B24: 1830 | C24: Poles, Towers & Fixtures | E24: 558627.23 | F24: 89000 | H24: 647627.23 | J24: -252142 | K24: -22109 | M24: -274251 | N24: 373376.23 | P24: =AVERAGE(H24,'[5]App 2-B FixAsset 2013-NewCGAAP'!H24) -> 603127.23 | Q24: =AVERAGE(M24,'[5]App 2-B FixAsset 2013-NewCGAAP'!M24) -> -258195.815
A25: 47 | B25: 1835 | C25: Overhead Conductors & Devices | E25: 500830.16 | F25: 20000 | H25: 520830.16 | J25: -290273 | K25: -22981 | M25: -313254 | N25: 207576.16 | P25: =AVERAGE(H25,'[5]App 2-B FixAsset 2013-NewCGAAP'!H25) -> 510830.16 | Q25: =AVERAGE(M25,'[5]App 2-B FixAsset 2013-NewCGAAP'!M25) -> -294613.115
A26: 47 | B26: 1840 | C26: Underground Conduit | E26: 114355.12 | F26: 500 | H26: 114855.12 | J26: -77340 | K26: -5468 | M26: -82808 | N26: 32047.12 | P26: =AVERAGE(H26,'[5]App 2-B FixAsset 2013-NewCGAAP'!H26) -> 114605.12 | Q26: =AVERAGE(M26,'[5]App 2-B FixAsset 2013-NewCGAAP'!M26) -> -78699.56
A27: 47 | B27: 1845 | C27: Underground Conductors & Devices | E27: 282912.57 | F27: 17500 | H27: 300412.57 | J27: -133190 | K27: -12983 | M27: -146173 | N27: 154239.57 | P27: =AVERAGE(H27,'[5]App 2-B FixAsset 2013-NewCGAAP'!H27) -> 291662.57 | Q27: =AVERAGE(M27,'[5]App 2-B FixAsset 2013-NewCGAAP'!M27) -> -138650.8
A28: 47 | B28: 1850 | C28: Line Transformers | E28: 435244.76 | F28: 12500 | H28: 447744.76 | J28: -233119 | K28: -15778 | M28: -248897 | N28: 198847.76 | P28: =AVERAGE(H28,'[5]App 2-B FixAsset 2013-NewCGAAP'!H28) -> 441494.76 | Q28: =AVERAGE(M28,'[5]App 2-B FixAsset 2013-NewCGAAP'!M28) -> -238006.205
A29: 47 | B29: 1855 | C29: Services (Overhead & Underground) | E29: 35419.82 | F29: 3100 | H29: 38519.82 | J29: -9870 | K29: ='[5]App.2-CF_OldCGAAP_DepExp_2014'!J29 *-1 -> -1478.7928 | M29: -11348.7928 | N29: 27171.0272 | P29: =AVERAGE(H29,'[5]App 2-B FixAsset 2013-NewCGAAP'!H29) -> 36969.82 | Q29: =AVERAGE(M29,'[5]App 2-B FixAsset 2013-NewCGAAP'!M29) -> -10496.6364
A30: 47 | B30: 1860 | C30: Meters | E30: 254843.38 | F30: 0 | G30: -246912.13 | H30: 7931.25 | J30: -193342 | K30: -317 | L30: 192554.13 | M30: -1104.87 | N30: 6826.38 | P30: =AVERAGE(H30,'[5]App 2-B FixAsset 2013-NewCGAAP'!H30) -> 131387.315 | Q30: =AVERAGE(M30,'[5]App 2-B FixAsset 2013-NewCGAAP'!M30) -> -97224
A31: 47 | B31: 1860 | C31: Meters (Smart Meters) | E31: 622398.5 | F31: 3500 | H31: 625898.5 | J31: ='[5]App 2-B FixAsset 2013-NewCGAAP'!M31 -> -146709.69 | K31: ='[5]App.2-CF_OldCGAAP_DepExp_2014'!J31 *-1 -> -41609.9 | M31: -188319.59 | N31: 437578.91 | P31: =AVERAGE(H31,'[5]App 2-B FixAsset 2013-NewCGAAP'!H31) -> 624148.5 | Q31: =AVERAGE(M31,'[5]App 2-B FixAsset 2013-NewCGAAP'!M31) -> -167514.64
A32: N/A | B32: 1905 | C32: Land | E32: 28299.7 | H32: 28299.7 | J32: ='[5]App 2-B FixAsset 2013-NewCGAAP'!M32 -> 0 | K32: ='[5]App.2-CF_OldCGAAP_DepExp_2014'!J32 *-1 -> 0 | M32: 0 | N32: 28299.7 | P32: =AVERAGE(H32,'[5]App 2-B FixAsset 2013-NewCGAAP'!H32) -> 28299.7 | Q32: =AVERAGE(M32,'[5]App 2-B FixAsset 2013-NewCGAAP'!M32) -> 0
A33: 47 | B33: 1908 | C33: Buildings & Fixtures | E33: 861624 | F33: 12500 | H33: 874124 | J33: -237943 | K33: -17874 | M33: -255817 | N33: 618307 | P33: =AVERAGE(H33,'[5]App 2-B FixAsset 2013-NewCGAAP'!H33) -> 528665.5 | Q33: =AVERAGE(M33,'[5]App 2-B FixAsset 2013-NewCGAAP'!M33) -> -153574
A34: 47 | B34: 1908 | H34: 0 | M34: 0 | N34: 0 | P34: =AVERAGE(H34,'[5]App 2-B FixAsset 2013-NewCGAAP'!H34) -> 132750.385 | Q34: =AVERAGE(M34,'[5]App 2-B FixAsset 2013-NewCGAAP'!M34) -> -41175.385
A35: 47 | B35: 1908 | H35: 0 | M35: 0 | N35: 0 | P35: =AVERAGE(H35,'[5]App 2-B FixAsset 2013-NewCGAAP'!H35) -> 206458 | Q35: =AVERAGE(M35,'[5]App 2-B FixAsset 2013-NewCGAAP'!M35) -> -59583
A36: 13 | B36: 1910 | C36: Leasehold Improvements | E36: 0 | H36: 0 | J36: ='[5]App 2-B FixAsset 2013-NewCGAAP'!M36 -> 0 | K36: ='[5]App.2-CF_OldCGAAP_DepExp_2014'!J36 *-1 -> 0 | M36: 0 | N36: 0 | P36: =AVERAGE(H36,'[5]App 2-B FixAsset 2013-NewCGAAP'!H36) -> 0 | Q36: =AVERAGE(M36,'[5]App 2-B FixAsset 2013-NewCGAAP'!M36) -> 0
A37: 8 | B37: 1915 | C37: Office Furniture & Equipment (10 years) | E37: 39483.96 | F37: 3500 | H37: 42983.96 | J37: ='[5]App 2-B FixAsset 2013-NewCGAAP'!M37 -> -23360.73 | K37: -3129 | M37: -26489.73 | N37: 16494.23 | P37: =AVERAGE(H37,'[5]App 2-B FixAsset 2013-NewCGAAP'!H37) -> 41233.96 | Q37: =AVERAGE(M37,'[5]App 2-B FixAsset 2013-NewCGAAP'!M37) -> -24925.23
A38: 8 | B38: 1915 | C38: Office Furniture & Equipment (5 years) | E38: 0 | H38: 0 | J38: ='[5]App 2-B FixAsset 2013-NewCGAAP'!M38 -> 0 | K38: ='[5]App.2-CF_OldCGAAP_DepExp_2014'!J38 *-1 -> 0 | M38: 0 | N38: 0 | P38: =AVERAGE(H38,'[5]App 2-B FixAsset 2013-NewCGAAP'!H38) -> 0 | Q38: =AVERAGE(M38,'[5]App 2-B FixAsset 2013-NewCGAAP'!M38) -> 0
A39: 10 | B39: 1920 | C39: Computer Equipment - Hardware | E39: 57878.11 | F39: 3100 | H39: 60978.11 | J39: ='[5]App 2-B FixAsset 2013-NewCGAAP'!M39 -> -50778.41 | K39: -2981 | M39: -53759.41 | N39: 7218.7 | P39: =AVERAGE(H39,'[5]App 2-B FixAsset 2013-NewCGAAP'!H39) -> 59428.11 | Q39: =AVERAGE(M39,'[5]App 2-B FixAsset 2013-NewCGAAP'!M39) -> -52268.91
A40: 45 | B40: 1920 | C40: Computer Equip.-Hardware(Post Mar. 22/04) | E40: 0 | H40: 0 | J40: ='[5]App 2-B FixAsset 2013-NewCGAAP'!M40 -> 0 | K40: ='[5]App.2-CF_OldCGAAP_DepExp_2014'!J40 *-1 -> 0 | M40: 0 | N40: 0 | P40: =AVERAGE(H40,'[5]App 2-B FixAsset 2013-NewCGAAP'!H40) -> 0 | Q40: =AVERAGE(M40,'[5]App 2-B FixAsset 2013-NewCGAAP'!M40) -> 0
A41: 45.1 | B41: 1920 | C41: Computer Equip.-Hardware(Post Mar. 19/07) | E41: 0 | H41: 0 | J41: ='[5]App 2-B FixAsset 2013-NewCGAAP'!M41 -> 0 | K41: ='[5]App.2-CF_OldCGAAP_DepExp_2014'!J41 *-1 -> 0 | M41: 0 | N41: 0 | P41: =AVERAGE(H41,'[5]App 2-B FixAsset 2013-NewCGAAP'!H41) -> 0 | Q41: =AVERAGE(M41,'[5]App 2-B FixAsset 2013-NewCGAAP'!M41) -> 0
A42: 10 | B42: 1930 | C42: Transportation Equipment | E42: 204793.8 | H42: 204793.8 | J42: ='[5]App 2-B FixAsset 2013-NewCGAAP'!M42 -> -198402 | K42: -2556 | M42: -200958 | N42: 3835.8 | P42: =AVERAGE(H42,'[5]App 2-B FixAsset 2013-NewCGAAP'!H42) -> 204793.8 | Q42: =AVERAGE(M42,'[5]App 2-B FixAsset 2013-NewCGAAP'!M42) -> -199680
A43: 8 | B43: 1935 | C43: Stores Equipment | E43: 0 | H43: 0 | J43: ='[5]App 2-B FixAsset 2013-NewCGAAP'!M43 -> 0 | K43: ='[5]App.2-CF_OldCGAAP_DepExp_2014'!J43 *-1 -> 0 | M43: 0 | N43: 0 | P43: =AVERAGE(H43,'[5]App 2-B FixAsset 2013-NewCGAAP'!H43) -> 0 | Q43: =AVERAGE(M43,'[5]App 2-B FixAsset 2013-NewCGAAP'!M43) -> 0
A44: 8 | B44: 1940 | C44: Tools, Shop & Garage Equipment | E44: 30996.47 | F44: 3100 | H44: 34096.47 | J44: ='[5]App 2-B FixAsset 2013-NewCGAAP'!M44 -> -16089.5 | K44: -2576 | M44: -18665.5 | N44: 15430.97 | P44: =AVERAGE(H44,'[5]App 2-B FixAsset 2013-NewCGAAP'!H44) -> 32546.47 | Q44: =AVERAGE(M44,'[5]App 2-B FixAsset 2013-NewCGAAP'!M44) -> -17377.5
A45: 8 | B45: 1945 | C45: Measurement & Testing Equipment | E45: 0 | H45: 0 | J45: ='[5]App 2-B FixAsset 2013-NewCGAAP'!M45 -> 0 | K45: ='[5]App.2-CF_OldCGAAP_DepExp_2014'!J45 *-1 -> 0 | M45: 0 | N45: 0 | P45: =AVERAGE(H45,'[5]App 2-B FixAsset 2013-NewCGAAP'!H45) -> 0 | Q45: =AVERAGE(M45,'[5]App 2-B FixAsset 2013-NewCGAAP'!M45) -> 0
A46: 8 | B46: 1950 | C46: Power Operated Equipment | E46: 6363.29 | F46: 2000 | H46: 8363.29 | J46: ='[5]App 2-B FixAsset 2013-NewCGAAP'!M46 -> -4488.7 | K46: -375 | M46: -4863.7 | N46: 3499.59 | P46: =AVERAGE(H46,'[5]App 2-B FixAsset 2013-NewCGAAP'!H46) -> 7363.29 | Q46: =AVERAGE(M46,'[5]App 2-B FixAsset 2013-NewCGAAP'!M46) -> -4676.2 | R46: =SUM(Q16:Q46) -> -2321149.434
A47: 8 | B47: 1955 | C47: Communications Equipment | E47: 0 | H47: 0 | J47: ='[5]App 2-B FixAsset 2013-NewCGAAP'!M47 -> 0 | K47: ='[5]App.2-CF_OldCGAAP_DepExp_2014'!J47 *-1 -> 0 | M47: 0 | N47: 0 | P47: =AVERAGE(H47,'[5]App 2-B FixAsset 2013-NewCGAAP'!H47) -> 0 | Q47: =AVERAGE(M47,'[5]App 2-B FixAsset 2013-NewCGAAP'!M47) -> 0
A48: 8 | B48: 1955 | C48: Communication Equipment (Smart Meters) | E48: 0 | H48: 0 | J48: ='[5]App 2-B FixAsset 2013-NewCGAAP'!M48 -> 0 | K48: ='[5]App.2-CF_OldCGAAP_DepExp_2014'!J48 *-1 -> 0 | M48: 0 | N48: 0 | P48: =AVERAGE(H48,'[5]App 2-B FixAsset 2013-NewCGAAP'!H48) -> 0 | Q48: =AVERAGE(M48,'[5]App 2-B FixAsset 2013-NewCGAAP'!M48) -> 0
A49: 8 | B49: 1960 | C49: Miscellaneous Equipment | E49: 0 | H49: 0 | J49: ='[5]App 2-B FixAsset 2013-NewCGAAP'!M49 -> 0 | K49: ='[5]App.2-CF_OldCGAAP_DepExp_2014'!J49 *-1 -> 0 | M49: 0 | N49: 0 | P49: =AVERAGE(H49,'[5]App 2-B FixAsset 2013-NewCGAAP'!H49) -> 0 | Q49: =AVERAGE(M49,'[5]App 2-B FixAsset 2013-NewCGAAP'!M49) -> 0
A50: 47 | B50: 1975 | C50: Load Management Controls Utility Premises | E50: 0 | H50: 0 | J50: ='[5]App 2-B FixAsset 2013-NewCGAAP'!M50 -> 0 | K50: ='[5]App.2-CF_OldCGAAP_DepExp_2014'!J50 *-1 -> 0 | M50: 0 | N50: 0 | P50: =AVERAGE(H50,'[5]App 2-B FixAsset 2013-NewCGAAP'!H50) -> 0 | Q50: =AVERAGE(M50,'[5]App 2-B FixAsset 2013-NewCGAAP'!M50) -> 0
A51: 47 | B51: 1980 | C51: System Supervisor Equipment | E51: 0 | H51: 0 | J51: ='[5]App 2-B FixAsset 2013-NewCGAAP'!M51 -> 0 | K51: ='[5]App.2-CF_OldCGAAP_DepExp_2014'!J51 *-1 -> 0 | M51: 0 | N51: 0 | P51: =AVERAGE(H51,'[5]App 2-B FixAsset 2013-NewCGAAP'!H51) -> 0 | Q51: =AVERAGE(M51,'[5]App 2-B FixAsset 2013-NewCGAAP'!M51) -> 0
A52: 47 | B52: 1985 | C52: Miscellaneous Fixed Assets | E52: 0 | H52: 0 | J52: ='[5]App 2-B FixAsset 2013-NewCGAAP'!M52 -> 0 | K52: ='[5]App.2-CF_OldCGAAP_DepExp_2014'!J52 *-1 -> 0 | M52: 0 | N52: 0 | P52: =AVERAGE(H52,'[5]App 2-B FixAsset 2013-NewCGAAP'!H52) -> 0 | Q52: =AVERAGE(M52,'[5]App 2-B FixAsset 2013-NewCGAAP'!M52) -> 0
A53: 47 | B53: 1995 | C53: Contributions & Grants - ACCT 1830 | E53: -77570.38 | F53: 0 | H53: -77570.38 | J53: 5612.79 | K53: 3103.41 | M53: 8716.2 | N53: -68854.18 | P53: =AVERAGE(H53,'[5]App 2-B FixAsset 2013-NewCGAAP'!H53) -> -77570.38 | Q53: =AVERAGE(M53,'[5]App 2-B FixAsset 2013-NewCGAAP'!M53) -> 6474.79
A54: 47 | B54: 1995 | C54: Contributions & Grants - ACCT 1835 | E54: -49660.65 | F54: 0 | H54: -49660.65 | J54: 4175.65 | K54: 1986 | M54: =J54+K54+L54 -> 6161.65 | N54: =H54+M54 -> -43499 | P54: =AVERAGE(H54,'[5]App 2-B FixAsset 2013-NewCGAAP'!H54) -> -49660.65 | Q54: =AVERAGE(M54,'[5]App 2-B FixAsset 2013-NewCGAAP'!M54) -> 4589.65
A55: 47 | B55: 1995 | C55: Contributions & Grants - ACCT 1840 | E55: -219.86 | F55: 0 | H55: -219.86 | J55: 48.86 | K55: 9 | M55: =J55+K55+L55 -> 57.86 | N55: =H55+M55 -> -162 | P55: =AVERAGE(H55,'[5]App 2-B FixAsset 2013-NewCGAAP'!H55) -> -219.86 | Q55: =AVERAGE(M55,'[5]App 2-B FixAsset 2013-NewCGAAP'!M55) -> 50.86
A56: 47 | B56: 1995 | C56: Contributions & Grants - ACCT 1845 | E56: -87993.46 | F56: -10431 | H56: -98424.46 | J56: 13808.1 | K56: 3728.4 | M56: =J56+K56+L56 -> 17536.5 | N56: =H56+M56 -> -80887.96 | P56: =AVERAGE(H56,'[5]App 2-B FixAsset 2013-NewCGAAP'!H56) -> -89387.46 | Q56: =AVERAGE(M56,'[5]App 2-B FixAsset 2013-NewCGAAP'!M56) -> 15328.1
A57: 47 | B57: 1995 | C57: Contributions & Grants - ACCT 1850 | E57: -59182.83 | F57: -17019 | H57: -76201.83 | J57: 8618.83 | K57: 2707 | M57: =J57+K57+L57 -> 11325.83 | N57: =H57+M57 -> -64876 | P57: =AVERAGE(H57,'[5]App 2-B FixAsset 2013-NewCGAAP'!H57) -> -61457.33 | Q57: =AVERAGE(M57,'[5]App 2-B FixAsset 2013-NewCGAAP'!M57) -> 9497.83
E58: 0 | J58: 0 | K58: ='[5]App.2-CF_OldCGAAP_DepExp_2014'!J58 -> 0 | P58: =AVERAGE(H58,'[5]App 2-B FixAsset 2013-NewCGAAP'!H58) -> 0 | Q58: =AVERAGE(M58,'[5]App 2-B FixAsset 2013-NewCGAAP'!M58) -> 0
C60: Total | E60: =SUM(E16:E59) -> 7073940.54 | F60: =SUM(F16:F59) -> 244850 | G60: =SUM(G16:G59) -> -246912.13 | H60: =SUM(H16:H59) -> 7071878.41 | J60: =SUM(J16:J59) -> -2269528.93 | K60: =SUM(K16:K59) -> -252366.7578 | L60: =SUM(L16:L59) -> 192554.13 | M60: =SUM(M16:M59) -> -2329341.558 | N60: =SUM(N16:N59) -> 4742536.852 | P60: =SUM(P16:P59) -> 7082965.905 | Q60: =SUM(Q16:Q59) -> -2285208.204
H61: =AVERAGE(H60,E60) -> 7072909.475 | K61: =AVERAGE(K60,'[5]App 2-B FixAsset 2013-NewCGAAP'!K60) -> -227681.8789 | M61: =AVERAGE(M60,J60) -> -2299435.244
J62: Less: Fully Allocated Depreciation
A63: 10 | C63: Transportation | J63: Transportation
A64: 8 | C64: Stores Equipment | J64: Stores Equipment
J65: Net Depreciation | L65: =L60-L63-L64 -> 192554.13
A67: Notes:
A69: 1 | B69: Tables in the format outlined above covering all fixed asset accounts should be submitted for the Test Year, Bridge Year and all relevant historical years. At a minimum , the applicant must provide data for the earlier of: 1) all historical years back to its last rebasing; or 2) at least three years of historical actuals, in addition to Bridge Year and Test Year forecasts.
A72: 2 | B72: The "CCA Class" for fixed assets should agree with the CCA Class used for tax purposes in Tax Returns. Fixed Assets sub-components may be used where the underlying asset components are classified under multiple CCA Classes for tax purposes. If an applicant uses any different classes from those shown in the table, an explanation should be provided. (also see note 3 below).
A75: 3 | B75: The table may need to be customized for a utility's asset categories or for any new asset accounts announced or authorized by the Board.
A77: 4 | B77: The depreciation column (D) is not required as the relevant information will be provided in the following 2-C series of appendices.
C80: =+G30+L30 -> -54358 | D80: Record in 1555 and recuperate through a separate rider
D81: or
D82: Record record $254,843.38 and affect rate base
C84: 1555 | D84: 61500
C85: 1860 | E85: 254843.38
C86: 2105 | D86: 193343.13
D87: =SUM(D84:D86) -> 254843.13 | E87: =SUM(E84:E86) -> 254843.38

Sheet App.2-B_FixAsset 2014-NewCGAAP
M1: File Number: | N1: ='LDC Info'!$E$18 -> EB-2013-0139
M2: Exhibit: | N2: 2
M3: Tab: | N3: 1
M4: Schedule: | N4: 5
M5: Page: | N5: 5
M7: Date:
A9: Appendix 2-B
A10: Fixed Asset Continuity Schedule - NewCGAAP
F12: Year | G12: 2014
E14: Cost | K14: Accumulated Depreciation | P14: Input to Cost Allocation Model
A15: CCA Class | B15: OEB | C15: Description | D15: Depreciation Rate | E15: Opening Balance | F15: Additions | G15: Disposals | H15: Closing Balance | J15: Opening Balance | K15: Additions | L15: Disposals | M15: Closing Balance | N15: Net Book Value | P15: AVGGrossCloBal | Q15: AVG AccDep
A16: 12 | B16: 1611 | C16: Computer Software (Formally known as Account 1925) | E16: 209024.11 | F16: 17000 | H16: =E16+F16+G16 -> 226024.11 | J16: ='App 2-B FixAsset 2013-NewCGAAP'!M16 -> -152678.13 | K16: -20822 | M16: =J16+K16+L16 -> -173500.13 | N16: =H16+M16 -> 52523.98 | P16: =AVERAGE(H16,'App 2-B FixAsset 2013-NewCGAAP'!H16) -> 217524.11 | Q16: =AVERAGE(M16,'App 2-B FixAsset 2013-NewCGAAP'!M16) -> -163089.13
A17: CEC | B17: 1612 | C17: Land Rights (Formally known as Account 1906) | E17: 8588 | H17: =E17+F17+G17 -> 8588 | J17: ='App 2-B FixAsset 2013-NewCGAAP'!M17 -> -2608 | M17: =J17+K17+L17 -> -2608 | N17: =H17+M17 -> 5980 | P17: =AVERAGE(H17,'App 2-B FixAsset 2013-NewCGAAP'!H17) -> 8588 | Q17: =AVERAGE(M17,'App 2-B FixAsset 2013-NewCGAAP'!M17) -> -2608
A18: N/A | B18: 1805 | C18: Land | E18: 10000 | H18: =E18+F18+G18 -> 10000 | J18: ='App 2-B FixAsset 2013-NewCGAAP'!M18 -> 0 | M18: =J18+K18+L18 -> 0 | N18: =H18+M18 -> 10000 | P18: =AVERAGE(H18,'App 2-B FixAsset 2013-NewCGAAP'!H18) -> 10000 | Q18: =AVERAGE(M18,'App 2-B FixAsset 2013-NewCGAAP'!M18) -> 0
A19: 47 | B19: 1808 | C19: Buildings | E19: 0 | H19: =E19+F19+G19 -> 0 | J19: ='App 2-B FixAsset 2013-NewCGAAP'!M19 -> 0 | M19: =J19+K19+L19 -> 0 | N19: =H19+M19 -> 0 | P19: =AVERAGE(H19,'App 2-B FixAsset 2013-NewCGAAP'!H19) -> 0 | Q19: =AVERAGE(M19,'App 2-B FixAsset 2013-NewCGAAP'!M19) -> 0
A20: 13 | B20: 1810 | C20: Leasehold Improvements | E20: 0 | H20: 0 | J20: ='App 2-B FixAsset 2013-NewCGAAP'!M20 -> 0 | M20: 0 | N20: 0 | P20: =AVERAGE(H20,'App 2-B FixAsset 2013-NewCGAAP'!H20) -> 0 | Q20: =AVERAGE(M20,'App 2-B FixAsset 2013-NewCGAAP'!M20) -> 0
A21: 47 | B21: 1815 | C21: Transformer Station Equipment >50 kV | E21: 2030701.74 | F21: 25000 | H21: 2055701.74 | J21: ='App 2-B FixAsset 2013-NewCGAAP'!M21 -> -125255.74 | K21: -44507 | M21: -169762.74 | N21: 1885939 | P21: =AVERAGE(H21,'App 2-B FixAsset 2013-NewCGAAP'!H21) -> 2043201.74 | Q21: =AVERAGE(M21,'App 2-B FixAsset 2013-NewCGAAP'!M21) -> -147509.24
A22: 47 | B22: 1820 | C22: Distribution Station Equipment <50 kV | E22: 1056183 | F22: 60000 | H22: 1116183 | J22: ='App 2-B FixAsset 2013-NewCGAAP'!M22 -> -142005 | K22: -27195 | M22: -169200 | N22: 946983 | P22: =AVERAGE(H22,'App 2-B FixAsset 2013-NewCGAAP'!H22) -> 1086183.045 | Q22: =AVERAGE(M22,'App 2-B FixAsset 2013-NewCGAAP'!M22) -> -155602.5
A23: 47 | B23: 1825 | C23: Storage Battery Equipment | E23: 0 | H23: 0 | J23: ='App 2-B FixAsset 2013-NewCGAAP'!M23 -> 0 | M23: 0 | N23: 0 | P23: =AVERAGE(H23,'App 2-B FixAsset 2013-NewCGAAP'!H23) -> 0 | Q23: =AVERAGE(M23,'App 2-B FixAsset 2013-NewCGAAP'!M23) -> 0
A24: 47 | B24: 1830 | C24: Poles, Towers & Fixtures | E24: 558627.23 | F24: 89000 | H24: 647627.23 | J24: ='App 2-B FixAsset 2013-NewCGAAP'!M24 -> -242140.63 | K24: -14131 | M24: -256271.63 | N24: 391355.6 | P24: =AVERAGE(H24,'App 2-B FixAsset 2013-NewCGAAP'!H24) -> 603127.23 | Q24: =AVERAGE(M24,'App 2-B FixAsset 2013-NewCGAAP'!M24) -> -249206.13
A25: 47 | B25: 1835 | C25: Overhead Conductors & Devices | E25: 500830.16 | F25: 20000 | H25: 520830.16 | J25: ='App 2-B FixAsset 2013-NewCGAAP'!M25 -> -275972.23 | K25: -10588 | M25: -286560.23 | N25: 234269.93 | P25: =AVERAGE(H25,'App 2-B FixAsset 2013-NewCGAAP'!H25) -> 510830.16 | Q25: =AVERAGE(M25,'App 2-B FixAsset 2013-NewCGAAP'!M25) -> -281266.23
A26: 47 | B26: 1840 | C26: Underground Conduit | E26: 114355.12 | F26: 500 | H26: 114855.12 | J26: ='App 2-B FixAsset 2013-NewCGAAP'!M26 -> -74591.12 | K26: -2763 | M26: -77354.12 | N26: 37501 | P26: =AVERAGE(H26,'App 2-B FixAsset 2013-NewCGAAP'!H26) -> 114605.12 | Q26: =AVERAGE(M26,'App 2-B FixAsset 2013-NewCGAAP'!M26) -> -75972.62
A27: 47 | B27: 1845 | C27: Underground Conductors & Devices | E27: 282912.57 | F27: 17500 | H27: 300412.57 | J27: ='App 2-B FixAsset 2013-NewCGAAP'!M27 -> -131128.6 | K27: -10837 | M27: -141965.6 | N27: 158446.97 | P27: =AVERAGE(H27,'App 2-B FixAsset 2013-NewCGAAP'!H27) -> 291662.57 | Q27: =AVERAGE(M27,'App 2-B FixAsset 2013-NewCGAAP'!M27) -> -136547.1
A28: 47 | B28: 1850 | C28: Line Transformers | E28: 435244.76 | F28: 12500 | H28: 447744.76 | J28: ='App 2-B FixAsset 2013-NewCGAAP'!M28 -> -227115.41 | K28: -10250 | M28: -237365.41 | N28: 210379.35 | P28: =AVERAGE(H28,'App 2-B FixAsset 2013-NewCGAAP'!H28) -> 441494.76 | Q28: =AVERAGE(M28,'App 2-B FixAsset 2013-NewCGAAP'!M28) -> -232240.41
A29: 47 | B29: 1855 | C29: Services (Overhead & Underground) | E29: 35419.82 | F29: 3100 | H29: 38519.82 | J29: ='App 2-B FixAsset 2013-NewCGAAP'!M29 -> -9644.48 | K29: -1232 | M29: -10876.48 | N29: 27643.34 | P29: =AVERAGE(H29,'App 2-B FixAsset 2013-NewCGAAP'!H29) -> 36969.82 | Q29: =AVERAGE(M29,'App 2-B FixAsset 2013-NewCGAAP'!M29) -> -10260.48
A30: 47 | B30: 1860 | C30: Meters | E30: 254843.38 | F30: 0 | G30: -246912.13 | H30: 7931.25 | J30: ='App 2-B FixAsset 2013-NewCGAAP'!M30+1 -> -193342.13 | K30: -317 | L30: 192554.13 | M30: -1105 | N30: 6826.25 | P30: =AVERAGE(H30,'App 2-B FixAsset 2013-NewCGAAP'!H30) -> 131387.315 | Q30: =AVERAGE(M30,'App 2-B FixAsset 2013-NewCGAAP'!M30) -> -97224.065
A31: 47 | B31: 1860 | C31: Meters (Smart Meters) | E31: 622398.5 | F31: 3500 | H31: 625898.5 | J31: ='App 2-B FixAsset 2013-NewCGAAP'!M31 -> -146709.69 | K31: -41610 | M31: -188319.69 | N31: 437578.81 | P31: =AVERAGE(H31,'App 2-B FixAsset 2013-NewCGAAP'!H31) -> 624148.5 | Q31: =AVERAGE(M31,'App 2-B FixAsset 2013-NewCGAAP'!M31) -> -167514.69
A32: N/A | B32: 1905 | C32: Land | E32: 28299.7 | H32: 28299.7 | J32: ='App 2-B FixAsset 2013-NewCGAAP'!M32 -> 0 | M32: 0 | N32: 28299.7 | P32: =AVERAGE(H32,'App 2-B FixAsset 2013-NewCGAAP'!H32) -> 28299.7 | Q32: =AVERAGE(M32,'App 2-B FixAsset 2013-NewCGAAP'!M32) -> 0
A33: 47 | B33: 1908 | C33: Buildings & Fixtures - BUILDING ROOF | E33: 183207 | F33: 0 | H33: 183207 | J33: ='App 2-B FixAsset 2013-NewCGAAP'!M33 -> -51331 | K33: -7329 | M33: -58660 | N33: 124547 | P33: =AVERAGE(H33,'App 2-B FixAsset 2013-NewCGAAP'!H33) -> 183207 | Q33: =AVERAGE(M33,'App 2-B FixAsset 2013-NewCGAAP'!M33) -> -54995.5
A34: 47 | B34: 1908 | C34: Buildings & Fixtures - INTERIOR FIXTURES | E34: 265500.77 | F34: 12500 | H34: 278000.77 | J34: -82350.77 | K34: -18118 | M34: =J34+K34+L34 -> -100468.77 | N34: =H34+M34 -> 177532 | P34: =AVERAGE(H34,'App 2-B FixAsset 2013-NewCGAAP'!H34) -> 271750.77 | Q34: =AVERAGE(M34,'App 2-B FixAsset 2013-NewCGAAP'!M34) -> -91409.77
A35: 47 | B35: 1908 | C35: Buildings & Fixtures - STRUCTURE | E35: 412916 | F35: 0 | H35: 412916 | J35: -119167 | K35: -8258 | M35: -127425 | N35: 285491 | P35: =AVERAGE(H35,'App 2-B FixAsset 2013-NewCGAAP'!H35) -> 412916 | Q35: =AVERAGE(M35,'App 2-B FixAsset 2013-NewCGAAP'!M35) -> -123295.5
A36: 13 | B36: 1910 | C36: Leasehold Improvements | E36: 0 | H36: 0 | J36: ='App 2-B FixAsset 2013-NewCGAAP'!M36 -> 0 | M36: 0 | N36: 0 | P36: =AVERAGE(H36,'App 2-B FixAsset 2013-NewCGAAP'!H36) -> 0 | Q36: =AVERAGE(M36,'App 2-B FixAsset 2013-NewCGAAP'!M36) -> 0
A37: 8 | B37: 1915 | C37: Office Furniture & Equipment (10 years) | E37: 39483.96 | F37: 3500 | H37: 42983.96 | J37: ='App 2-B FixAsset 2013-NewCGAAP'!M37 -> -23360.73 | K37: -3128 | M37: -26488.73 | N37: 16495.23 | P37: =AVERAGE(H37,'App 2-B FixAsset 2013-NewCGAAP'!H37) -> 41233.96 | Q37: =AVERAGE(M37,'App 2-B FixAsset 2013-NewCGAAP'!M37) -> -24924.73
A38: 8 | B38: 1915 | C38: Office Furniture & Equipment (5 years) | E38: 0 | H38: 0 | J38: ='App 2-B FixAsset 2013-NewCGAAP'!M38 -> 0 | M38: 0 | N38: 0 | P38: =AVERAGE(H38,'App 2-B FixAsset 2013-NewCGAAP'!H38) -> 0 | Q38: =AVERAGE(M38,'App 2-B FixAsset 2013-NewCGAAP'!M38) -> 0
A39: 10 | B39: 1920 | C39: Computer Equipment - Hardware | E39: 57878.11 | F39: 3100 | H39: 60978.11 | J39: ='App 2-B FixAsset 2013-NewCGAAP'!M39 -> -50778.41 | K39: -2981 | M39: -53759.41 | N39: 7218.7 | P39: =AVERAGE(H39,'App 2-B FixAsset 2013-NewCGAAP'!H39) -> 59428.11 | Q39: =AVERAGE(M39,'App 2-B FixAsset 2013-NewCGAAP'!M39) -> -52268.91
A40: 45 | B40: 1920 | C40: Computer Equip.-Hardware(Post Mar. 22/04) | E40: 0 | H40: 0 | J40: ='App 2-B FixAsset 2013-NewCGAAP'!M40 -> 0 | M40: 0 | N40: 0 | P40: =AVERAGE(H40,'App 2-B FixAsset 2013-NewCGAAP'!H40) -> 0 | Q40: =AVERAGE(M40,'App 2-B FixAsset 2013-NewCGAAP'!M40) -> 0
A41: 45.1 | B41: 1920 | C41: Computer Equip.-Hardware(Post Mar. 19/07) | E41: 0 | H41: 0 | J41: ='App 2-B FixAsset 2013-NewCGAAP'!M41 -> 0 | M41: 0 | N41: 0 | P41: =AVERAGE(H41,'App 2-B FixAsset 2013-NewCGAAP'!H41) -> 0 | Q41: =AVERAGE(M41,'App 2-B FixAsset 2013-NewCGAAP'!M41) -> 0
A42: 10 | B42: 1930 | C42: Transportation Equipment | E42: 204793.8 | H42: 204793.8 | J42: ='App 2-B FixAsset 2013-NewCGAAP'!M42 -> -198402 | K42: -2556 | M42: -200958 | N42: 3835.8 | P42: =AVERAGE(H42,'App 2-B FixAsset 2013-NewCGAAP'!H42) -> 204793.8 | Q42: =AVERAGE(M42,'App 2-B FixAsset 2013-NewCGAAP'!M42) -> -199680
A43: 8 | B43: 1935 | C43: Stores Equipment | E43: 0 | H43: 0 | J43: ='App 2-B FixAsset 2013-NewCGAAP'!M43 -> 0 | M43: 0 | N43: 0 | P43: =AVERAGE(H43,'App 2-B FixAsset 2013-NewCGAAP'!H43) -> 0 | Q43: =AVERAGE(M43,'App 2-B FixAsset 2013-NewCGAAP'!M43) -> 0
A44: 8 | B44: 1940 | C44: Tools, Shop & Garage Equipment | E44: 30996.47 | F44: 3100 | H44: 34096.47 | J44: ='App 2-B FixAsset 2013-NewCGAAP'!M44 -> -16089.5 | K44: -2576 | M44: -18665.5 | N44: 15430.97 | P44: =AVERAGE(H44,'App 2-B FixAsset 2013-NewCGAAP'!H44) -> 32546.47 | Q44: =AVERAGE(M44,'App 2-B FixAsset 2013-NewCGAAP'!M44) -> -17377.5
A45: 8 | B45: 1945 | C45: Measurement & Testing Equipment | E45: 0 | H45: 0 | J45: ='App 2-B FixAsset 2013-NewCGAAP'!M45 -> 0 | M45: 0 | N45: 0 | P45: =AVERAGE(H45,'App 2-B FixAsset 2013-NewCGAAP'!H45) -> 0 | Q45: =AVERAGE(M45,'App 2-B FixAsset 2013-NewCGAAP'!M45) -> 0
A46: 8 | B46: 1950 | C46: Power Operated Equipment | E46: 6363.29 | F46: 2000 | H46: 8363.29 | J46: ='App 2-B FixAsset 2013-NewCGAAP'!M46 -> -4488.7 | K46: -375 | M46: -4863.7 | N46: 3499.59 | P46: =AVERAGE(H46,'App 2-B FixAsset 2013-NewCGAAP'!H46) -> 7363.29 | Q46: =AVERAGE(M46,'App 2-B FixAsset 2013-NewCGAAP'!M46) -> -4676.2 | R46: =SUM(Q16:Q46) -> -2287668.705
A47: 8 | B47: 1955 | C47: Communications Equipment | E47: 0 | H47: 0 | J47: ='App 2-B FixAsset 2013-NewCGAAP'!M47 -> 0 | M47: 0 | N47: 0 | P47: =AVERAGE(H47,'App 2-B FixAsset 2013-NewCGAAP'!H47) -> 0 | Q47: =AVERAGE(M47,'App 2-B FixAsset 2013-NewCGAAP'!M47) -> 0
A48: 8 | B48: 1955 | C48: Communication Equipment (Smart Meters) | E48: 0 | H48: 0 | J48: ='App 2-B FixAsset 2013-NewCGAAP'!M48 -> 0 | M48: 0 | N48: 0 | P48: =AVERAGE(H48,'App 2-B FixAsset 2013-NewCGAAP'!H48) -> 0 | Q48: =AVERAGE(M48,'App 2-B FixAsset 2013-NewCGAAP'!M48) -> 0
A49: 8 | B49: 1960 | C49: Miscellaneous Equipment | E49: 0 | H49: 0 | J49: ='App 2-B FixAsset 2013-NewCGAAP'!M49 -> 0 | M49: 0 | N49: 0 | P49: =AVERAGE(H49,'App 2-B FixAsset 2013-NewCGAAP'!H49) -> 0 | Q49: =AVERAGE(M49,'App 2-B FixAsset 2013-NewCGAAP'!M49) -> 0
A50: 47 | B50: 1975 | C50: Load Management Controls Utility Premises | E50: 0 | H50: 0 | J50: ='App 2-B FixAsset 2013-NewCGAAP'!M50 -> 0 | M50: 0 | N50: 0 | P50: =AVERAGE(H50,'App 2-B FixAsset 2013-NewCGAAP'!H50) -> 0 | Q50: =AVERAGE(M50,'App 2-B FixAsset 2013-NewCGAAP'!M50) -> 0
A51: 47 | B51: 1980 | C51: System Supervisor Equipment | E51: 0 | H51: 0 | J51: ='App 2-B FixAsset 2013-NewCGAAP'!M51 -> 0 | M51: 0 | N51: 0 | P51: =AVERAGE(H51,'App 2-B FixAsset 2013-NewCGAAP'!H51) -> 0 | Q51: =AVERAGE(M51,'App 2-B FixAsset 2013-NewCGAAP'!M51) -> 0
A52: 47 | B52: 1985 | C52: Miscellaneous Fixed Assets | E52: 0 | H52: 0 | J52: ='App 2-B FixAsset 2013-NewCGAAP'!M52 -> 0 | M52: 0 | N52: 0 | P52: =AVERAGE(H52,'App 2-B FixAsset 2013-NewCGAAP'!H52) -> 0 | Q52: =AVERAGE(M52,'App 2-B FixAsset 2013-NewCGAAP'!M52) -> 0
A53: 47 | B53: 1995 | C53: Contributions & Grants - ACCT 1830 | E53: -77570.38 | F53: 0 | H53: -77570.38 | J53: ='App 2-B FixAsset 2013-NewCGAAP'!M53 -> 4233.38 | K53: 1724 | M53: 5957.38 | N53: -71613 | P53: =AVERAGE(H53,'App 2-B FixAsset 2013-NewCGAAP'!H53) -> -77570.38 | Q53: =AVERAGE(M53,'App 2-B FixAsset 2013-NewCGAAP'!M53) -> 5095.38
A54: 47 | B54: 1995 | C54: Contributions & Grants - ACCT 1835 | E54: -49660.65 | F54: 0 | H54: -49660.65 | J54: 3017.65 | K54: 828 | M54: =J54+K54+L54 -> 3845.65 | N54: =H54+M54 -> -45815 | P54: =AVERAGE(H54,'App 2-B FixAsset 2013-NewCGAAP'!H54) -> -49660.65 | Q54: =AVERAGE(M54,'App 2-B FixAsset 2013-NewCGAAP'!M54) -> 3431.65
A55: 47 | B55: 1995 | C55: Contributions & Grants - ACCT 1840 | E55: -219.86 | F55: 0 | H55: -219.86 | J55: 43.86 | K55: 4 | M55: =J55+K55+L55 -> 47.86 | N55: =H55+M55 -> -172 | P55: =AVERAGE(H55,'App 2-B FixAsset 2013-NewCGAAP'!H55) -> -219.86 | Q55: =AVERAGE(M55,'App 2-B FixAsset 2013-NewCGAAP'!M55) -> 45.86
A56: 47 | B56: 1995 | C56: Contributions & Grants - ACCT 1845 | E56: -87993.46 | F56: -10431 | H56: -98424.46 | J56: 13246.7 | K56: 3107 | M56: =J56+K56+L56 -> 16353.7 | N56: =H56+M56 -> -82070.76 | P56: =AVERAGE(H56,'App 2-B FixAsset 2013-NewCGAAP'!H56) -> -93208.96 | Q56: =AVERAGE(M56,'App 2-B FixAsset 2013-NewCGAAP'!M56) -> 14800.2
A57: 47 | B57: 1995 | C57: Contributions & Grants - ACCT 1850 | E57: -59182.83 | F57: -17019 | H57: -76201.83 | J57: 7825.83 | K57: 1693 | M57: =J57+K57+L57 -> 9518.83 | N57: =H57+M57 -> -66683 | P57: =AVERAGE(H57,'App 2-B FixAsset 2013-NewCGAAP'!H57) -> -67692.33 | Q57: =AVERAGE(M57,'App 2-B FixAsset 2013-NewCGAAP'!M57) -> 8672.33
E58: 0 | J58: 0 | P58: =AVERAGE(H58,'App 2-B FixAsset 2013-NewCGAAP'!H58) -> 0 | Q58: =AVERAGE(M58,'App 2-B FixAsset 2013-NewCGAAP'!M58) -> 0
C60: Total | E60: =SUM(E16:E59) -> 7073940.31 | F60: =SUM(F16:F59) -> 244850 | G60: =SUM(G16:G59) -> -246912.13 | H60: =SUM(H16:H59) -> 7071878.18 | J60: =SUM(J16:J59) -> -2240791.85 | K60: =SUM(K16:K59) -> -222217 | L60: =SUM(L16:L59) -> 192554.13 | M60: =SUM(M16:M59) -> -2270454.72 | N60: =SUM(N16:N59) -> 4801423.46 | P60: =SUM(P16:P59) -> 7072909.29 | Q60: =SUM(Q16:Q59) -> -2255623.285
H61: =AVERAGE(H60,E60) -> 7072909.245 | K61: =AVERAGE(K60,'App 2-B FixAsset 2013-NewCGAAP'!K60) -> -212465.5 | M61: =AVERAGE(M60,J60) -> -2255623.285
J62: Less: Fully Allocated Depreciation
A63: 10 | C63: Transportation | J63: Transportation
A64: 8 | C64: Stores Equipment | J64: Stores Equipment
J65: Net Depreciation | L65: =L60-L63-L64 -> 192554.13
A67: Notes:
A69: 1 | B69: Tables in the format outlined above covering all fixed asset accounts should be submitted for the Test Year, Bridge Year and all relevant historical years. At a minimum , the applicant must provide data for the earlier of: 1) all historical years back to its last rebasing; or 2) at least three years of historical actuals, in addition to Bridge Year and Test Year forecasts.
A72: 2 | B72: The "CCA Class" for fixed assets should agree with the CCA Class used for tax purposes in Tax Returns. Fixed Assets sub-components may be used where the underlying asset components are classified under multiple CCA Classes for tax purposes. If an applicant uses any different classes from those shown in the table, an explanation should be provided. (also see note 3 below).
A75: 3 | B75: The table may need to be customized for a utility's asset categories or for any new asset accounts announced or authorized by the Board.
A77: 4 | B77: The depreciation column (D) is not required as the relevant information will be provided in the following 2-C series of appendices.
C80: =+G30+L30 -> -54358 | D80: Record in 1555 and recuperate through a separate rider
D81: or
D82: Record record $254,843.38 and affect rate base
C84: 1555 | D84: 61500
C85: 1860 | E85: 254843.38
C86: 2105 | D86: 193343.13
D87: =SUM(D84:D86) -> 254843.13 | E87: =SUM(E84:E86) -> 254843.38

Sheet App.2-B_FixAsset 2014-MIFRS (hidden)
M1: File Number: | N1: ='LDC Info'!$E$18 -> EB-2013-0139
M2: Exhibit:
M3: Tab:
M4: Schedule:
M5: Page:
M7: Date:
A9: Appendix 2-B
A10: Fixed Asset Continuity Schedule
F12: Year | G12: 2014
E14: Cost | K14: Accumulated Depreciation
A15: CCA Class | B15: OEB | C15: Description | D15: Depreciation Rate | E15: Opening Balance | F15: Additions | G15: Disposals | H15: Closing Balance | J15: Opening Balance | K15: Additions | L15: Disposals | M15: Closing Balance | N15: Net Book Value
A16: 12 | B16: 1611 | C16: Computer Software (Formally known as Account 1925) | H16: =E16+F16+G16 -> 0 | M16: =J16+K16+L16 -> 0 | N16: =H16+M16 -> 0
A17: CEC | B17: 1612 | C17: Land Rights (Formally known as Account 1906) | H17: =E17+F17+G17 -> 0 | M17: =J17+K17+L17 -> 0 | N17: =H17+M17 -> 0
A18: N/A | B18: 1805 | C18: Land | H18: =E18+F18+G18 -> 0 | M18: =J18+K18+L18 -> 0 | N18: =H18+M18 -> 0
A19: 47 | B19: 1808 | C19: Buildings | H19: =E19+F19+G19 -> 0 | M19: =J19+K19+L19 -> 0 | N19: =H19+M19 -> 0
A20: 13 | B20: 1810 | C20: Leasehold Improvements | H20: 0 | M20: 0 | N20: 0
A21: 47 | B21: 1815 | C21: Transformer Station Equipment >50 kV | H21: 0 | M21: 0 | N21: 0
A22: 47 | B22: 1820 | C22: Distribution Station Equipment <50 kV | H22: 0 | M22: 0 | N22: 0
A23: 47 | B23: 1825 | C23: Storage Battery Equipment | H23: 0 | M23: 0 | N23: 0
A24: 47 | B24: 1830 | C24: Poles, Towers & Fixtures | H24: 0 | M24: 0 | N24: 0
A25: 47 | B25: 1835 | C25: Overhead Conductors & Devices | H25: 0 | M25: 0 | N25: 0
A26: 47 | B26: 1840 | C26: Underground Conduit | H26: 0 | M26: 0 | N26: 0
A27: 47 | B27: 1845 | C27: Underground Conductors & Devices | H27: 0 | M27: 0 | N27: 0
A28: 47 | B28: 1850 | C28: Line Transformers | H28: 0 | M28: 0 | N28: 0
A29: 47 | B29: 1855 | C29: Services (Overhead & Underground) | H29: 0 | M29: 0 | N29: 0
A30: 47 | B30: 1860 | C30: Meters | H30: 0 | M30: 0 | N30: 0
A31: 47 | B31: 1860 | C31: Meters (Smart Meters) | H31: 0 | M31: 0 | N31: 0
A32: N/A | B32: 1905 | C32: Land | H32: 0 | M32: 0 | N32: 0
A33: 47 | B33: 1908 | C33: Buildings & Fixtures | H33: 0 | M33: 0 | N33: 0
A34: 13 | B34: 1910 | C34: Leasehold Improvements | H34: 0 | M34: 0 | N34: 0
A35: 8 | B35: 1915 | C35: Office Furniture & Equipment (10 years) | H35: 0 | M35: 0 | N35: 0
A36: 8 | B36: 1915 | C36: Office Furniture & Equipment (5 years) | H36: 0 | M36: 0 | N36: 0
A37: 10 | B37: 1920 | C37: Computer Equipment - Hardware | H37: 0 | M37: 0 | N37: 0
A38: 45 | B38: 1920 | C38: Computer Equip.-Hardware(Post Mar. 22/04) | H38: 0 | M38: 0 | N38: 0
A39: 45.1 | B39: 1920 | C39: Computer Equip.-Hardware(Post Mar. 19/07) | H39: 0 | M39: 0 | N39: 0
A40: 10 | B40: 1930 | C40: Transportation Equipment | H40: 0 | M40: 0 | N40: 0
A41: 8 | B41: 1935 | C41: Stores Equipment | H41: 0 | M41: 0 | N41: 0
A42: 8 | B42: 1940 | C42: Tools, Shop & Garage Equipment | H42: 0 | M42: 0 | N42: 0
A43: 8 | B43: 1945 | C43: Measurement & Testing Equipment | H43: 0 | M43: 0 | N43: 0
A44: 8 | B44: 1950 | C44: Power Operated Equipment | H44: 0 | M44: 0 | N44: 0
A45: 8 | B45: 1955 | C45: Communications Equipment | H45: 0 | M45: 0 | N45: 0
A46: 8 | B46: 1955 | C46: Communication Equipment (Smart Meters) | H46: 0 | M46: 0 | N46: 0
A47: 8 | B47: 1960 | C47: Miscellaneous Equipment | H47: 0 | M47: 0 | N47: 0
A48: 47 | B48: 1975 | C48: Load Management Controls Utility Premises | H48: 0 | M48: 0 | N48: 0
A49: 47 | B49: 1980 | C49: System Supervisor Equipment | H49: 0 | M49: 0 | N49: 0
A50: 47 | B50: 1985 | C50: Miscellaneous Fixed Assets | H50: 0 | M50: 0 | N50: 0
A51: 47 | B51: 1995 | C51: Contributions & Grants | H51: 0 | M51: 0 | N51: 0
C52: Smart Meter Additions (from 1555) | H52: 0 | M52: =J52+K52+L52 -> 0 | N52: =H52+M52 -> 0
A53: 8 | B53: 1860 | C53: Meters (Smart Meters) | H53: 0 | M53: =J53+K53+L53 -> 0 | N53: =H53+M53 -> 0
A54: 45.1 | B54: 1920 | C54: Computer Hardware (Smart Meters) | H54: 0 | M54: =J54+K54+L54 -> 0 | N54: =H54+M54 -> 0
A55: 12 | B55: 1925 | C55: Computer Software (Smart Meters) | H55: 0 | M55: =J55+K55+L55 -> 0 | N55: =H55+M55 -> 0
C58: Total | E58: =SUM(E16:E57) -> 0 | F58: =SUM(F16:F57) -> 0 | G58: =SUM(G16:G57) -> 0 | H58: =SUM(H16:H57) -> 0 | J58: =SUM(J16:J57) -> 0 | K58: =SUM(K16:K57) -> 0 | L58: =SUM(L16:L57) -> 0 | M58: =SUM(M16:M57) -> 0 | N58: =SUM(N16:N57) -> 0
J60: Less: Fully Allocated Depreciation
A61: 10 | C61: Transportation | J61: Transportation
A62: 8 | C62: Stores Equipment | J62: Stores Equipment
J63: Net Depreciation | L63: =L58-L61-L62 -> 0
A65: Notes:
A67: 1 | B67: Tables in the format outlined above covering all fixed asset accounts should be submitted for the Test Year, Bridge Year and all relevant historical years. At a minimum , the applicant must provide data for the earlier of: 1) all historical years back to its last rebasing; or 2) at least three years of historical actuals, in addition to Bridge Year and Test Year forecasts.
A70: 2 | B70: The "CCA Class" for fixed assets should agree with the CCA Class used for tax purposes in Tax Returns. Fixed Assets sub-components may be used where the underlying asset components are classified under multiple CCA Classes for tax purposes. If an applicant uses any different classes from those shown in the table, an explanation should be provided. (also see note 3 below).
A73: 3 | B73: The table may need to be customized for a utility's asset categories or for any new asset accounts announced or authorized by the Board.
A75: 4 | B75: The depreciation column (D) is not required as the relevant information will be provided in the following 2-C series of appendices.

Sheet App.2-CA_CGAAP_DepExp_2012 (hidden)
K1: File Number: | L1: ='LDC Info'!$E$18 -> EB-2013-0139
K2: Exhibit:
K3: Tab:
K4: Schedule:
K5: Page:
K7: Date:
A9: Appendix 2-CA
A10: Depreciation and Amortization Expense
A11: Assumes the applicant adopted IFRS for financial reporting purposes January 1, 2012
C12: Year | D12: 2011 | E12: CGAAP
A14: Account | B14: Description | C14: Opening Regulatory Gross PP&E as at Jan 1, 2011 | D14: Less Fully Depreciated | E14: Net for Depreciation | F14: Additions | G14: Total for Depreciation | H14: Years | I14: Depreciation Rate | J14: Depreciation Expense | K14: 2011 Depreciation Expense per Appendix 2-B Fixed Assets, Column K (l) | L14: Variance 2
C15: (a) | D15: (b) | E15: (c) | F15: (d) | G15: (e) = (c) + ½ x (d) 1 | H15: (f) | I15: (g) = 1 / (f) | J15: (h) = (e) / (f) | L15: (m) = (h) - (l)
A16: 1611 | B16: Computer Software (Formally known as Account 1925) | E16: =C16-D16 -> 0 | G16: =E16+0.5*F16 -> 0 | I16: =IF(H16=0,0,1/H16) -> 0 | J16: =IF(H16=0,0,G16/H16) -> 0 | L16: =IF(ISERROR(+J16-K16), 0, +J16-K16) -> 0
A17: 1612 | B17: Land Rights (Formally known as Account 1906) | E17: =C17-D17 -> 0 | G17: =E17+0.5*F17 -> 0 | I17: 0 | J17: 0 | L17: 0
A18: 1805 | B18: Land | E18: 0 | G18: 0 | I18: 0 | J18: 0 | L18: 0
A19: 1808 | B19: Buildings | E19: 0 | G19: 0 | I19: 0 | J19: 0 | L19: 0
A20: 1810 | B20: Leasehold Improvements | E20: 0 | G20: 0 | I20: 0 | J20: 0 | L20: 0
A21: 1815 | B21: Transformer Station Equipment >50 kV | E21: 0 | G21: 0 | I21: 0 | J21: 0 | L21: 0
A22: 1820 | B22: Distribution Station Equipment <50 kV | E22: 0 | G22: 0 | I22: 0 | J22: 0 | L22: 0
A23: 1825 | B23: Storage Battery Equipment | E23: 0 | G23: 0 | I23: 0 | J23: 0 | L23: 0
A24: 1830 | B24: Poles, Towers & Fixtures | E24: 0 | G24: 0 | I24: 0 | J24: 0 | L24: 0
A25: 1835 | B25: Overhead Conductors & Devices | E25: 0 | G25: 0 | I25: 0 | J25: 0 | L25: 0
A26: 1840 | B26: Underground Conduit | E26: 0 | G26: 0 | I26: 0 | J26: 0 | L26: 0
A27: 1845 | B27: Underground Conductors & Devices | E27: 0 | G27: 0 | I27: 0 | J27: 0 | L27: 0
A28: 1850 | B28: Line Transformers | E28: 0 | G28: 0 | I28: 0 | J28: 0 | L28: 0
A29: 1855 | B29: Services (Overhead & Underground) | E29: 0 | G29: 0 | I29: 0 | J29: 0 | L29: 0
A30: 1860 | B30: Meters | E30: 0 | G30: 0 | I30: 0 | J30: 0 | L30: 0
A31: 1860 | B31: Meters (Smart Meters) | E31: 0 | G31: 0 | I31: 0 | J31: 0 | L31: 0
A32: 1905 | B32: Land | E32: 0 | G32: 0 | I32: 0 | J32: 0 | L32: 0
A33: 1908 | B33: Buildings & Fixtures | E33: 0 | G33: 0 | I33: 0 | J33: 0 | L33: 0
A34: 1910 | B34: Leasehold Improvements | E34: 0 | G34: 0 | I34: 0 | J34: 0 | L34: 0
A35: 1915 | B35: Office Furniture & Equipment (10 years) | E35: 0 | G35: 0 | I35: 0 | J35: 0 | L35: 0
A36: 1915 | B36: Office Furniture & Equipment (5 years) | E36: 0 | G36: 0 | I36: 0 | J36: 0 | L36: 0
A37: 1920 | B37: Computer Equipment - Hardware | E37: 0 | G37: 0 | I37: 0 | J37: 0 | L37: 0
A38: 1920 | B38: Computer Equip.-Hardware(Post Mar. 22/04) | E38: 0 | G38: 0 | I38: 0 | J38: 0 | L38: 0
A39: 1920 | B39: Computer Equip.-Hardware(Post Mar. 19/07) | E39: 0 | G39: 0 | I39: 0 | J39: 0 | L39: 0
A40: 1930 | B40: Transportation Equipment | E40: 0 | G40: 0 | I40: 0 | J40: 0 | L40: 0
A41: 1935 | B41: Stores Equipment | E41: 0 | G41: 0 | I41: 0 | J41: 0 | L41: 0
A42: 1940 | B42: Tools, Shop & Garage Equipment | E42: 0 | G42: 0 | I42: 0 | J42: 0 | L42: 0
A43: 1945 | B43: Measurement & Testing Equipment | E43: 0 | G43: 0 | I43: 0 | J43: 0 | L43: 0
A44: 1950 | B44: Power Operated Equipment | E44: 0 | G44: 0 | I44: 0 | J44: 0 | L44: 0
A45: 1955 | B45: Communications Equipment | E45: 0 | G45: 0 | I45: 0 | J45: 0 | L45: 0
A46: 1955 | B46: Communication Equipment (Smart Meters) | E46: 0 | G46: 0 | I46: 0 | J46: 0 | L46: 0
A47: 1960 | B47: Miscellaneous Equipment | E47: 0 | G47: 0 | I47: 0 | J47: 0 | L47: 0
A48: 1975 | B48: Load Management Controls Utility Premises | E48: 0 | G48: 0 | I48: 0 | J48: 0 | L48: 0
A49: 1980 | B49: System Supervisor Equipment | E49: 0 | G49: 0 | I49: 0 | J49: 0 | L49: 0
A50: 1985 | B50: Miscellaneous Fixed Assets | E50: 0 | G50: 0 | I50: 0 | J50: 0 | L50: 0
A51: 1995 | B51: Contributions & Grants | E51: 0 | G51: 0 | I51: 0 | J51: 0 | L51: 0
A52: etc. | E52: 0 | G52: 0 | I52: 0 | J52: 0 | L52: 0
E53: 0 | G53: 0 | I53: 0 | J53: 0 | L53: 0
B54: Total | C54: =SUM(C16:C53) -> 0 | D54: =SUM(D16:D53) -> 0 | E54: =SUM(E16:E53) -> 0 | F54: =SUM(F16:F53) -> 0 | G54: =SUM(G16:G53) -> 0 | J54: =SUM(J16:J53) -> 0 | K54: =SUM(K16:K53) -> 0 | L54: =SUM(L16:L53) -> 0
A56: Notes:
A58: 1 | B58: Board policy of the "half-year" rule - the applicant must ensure that additions in the year attract a half-year depreciation expense in the first year. Deviations from this standard practice must be supported in the application.
A59: 2 | B59: The applicant must provide an explanation of material variances in evidence
A61: General | B61: Applicants must provide a breakdown of depreciation and amortization expense in the above format for all relevant accounts. Asset Retirement Obligations (AROs), depreciation and accretion expense should be disclosed separately consistent with the Notes of historical Audited Financial Statements.

Sheet App.2-CB_MIFRS_DepExp_2012 (hidden)
N1: File Number: | O1: ='LDC Info'!$E$18 -> EB-2013-0139
N2: Exhibit:
N3: Tab:
N4: Schedule:
N5: Page:
N7: Date:
A9: Appendix 2-CB
A10: Depreciation and Amortization Expense
A11: Assumes the applicant adopted IFRS for financial reporting purposes January 1, 2012
C12: Year | D12: 2011 | E12: MIFRS
A14: Account | B14: Description | C14: Opening NBV as at Jan 1, 2011 5 | D14: Additions | E14: Average Remaining Life of Opening NBV 4 | F14: Years (new additions only) 3 | G14: Depreciation Rate on New Additions | H14: Depreciation Expense on Opening NBV | I14: Depreciation Expense on Additions 1 | J14: 2011 Depreciation Expense | K14: 2011 Depreciation Expense per Appendix 2-B Fixed Assets, Column K (l) | L14: Variance 2 | M14: Depreciation Expense on 2011 Full Year Additions | N14: Less Depreciation Expense on Assets Fully Depreciated during the year (o) | O14: 2011 Full Year Depreciation 6
C15: (a) | D15: (d) | E15: (i) | F15: (f) | G15: (g) = 1 / (f) | H15: (j) = (a) / (i) | I15: (h)=((d)*0.5)/(f) | J15: (k) = (j) + (h) | L15: (m) = (k) - (l) | M15: (n) = (d)/(f) | O15: (p) = (j) + (n) - (o)
A16: 1611 | B16: Computer Software (Formally known as Account 1925) | G16: =IF(F16=0,0,1/F16) -> 0 | H16: =IF(E16=0,0,+C16/E16) -> 0 | I16: =IF(F16=0,0,+(D16*0.5)/F16) -> 0 | J16: =IF(ISERROR(+H16+I16), 0, +H16+I16) -> 0 | L16: =IF(ISERROR(+J16-K16), 0, +J16-K16) -> 0 | M16: =IF(F16=0,0,+(D16)/F16) -> 0 | O16: =IF(ISERROR(+M16+H16-N16), 0, +M16+H16-N16) -> 0
A17: 1612 | B17: Land Rights (Formally known as Account 1906) | G17: 0 | H17: 0 | I17: 0 | J17: 0 | L17: 0 | M17: 0 | O17: =IF(ISERROR(+M17+H17-N17), 0, +M17+H17-N17) -> 0
A18: 1805 | B18: Land | G18: 0 | H18: 0 | I18: 0 | J18: 0 | L18: 0 | M18: 0 | O18: 0
A19: 1808 | B19: Buildings | G19: 0 | H19: 0 | I19: 0 | J19: 0 | L19: 0 | M19: 0 | O19: 0
A20: 1810 | B20: Leasehold Improvements | G20: 0 | H20: 0 | I20: 0 | J20: 0 | L20: 0 | M20: 0 | O20: 0
A21: 1815 | B21: Transformer Station Equipment >50 kV | G21: 0 | H21: 0 | I21: 0 | J21: 0 | L21: 0 | M21: 0 | O21: 0
A22: 1820 | B22: Distribution Station Equipment <50 kV | G22: 0 | H22: 0 | I22: 0 | J22: 0 | L22: 0 | M22: 0 | O22: 0
A23: 1825 | B23: Storage Battery Equipment | G23: 0 | H23: 0 | I23: 0 | J23: 0 | L23: 0 | M23: 0 | O23: 0
A24: 1830 | B24: Poles, Towers & Fixtures | G24: 0 | H24: 0 | I24: 0 | J24: 0 | L24: 0 | M24: 0 | O24: 0
A25: 1835 | B25: Overhead Conductors & Devices | G25: 0 | H25: 0 | I25: 0 | J25: 0 | L25: 0 | M25: 0 | O25: 0
A26: 1840 | B26: Underground Conduit | G26: 0 | H26: 0 | I26: 0 | J26: 0 | L26: 0 | M26: 0 | O26: 0
A27: 1845 | B27: Underground Conductors & Devices | G27: 0 | H27: 0 | I27: 0 | J27: 0 | L27: 0 | M27: 0 | O27: 0
A28: 1850 | B28: Line Transformers | G28: 0 | H28: 0 | I28: 0 | J28: 0 | L28: 0 | M28: 0 | O28: 0
A29: 1855 | B29: Services (Overhead & Underground) | G29: 0 | H29: 0 | I29: 0 | J29: 0 | L29: 0 | M29: 0 | O29: 0
A30: 1860 | B30: Meters | G30: 0 | H30: 0 | I30: 0 | J30: 0 | L30: 0 | M30: 0 | O30: 0
A31: 1860 | B31: Meters (Smart Meters) | G31: 0 | H31: 0 | I31: 0 | J31: 0 | L31: 0 | M31: 0 | O31: 0
A32: 1905 | B32: Land | G32: 0 | H32: 0 | I32: 0 | J32: 0 | L32: 0 | M32: 0 | O32: 0
A33: 1908 | B33: Buildings & Fixtures | G33: 0 | H33: 0 | I33: 0 | J33: 0 | L33: 0 | M33: 0 | O33: 0
A34: 1910 | B34: Leasehold Improvements | G34: 0 | H34: 0 | I34: 0 | J34: 0 | L34: 0 | M34: 0 | O34: 0
A35: 1915 | B35: Office Furniture & Equipment (10 years) | G35: 0 | H35: 0 | I35: 0 | J35: 0 | L35: 0 | M35: 0 | O35: 0
A36: 1915 | B36: Office Furniture & Equipment (5 years) | G36: 0 | H36: 0 | I36: 0 | J36: 0 | L36: 0 | M36: 0 | O36: 0
A37: 1920 | B37: Computer Equipment - Hardware | G37: 0 | H37: 0 | I37: 0 | J37: 0 | L37: 0 | M37: 0 | O37: 0
A38: 1920 | B38: Computer Equip.-Hardware(Post Mar. 22/04) | G38: 0 | H38: 0 | I38: 0 | J38: 0 | L38: 0 | M38: 0 | O38: 0
A39: 1920 | B39: Computer Equip.-Hardware(Post Mar. 19/07) | G39: 0 | H39: 0 | I39: 0 | J39: 0 | L39: 0 | M39: 0 | O39: 0
A40: 1930 | B40: Transportation Equipment | G40: 0 | H40: 0 | I40: 0 | J40: 0 | L40: 0 | M40: 0 | O40: 0
A41: 1935 | B41: Stores Equipment | G41: 0 | H41: 0 | I41: 0 | J41: 0 | L41: 0 | M41: 0 | O41: 0
A42: 1940 | B42: Tools, Shop & Garage Equipment | G42: 0 | H42: 0 | I42: 0 | J42: 0 | L42: 0 | M42: 0 | O42: 0
A43: 1945 | B43: Measurement & Testing Equipment | G43: 0 | H43: 0 | I43: 0 | J43: 0 | L43: 0 | M43: 0 | O43: 0
A44: 1950 | B44: Power Operated Equipment | G44: 0 | H44: 0 | I44: 0 | J44: 0 | L44: 0 | M44: 0 | O44: 0
A45: 1955 | B45: Communications Equipment | G45: 0 | H45: 0 | I45: 0 | J45: 0 | L45: 0 | M45: 0 | O45: 0
A46: 1955 | B46: Communication Equipment (Smart Meters) | G46: 0 | H46: 0 | I46: 0 | J46: 0 | L46: 0 | M46: 0 | O46: 0
A47: 1960 | B47: Miscellaneous Equipment | G47: 0 | H47: 0 | I47: 0 | J47: 0 | L47: 0 | M47: 0 | O47: 0
A48: 1975 | B48: Load Management Controls Utility Premises | G48: 0 | H48: 0 | I48: 0 | J48: 0 | L48: 0 | M48: 0 | O48: 0
A49: 1980 | B49: System Supervisor Equipment | G49: 0 | H49: 0 | I49: 0 | J49: 0 | L49: 0 | M49: 0 | O49: 0
A50: 1985 | B50: Miscellaneous Fixed Assets | G50: 0 | H50: 0 | I50: 0 | J50: 0 | L50: 0 | M50: 0 | O50: 0
A51: 1995 | B51: Contributions & Grants | G51: 0 | H51: 0 | I51: 0 | J51: 0 | L51: 0 | M51: 0 | O51: 0
A52: etc. | G52: 0 | H52: 0 | I52: 0 | J52: 0 | L52: 0 | M52: 0 | O52: 0
G53: 0 | H53: 0 | I53: 0 | J53: 0 | L53: 0 | M53: 0 | O53: 0
B54: Total | C54: =SUM(C16:C53) -> 0 | D54: =SUM(D16:D53) -> 0 | H54: =SUM(H16:H53) -> 0 | I54: 0 | J54: 0 | K54: 0 | L54: 0 | M54: 0 | N54: =SUM(N16:N53) -> 0 | O54: 0
A56: Notes:
A58: 1 | B58: Board policy of the "half-year" rule - the applicant must ensure that additions in the year attract a half-year depreciation expense in the first year. Deviations from this standard practice must be supported in the application.
A59: 2 | B59: The applicant must provide an explanation of material variances in evidence
A60: 3 | B60: The applicant should ensure that the years for new additions of assets are the asset useful lives determined by management in accordance with IFRS.
A61: 4 | B61: A recalculation should be performed to determine the average remaining life of opening balance of assets (i.e. excluding 2011 additions) under IFRS. For example, Asset A had a useful life of 20 years under CGAAP. On January 1, 2011, the date of transition, Asset A was 3 years depreciated. As a result, Asset A would have a remaining service life of 17 years (20 years less 3 years) under CGAAP as of January 1, 2011. Due to the transition to IFRS, management re-assessed the asset useful lives under IFRS principles and concluded that the revised useful life of Asset A is now 30 years. Therefore, the average remaining useful life of opening balance of Asset A is determined to be 27 years (30 years less 3 years) under IFRS as of January 1, 2011.
A62: 5 | B62: NBV must exclude assets still on the books but which have been fully amortized or depreciated.
A63: 6 | B63: This column refers to the calculated full year depreciation but excludes the depreciation expense on assets fully depreciated during the year. This column is used for the purpose of calculating depreciation expense in the following year on the next worksheet.
A65: General: | B65: Applicants must provide a breakdown of depreciation and amortization expense in the above format for all relevant accounts. Asset Retirement Obligations (AROs), depreciation and accretion expense should be disclosed separately consistent with the Notes of historical Audited Financial Statements.

Sheet App.2-CC_MIFRS_DepExp_2013 (hidden)
J1: File Number: | K1: ='LDC Info'!$E$18 -> EB-2013-0139
J2: Exhibit:
J3: Tab:
J4: Schedule:
J5: Page:
J7: Date:
A9: Appendix 2-CC
A10: Depreciation and Amortization Expense
A11: Assumes the applicant adopted IFRS for financial reporting purposes January 1, 2012
C12: 2012 | D12: MIFRS
A14: Account | B14: Description | C14: Additions | D14: Years (new additions only) | E14: Depreciation Rate on New Additions | F14: 2012 Depreciation Expense 1 | G14: 2012 Depreciation Expense per Apppendix 2-B Fixed Assets, Column K (l) | H14: Variance 2 | I14: Depreciation Expense on 2012 Full Year Additions | J14: Less Depreciation Expense on Assets Fully Depreciated during the year (o) | K14: 2012 Full Year Depreciation 3
C15: (d) | D15: (f) | E15: (g) = 1 / (f) | F15: (h)=2011 Full Year Deprecation + ((d)*0.5)/(f) | H15: (m) = (h) - (l) | I15: (n)=((d))/(f) | K15: (o) = 2011 Full Year Depreciation + (n) - (o)
A16: 1611 | B16: Computer Software (Formally known as Account 1925) | E16: =IF(D16=0,0,1/D16) -> 0 | F16: =IF(D16=0,+'App.2-CB_MIFRS_DepExp_2012'!O16,+'App.2-CB_MIFRS_DepExp_2012'!O16+((C16*0.5)/D16)) -> 0 | H16: =IF(ISERROR(+F16-G16), 0, +F16-G16) -> 0 | I16: =IF(D16=0,0,+(C16)/D16) -> 0 | K16: =IF(ISERROR(+I16+'App.2-CB_MIFRS_DepExp_2012'!O16-J16), 0, +I16+'App.2-CB_MIFRS_DepExp_2012'!O16-J16) -> 0
A17: 1612 | B17: Land Rights (Formally known as Account 1906) | E17: 0 | F17: =IF(D17=0,+'App.2-CB_MIFRS_DepExp_2012'!O17,+'App.2-CB_MIFRS_DepExp_2012'!O17+((C17*0.5)/D17)) -> 0 | H17: 0 | I17: 0 | K17: =IF(ISERROR(+I17+'App.2-CB_MIFRS_DepExp_2012'!O17-J17), 0, +I17+'App.2-CB_MIFRS_DepExp_2012'!O17-J17) -> 0
A18: 1805 | B18: Land | E18: 0 | F18: =IF(D18=0,+'App.2-CB_MIFRS_DepExp_2012'!O18,+'App.2-CB_MIFRS_DepExp_2012'!O18+((C18*0.5)/D18)) -> 0 | H18: 0 | I18: 0 | K18: =IF(ISERROR(+I18+'App.2-CB_MIFRS_DepExp_2012'!O18-J18), 0, +I18+'App.2-CB_MIFRS_DepExp_2012'!O18-J18) -> 0
A19: 1808 | B19: Buildings | E19: 0 | F19: =IF(D19=0,+'App.2-CB_MIFRS_DepExp_2012'!O19,+'App.2-CB_MIFRS_DepExp_2012'!O19+((C19*0.5)/D19)) -> 0 | H19: 0 | I19: 0 | K19: =IF(ISERROR(+I19+'App.2-CB_MIFRS_DepExp_2012'!O19-J19), 0, +I19+'App.2-CB_MIFRS_DepExp_2012'!O19-J19) -> 0
A20: 1810 | B20: Leasehold Improvements | E20: 0 | F20: =IF(D20=0,+'App.2-CB_MIFRS_DepExp_2012'!O20,+'App.2-CB_MIFRS_DepExp_2012'!O20+((C20*0.5)/D20)) -> 0 | H20: 0 | I20: 0 | K20: =IF(ISERROR(+I20+'App.2-CB_MIFRS_DepExp_2012'!O20-J20), 0, +I20+'App.2-CB_MIFRS_DepExp_2012'!O20-J20) -> 0
A21: 1815 | B21: Transformer Station Equipment >50 kV | E21: 0 | F21: =IF(D21=0,+'App.2-CB_MIFRS_DepExp_2012'!O21,+'App.2-CB_MIFRS_DepExp_2012'!O21+((C21*0.5)/D21)) -> 0 | H21: 0 | I21: 0 | K21: =IF(ISERROR(+I21+'App.2-CB_MIFRS_DepExp_2012'!O21-J21), 0, +I21+'App.2-CB_MIFRS_DepExp_2012'!O21-J21) -> 0
A22: 1820 | B22: Distribution Station Equipment <50 kV | E22: 0 | F22: =IF(D22=0,+'App.2-CB_MIFRS_DepExp_2012'!O22,+'App.2-CB_MIFRS_DepExp_2012'!O22+((C22*0.5)/D22)) -> 0 | H22: 0 | I22: 0 | K22: =IF(ISERROR(+I22+'App.2-CB_MIFRS_DepExp_2012'!O22-J22), 0, +I22+'App.2-CB_MIFRS_DepExp_2012'!O22-J22) -> 0
A23: 1825 | B23: Storage Battery Equipment | E23: 0 | F23: =IF(D23=0,+'App.2-CB_MIFRS_DepExp_2012'!O23,+'App.2-CB_MIFRS_DepExp_2012'!O23+((C23*0.5)/D23)) -> 0 | H23: 0 | I23: 0 | K23: =IF(ISERROR(+I23+'App.2-CB_MIFRS_DepExp_2012'!O23-J23), 0, +I23+'App.2-CB_MIFRS_DepExp_2012'!O23-J23) -> 0
A24: 1830 | B24: Poles, Towers & Fixtures | E24: 0 | F24: =IF(D24=0,+'App.2-CB_MIFRS_DepExp_2012'!O24,+'App.2-CB_MIFRS_DepExp_2012'!O24+((C24*0.5)/D24)) -> 0 | H24: 0 | I24: 0 | K24: =IF(ISERROR(+I24+'App.2-CB_MIFRS_DepExp_2012'!O24-J24), 0, +I24+'App.2-CB_MIFRS_DepExp_2012'!O24-J24) -> 0
A25: 1835 | B25: Overhead Conductors & Devices | E25: 0 | F25: =IF(D25=0,+'App.2-CB_MIFRS_DepExp_2012'!O25,+'App.2-CB_MIFRS_DepExp_2012'!O25+((C25*0.5)/D25)) -> 0 | H25: 0 | I25: 0 | K25: =IF(ISERROR(+I25+'App.2-CB_MIFRS_DepExp_2012'!O25-J25), 0, +I25+'App.2-CB_MIFRS_DepExp_2012'!O25-J25) -> 0
A26: 1840 | B26: Underground Conduit | E26: 0 | F26: =IF(D26=0,+'App.2-CB_MIFRS_DepExp_2012'!O26,+'App.2-CB_MIFRS_DepExp_2012'!O26+((C26*0.5)/D26)) -> 0 | H26: 0 | I26: 0 | K26: =IF(ISERROR(+I26+'App.2-CB_MIFRS_DepExp_2012'!O26-J26), 0, +I26+'App.2-CB_MIFRS_DepExp_2012'!O26-J26) -> 0
A27: 1845 | B27: Underground Conductors & Devices | E27: 0 | F27: =IF(D27=0,+'App.2-CB_MIFRS_DepExp_2012'!O27,+'App.2-CB_MIFRS_DepExp_2012'!O27+((C27*0.5)/D27)) -> 0 | H27: 0 | I27: 0 | K27: =IF(ISERROR(+I27+'App.2-CB_MIFRS_DepExp_2012'!O27-J27), 0, +I27+'App.2-CB_MIFRS_DepExp_2012'!O27-J27) -> 0
A28: 1850 | B28: Line Transformers | E28: 0 | F28: =IF(D28=0,+'App.2-CB_MIFRS_DepExp_2012'!O28,+'App.2-CB_MIFRS_DepExp_2012'!O28+((C28*0.5)/D28)) -> 0 | H28: 0 | I28: 0 | K28: =IF(ISERROR(+I28+'App.2-CB_MIFRS_DepExp_2012'!O28-J28), 0, +I28+'App.2-CB_MIFRS_DepExp_2012'!O28-J28) -> 0
A29: 1855 | B29: Services (Overhead & Underground) | E29: 0 | F29: =IF(D29=0,+'App.2-CB_MIFRS_DepExp_2012'!O29,+'App.2-CB_MIFRS_DepExp_2012'!O29+((C29*0.5)/D29)) -> 0 | H29: 0 | I29: 0 | K29: =IF(ISERROR(+I29+'App.2-CB_MIFRS_DepExp_2012'!O29-J29), 0, +I29+'App.2-CB_MIFRS_DepExp_2012'!O29-J29) -> 0
A30: 1860 | B30: Meters | E30: 0 | F30: =IF(D30=0,+'App.2-CB_MIFRS_DepExp_2012'!O30,+'App.2-CB_MIFRS_DepExp_2012'!O30+((C30*0.5)/D30)) -> 0 | H30: 0 | I30: 0 | K30: =IF(ISERROR(+I30+'App.2-CB_MIFRS_DepExp_2012'!O30-J30), 0, +I30+'App.2-CB_MIFRS_DepExp_2012'!O30-J30) -> 0
A31: 1860 | B31: Meters (Smart Meters) | E31: 0 | F31: =IF(D31=0,+'App.2-CB_MIFRS_DepExp_2012'!O31,+'App.2-CB_MIFRS_DepExp_2012'!O31+((C31*0.5)/D31)) -> 0 | H31: 0 | I31: 0 | K31: =IF(ISERROR(+I31+'App.2-CB_MIFRS_DepExp_2012'!O31-J31), 0, +I31+'App.2-CB_MIFRS_DepExp_2012'!O31-J31) -> 0
A32: 1905 | B32: Land | E32: 0 | F32: =IF(D32=0,+'App.2-CB_MIFRS_DepExp_2012'!O32,+'App.2-CB_MIFRS_DepExp_2012'!O32+((C32*0.5)/D32)) -> 0 | H32: 0 | I32: 0 | K32: =IF(ISERROR(+I32+'App.2-CB_MIFRS_DepExp_2012'!O32-J32), 0, +I32+'App.2-CB_MIFRS_DepExp_2012'!O32-J32) -> 0
A33: 1908 | B33: Buildings & Fixtures | E33: 0 | F33: =IF(D33=0,+'App.2-CB_MIFRS_DepExp_2012'!O33,+'App.2-CB_MIFRS_DepExp_2012'!O33+((C33*0.5)/D33)) -> 0 | H33: 0 | I33: 0 | K33: =IF(ISERROR(+I33+'App.2-CB_MIFRS_DepExp_2012'!O33-J33), 0, +I33+'App.2-CB_MIFRS_DepExp_2012'!O33-J33) -> 0
A34: 1910 | B34: Leasehold Improvements | E34: 0 | F34: =IF(D34=0,+'App.2-CB_MIFRS_DepExp_2012'!O34,+'App.2-CB_MIFRS_DepExp_2012'!O34+((C34*0.5)/D34)) -> 0 | H34: 0 | I34: 0 | K34: =IF(ISERROR(+I34+'App.2-CB_MIFRS_DepExp_2012'!O34-J34), 0, +I34+'App.2-CB_MIFRS_DepExp_2012'!O34-J34) -> 0
A35: 1915 | B35: Office Furniture & Equipment (10 years) | E35: 0 | F35: =IF(D35=0,+'App.2-CB_MIFRS_DepExp_2012'!O35,+'App.2-CB_MIFRS_DepExp_2012'!O35+((C35*0.5)/D35)) -> 0 | H35: 0 | I35: 0 | K35: =IF(ISERROR(+I35+'App.2-CB_MIFRS_DepExp_2012'!O35-J35), 0, +I35+'App.2-CB_MIFRS_DepExp_2012'!O35-J35) -> 0
A36: 1915 | B36: Office Furniture & Equipment (5 years) | E36: 0 | F36: =IF(D36=0,+'App.2-CB_MIFRS_DepExp_2012'!O36,+'App.2-CB_MIFRS_DepExp_2012'!O36+((C36*0.5)/D36)) -> 0 | H36: 0 | I36: 0 | K36: =IF(ISERROR(+I36+'App.2-CB_MIFRS_DepExp_2012'!O36-J36), 0, +I36+'App.2-CB_MIFRS_DepExp_2012'!O36-J36) -> 0
A37: 1920 | B37: Computer Equipment - Hardware | E37: 0 | F37: =IF(D37=0,+'App.2-CB_MIFRS_DepExp_2012'!O37,+'App.2-CB_MIFRS_DepExp_2012'!O37+((C37*0.5)/D37)) -> 0 | H37: 0 | I37: 0 | K37: =IF(ISERROR(+I37+'App.2-CB_MIFRS_DepExp_2012'!O37-J37), 0, +I37+'App.2-CB_MIFRS_DepExp_2012'!O37-J37) -> 0
A38: 1920 | B38: Computer Equip.-Hardware(Post Mar. 22/04) | E38: 0 | F38: =IF(D38=0,+'App.2-CB_MIFRS_DepExp_2012'!O38,+'App.2-CB_MIFRS_DepExp_2012'!O38+((C38*0.5)/D38)) -> 0 | H38: 0 | I38: 0 | K38: =IF(ISERROR(+I38+'App.2-CB_MIFRS_DepExp_2012'!O38-J38), 0, +I38+'App.2-CB_MIFRS_DepExp_2012'!O38-J38) -> 0
A39: 1920 | B39: Computer Equip.-Hardware(Post Mar. 19/07) | E39: 0 | F39: =IF(D39=0,+'App.2-CB_MIFRS_DepExp_2012'!O39,+'App.2-CB_MIFRS_DepExp_2012'!O39+((C39*0.5)/D39)) -> 0 | H39: 0 | I39: 0 | K39: =IF(ISERROR(+I39+'App.2-CB_MIFRS_DepExp_2012'!O39-J39), 0, +I39+'App.2-CB_MIFRS_DepExp_2012'!O39-J39) -> 0
A40: 1930 | B40: Transportation Equipment | E40: 0 | F40: =IF(D40=0,+'App.2-CB_MIFRS_DepExp_2012'!O40,+'App.2-CB_MIFRS_DepExp_2012'!O40+((C40*0.5)/D40)) -> 0 | H40: 0 | I40: 0 | K40: =IF(ISERROR(+I40+'App.2-CB_MIFRS_DepExp_2012'!O40-J40), 0, +I40+'App.2-CB_MIFRS_DepExp_2012'!O40-J40) -> 0
A41: 1935 | B41: Stores Equipment | E41: 0 | F41: =IF(D41=0,+'App.2-CB_MIFRS_DepExp_2012'!O41,+'App.2-CB_MIFRS_DepExp_2012'!O41+((C41*0.5)/D41)) -> 0 | H41: 0 | I41: 0 | K41: =IF(ISERROR(+I41+'App.2-CB_MIFRS_DepExp_2012'!O41-J41), 0, +I41+'App.2-CB_MIFRS_DepExp_2012'!O41-J41) -> 0
A42: 1940 | B42: Tools, Shop & Garage Equipment | E42: 0 | F42: =IF(D42=0,+'App.2-CB_MIFRS_DepExp_2012'!O42,+'App.2-CB_MIFRS_DepExp_2012'!O42+((C42*0.5)/D42)) -> 0 | H42: 0 | I42: 0 | K42: =IF(ISERROR(+I42+'App.2-CB_MIFRS_DepExp_2012'!O42-J42), 0, +I42+'App.2-CB_MIFRS_DepExp_2012'!O42-J42) -> 0
A43: 1945 | B43: Measurement & Testing Equipment | E43: 0 | F43: =IF(D43=0,+'App.2-CB_MIFRS_DepExp_2012'!O43,+'App.2-CB_MIFRS_DepExp_2012'!O43+((C43*0.5)/D43)) -> 0 | H43: 0 | I43: 0 | K43: =IF(ISERROR(+I43+'App.2-CB_MIFRS_DepExp_2012'!O43-J43), 0, +I43+'App.2-CB_MIFRS_DepExp_2012'!O43-J43) -> 0
A44: 1950 | B44: Power Operated Equipment | E44: 0 | F44: =IF(D44=0,+'App.2-CB_MIFRS_DepExp_2012'!O44,+'App.2-CB_MIFRS_DepExp_2012'!O44+((C44*0.5)/D44)) -> 0 | H44: 0 | I44: 0 | K44: =IF(ISERROR(+I44+'App.2-CB_MIFRS_DepExp_2012'!O44-J44), 0, +I44+'App.2-CB_MIFRS_DepExp_2012'!O44-J44) -> 0
A45: 1955 | B45: Communications Equipment | E45: 0 | F45: =IF(D45=0,+'App.2-CB_MIFRS_DepExp_2012'!O45,+'App.2-CB_MIFRS_DepExp_2012'!O45+((C45*0.5)/D45)) -> 0 | H45: 0 | I45: 0 | K45: =IF(ISERROR(+I45+'App.2-CB_MIFRS_DepExp_2012'!O45-J45), 0, +I45+'App.2-CB_MIFRS_DepExp_2012'!O45-J45) -> 0
A46: 1955 | B46: Communication Equipment (Smart Meters) | E46: 0 | F46: =IF(D46=0,+'App.2-CB_MIFRS_DepExp_2012'!O46,+'App.2-CB_MIFRS_DepExp_2012'!O46+((C46*0.5)/D46)) -> 0 | H46: 0 | I46: 0 | K46: =IF(ISERROR(+I46+'App.2-CB_MIFRS_DepExp_2012'!O46-J46), 0, +I46+'App.2-CB_MIFRS_DepExp_2012'!O46-J46) -> 0
A47: 1960 | B47: Miscellaneous Equipment | E47: 0 | F47: =IF(D47=0,+'App.2-CB_MIFRS_DepExp_2012'!O47,+'App.2-CB_MIFRS_DepExp_2012'!O47+((C47*0.5)/D47)) -> 0 | H47: 0 | I47: 0 | K47: =IF(ISERROR(+I47+'App.2-CB_MIFRS_DepExp_2012'!O47-J47), 0, +I47+'App.2-CB_MIFRS_DepExp_2012'!O47-J47) -> 0
A48: 1975 | B48: Load Management Controls Utility Premises | E48: 0 | F48: =IF(D48=0,+'App.2-CB_MIFRS_DepExp_2012'!O48,+'App.2-CB_MIFRS_DepExp_2012'!O48+((C48*0.5)/D48)) -> 0 | H48: 0 | I48: 0 | K48: =IF(ISERROR(+I48+'App.2-CB_MIFRS_DepExp_2012'!O48-J48), 0, +I48+'App.2-CB_MIFRS_DepExp_2012'!O48-J48) -> 0
A49: 1980 | B49: System Supervisor Equipment | E49: 0 | F49: =IF(D49=0,+'App.2-CB_MIFRS_DepExp_2012'!O49,+'App.2-CB_MIFRS_DepExp_2012'!O49+((C49*0.5)/D49)) -> 0 | H49: 0 | I49: 0 | K49: =IF(ISERROR(+I49+'App.2-CB_MIFRS_DepExp_2012'!O49-J49), 0, +I49+'App.2-CB_MIFRS_DepExp_2012'!O49-J49) -> 0
A50: 1985 | B50: Miscellaneous Fixed Assets | E50: 0 | F50: =IF(D50=0,+'App.2-CB_MIFRS_DepExp_2012'!O50,+'App.2-CB_MIFRS_DepExp_2012'!O50+((C50*0.5)/D50)) -> 0 | H50: 0 | I50: 0 | K50: =IF(ISERROR(+I50+'App.2-CB_MIFRS_DepExp_2012'!O50-J50), 0, +I50+'App.2-CB_MIFRS_DepExp_2012'!O50-J50) -> 0
A51: 1995 | B51: Contributions & Grants | E51: 0 | F51: =IF(D51=0,+'App.2-CB_MIFRS_DepExp_2012'!O51,+'App.2-CB_MIFRS_DepExp_2012'!O51+((C51*0.5)/D51)) -> 0 | H51: 0 | I51: 0 | K51: =IF(ISERROR(+I51+'App.2-CB_MIFRS_DepExp_2012'!O51-J51), 0, +I51+'App.2-CB_MIFRS_DepExp_2012'!O51-J51) -> 0
A52: etc. | E52: 0 | F52: =IF(D52=0,+'App.2-CB_MIFRS_DepExp_2012'!O52,+'App.2-CB_MIFRS_DepExp_2012'!O52+((C52*0.5)/D52)) -> 0 | H52: 0 | I52: 0 | K52: =IF(ISERROR(+I52+'App.2-CB_MIFRS_DepExp_2012'!O52-J52), 0, +I52+'App.2-CB_MIFRS_DepExp_2012'!O52-J52) -> 0
E53: 0 | F53: =IF(D53=0,+'App.2-CB_MIFRS_DepExp_2012'!O53,+'App.2-CB_MIFRS_DepExp_2012'!O53+((C53*0.5)/D53)) -> 0 | H53: 0 | I53: 0 | K53: =IF(ISERROR(+I53+'App.2-CB_MIFRS_DepExp_2012'!O53-J53), 0, +I53+'App.2-CB_MIFRS_DepExp_2012'!O53-J53) -> 0
B54: Total | C54: =SUM(C16:C53) -> 0 | F54: =SUM(F16:F53) -> 0 | G54: 0 | H54: 0 | I54: 0 | J54: 0 | K54: 0
A56: Notes:
A57: 1 | B57: Board policy of the "half-year" rule - the applicant must ensure that additions in the year attract a half-year depreciation expense in the first year. Deviations from this standard practice must be supported in the application.
A58: 2 | B58: The applicant must provide an explanation of material variances in evidence
A59: 3 | B59: This column refers to the calculated full year depreciation but excludes the depreciation expense on assets fully depreciated during the year. This column is used for the purpose of calculating depreciation expense in the following year on the next worksheet.
A61: General: | B61: Applicants must provide a breakdown of depreciation and amortization expense in the above format for all relevant accounts. Asset Retirement Obligations (AROs), depreciation and accretion expense should be disclosed separately consistent with the Notes of historical Audited Financial Statements.

Sheet App.2-CD_MIFRS_DepExp_2014 (hidden)
G1: File Number: | H1: ='LDC Info'!$E$18 -> EB-2013-0139
G2: Exhibit:
G3: Tab:
G4: Schedule:
G5: Page:
G7: Date:
A9: Appendix 2-CD
A10: Depreciation and Amortization Expense
A11: Assumes the applicant adopted IFRS for financial reporting purposes January 1, 2012
C12: 2013 | D12: MIFRS
A14: Account | B14: Description | C14: Additions | D14: Years (new additions only) | E14: Depreciation Rate on New Additions | F14: 2013 Depreciation Expense 1 | G14: 2013 Depreciation Expense per Appendix 2-B Fixed Assets, Column K (l) | H14: Variance 2
C15: (d) | D15: (f) | E15: (g) = 1 / (f) | F15: (h)=2012 Full Year Depreciation + ((d)*0.5)/(f) | H15: (m) = (h) - (l)
A16: 1611 | B16: Computer Software (Formally known as Account 1925) | E16: =IF(D16=0,0,1/D16) -> 0 | F16: =IF(D16=0,'App.2-CC_MIFRS_DepExp_2013'!K16,+'App.2-CC_MIFRS_DepExp_2013'!K16+((C16*0.5)/D16)) -> 0 | H16: =IF(ISERROR(+F16-G16), 0, +F16-G16) -> 0
A17: 1612 | B17: Land Rights (Formally known as Account 1906) | E17: 0 | F17: =IF(D17=0,'App.2-CC_MIFRS_DepExp_2013'!K17,+'App.2-CC_MIFRS_DepExp_2013'!K17+((C17*0.5)/D17)) -> 0 | H17: 0
A18: 1805 | B18: Land | E18: 0 | F18: =IF(D18=0,'App.2-CC_MIFRS_DepExp_2013'!K18,+'App.2-CC_MIFRS_DepExp_2013'!K18+((C18*0.5)/D18)) -> 0 | H18: 0
A19: 1808 | B19: Buildings | E19: 0 | F19: =IF(D19=0,'App.2-CC_MIFRS_DepExp_2013'!K19,+'App.2-CC_MIFRS_DepExp_2013'!K19+((C19*0.5)/D19)) -> 0 | H19: 0
A20: 1810 | B20: Leasehold Improvements | E20: 0 | F20: =IF(D20=0,'App.2-CC_MIFRS_DepExp_2013'!K20,+'App.2-CC_MIFRS_DepExp_2013'!K20+((C20*0.5)/D20)) -> 0 | H20: 0
A21: 1815 | B21: Transformer Station Equipment >50 kV | E21: 0 | F21: =IF(D21=0,'App.2-CC_MIFRS_DepExp_2013'!K21,+'App.2-CC_MIFRS_DepExp_2013'!K21+((C21*0.5)/D21)) -> 0 | H21: 0
A22: 1820 | B22: Distribution Station Equipment <50 kV | E22: 0 | F22: =IF(D22=0,'App.2-CC_MIFRS_DepExp_2013'!K22,+'App.2-CC_MIFRS_DepExp_2013'!K22+((C22*0.5)/D22)) -> 0 | H22: 0
A23: 1825 | B23: Storage Battery Equipment | E23: 0 | F23: =IF(D23=0,'App.2-CC_MIFRS_DepExp_2013'!K23,+'App.2-CC_MIFRS_DepExp_2013'!K23+((C23*0.5)/D23)) -> 0 | H23: 0
A24: 1830 | B24: Poles, Towers & Fixtures | E24: 0 | F24: =IF(D24=0,'App.2-CC_MIFRS_DepExp_2013'!K24,+'App.2-CC_MIFRS_DepExp_2013'!K24+((C24*0.5)/D24)) -> 0 | H24: 0
A25: 1835 | B25: Overhead Conductors & Devices | E25: 0 | F25: =IF(D25=0,'App.2-CC_MIFRS_DepExp_2013'!K25,+'App.2-CC_MIFRS_DepExp_2013'!K25+((C25*0.5)/D25)) -> 0 | H25: 0
A26: 1840 | B26: Underground Conduit | E26: 0 | F26: =IF(D26=0,'App.2-CC_MIFRS_DepExp_2013'!K26,+'App.2-CC_MIFRS_DepExp_2013'!K26+((C26*0.5)/D26)) -> 0 | H26: 0
A27: 1845 | B27: Underground Conductors & Devices | E27: 0 | F27: =IF(D27=0,'App.2-CC_MIFRS_DepExp_2013'!K27,+'App.2-CC_MIFRS_DepExp_2013'!K27+((C27*0.5)/D27)) -> 0 | H27: 0
A28: 1850 | B28: Line Transformers | E28: 0 | F28: =IF(D28=0,'App.2-CC_MIFRS_DepExp_2013'!K28,+'App.2-CC_MIFRS_DepExp_2013'!K28+((C28*0.5)/D28)) -> 0 | H28: 0
A29: 1855 | B29: Services (Overhead & Underground) | E29: 0 | F29: =IF(D29=0,'App.2-CC_MIFRS_DepExp_2013'!K29,+'App.2-CC_MIFRS_DepExp_2013'!K29+((C29*0.5)/D29)) -> 0 | H29: 0
A30: 1860 | B30: Meters | E30: 0 | F30: =IF(D30=0,'App.2-CC_MIFRS_DepExp_2013'!K30,+'App.2-CC_MIFRS_DepExp_2013'!K30+((C30*0.5)/D30)) -> 0 | H30: 0
A31: 1860 | B31: Meters (Smart Meters) | E31: 0 | F31: =IF(D31=0,'App.2-CC_MIFRS_DepExp_2013'!K31,+'App.2-CC_MIFRS_DepExp_2013'!K31+((C31*0.5)/D31)) -> 0 | H31: 0
A32: 1905 | B32: Land | E32: 0 | F32: =IF(D32=0,'App.2-CC_MIFRS_DepExp_2013'!K32,+'App.2-CC_MIFRS_DepExp_2013'!K32+((C32*0.5)/D32)) -> 0 | H32: 0
A33: 1908 | B33: Buildings & Fixtures | E33: 0 | F33: =IF(D33=0,'App.2-CC_MIFRS_DepExp_2013'!K33,+'App.2-CC_MIFRS_DepExp_2013'!K33+((C33*0.5)/D33)) -> 0 | H33: 0
A34: 1910 | B34: Leasehold Improvements | E34: 0 | F34: =IF(D34=0,'App.2-CC_MIFRS_DepExp_2013'!K34,+'App.2-CC_MIFRS_DepExp_2013'!K34+((C34*0.5)/D34)) -> 0 | H34: 0
A35: 1915 | B35: Office Furniture & Equipment (10 years) | E35: 0 | F35: =IF(D35=0,'App.2-CC_MIFRS_DepExp_2013'!K35,+'App.2-CC_MIFRS_DepExp_2013'!K35+((C35*0.5)/D35)) -> 0 | H35: 0
A36: 1915 | B36: Office Furniture & Equipment (5 years) | E36: 0 | F36: =IF(D36=0,'App.2-CC_MIFRS_DepExp_2013'!K36,+'App.2-CC_MIFRS_DepExp_2013'!K36+((C36*0.5)/D36)) -> 0 | H36: 0
A37: 1920 | B37: Computer Equipment - Hardware | E37: 0 | F37: =IF(D37=0,'App.2-CC_MIFRS_DepExp_2013'!K37,+'App.2-CC_MIFRS_DepExp_2013'!K37+((C37*0.5)/D37)) -> 0 | H37: 0
A38: 1920 | B38: Computer Equip.-Hardware(Post Mar. 22/04) | E38: 0 | F38: =IF(D38=0,'App.2-CC_MIFRS_DepExp_2013'!K38,+'App.2-CC_MIFRS_DepExp_2013'!K38+((C38*0.5)/D38)) -> 0 | H38: 0
A39: 1920 | B39: Computer Equip.-Hardware(Post Mar. 19/07) | E39: 0 | F39: =IF(D39=0,'App.2-CC_MIFRS_DepExp_2013'!K39,+'App.2-CC_MIFRS_DepExp_2013'!K39+((C39*0.5)/D39)) -> 0 | H39: 0
A40: 1930 | B40: Transportation Equipment | E40: 0 | F40: =IF(D40=0,'App.2-CC_MIFRS_DepExp_2013'!K40,+'App.2-CC_MIFRS_DepExp_2013'!K40+((C40*0.5)/D40)) -> 0 | H40: 0
A41: 1935 | B41: Stores Equipment | E41: 0 | F41: =IF(D41=0,'App.2-CC_MIFRS_DepExp_2013'!K41,+'App.2-CC_MIFRS_DepExp_2013'!K41+((C41*0.5)/D41)) -> 0 | H41: 0
A42: 1940 | B42: Tools, Shop & Garage Equipment | E42: 0 | F42: =IF(D42=0,'App.2-CC_MIFRS_DepExp_2013'!K42,+'App.2-CC_MIFRS_DepExp_2013'!K42+((C42*0.5)/D42)) -> 0 | H42: 0
A43: 1945 | B43: Measurement & Testing Equipment | E43: 0 | F43: =IF(D43=0,'App.2-CC_MIFRS_DepExp_2013'!K43,+'App.2-CC_MIFRS_DepExp_2013'!K43+((C43*0.5)/D43)) -> 0 | H43: 0
A44: 1950 | B44: Power Operated Equipment | E44: 0 | F44: =IF(D44=0,'App.2-CC_MIFRS_DepExp_2013'!K44,+'App.2-CC_MIFRS_DepExp_2013'!K44+((C44*0.5)/D44)) -> 0 | H44: 0
A45: 1955 | B45: Communications Equipment | E45: 0 | F45: =IF(D45=0,'App.2-CC_MIFRS_DepExp_2013'!K45,+'App.2-CC_MIFRS_DepExp_2013'!K45+((C45*0.5)/D45)) -> 0 | H45: 0
A46: 1955 | B46: Communication Equipment (Smart Meters) | E46: 0 | F46: =IF(D46=0,'App.2-CC_MIFRS_DepExp_2013'!K46,+'App.2-CC_MIFRS_DepExp_2013'!K46+((C46*0.5)/D46)) -> 0 | H46: 0
A47: 1960 | B47: Miscellaneous Equipment | E47: 0 | F47: =IF(D47=0,'App.2-CC_MIFRS_DepExp_2013'!K47,+'App.2-CC_MIFRS_DepExp_2013'!K47+((C47*0.5)/D47)) -> 0 | H47: 0
A48: 1975 | B48: Load Management Controls Utility Premises | E48: 0 | F48: =IF(D48=0,'App.2-CC_MIFRS_DepExp_2013'!K48,+'App.2-CC_MIFRS_DepExp_2013'!K48+((C48*0.5)/D48)) -> 0 | H48: 0
A49: 1980 | B49: System Supervisor Equipment | E49: 0 | F49: =IF(D49=0,'App.2-CC_MIFRS_DepExp_2013'!K49,+'App.2-CC_MIFRS_DepExp_2013'!K49+((C49*0.5)/D49)) -> 0 | H49: 0
A50: 1985 | B50: Miscellaneous Fixed Assets | E50: 0 | F50: =IF(D50=0,'App.2-CC_MIFRS_DepExp_2013'!K50,+'App.2-CC_MIFRS_DepExp_2013'!K50+((C50*0.5)/D50)) -> 0 | H50: 0
A51: 1995 | B51: Contributions & Grants | E51: 0 | F51: =IF(D51=0,'App.2-CC_MIFRS_DepExp_2013'!K51,+'App.2-CC_MIFRS_DepExp_2013'!K51+((C51*0.5)/D51)) -> 0 | H51: 0
A52: etc. | E52: 0 | F52: =IF(D52=0,'App.2-CC_MIFRS_DepExp_2013'!K52,+'App.2-CC_MIFRS_DepExp_2013'!K52+((C52*0.5)/D52)) -> 0 | H52: 0
E53: 0 | F53: =IF(D53=0,'App.2-CC_MIFRS_DepExp_2013'!K53,+'App.2-CC_MIFRS_DepExp_2013'!K53+((C53*0.5)/D53)) -> 0 | H53: 0
B54: Total | C54: =SUM(C16:C53) -> 0 | F54: =SUM(F16:F53) -> 0 | G54: =SUM(G16:G53) -> 0 | H54: =SUM(H16:H53) -> 0
B55: Depreciation expense adjustment resulting from amortization of Account 1575 | F55: 0
B56: Total Depreciation expense to be included in the test year revenue requirement | F56: =+F54+F55 -> 0
A57: Notes:
A58: 1 | B58: Board policy of the "half-year" rule - the applicant must ensure that additions in the year attract a half-year depreciation expense in the first year. Deviations from this standard practice must be supported in the application.
A59: 2 | B59: The applicant must provide an explanation of material variances in evidence
A61: General: | B61: Applicants must provide a breakdown of depreciation and amortization expense in the above format for all relevant accounts. Asset Retirement Obligations (AROs), depreciation and accretion expense should be disclosed separately consistent with the Notes of historical Audited Financial Statements.

Sheet App.2-CG_MIFRS_DepExp_2013 (hidden)
N1: File Number: | O1: ='LDC Info'!$E$18 -> EB-2013-0139
N2: Exhibit:
N3: Tab:
N4: Schedule:
N5: Page:
N7: Date:
A9: Appendix 2-CG
A10: Depreciation and Amortization Expense
A11: Assumes the applicant adopted IFRS for financial reporting purposes January 1, 2013
C12: Year | D12: 2012 | E12: MIFRS
A14: Account | B14: Description | C14: Opening NBV as at Jan 1, 2012 5 | D14: Additions | E14: Average Remaining Life of Opening NBV 4 | F14: Years (new additions only) 3 | G14: Depreciation Rate on New Additions | H14: Depreciation Expense on Opening NBV | I14: Depreciation Expense on Additions 1 | J14: 2012 Depreciation Expense | K14: 2012 Depreciation Expense per Appendix 2-B Fixed Assets, Column K (l) | L14: Variance 2 | M14: Depreciation Expense on 2012 Full Year Additions | N14: Less Depreciation Expense on Assets Fully Depreciated during the year (o) | O14: 2012 Full Year Depreciation 6
C15: (a) | D15: (d) | E15: (i) | F15: (f) | G15: (g) = 1 / (f) | H15: (j) = (a) / (i) | I15: (h)=((d)*0.5)/(f) | J15: (k) = (j) + (h) | L15: (m) = (k) - (l) | M15: (n)=((d))/(f) | O15: (p) = (j) + (n) - (o)
A16: 1611 | B16: Computer Software (Formally known as Account 1925) | G16: =IF(F16=0,0,1/F16) -> 0 | H16: =IF(E16=0,0,+C16/E16) -> 0 | I16: =IF(F16=0,0,+(D16*0.5)/F16) -> 0 | J16: =IF(ISERROR(+H16+I16), 0, +H16+I16) -> 0 | L16: =IF(ISERROR(+J16-K16), 0, +J16-K16) -> 0 | M16: =IF(F16=0,0,+(D16)/F16) -> 0 | O16: =IF(ISERROR(+M16+H16-N16), 0, +M16+H16-N16) -> 0
A17: 1612 | B17: Land Rights (Formally known as Account 1906) | G17: 0 | H17: 0 | I17: 0 | J17: 0 | L17: 0 | M17: 0 | O17: =IF(ISERROR(+M17+H17-N17), 0, +M17+H17-N17) -> 0
A18: 1805 | B18: Land | G18: 0 | H18: 0 | I18: 0 | J18: 0 | L18: 0 | M18: 0 | O18: 0
A19: 1808 | B19: Buildings | G19: 0 | H19: 0 | I19: 0 | J19: 0 | L19: 0 | M19: 0 | O19: 0
A20: 1810 | B20: Leasehold Improvements | G20: 0 | H20: 0 | I20: 0 | J20: 0 | L20: 0 | M20: 0 | O20: 0
A21: 1815 | B21: Transformer Station Equipment >50 kV | G21: 0 | H21: 0 | I21: 0 | J21: 0 | L21: 0 | M21: 0 | O21: 0
A22: 1820 | B22: Distribution Station Equipment <50 kV | G22: 0 | H22: 0 | I22: 0 | J22: 0 | L22: 0 | M22: 0 | O22: 0
A23: 1825 | B23: Storage Battery Equipment | G23: 0 | H23: 0 | I23: 0 | J23: 0 | L23: 0 | M23: 0 | O23: 0
A24: 1830 | B24: Poles, Towers & Fixtures | G24: 0 | H24: 0 | I24: 0 | J24: 0 | L24: 0 | M24: 0 | O24: 0
A25: 1835 | B25: Overhead Conductors & Devices | G25: 0 | H25: 0 | I25: 0 | J25: 0 | L25: 0 | M25: 0 | O25: 0
A26: 1840 | B26: Underground Conduit | G26: 0 | H26: 0 | I26: 0 | J26: 0 | L26: 0 | M26: 0 | O26: 0
A27: 1845 | B27: Underground Conductors & Devices | G27: 0 | H27: 0 | I27: 0 | J27: 0 | L27: 0 | M27: 0 | O27: 0
A28: 1850 | B28: Line Transformers | G28: 0 | H28: 0 | I28: 0 | J28: 0 | L28: 0 | M28: 0 | O28: 0
A29: 1855 | B29: Services (Overhead & Underground) | G29: 0 | H29: 0 | I29: 0 | J29: 0 | L29: 0 | M29: 0 | O29: 0
A30: 1860 | B30: Meters | G30: 0 | H30: 0 | I30: 0 | J30: 0 | L30: 0 | M30: 0 | O30: 0
A31: 1860 | B31: Meters (Smart Meters) | G31: 0 | H31: 0 | I31: 0 | J31: 0 | L31: 0 | M31: 0 | O31: 0
A32: 1905 | B32: Land | G32: 0 | H32: 0 | I32: 0 | J32: 0 | L32: 0 | M32: 0 | O32: 0
A33: 1908 | B33: Buildings & Fixtures | G33: 0 | H33: 0 | I33: 0 | J33: 0 | L33: 0 | M33: 0 | O33: 0
A34: 1910 | B34: Leasehold Improvements | G34: 0 | H34: 0 | I34: 0 | J34: 0 | L34: 0 | M34: 0 | O34: 0
A35: 1915 | B35: Office Furniture & Equipment (10 years) | G35: 0 | H35: 0 | I35: 0 | J35: 0 | L35: 0 | M35: 0 | O35: 0
A36: 1915 | B36: Office Furniture & Equipment (5 years) | G36: 0 | H36: 0 | I36: 0 | J36: 0 | L36: 0 | M36: 0 | O36: 0
A37: 1920 | B37: Computer Equipment - Hardware | G37: 0 | H37: 0 | I37: 0 | J37: 0 | L37: 0 | M37: 0 | O37: 0
A38: 1920 | B38: Computer Equip.-Hardware(Post Mar. 22/04) | G38: 0 | H38: 0 | I38: 0 | J38: 0 | L38: 0 | M38: 0 | O38: 0
A39: 1920 | B39: Computer Equip.-Hardware(Post Mar. 19/07) | G39: 0 | H39: 0 | I39: 0 | J39: 0 | L39: 0 | M39: 0 | O39: 0
A40: 1930 | B40: Transportation Equipment | G40: 0 | H40: 0 | I40: 0 | J40: 0 | L40: 0 | M40: 0 | O40: 0
A41: 1935 | B41: Stores Equipment | G41: 0 | H41: 0 | I41: 0 | J41: 0 | L41: 0 | M41: 0 | O41: 0
A42: 1940 | B42: Tools, Shop & Garage Equipment | G42: 0 | H42: 0 | I42: 0 | J42: 0 | L42: 0 | M42: 0 | O42: 0
A43: 1945 | B43: Measurement & Testing Equipment | G43: 0 | H43: 0 | I43: 0 | J43: 0 | L43: 0 | M43: 0 | O43: 0
A44: 1950 | B44: Power Operated Equipment | G44: 0 | H44: 0 | I44: 0 | J44: 0 | L44: 0 | M44: 0 | O44: 0
A45: 1955 | B45: Communications Equipment | G45: 0 | H45: 0 | I45: 0 | J45: 0 | L45: 0 | M45: 0 | O45: 0
A46: 1955 | B46: Communication Equipment (Smart Meters) | G46: 0 | H46: 0 | I46: 0 | J46: 0 | L46: 0 | M46: 0 | O46: 0
A47: 1960 | B47: Miscellaneous Equipment | G47: 0 | H47: 0 | I47: 0 | J47: 0 | L47: 0 | M47: 0 | O47: 0
A48: 1975 | B48: Load Management Controls Utility Premises | G48: 0 | H48: 0 | I48: 0 | J48: 0 | L48: 0 | M48: 0 | O48: 0
A49: 1980 | B49: System Supervisor Equipment | G49: 0 | H49: 0 | I49: 0 | J49: 0 | L49: 0 | M49: 0 | O49: 0
A50: 1985 | B50: Miscellaneous Fixed Assets | G50: 0 | H50: 0 | I50: 0 | J50: 0 | L50: 0 | M50: 0 | O50: 0
A51: 1995 | B51: Contributions & Grants | G51: 0 | H51: 0 | I51: 0 | J51: 0 | L51: 0 | M51: 0 | O51: 0
A52: etc. | G52: 0 | H52: 0 | I52: 0 | J52: 0 | L52: 0 | M52: 0 | O52: 0
G53: 0 | H53: 0 | I53: 0 | J53: 0 | L53: 0 | M53: 0 | O53: 0
B54: Total | C54: =SUM(C16:C53) -> 0 | D54: =SUM(D16:D53) -> 0 | H54: =SUM(H16:H53) -> 0 | I54: 0 | J54: 0 | K54: 0 | L54: 0 | M54: 0 | N54: =SUM(N16:N53) -> 0 | O54: 0
A56: Notes:
A58: 1 | B58: Board policy of the "half-year" rule - the applicant must ensure that additions in the year attract a half-year depreciation expense in the first year. Deviations from this standard practice must be supported in the application.
A59: 2 | B59: The applicant must provide an explanation of material variances in evidence
A60: 3 | B60: The applicant should ensure that the years for new additions of assets are the asset useful lives determined by management in accordance with IFRS.
A61: 4 | B61: A recalculation should be performed to determine the average remaining life of opening balance of assets (i.e. excluding 2012 additions) under IFRS. For example, Asset A had a useful life of 20 years under CGAAP. On January 1, 2012, the date of transition, Asset A was 3 years depreciated. As a result, Asset A would have a remaining service life of 17 years (20 years less 3 years) under CGAAP as of January 1, 2012. Due to the transition to IFRS, management re-assessed the asset useful lives under IFRS principles and concluded that the revised useful life of Asset A is now 30 years. Therefore, the average remaining useful life of opening balance of Asset A is determined to be 27 years (30 years less 3 years) under IFRS as of January 1, 2012.
A62: 5 | B62: NBV must exclude assets still on the books but which have been fully amortized or depreciated.
A63: 6 | B63: This column refers to the calculated full year depreciation but excludes the depreciation expense on assets fully depreciated during the year. This column is used for the purpose of calculating depreciation expense in the following year on the next worksheet.
A65: General: | B65: Applicants must provide a breakdown of depreciation and amortization expense in the above format for all relevant accounts. Asset Retirement Obligations (AROs), depreciation and accretion expense should be disclosed separately consistent with the Notes of historical Audited Financial Statements.

Sheet App.2-CH_MIFRS_DepExp_2014 (hidden)
I1: File Number: | J1: ='LDC Info'!$E$18 -> EB-2013-0139
I2: Exhibit:
I3: Tab:
I4: Schedule:
I5: Page:
I7: Date:
A9: Appendix 2-CH
A10: Depreciation and Amortization Expense
A11: Assumes the applicant adopted IFRS for financial reporting purposes January 1, 2013
C12: Year | D12: 2013 | E12: MIFRS
A14: Account | B14: Description | C14: Additions | D14: Years (new additions only) | E14: Depreciation Rate on New Additions | F14: 2013 Depreciation Expense 1 | G14: 2013 Depreciation Expense per Appendix 2-B Fixed Assets, Column K (l) | H14: Variance 2
C15: (d) | D15: (f) | E15: (g) = 1 / (f) | F15: (h)=2012 Full Year Depreciation + ((d)*0.5)/(f) | H15: (m) = (h) - (l)
A16: 1611 | B16: Computer Software (Formally known as Account 1925) | E16: =IF(D16=0,0,1/D16) -> 0 | F16: =IF(D16=0,'App.2-CG_MIFRS_DepExp_2013'!O16,+'App.2-CG_MIFRS_DepExp_2013'!O16+((C16*0.5)/D16)) -> 0 | H16: =IF(ISERROR(+F16-G16), 0, +F16-G16) -> 0
A17: 1612 | B17: Land Rights (Formally known as Account 1906) | E17: 0 | F17: =IF(D17=0,'App.2-CG_MIFRS_DepExp_2013'!O17,+'App.2-CG_MIFRS_DepExp_2013'!O17+((C17*0.5)/D17)) -> 0 | H17: 0
A18: 1805 | B18: Land | E18: 0 | F18: =IF(D18=0,'App.2-CG_MIFRS_DepExp_2013'!O18,+'App.2-CG_MIFRS_DepExp_2013'!O18+((C18*0.5)/D18)) -> 0 | H18: 0
A19: 1808 | B19: Buildings | E19: 0 | F19: =IF(D19=0,'App.2-CG_MIFRS_DepExp_2013'!O19,+'App.2-CG_MIFRS_DepExp_2013'!O19+((C19*0.5)/D19)) -> 0 | H19: 0
A20: 1810 | B20: Leasehold Improvements | E20: 0 | F20: =IF(D20=0,'App.2-CG_MIFRS_DepExp_2013'!O20,+'App.2-CG_MIFRS_DepExp_2013'!O20+((C20*0.5)/D20)) -> 0 | H20: 0
A21: 1815 | B21: Transformer Station Equipment >50 kV | E21: 0 | F21: =IF(D21=0,'App.2-CG_MIFRS_DepExp_2013'!O21,+'App.2-CG_MIFRS_DepExp_2013'!O21+((C21*0.5)/D21)) -> 0 | H21: 0
A22: 1820 | B22: Distribution Station Equipment <50 kV | E22: 0 | F22: =IF(D22=0,'App.2-CG_MIFRS_DepExp_2013'!O22,+'App.2-CG_MIFRS_DepExp_2013'!O22+((C22*0.5)/D22)) -> 0 | H22: 0
A23: 1825 | B23: Storage Battery Equipment | E23: 0 | F23: =IF(D23=0,'App.2-CG_MIFRS_DepExp_2013'!O23,+'App.2-CG_MIFRS_DepExp_2013'!O23+((C23*0.5)/D23)) -> 0 | H23: 0
A24: 1830 | B24: Poles, Towers & Fixtures | E24: 0 | F24: =IF(D24=0,'App.2-CG_MIFRS_DepExp_2013'!O24,+'App.2-CG_MIFRS_DepExp_2013'!O24+((C24*0.5)/D24)) -> 0 | H24: 0
A25: 1835 | B25: Overhead Conductors & Devices | E25: 0 | F25: =IF(D25=0,'App.2-CG_MIFRS_DepExp_2013'!O25,+'App.2-CG_MIFRS_DepExp_2013'!O25+((C25*0.5)/D25)) -> 0 | H25: 0
A26: 1840 | B26: Underground Conduit | E26: 0 | F26: =IF(D26=0,'App.2-CG_MIFRS_DepExp_2013'!O26,+'App.2-CG_MIFRS_DepExp_2013'!O26+((C26*0.5)/D26)) -> 0 | H26: 0
A27: 1845 | B27: Underground Conductors & Devices | E27: 0 | F27: =IF(D27=0,'App.2-CG_MIFRS_DepExp_2013'!O27,+'App.2-CG_MIFRS_DepExp_2013'!O27+((C27*0.5)/D27)) -> 0 | H27: 0
A28: 1850 | B28: Line Transformers | E28: 0 | F28: =IF(D28=0,'App.2-CG_MIFRS_DepExp_2013'!O28,+'App.2-CG_MIFRS_DepExp_2013'!O28+((C28*0.5)/D28)) -> 0 | H28: 0
A29: 1855 | B29: Services (Overhead & Underground) | E29: 0 | F29: =IF(D29=0,'App.2-CG_MIFRS_DepExp_2013'!O29,+'App.2-CG_MIFRS_DepExp_2013'!O29+((C29*0.5)/D29)) -> 0 | H29: 0
A30: 1860 | B30: Meters | E30: 0 | F30: =IF(D30=0,'App.2-CG_MIFRS_DepExp_2013'!O30,+'App.2-CG_MIFRS_DepExp_2013'!O30+((C30*0.5)/D30)) -> 0 | H30: 0
A31: 1860 | B31: Meters (Smart Meters) | E31: 0 | F31: =IF(D31=0,'App.2-CG_MIFRS_DepExp_2013'!O31,+'App.2-CG_MIFRS_DepExp_2013'!O31+((C31*0.5)/D31)) -> 0 | H31: 0
A32: 1905 | B32: Land | E32: 0 | F32: =IF(D32=0,'App.2-CG_MIFRS_DepExp_2013'!O32,+'App.2-CG_MIFRS_DepExp_2013'!O32+((C32*0.5)/D32)) -> 0 | H32: 0
A33: 1908 | B33: Buildings & Fixtures | E33: 0 | F33: =IF(D33=0,'App.2-CG_MIFRS_DepExp_2013'!O33,+'App.2-CG_MIFRS_DepExp_2013'!O33+((C33*0.5)/D33)) -> 0 | H33: 0
A34: 1910 | B34: Leasehold Improvements | E34: 0 | F34: =IF(D34=0,'App.2-CG_MIFRS_DepExp_2013'!O34,+'App.2-CG_MIFRS_DepExp_2013'!O34+((C34*0.5)/D34)) -> 0 | H34: 0
A35: 1915 | B35: Office Furniture & Equipment (10 years) | E35: 0 | F35: =IF(D35=0,'App.2-CG_MIFRS_DepExp_2013'!O35,+'App.2-CG_MIFRS_DepExp_2013'!O35+((C35*0.5)/D35)) -> 0 | H35: 0
A36: 1915 | B36: Office Furniture & Equipment (5 years) | E36: 0 | F36: =IF(D36=0,'App.2-CG_MIFRS_DepExp_2013'!O36,+'App.2-CG_MIFRS_DepExp_2013'!O36+((C36*0.5)/D36)) -> 0 | H36: 0
A37: 1920 | B37: Computer Equipment - Hardware | E37: 0 | F37: =IF(D37=0,'App.2-CG_MIFRS_DepExp_2013'!O37,+'App.2-CG_MIFRS_DepExp_2013'!O37+((C37*0.5)/D37)) -> 0 | H37: 0
A38: 1920 | B38: Computer Equip.-Hardware(Post Mar. 22/04) | E38: 0 | F38: =IF(D38=0,'App.2-CG_MIFRS_DepExp_2013'!O38,+'App.2-CG_MIFRS_DepExp_2013'!O38+((C38*0.5)/D38)) -> 0 | H38: 0
A39: 1920 | B39: Computer Equip.-Hardware(Post Mar. 19/07) | E39: 0 | F39: =IF(D39=0,'App.2-CG_MIFRS_DepExp_2013'!O39,+'App.2-CG_MIFRS_DepExp_2013'!O39+((C39*0.5)/D39)) -> 0 | H39: 0
A40: 1930 | B40: Transportation Equipment | E40: 0 | F40: =IF(D40=0,'App.2-CG_MIFRS_DepExp_2013'!O40,+'App.2-CG_MIFRS_DepExp_2013'!O40+((C40*0.5)/D40)) -> 0 | H40: 0
A41: 1935 | B41: Stores Equipment | E41: 0 | F41: =IF(D41=0,'App.2-CG_MIFRS_DepExp_2013'!O41,+'App.2-CG_MIFRS_DepExp_2013'!O41+((C41*0.5)/D41)) -> 0 | H41: 0
A42: 1940 | B42: Tools, Shop & Garage Equipment | E42: 0 | F42: =IF(D42=0,'App.2-CG_MIFRS_DepExp_2013'!O42,+'App.2-CG_MIFRS_DepExp_2013'!O42+((C42*0.5)/D42)) -> 0 | H42: 0
A43: 1945 | B43: Measurement & Testing Equipment | E43: 0 | F43: =IF(D43=0,'App.2-CG_MIFRS_DepExp_2013'!O43,+'App.2-CG_MIFRS_DepExp_2013'!O43+((C43*0.5)/D43)) -> 0 | H43: 0
A44: 1950 | B44: Power Operated Equipment | E44: 0 | F44: =IF(D44=0,'App.2-CG_MIFRS_DepExp_2013'!O44,+'App.2-CG_MIFRS_DepExp_2013'!O44+((C44*0.5)/D44)) -> 0 | H44: 0
A45: 1955 | B45: Communications Equipment | E45: 0 | F45: =IF(D45=0,'App.2-CG_MIFRS_DepExp_2013'!O45,+'App.2-CG_MIFRS_DepExp_2013'!O45+((C45*0.5)/D45)) -> 0 | H45: 0
A46: 1955 | B46: Communication Equipment (Smart Meters) | E46: 0 | F46: =IF(D46=0,'App.2-CG_MIFRS_DepExp_2013'!O46,+'App.2-CG_MIFRS_DepExp_2013'!O46+((C46*0.5)/D46)) -> 0 | H46: 0
A47: 1960 | B47: Miscellaneous Equipment | E47: 0 | F47: =IF(D47=0,'App.2-CG_MIFRS_DepExp_2013'!O47,+'App.2-CG_MIFRS_DepExp_2013'!O47+((C47*0.5)/D47)) -> 0 | H47: 0
A48: 1975 | B48: Load Management Controls Utility Premises | E48: 0 | F48: =IF(D48=0,'App.2-CG_MIFRS_DepExp_2013'!O48,+'App.2-CG_MIFRS_DepExp_2013'!O48+((C48*0.5)/D48)) -> 0 | H48: 0
A49: 1980 | B49: System Supervisor Equipment | E49: 0 | F49: =IF(D49=0,'App.2-CG_MIFRS_DepExp_2013'!O49,+'App.2-CG_MIFRS_DepExp_2013'!O49+((C49*0.5)/D49)) -> 0 | H49: 0
A50: 1985 | B50: Miscellaneous Fixed Assets | E50: 0 | F50: =IF(D50=0,'App.2-CG_MIFRS_DepExp_2013'!O50,+'App.2-CG_MIFRS_DepExp_2013'!O50+((C50*0.5)/D50)) -> 0 | H50: 0
A51: 1995 | B51: Contributions & Grants | E51: 0 | F51: =IF(D51=0,'App.2-CG_MIFRS_DepExp_2013'!O51,+'App.2-CG_MIFRS_DepExp_2013'!O51+((C51*0.5)/D51)) -> 0 | H51: 0
A52: etc. | E52: 0 | F52: =IF(D52=0,'App.2-CG_MIFRS_DepExp_2013'!O52,+'App.2-CG_MIFRS_DepExp_2013'!O52+((C52*0.5)/D52)) -> 0 | H52: 0
E53: 0 | F53: =IF(D53=0,'App.2-CG_MIFRS_DepExp_2013'!O53,+'App.2-CG_MIFRS_DepExp_2013'!O53+((C53*0.5)/D53)) -> 0 | H53: 0
B54: Total | C54: =SUM(C16:C53) -> 0 | F54: =SUM(F16:F53) -> 0 | G54: =SUM(G16:G53) -> 0 | H54: =SUM(H16:H53) -> 0
B55: Depreciation expense adjustment resulting from amortization of Account 1575 | F55: 0
B56: Total Depreciation expense to be included in the test year revenue requirement | F56: =+F55+F54 -> 0
A58: Notes:
A59: 1 | B59: Board policy of the "half-year" rule - the applicant must ensure that additions in the year attract a half-year depreciation expense in the first year. Deviations from this standard practice must be supported in the application.
A60: 2 | B60: The applicant must provide an explanation of material variances in evidence
A63: General: | B63: Applicants must provide a breakdown of depreciation and amortization expense in the above format for all relevant accounts. Asset Retirement Obligations (AROs), depreciation and accretion expense should be disclosed separately consistent with the Notes of historical Audited Financial Statements.

Sheet App.2-CI_AltAccStd_DepExp (hidden)
K1: File Number: | L1: ='LDC Info'!$E$18 -> EB-2013-0139
K2: Exhibit:
K3: Tab:
K4: Schedule:
K5: Page:
K7: Date:
A9: Appendix 2-CI
A10: Depreciation and Amortization Expense
A11: Assumes the applicant adopted an alternate accounting standard other than IFRS for financial reporting purposes. For applicants adopting an Alternate Accounting Standard for financial reporting purposes January 1, 2012, applicants must complete 4 versions of the table below (2011 CGAAP, 2011 Alternate Accounting Standard, 2012 Alternate Accounting Standard and 2013 Alternate Accounting Standard). For applicants adopting an Alternate Accounting Standard for financial reporting purposes January 1, 2013, applicants must complete 4 versions of the table below (2011 CGAAP, 2012 CGAAP, 2012 Alternate Accounting Standard and 2013 Alternate Accounting Standard).
B12: Year | E12: Accounting Standard
A14: Account | B14: Description | C14: Opening Regulatory Gross PP&E | D14: Less Fully Depreciated | E14: Net for Depreciation | F14: Additions | G14: Total for Depreciation | H14: Years | I14: Depreciation Rate | J14: Depreciation Expense | K14: Depreciation Expense per Appendix 2-B Fixed Assets, Column K (l) | L14: Variance 2
C15: (a) | D15: (b) | E15: (c) | F15: (d) | G15: (e) = (c) + ½ x (d) 1 | H15: (f) | I15: (g) = 1 / (f) | J15: (h) = (e) / (f) | L15: (m) = (h) - (l)
A16: 1611 | B16: Computer Software (Formally known as Account 1925) | E16: =C16-D16 -> 0 | G16: =E16+0.5*F16 -> 0 | I16: =IF(H16=0,0,1/H16) -> 0 | J16: =IF(H16=0,0,G16/H16) -> 0 | L16: =IF(ISERROR(+J16-K16), 0, +J16-K16) -> 0
A17: 1612 | B17: Land Rights (Formally known as Account 1906) | E17: =C17-D17 -> 0 | G17: =E17+0.5*F17 -> 0 | I17: 0 | J17: 0 | L17: 0
A18: 1805 | B18: Land | E18: 0 | G18: 0 | I18: 0 | J18: 0 | L18: 0
A19: 1808 | B19: Buildings | E19: 0 | G19: 0 | I19: 0 | J19: 0 | L19: 0
A20: 1810 | B20: Leasehold Improvements | E20: 0 | G20: 0 | I20: 0 | J20: 0 | L20: 0
A21: 1815 | B21: Transformer Station Equipment >50 kV | E21: 0 | G21: 0 | I21: 0 | J21: 0 | L21: 0
A22: 1820 | B22: Distribution Station Equipment <50 kV | E22: 0 | G22: 0 | I22: 0 | J22: 0 | L22: 0
A23: 1825 | B23: Storage Battery Equipment | E23: 0 | G23: 0 | I23: 0 | J23: 0 | L23: 0
A24: 1830 | B24: Poles, Towers & Fixtures | E24: 0 | G24: 0 | I24: 0 | J24: 0 | L24: 0
A25: 1835 | B25: Overhead Conductors & Devices | E25: 0 | G25: 0 | I25: 0 | J25: 0 | L25: 0
A26: 1840 | B26: Underground Conduit | E26: 0 | G26: 0 | I26: 0 | J26: 0 | L26: 0
A27: 1845 | B27: Underground Conductors & Devices | E27: 0 | G27: 0 | I27: 0 | J27: 0 | L27: 0
A28: 1850 | B28: Line Transformers | E28: 0 | G28: 0 | I28: 0 | J28: 0 | L28: 0
A29: 1855 | B29: Services (Overhead & Underground) | E29: 0 | G29: 0 | I29: 0 | J29: 0 | L29: 0
A30: 1860 | B30: Meters | E30: 0 | G30: 0 | I30: 0 | J30: 0 | L30: 0
A31: 1860 | B31: Meters (Smart Meters) | E31: 0 | G31: 0 | I31: 0 | J31: 0 | L31: 0
A32: 1905 | B32: Land | E32: 0 | G32: 0 | I32: 0 | J32: 0 | L32: 0
A33: 1908 | B33: Buildings & Fixtures | E33: 0 | G33: 0 | I33: 0 | J33: 0 | L33: 0
A34: 1910 | B34: Leasehold Improvements | E34: 0 | G34: 0 | I34: 0 | J34: 0 | L34: 0
A35: 1915 | B35: Office Furniture & Equipment (10 years) | E35: 0 | G35: 0 | I35: 0 | J35: 0 | L35: 0
A36: 1915 | B36: Office Furniture & Equipment (5 years) | E36: 0 | G36: 0 | I36: 0 | J36: 0 | L36: 0
A37: 1920 | B37: Computer Equipment - Hardware | E37: 0 | G37: 0 | I37: 0 | J37: 0 | L37: 0
A38: 1920 | B38: Computer Equip.-Hardware(Post Mar. 22/04) | E38: 0 | G38: 0 | I38: 0 | J38: 0 | L38: 0
A39: 1920 | B39: Computer Equip.-Hardware(Post Mar. 19/07) | E39: 0 | G39: 0 | I39: 0 | J39: 0 | L39: 0
A40: 1930 | B40: Transportation Equipment | E40: 0 | G40: 0 | I40: 0 | J40: 0 | L40: 0
A41: 1935 | B41: Stores Equipment | E41: 0 | G41: 0 | I41: 0 | J41: 0 | L41: 0
A42: 1940 | B42: Tools, Shop & Garage Equipment | E42: 0 | G42: 0 | I42: 0 | J42: 0 | L42: 0
A43: 1945 | B43: Measurement & Testing Equipment | E43: 0 | G43: 0 | I43: 0 | J43: 0 | L43: 0
A44: 1950 | B44: Power Operated Equipment | E44: 0 | G44: 0 | I44: 0 | J44: 0 | L44: 0
A45: 1955 | B45: Communications Equipment | E45: 0 | G45: 0 | I45: 0 | J45: 0 | L45: 0
A46: 1955 | B46: Communication Equipment (Smart Meters) | E46: 0 | G46: 0 | I46: 0 | J46: 0 | L46: 0
A47: 1960 | B47: Miscellaneous Equipment | E47: 0 | G47: 0 | I47: 0 | J47: 0 | L47: 0
A48: 1975 | B48: Load Management Controls Utility Premises | E48: 0 | G48: 0 | I48: 0 | J48: 0 | L48: 0
A49: 1980 | B49: System Supervisor Equipment | E49: 0 | G49: 0 | I49: 0 | J49: 0 | L49: 0
A50: 1985 | B50: Miscellaneous Fixed Assets | E50: 0 | G50: 0 | I50: 0 | J50: 0 | L50: 0
A51: 1995 | B51: Contributions & Grants | E51: 0 | G51: 0 | I51: 0 | J51: 0 | L51: 0
A52: etc. | E52: 0 | G52: 0 | I52: 0 | J52: 0 | L52: 0
E53: 0 | G53: 0 | I53: 0 | J53: 0 | L53: 0
B54: Total | C54: =SUM(C16:C53) -> 0 | D54: =SUM(D16:D53) -> 0 | E54: =SUM(E16:E53) -> 0 | F54: =SUM(F16:F53) -> 0 | G54: =SUM(G16:G53) -> 0 | J54: =SUM(J16:J53) -> 0 | K54: =SUM(K16:K53) -> 0 | L54: =SUM(L16:L53) -> 0
A56: Notes:
A58: 1 | B58: Board policy of the "half-year" rule - the applicant must ensure that additions in the year attract a half-year depreciation expense in the first year. Deviations from this standard practice must be supported in the application.
A59: 2 | B59: The applicant must provide an explanation of material variances in evidence
A62: General: | B62: Applicants must provide a breakdown of depreciation and amortization expense in the above format for all relevant accounts. Asset Retirement Obligations (AROs), depreciation and accretion expense should be disclosed separately consistent with the Notes of historical Audited Financial Statements.

Sheet App.2-D_Overhead (hidden)
L1: File Number: | M1: ='LDC Info'!$E$18 -> EB-2013-0139
L2: Exhibit:
L3: Tab:
L4: Schedule:
L5: Page:
L7: Date:
A9: Appendix 2-D
A10: Overhead Expense
A12: The following table should be completed based on the information requested below. An explanation should be provided for any blank entries. The entries should include overhead costs that are currently capitalized on self-constructed assets under MIFRS or an alternate accounting standard.
E13: (A) 1 | F13: (B) | G13: (C) | H13: (D) | I13: (E) 1 | J13: (F) | K13: (G)
A14: Nature of the Overhead Costs | E14: Dollar | F14: Dollar | G14: Dollar | H14: Dollar Impact - | I14: Dollar Impact - | J14: Directly | K14: Reasons why the overhead costs are allowed to be
E15: Impact on PP&E | F15: Impact on PP&E | G15: Impact on PP&E | H15: PP&E Variance | I15: PP&E Variance | J15: Attributable? | K15: capitalized under MIFRS or an alternate accounting
E16: Historic Year | F16: Bridge Year | G16: Test Year | H16: Test versus Bridge | I16: Test versus Historic | J16: (Y/N) | K16: standard given limitations on capitalized overhead
A17: employee benefits | H17: =+G17-F17 -> 0 | I17: =+G17-E17 -> 0
A18: costs of site preparation | H18: 0 | I18: 0
A19: initial delivery and handling costs | H19: 0 | I19: 0
A20: costs of testing whether the asset is functioning properly | H20: 0 | I20: 0
A21: professional fees | H21: 0 | I21: 0
H22: 0 | I22: 0
A23: costs of opening a new facility | H23: 0 | I23: 0
A24: costs of introducing a new product or service (including costs of advertising and promotional activities) | H24: 0 | I24: 0
A25: costs of conducting business in a new location or with a new class of customer (including costs of staff training) | H25: 0 | I25: 0
A26: administration and other general overhead costs | H26: 0 | I26: 0
H27: 0 | I27: 0
H28: 0 | I28: 0
H29: 0 | I29: 0
A30: Insert description of additional item(s) and new rows if needed. | H30: 0 | I30: 0
A31: Total | E31: =SUM(E17:E30) -> 0 | F31: =SUM(F17:F30) -> 0 | G31: =SUM(G17:G30) -> 0 | H31: =SUM(H17:H30) -> 0 | I31: =SUM(I17:I30) -> 0
A34: The following table should be completed based on the information requested below. An explanation should be provided for any blank entries. The entries should include overhead costs that were capitalized on self-constructed assets under CGAAP but are no longer capitalized under MIFRS or an alternate accounting standard and are included in OM&A.
E35: (A) 1 | F35: (B) | G35: (C) | H35: (D) | I35: (E) 1 | J35: (F) | K35: (G)
A36: Nature of the Overhead Costs | E36: Dollar | F36: Dollar | G36: Dollar | H36: Dollar Impact - | I36: Dollar Impact - | J36: Directly | K36: Reasons why the overhead costs are not allowed to be
E37: Impact on OM&A | F37: Impact on OM&A | G37: Impact on OM&A | H37: OM&A Variance | I37: OM&A Variance | J37: Attributable? | K37: capitalized under MIFRS or an alternate accounting
E38: Historic Year | F38: Bridge Year | G38: Test Year | H38: Test versus Bridge | I38: Test versus Historic | J38: (Y/N) | K38: standard given limitations on capitalized overhead
A39: employee benefits | H39: =+G39-F39 -> 0 | I39: =+G39-E39 -> 0
A40: costs of site preparation | H40: =+G40-F40 -> 0 | I40: =+G40-E40 -> 0
A41: initial delivery and handling costs | H41: =+G41-F41 -> 0 | I41: =+G41-E41 -> 0
A42: costs of testing whether the asset is functioning properly | H42: =+G42-F42 -> 0 | I42: =+G42-E42 -> 0
A43: professional fees | H43: =+G43-F43 -> 0 | I43: =+G43-E43 -> 0
A45: costs of opening a new facility | H45: =+G45-F45 -> 0 | I45: =+G45-E45 -> 0
A46: costs of introducing a new product or service (including costs of advertising and promotional activities) | H46: 0 | I46: 0
A47: costs of conducting business in a new location or with a new class of customer (including costs of staff training) | H47: 0 | I47: 0
A48: administration and other general overhead costs | H48: 0 | I48: 0
H49: 0 | I49: 0
H50: 0 | I50: 0
H51: 0 | I51: 0
A52: Insert description of additional item(s) and new rows if needed. | H52: 0 | I52: 0
A53: Total | E53: =SUM(E39:E52) -> 0 | F53: =SUM(F39:F52) -> 0 | G53: =SUM(G39:G52) -> 0 | H53: =SUM(H39:H52) -> 0 | I53: =SUM(I39:I52) -> 0
A55: Notes:
A56: 1 | B56: If the applicant chooses to adopt IFRS or an alternate accounting standard for financial reporting purposes in 2013, the applicant does not need to complete Columns A, E. If the applicant adopts IFRS or an alternate accounting standard for financial reporting purposes in 2012, the applicant must complete all columns.

Sheet App.2-EA_PP&E Deferral Account (hidden)
H1: File Number: | I1: ='LDC Info'!$E$18 -> EB-2013-0139
H2: Exhibit:
H3: Tab:
H4: Schedule:
H5: Page:
H7: Date:
A9: Appendix 2-EA
A10: IFRS-CGAAP Transitional PP&E Amounts
A11: 2014 Adopters of IFRS for Financial Reporting Purposes
A13: For applicants that adopt IFRS on January 1, 2014 for financial reporting purposes
A15: Note: this sheet should be filled out if the applicant adopts IFRS for its financial reporting purpose as of January 1, 2012.
B17: 2010 Rebasing Year | C17: 2011 | D17: 2012 | E17: 2013 | F17: 2014 Rebasing Year | G17: 2015 | H17: 2016 | I17: 2017
A18: Reporting Basis | B18: CGAAP | C18: IRM | D18: IRM | E18: IRM | F18: MIFRS | G18: IRM | H18: IRM | I18: IRM
A19: Forecast vs. Actual Used in Rebasing Year | B19: Forecast | C19: Actual | D19: Actual | E19: Forecast | F19: Forecast
D20: $ | E20: $
A21: PP&E Values under CGAAP
A22: Opening net PP&E - Note 1
A23: Additions
A24: Depreciation (amounts should be negative)
A25: Closing net PP&E (1) | D25: =D22+D23+D24 -> 0 | E25: =E22+E23+E24 -> 0
A27: PP&E Values under MIFRS (Starts from 2011, the transition year)
A28: Opening net PP&E - Note 1
A29: Additions
A30: Depreciation (amounts should be negative)
A31: Closing net PP&E (2) | D31: =SUM(D28:D30) -> 0 | E31: =SUM(E28:E30) -> 0
A33: Difference in Closing net PP&E, CGAAP vs. MIFRS (Shown as adjustment to rate base on rebasing) | D33: =D25-D31 -> 0 | E33: =E25-E31 -> 0
A35: Account 1575 - IFRS-CGAAP Transitional PP&E Amounts
A36: Opening balance | D36: 0 | E36: =D40 -> 0 | F36: =E40 -> 0 | G36: =F40 -> 0 | H36: =G40 -> 0 | I36: =H40 -> 0
A37: Amounts added in the year | D37: =D33 -> 0 | E37: =E33-D33 -> 0
A38: Sub-total | D38: =D36+D37 -> 0 | E38: 0 | F38: 0 | G38: 0 | H38: 0 | I38: 0
A39: Amount of amortization, included in depreciation expense - Note 2 | F39: =IF(ISERROR(-E33/I44), 0, -E33/I44) -> 0 | G39: =+F39 -> 0 | H39: =+F39 -> 0 | I39: =+F39 -> 0
A40: Closing balance in deferral account | D40: =D38+D39 -> 0 | E40: 0 | F40: =IF(ISERROR(F38+F39), 0, F38+F39) -> 0 | G40: 0 | H40: 0 | I40: 0
A42: Effect on Revenue Requirement
A43: Amortization of deferred balance as above - Note 2 | F43: =IF(ISERROR(E33/I44), 0, E33/I44) -> 0 | H43: WACC
A44: Return on Rate Base Associated with deferred PP&E balance at WACC - Note 3 | F44: =E33*I43 -> 0 | H44: Disposition Period - Note 4 | I44: 4 | J44: Years
A45: Amount included in Revenue Requirement on rebasing | F45: =F43+F44 -> 0
A47: Notes:
A48: 1 For an applicant that adopts IFRS on January 1, 2014, the PP&E values as of January 1, 2013 under both CGAAP and MIFRS should be the same.
A49: 2 Amortization of the deferred balance in Account 1575 will start from the rebasing year.
A50: Assume the utility requests for a certain disposition period, the amortization that should be included in the depreciation expense is calculated as:
A51: the opening balance of Account 1575 / the approved disposition period
A52: 3 Return on rate base associated with deferred balance is calculated as:
A53: the deferred account opening balance as of 2014 rebasing year x WACC
A54: * Please note that the calculation should be adjusted once WACC is updated and finalized in the rate application.
A55: 4 Consistent with the 4 year normal rate cycle, the model is using a 4 year amortization period as a default selection to "clear" the PP&E deferral account through a one-time adjustment to ratebase to capture and remove the impact of the accounting policy changes as caused by the transition from CGAAP to MIFRS.

Sheet App.2-CF_CGAAP_DepExp_2010 (hidden)
L1: File Number: | M1: 0
L2: Exhibit: | M2: 2
L3: Tab: | M3: 1
L4: Schedule: | M4: 5
L5: Page: | M5: 1
L7: Date:
A9: Appendix 2-CA
A10: Depreciation and Amortization Expense
A11: Assumes the applicant adopted IFRS for financial reporting purposes January 1, 2015
C12: Year | D12: 2010 | E12: CGAAP
A14: Account | B14: Description | C14: Opening Regulatory Gross PP&E as at Jan 1, 2012 | D14: Less Fully Depreciated | E14: Net for Depreciation | F14: Additions | G14: Smart Meter Additions | H14: Total for Depreciation | I14: Years | J14: Depreciation Rate | K14: Depreciation Expense | L14: 2012 Depreciation Expense per Appendix 2-B Fixed Assets, Column K (l) | M14: Variance 2
C15: (a) | D15: (b) | E15: (c) | F15: (d) | G15: (dd) | H15: (e) = (c) + ½ x (d) 1 | I15: (f) | J15: (g) = 1 / (f) | K15: (h) = (e) / (f) | M15: (m) = (h) - (l)
A16: 1611 | B16: Computer Software (Formally known as Account 1925) | C16: 113795.64 | D16: 5356.3 | E16: =C16-D16 -> 108439.34 | F16: 14357.63 | H16: =E16+0.5*F16 -> 115618.155 | I16: 5 | J16: =IF(I16=0,0,1/I16) -> 0.2 | K16: =IF(I16=0,0,H16/I16) -> 23123.631 | L16: 23123.63 | M16: =IF(ISERROR(+K16-L16), 0, +K16-L16) -> 0.001
A17: 1612 | B17: Land Rights (Formally known as Account 1906) | C17: 8588 | E17: =C17-D17 -> 8588 | F17: 0 | H17: =E17+0.5*F17 -> 8588 | J17: 0 | K17: 0 | L17: 0 | M17: 0
A18: 1805 | B18: Land | C18: 10000 | E18: 10000 | H18: 10000 | J18: 0 | K18: 0 | L18: 0 | M18: 0
A19: 1808 | B19: Buildings | E19: 0 | H19: 0 | J19: 0 | K19: 0 | M19: 0
A20: 1810 | B20: Leasehold Improvements | E20: 0 | H20: 0 | J20: 0 | K20: 0 | M20: 0
A21: 1815 | B21: Transformer Station Equipment >50 kV | C21: 349916.94 | D21: 20772.34 | E21: 329144.6 | F21: 52494.8 | H21: 355392 | I21: 40 | J21: 0.025 | K21: 8884.8 | L21: 8884.8 | M21: 0
A22: 1820 | B22: Distribution Station Equipment <50 kV | C22: 175800.99 | D22: -137579.81 | E22: 313380.8 | F22: 9059.01 | H22: 317910.305 | I22: 30 | J22: 0.03333333333 | K22: 10597.01017 | L22: 10597.01 | M22: 0.0001666666667
A23: 1825 | B23: Storage Battery Equipment | E23: 0 | H23: 0 | J23: 0 | K23: 0 | M23: 0
A24: 1830 | B24: Poles, Towers & Fixtures | C24: 322655.88 | D24: -121032.5 | E24: 443688.38 | F24: 28410.75 | H24: 457893.755 | I24: 25 | J24: 0.04 | K24: 18315.7502 | L24: 18315.75 | M24: 0.0001999999986
A25: 1835 | B25: Overhead Conductors & Devices | C25: 367500.19 | D25: -172447.79 | E25: 539947.98 | F25: 34806.04 | H25: 557351 | I25: 25 | J25: 0.04 | K25: 22294.04 | L25: 22294.04 | M25: 0
A26: 1840 | B26: Underground Conduit | C26: 113707.7 | D26: -34654.09 | E26: 148361.79 | F26: 147.42 | H26: 148435.5 | I26: 25 | J26: 0.04 | K26: 5937.42 | L26: 5937.42 | M26: -9.094947018e-13
A27: 1845 | B27: Underground Conductors & Devices | C27: 212731.5 | D27: -52040.95 | E27: 264772.45 | F27: 47660.1 | H27: 288602.5 | I27: 25 | J27: 0.04 | K27: 11544.1 | L27: 11544.1 | M27: 0
A28: 1850 | B28: Line Transformers | C28: 372827.19 | D28: -31367.7 | E28: 404194.89 | F28: 24321.22 | H28: 416355.5 | I28: 25 | J28: 0.04 | K28: 16654.22 | L28: 16654.22 | M28: 0
A29: 1855 | B29: Services (Overhead & Underground) | C29: 23261.26 | D29: 17.87 | E29: 23243.39 | F29: 3574.22 | H29: 25030.5 | I29: 25 | J29: 0.04 | K29: 1001.22 | L29: 1001.22 | M29: 0
A30: 1860 | B30: Meters | C30: 246912.13 | D30: -144487.87 | E30: 391400 | H30: 391400 | I30: 25 | J30: 0.04 | K30: 15656 | L30: 15656 | M30: 0
A31: 1860 | B31: Meters (Smart Meters) | E31: 0 | H31: 0 | I31: 15 | J31: 0.06666666667 | K31: 0 | M31: 0
A32: 1905 | B32: Land | C32: 28299.7 | E32: 28299.7 | H32: 28299.7 | J32: 0 | K32: 0 | L32: 0 | M32: 0
A33: 1908 | B33: Buildings & Fixtures | C33: 824123.77 | D33: -25826.23 | E33: 849950 | H33: 849950 | I33: 50 | J33: 0.02 | K33: 16999 | L33: 16999 | M33: 0 | P33: `
A34: 1910 | B34: Leasehold Improvements | E34: 0 | H34: 0 | J34: 0 | K34: 0 | M34: 0
A35: 1915 | B35: Office Furniture & Equipment (10 years) | C35: 30527.53 | D35: 5428.63 | E35: 25098.9 | F35: 2126.2 | H35: 26162 | I35: 10 | J35: 0.1 | K35: 2616.2 | L35: 2616.2 | M35: 0
A36: 1915 | B36: Office Furniture & Equipment (5 years) | E36: 0 | H36: 0 | J36: 0 | K36: 0 | M36: 0
A37: 1920 | B37: Computer Equipment - Hardware | C37: 46427.21 | D37: 24646.81 | E37: 21780.4 | F37: 3691.2 | H37: 23626 | I37: 5 | J37: 0.2 | K37: 4725.2 | L37: 4725.2 | M37: -9.094947018e-13
A38: 1920 | B38: Computer Equip.-Hardware(Post Mar. 22/04) | E38: 0 | H38: 0 | J38: 0 | K38: 0 | M38: 0
A39: 1920 | B39: Computer Equip.-Hardware(Post Mar. 19/07) | E39: 0 | H39: 0 | J39: 0 | K39: 0 | M39: 0
A40: 1930 | B40: Transportation Equipment | C40: 205345.8 | D40: 184897.8 | E40: 20448 | H40: 20448 | I40: 8 | J40: 0.125 | K40: 2556 | L40: 2556 | M40: 0
A41: 1935 | B41: Stores Equipment | E41: 0 | H41: 0 | J41: 0 | K41: 0 | M41: 0
A42: 1940 | B42: Tools, Shop & Garage Equipment | C42: 13959.53 | D42: 3436.17 | E42: =C42-D42 -> 10523.36 | F42: 6006.67 | H42: 13526.695 | I42: 10 | J42: 0.1 | K42: 1352.6695 | L42: 1352.67 | M42: -0.0005000000001
A43: 1945 | B43: Measurement & Testing Equipment | E43: 0 | H43: 0 | J43: 0 | K43: 0 | M43: 0
A44: 1950 | B44: Power Operated Equipment | C44: 4363.29 | D44: 3.29 | E44: 4360 | H44: 4360 | I44: 8 | J44: 0.125 | K44: 545 | L44: 545 | M44: 0
A45: 1955 | B45: Communications Equipment | E45: 0 | H45: 0 | J45: 0 | K45: 0 | M45: 0
A46: 1955 | B46: Communication Equipment (Smart Meters) | E46: 0 | H46: 0 | J46: 0 | K46: 0 | M46: 0
A47: 1960 | B47: Miscellaneous Equipment | E47: 0 | H47: 0 | J47: 0 | K47: 0 | M47: 0
A48: 1975 | B48: Load Management Controls Utility Premises | E48: 0 | H48: 0 | J48: 0 | K48: 0 | M48: 0
A49: 1980 | B49: System Supervisor Equipment | E49: 0 | H49: 0 | J49: 0 | K49: 0 | M49: 0
A50: 1985 | B50: Miscellaneous Fixed Assets | E50: 0 | H50: 0 | J50: 0 | K50: 0 | M50: 0
A51: 1995 | B51: Contributions & Grants | C51: -70173.64 | D51: -49.37 | E51: -70124.27 | F51: -74299.97 | H51: -107274.255 | I51: 25 | J51: 0.04 | K51: -4290.9702 | L51: -4290.97 | M51: -0.0001999999995
A52: etc. | E52: 0 | H52: 0 | J52: 0 | K52: 0 | M52: 0
E53: 0 | F53: 0 | H53: 0 | J53: 0 | K53: 0 | M53: 0
B54: Total | C54: =SUM(C16:C53) -> 3400570.61 | D54: -474927.1 | E54: 3875497.71 | F54: 152355.29 | G54: 0 | H54: 3951675.355 | K54: =SUM(K16:K53) -> 158511.2907 | L54: =SUM(L16:L53) -> 158511.29 | M54: =SUM(M16:M53) -> 0.0006666666641
A56: Notes:
A58: 1 | B58: Board policy of the "half-year" rule - the applicant must ensure that additions in the year attract a half-year depreciation expense in the first year. Deviations from this standard practice must be supported in the application.
A59: 2 | B59: The applicant must provide an explanation of material variances in evidence
A61: General | B61: Applicants must provide a breakdown of depreciation and amortization expense in the above format for all relevant accounts. Asset Retirement Obligations (AROs), depreciation and accretion expense should be disclosed separately consistent with the Notes of historical Audited Financial Statements.

Sheet App.2-CF_CGAAP_DepExp_2011 (hidden)
L1: File Number: | M1: 0
L2: Exhibit: | M2: 2
L3: Tab: | M3: 1
L4: Schedule: | M4: 5
L5: Page: | M5: 1
L7: Date:
A9: Appendix 2-CA
A10: Depreciation and Amortization Expense
A11: Assumes the applicant adopted IFRS for financial reporting purposes January 1, 2015
C12: Year | D12: 2011 | E12: CGAAP
A14: Account | B14: Description | C14: Opening Regulatory Gross PP&E as at Jan 1, 2012 | D14: Less Fully Depreciated | E14: Net for Depreciation | F14: Additions | G14: Smart Meter Additions | H14: Total for Depreciation | I14: Years | J14: Depreciation Rate | K14: Depreciation Expense | L14: 2012 Depreciation Expense per Appendix 2-B Fixed Assets, Column K (l) | M14: Variance 2
C15: (a) | D15: (b) | E15: (c) | F15: (d) | G15: (dd) | H15: (e) = (c) + ½ x (d) 1 | I15: (f) | J15: (g) = 1 / (f) | K15: (h) = (e) / (f) | M15: (m) = (h) - (l)
A16: 1611 | B16: Computer Software (Formally known as Account 1925) | C16: 128153.27 | D16: 15277.94 | E16: =C16-D16 -> 112875.33 | F16: 8639.34 | H16: =E16+0.5*F16 -> 117195 | I16: 5 | J16: =IF(I16=0,0,1/I16) -> 0.2 | K16: =IF(I16=0,0,H16/I16) -> 23439 | L16: 23439 | M16: =IF(ISERROR(+K16-L16), 0, +K16-L16) -> 0
A17: 1612 | B17: Land Rights (Formally known as Account 1906) | C17: 8588 | E17: =C17-D17 -> 8588 | F17: 0 | H17: =E17+0.5*F17 -> 8588 | J17: 0 | K17: 0 | L17: 0 | M17: 0
A18: 1805 | B18: Land | C18: 10000 | E18: 10000 | H18: 10000 | J18: 0 | K18: 0 | L18: 0 | M18: 0
A19: 1808 | B19: Buildings | C19: 0 | E19: 0 | H19: 0 | J19: 0 | K19: 0 | M19: 0
A20: 1810 | B20: Leasehold Improvements | C20: 0 | E20: 0 | H20: 0 | J20: 0 | K20: 0 | M20: 0
A21: 1815 | B21: Transformer Station Equipment >50 kV | C21: 402411.74 | D21: 40401.74 | E21: 362010 | F21: 55500 | H21: 389760 | I21: 40 | J21: 0.025 | K21: 9744 | L21: 9744 | M21: 0
A22: 1820 | B22: Distribution Station Equipment <50 kV | C22: 184860 | D22: -137594.59 | E22: 322454.59 | F22: 66690.82 | H22: 355800 | I22: 30 | J22: 0.03333333333 | K22: 11860 | L22: 11860 | M22: 0
A23: 1825 | B23: Storage Battery Equipment | C23: 0 | E23: 0 | H23: 0 | J23: 0 | K23: 0 | M23: 0
A24: 1830 | B24: Poles, Towers & Fixtures | C24: 351066.63 | D24: -100079.11 | E24: 451145.74 | F24: 27658.52 | H24: 464975 | I24: 25 | J24: 0.04 | K24: 18599 | L24: 18599 | M24: 0
A25: 1835 | B25: Overhead Conductors & Devices | C25: 402306.23 | D25: -146550.62 | E25: 548856.85 | F25: 3636.3 | H25: 550675 | I25: 25 | J25: 0.04 | K25: 22027 | L25: 22027 | M25: 0
A26: 1840 | B26: Underground Conduit | C26: 113855.12 | D26: -34694.88 | E26: 148550 | F26: 0 | H26: 148550 | I26: 25 | J26: 0.04 | K26: 5942 | L26: 5942 | M26: 0
A27: 1845 | B27: Underground Conductors & Devices | C27: 260391.6 | D27: -51990.75 | E27: 312382.35 | F27: 585.31 | H27: 312675.005 | I27: 25 | J27: 0.04 | K27: 12507.0002 | L27: 12507 | M27: 0.0002000000004
A28: 1850 | B28: Line Transformers | C28: 397148.41 | D28: 10985.74 | E28: 386162.67 | F28: 6024.65 | H28: 389174.995 | I28: 25 | J28: 0.04 | K28: 15566.9998 | L28: 15567 | M28: -0.0001999999986
A29: 1855 | B29: Services (Overhead & Underground) | C29: 26835.48 | D29: 10.59 | E29: 26824.89 | F29: 3350.22 | H29: 28500 | I29: 25 | J29: 0.04 | K29: 1140 | L29: 1140 | M29: 0
A30: 1860 | B30: Meters | C30: 246912.13 | D30: -134339.55 | E30: 381251.68 | F30: 7796.64 | H30: 385150 | I30: 25 | J30: 0.04 | K30: 15406 | L30: 15406 | M30: 0
A31: 1860 | B31: Meters (Smart Meters) | C31: 0 | E31: 0 | H31: 0 | I31: 15 | J31: 0.06666666667 | K31: 0 | M31: 0
A32: 1905 | B32: Land | C32: 28299.7 | E32: 28299.7 | F32: 0 | H32: 28299.7 | J32: 0 | K32: 0 | L32: 0 | M32: 0
A33: 1908 | B33: Buildings & Fixtures | C33: 824123.77 | D33: -25826.23 | E33: 849950 | F33: 0 | H33: 849950 | I33: 50 | J33: 0.02 | K33: 16999 | L33: 16999 | M33: 0 | P33: `
A34: 1910 | B34: Leasehold Improvements | C34: 0 | E34: 0 | H34: 0 | J34: 0 | K34: 0 | M34: 0
A35: 1915 | B35: Office Furniture & Equipment (10 years) | C35: 32653.73 | D35: 5838.85 | E35: 26814.88 | F35: 1130.23 | H35: 27379.995 | I35: 10 | J35: 0.1 | K35: 2737.9995 | L35: 2738 | M35: -0.0005000000001
A36: 1915 | B36: Office Furniture & Equipment (5 years) | C36: 0 | E36: 0 | H36: 0 | J36: 0 | K36: 0 | M36: 0
A37: 1920 | B37: Computer Equipment - Hardware | C37: 50118.41 | D37: 29210.1 | E37: 20908.31 | F37: 2103.38 | H37: 21960 | I37: 5 | J37: 0.2 | K37: 4392 | L37: 4392 | M37: -9.094947018e-13
A38: 1920 | B38: Computer Equip.-Hardware(Post Mar. 22/04) | C38: 0 | E38: 0 | H38: 0 | J38: 0 | K38: 0 | M38: 0
A39: 1920 | B39: Computer Equip.-Hardware(Post Mar. 19/07) | C39: 0 | E39: 0 | H39: 0 | J39: 0 | K39: 0 | M39: 0
A40: 1930 | B40: Transportation Equipment | C40: 205345.8 | D40: 184897.8 | E40: 20448 | F40: 0 | H40: 20448 | I40: 8 | J40: 0.125 | K40: 2556 | L40: 2556 | M40: 0
A41: 1935 | B41: Stores Equipment | C41: 0 | E41: 0 | H41: 0 | J41: 0 | K41: 0 | M41: 0
A42: 1940 | B42: Tools, Shop & Garage Equipment | C42: 19966.2 | D42: 3737.84 | E42: =C42-D42 -> 16228.36 | F42: 5063.27 | H42: 18759.995 | I42: 10 | J42: 0.1 | K42: 1875.9995 | L42: 1876 | M42: -0.0004999999996
A43: 1945 | B43: Measurement & Testing Equipment | C43: 0 | E43: 0 | H43: 0 | J43: 0 | K43: 0 | M43: 0
A44: 1950 | B44: Power Operated Equipment | C44: 4363.29 | D44: 3.29 | E44: 4360 | F44: 0 | H44: 4360 | I44: 8 | J44: 0.125 | K44: 545 | L44: 545 | M44: 0
A45: 1955 | B45: Communications Equipment | C45: 0 | E45: 0 | H45: 0 | J45: 0 | K45: 0 | M45: 0
A46: 1955 | B46: Communication Equipment (Smart Meters) | C46: 0 | E46: 0 | H46: 0 | J46: 0 | K46: 0 | M46: 0
A47: 1960 | B47: Miscellaneous Equipment | C47: 0 | E47: 0 | H47: 0 | J47: 0 | K47: 0 | M47: 0
A48: 1975 | B48: Load Management Controls Utility Premises | C48: 0 | E48: 0 | H48: 0 | J48: 0 | K48: 0 | M48: 0
A49: 1980 | B49: System Supervisor Equipment | C49: 0 | E49: 0 | H49: 0 | J49: 0 | K49: 0 | M49: 0
A50: 1985 | B50: Miscellaneous Fixed Assets | C50: 0 | E50: 0 | H50: 0 | J50: 0 | K50: 0 | M50: 0
A51: 1995 | B51: Contributions & Grants | C51: -144473.61 | D51: -48.61 | E51: -144425 | F51: 0 | H51: -144425 | I51: 25 | J51: 0.04 | K51: -5777 | L51: -5777 | M51: 0
A52: etc. | C52: 0 | E52: 0 | H52: 0 | J52: 0 | K52: 0 | M52: 0
E53: 0 | H53: 0 | J53: 0 | K53: 0 | M53: 0
B54: Total | C54: =SUM(C16:C53) -> 3552925.9 | D54: -340760.45 | E54: 3893686.35 | F54: 188178.68 | G54: 0 | H54: 3987775.69 | K54: =SUM(K16:K53) -> 159559.999 | L54: =SUM(L16:L53) -> 159560 | M54: =SUM(M16:M53) -> -0.0009999999988
A56: Notes:
A58: 1 | B58: Board policy of the "half-year" rule - the applicant must ensure that additions in the year attract a half-year depreciation expense in the first year. Deviations from this standard practice must be supported in the application.
A59: 2 | B59: The applicant must provide an explanation of material variances in evidence
A61: General | B61: Applicants must provide a breakdown of depreciation and amortization expense in the above format for all relevant accounts. Asset Retirement Obligations (AROs), depreciation and accretion expense should be disclosed separately consistent with the Notes of historical Audited Financial Statements.

Sheet App.2-CF_CGAAP_DepExp_2012 (hidden)
L1: File Number: | M1: 0
L2: Exhibit: | M2: 2
L3: Tab: | M3: 1
L4: Schedule: | M4: 5
L5: Page: | M5: 1
L7: Date:
A9: Appendix 2-CA
A10: Depreciation and Amortization Expense
A11: Assumes the applicant adopted IFRS for financial reporting purposes January 1, 2015
C12: Year | D12: 2012 | E12: CGAAP
A14: Account | B14: Description | C14: Opening Regulatory Gross PP&E as at Jan 1, 2012 | D14: Less Fully Depreciated | E14: Net for Depreciation | F14: Additions | G14: Smart Meter Additions | H14: Total for Depreciation | I14: Years | J14: Depreciation Rate | K14: Depreciation Expense | L14: 2012 Depreciation Expense per Appendix 2-B Fixed Assets, Column K (l) | M14: Variance 2
C15: (a) | D15: (b) | E15: (c) | F15: (d) | G15: (dd) | H15: (e) = (c) + ½ x (d) 1 | I15: (f) | J15: (g) = 1 / (f) | K15: (h) = (e) / (f) | M15: (m) = (h) - (l)
A16: 1611 | B16: Computer Software (Formally known as Account 1925) | C16: ='App 2-B FixAsset 2012-CGAAP'!E16 -> 136792.61 | D16: -5561 | E16: =C16-D16 -> 142353.61 | F16: ='App 2-B FixAsset 2012-CGAAP'!F16 -> 2682.5 | G16: =+'App 2-B FixAsset 2012-CGAAP'!G16 -> 41549 | H16: =E16+0.5*F16 -> 143694.86 | I16: 5 | J16: =IF(I16=0,0,1/I16) -> 0.2 | K16: =IF(I16=0,0,H16/I16) -> 28738.972 | L16: 28739 | M16: =IF(ISERROR(+K16-L16), 0, +K16-L16) -> -0.028
A17: 1612 | B17: Land Rights (Formally known as Account 1906) | C17: ='App 2-B FixAsset 2012-CGAAP'!E17 -> 8588 | D17: 8588 | E17: =C17-D17 -> 0 | F17: ='App 2-B FixAsset 2012-CGAAP'!F17 -> 0 | H17: =E17+0.5*F17 -> 0 | J17: 0 | K17: 0 | M17: 0
A18: 1805 | B18: Land | C18: ='App 2-B FixAsset 2012-CGAAP'!E18 -> 10000 | D18: 10000 | E18: 0 | F18: ='App 2-B FixAsset 2012-CGAAP'!F18 -> 0 | H18: 0 | J18: 0 | K18: 0 | M18: 0
A19: 1808 | B19: Buildings | C19: ='App 2-B FixAsset 2012-CGAAP'!E19 -> 0 | E19: 0 | F19: ='App 2-B FixAsset 2012-CGAAP'!F19 -> 0 | H19: 0 | J19: 0 | K19: 0 | M19: 0
A20: 1810 | B20: Leasehold Improvements | C20: ='App 2-B FixAsset 2012-CGAAP'!E20 -> 0 | E20: 0 | F20: ='App 2-B FixAsset 2012-CGAAP'!F20 -> 0 | H20: 0 | J20: 0 | K20: 0 | M20: 0
A21: 1815 | B21: Transformer Station Equipment >50 kV | C21: ='App 2-B FixAsset 2012-CGAAP'!E21 -> 457911.74 | D21: 40397 | E21: 417514.74 | F21: ='App 2-B FixAsset 2012-CGAAP'!F21 -> 24890 | H21: 429959.74 | I21: 40 | J21: 0.025 | K21: 10748.9935 | L21: 10749 | M21: -0.0065
A22: 1820 | B22: Distribution Station Equipment <50 kV | C22: ='App 2-B FixAsset 2012-CGAAP'!E22 -> 251550.82 | D22: -137573 | E22: 389123.82 | F22: ='App 2-B FixAsset 2012-CGAAP'!F22 -> 4632.27 | H22: 391439.955 | I22: 30 | J22: 0.03333333333 | K22: 13047.9985 | L22: 13048 | M22: -0.0015
A23: 1825 | B23: Storage Battery Equipment | C23: ='App 2-B FixAsset 2012-CGAAP'!E23 -> 0 | E23: 0 | F23: ='App 2-B FixAsset 2012-CGAAP'!F23 -> 0 | H23: 0 | J23: 0 | K23: 0 | M23: 0
A24: 1830 | B24: Poles, Towers & Fixtures | C24: ='App 2-B FixAsset 2012-CGAAP'!E24 -> 378725.15 | D24: -100074 | E24: 478799.15 | F24: ='App 2-B FixAsset 2012-CGAAP'!F24 -> 80902.08 | H24: 519250.19 | I24: 25 | J24: 0.04 | K24: 20770.0076 | L24: 20770 | M24: 0.007600000001
A25: 1835 | B25: Overhead Conductors & Devices | C25: ='App 2-B FixAsset 2012-CGAAP'!E25 -> 405942.53 | D25: -124489 | E25: 530431.53 | F25: ='App 2-B FixAsset 2012-CGAAP'!F25 -> 69887.63 | H25: 565375.345 | I25: 25 | J25: 0.04 | K25: 22615.0138 | L25: 22615 | M25: 0.0138
A26: 1840 | B26: Underground Conduit | C26: ='App 2-B FixAsset 2012-CGAAP'!E26 -> 113855.12 | D26: -29520 | E26: 143375.12 | F26: ='App 2-B FixAsset 2012-CGAAP'!F26 -> 0 | H26: 143375.12 | I26: 25 | J26: 0.04 | K26: 5735.0048 | L26: 5735 | M26: 0.0048
A27: 1845 | B27: Underground Conductors & Devices | C27: ='App 2-B FixAsset 2012-CGAAP'!E27 -> 260976.91 | D27: -44305 | E27: 305281.91 | F27: ='App 2-B FixAsset 2012-CGAAP'!F27 -> 4935.66 | H27: 307749.74 | I27: 25 | J27: 0.04 | K27: 12309.9896 | L27: 12310 | M27: -0.0104
A28: 1850 | B28: Line Transformers | C28: ='App 2-B FixAsset 2012-CGAAP'!E28 -> 403173.06 | D28: 14383 | E28: 388790.06 | F28: ='App 2-B FixAsset 2012-CGAAP'!F28 -> 5619.7 | H28: 391599.91 | I28: 25 | J28: 0.04 | K28: 15663.9964 | L28: 15664 | M28: -0.003599999998
A29: 1855 | B29: Services (Overhead & Underground) | C29: ='App 2-B FixAsset 2012-CGAAP'!E29 -> 30185.7 | E29: 30185.7 | F29: ='App 2-B FixAsset 2012-CGAAP'!F29 -> 2234.12 | H29: 31302.76 | I29: 25 | J29: 0.04 | K29: 1252.1104 | L29: 1252 | M29: 0.1104
A30: 1860 | B30: Meters | C30: ='App 2-B FixAsset 2012-CGAAP'!E30 -> 254708.77 | D30: -64049 | E30: 318757.77 | F30: ='App 2-B FixAsset 2012-CGAAP'!F30 -> 134.61 | H30: 318825.075 | I30: 25 | J30: 0.04 | K30: 12753.003 | L30: 12753 | M30: 0.003000000001
A31: 1860 | B31: Meters (Smart Meters) | C31: ='App 2-B FixAsset 2012-CGAAP'!E31 -> 0 | E31: =C31-D31+601816.73 -> 601816.73 | F31: ='App 2-B FixAsset 2012-CGAAP'!F31 -> 17081.77 | G31: =+'App 2-B FixAsset 2012-CGAAP'!G31 -> 601816.73 | H31: 610357.615 | I31: 15 | J31: 0.06666666667 | K31: 40690.50767 | L31: 40690 | M31: 0.5076666667
A32: 1905 | B32: Land | C32: ='App 2-B FixAsset 2012-CGAAP'!E32 -> 28299.7 | D32: 28300 | E32: -0.3 | F32: ='App 2-B FixAsset 2012-CGAAP'!F32 -> 0 | H32: -0.3 | J32: 0 | K32: 0 | M32: 0
A33: 1908 | B33: Buildings & Fixtures | C33: ='App 2-B FixAsset 2012-CGAAP'!E33 -> 824123.77 | D33: -25826 | E33: 849949.77 | F33: ='App 2-B FixAsset 2012-CGAAP'!F33 -> 0 | H33: 849949.77 | I33: 50 | J33: 0.02 | K33: 16998.9954 | L33: 16999 | M33: -0.0046 | P33: `
A34: 1910 | B34: Leasehold Improvements | C34: ='App 2-B FixAsset 2012-CGAAP'!E34 -> 0 | E34: 0 | F34: ='App 2-B FixAsset 2012-CGAAP'!F34 -> 0 | H34: 0 | J34: 0 | K34: 0 | M34: 0
A35: 1915 | B35: Office Furniture & Equipment (10 years) | C35: ='App 2-B FixAsset 2012-CGAAP'!E35 -> 33783.96 | D35: 6234 | E35: 27549.96 | F35: ='App 2-B FixAsset 2012-CGAAP'!F35 -> 0 | H35: 27549.96 | I35: 10 | J35: 0.1 | K35: 2754.996 | L35: 2755 | M35: -0.004
A36: 1915 | B36: Office Furniture & Equipment (5 years) | C36: ='App 2-B FixAsset 2012-CGAAP'!E36 -> 0 | E36: 0 | F36: ='App 2-B FixAsset 2012-CGAAP'!F36 -> 0 | H36: 0 | J36: 0 | K36: 0 | M36: 0
A37: 1920 | B37: Computer Equipment - Hardware | C37: ='App 2-B FixAsset 2012-CGAAP'!E37 -> 52221.79 | D37: 35355 | E37: 16866.79 | F37: ='App 2-B FixAsset 2012-CGAAP'!F37 -> 2656.32 | H37: 18194.95 | I37: 5 | J37: 0.2 | K37: 3638.99 | L37: 3639 | M37: -0.01
A38: 1920 | B38: Computer Equip.-Hardware(Post Mar. 22/04) | C38: ='App 2-B FixAsset 2012-CGAAP'!E38 -> 0 | E38: 0 | F38: ='App 2-B FixAsset 2012-CGAAP'!F38 -> 0 | H38: 0 | J38: 0 | K38: 0 | M38: 0
A39: 1920 | B39: Computer Equip.-Hardware(Post Mar. 19/07) | C39: ='App 2-B FixAsset 2012-CGAAP'!E39 -> 0 | E39: 0 | F39: ='App 2-B FixAsset 2012-CGAAP'!F39 -> 0 | H39: 0 | J39: 0 | K39: 0 | M39: 0
A40: 1930 | B40: Transportation Equipment | C40: ='App 2-B FixAsset 2012-CGAAP'!E40 -> 205345.8 | D40: =184346+552 -> 184898 | E40: 20447.8 | F40: ='App 2-B FixAsset 2012-CGAAP'!F40 -> 0 | H40: 20447.8 | I40: 8 | J40: 0.125 | K40: 2555.975 | L40: 2556 | M40: -0.025
A41: 1935 | B41: Stores Equipment | C41: ='App 2-B FixAsset 2012-CGAAP'!E41 -> 0 | E41: 0 | F41: ='App 2-B FixAsset 2012-CGAAP'!F41 -> 0 | H41: 0 | J41: 0 | K41: 0 | M41: 0
A42: 1940 | B42: Tools, Shop & Garage Equipment | C42: ='App 2-B FixAsset 2012-CGAAP'!E42 -> 25029.47 | D42: 2616 | E42: =C42-D42 -> 22413.47 | F42: ='App 2-B FixAsset 2012-CGAAP'!F42 -> 794 | G42: =+'App 2-B FixAsset 2012-CGAAP'!G42 -> 2173 | H42: 22810.47 | I42: 10 | J42: 0.1 | K42: 2281.047 | L42: 2281 | M42: 0.047
A43: 1945 | B43: Measurement & Testing Equipment | C43: ='App 2-B FixAsset 2012-CGAAP'!E43 -> 0 | E43: 0 | F43: ='App 2-B FixAsset 2012-CGAAP'!F43 -> 0 | H43: 0 | J43: 0 | K43: 0 | M43: 0
A44: 1950 | B44: Power Operated Equipment | C44: ='App 2-B FixAsset 2012-CGAAP'!E44 -> 4363.29 | E44: 4363.29 | F44: ='App 2-B FixAsset 2012-CGAAP'!F44 -> 0 | H44: 4363.29 | I44: 8 | J44: 0.125 | K44: 545.41125 | L44: 545.41 | M44: 0.00125
A45: 1955 | B45: Communications Equipment | C45: ='App 2-B FixAsset 2012-CGAAP'!E45 -> 0 | E45: 0 | F45: ='App 2-B FixAsset 2012-CGAAP'!F45 -> 0 | H45: 0 | J45: 0 | K45: 0 | M45: 0
A46: 1955 | B46: Communication Equipment (Smart Meters) | C46: ='App 2-B FixAsset 2012-CGAAP'!E46 -> 0 | E46: 0 | F46: ='App 2-B FixAsset 2012-CGAAP'!F46 -> 0 | H46: 0 | J46: 0 | K46: 0 | M46: 0
A47: 1960 | B47: Miscellaneous Equipment | C47: ='App 2-B FixAsset 2012-CGAAP'!E47 -> 0 | E47: 0 | F47: ='App 2-B FixAsset 2012-CGAAP'!F47 -> 0 | H47: 0 | J47: 0 | K47: 0 | M47: 0
A48: 1975 | B48: Load Management Controls Utility Premises | C48: ='App 2-B FixAsset 2012-CGAAP'!E48 -> 0 | E48: 0 | F48: ='App 2-B FixAsset 2012-CGAAP'!F48 -> 0 | H48: 0 | J48: 0 | K48: 0 | M48: 0
A49: 1980 | B49: System Supervisor Equipment | C49: ='App 2-B FixAsset 2012-CGAAP'!E49 -> 0 | E49: 0 | F49: ='App 2-B FixAsset 2012-CGAAP'!F49 -> 0 | H49: 0 | J49: 0 | K49: 0 | M49: 0
A50: 1985 | B50: Miscellaneous Fixed Assets | C50: ='App 2-B FixAsset 2012-CGAAP'!E50 -> 0 | E50: 0 | F50: ='App 2-B FixAsset 2012-CGAAP'!F50 -> 0 | H50: 0 | J50: 0 | K50: 0 | M50: 0
A51: 1995 | B51: Contributions & Grants | C51: ='App 2-B FixAsset 2012-CGAAP'!E51 -> -144473.61 | E51: -144473.61 | F51: ='App 2-B FixAsset 2012-CGAAP'!F51 -> -110040.57 | H51: -199493.895 | I51: 25 | J51: 0.04 | K51: -7979.7558 | L51: -7977.81 | M51: -1.9458
A52: etc. | C52: ='App 2-B FixAsset 2012-CGAAP'!E52 -> 0 | E52: 0 | F52: ='App 2-B FixAsset 2012-CGAAP'!F52 -> 0 | H52: 0 | J52: 0 | K52: 0 | M52: 0
C53: ='App 2-B FixAsset 2012-CGAAP'!E53 -> 0 | E53: 0 | F53: ='App 2-B FixAsset 2012-CGAAP'!F53 -> 0 | H53: 0 | J53: 0 | K53: 0 | M53: 0
B54: Total | C54: =SUM(C16:C53) -> 3741104.58 | D54: -200626 | E54: 4543547.31 | F54: 106410.09 | G54: 645538.73 | H54: 4596752.355 | K54: =SUM(K16:K53) -> 205121.2561 | L54: =SUM(L16:L53) -> 205122.6 | M54: =SUM(M16:M53) -> -1.343883333
A56: Notes:
A58: 1 | B58: Board policy of the "half-year" rule - the applicant must ensure that additions in the year attract a half-year depreciation expense in the first year. Deviations from this standard practice must be supported in the application.
A59: 2 | B59: The applicant must provide an explanation of material variances in evidence
A61: General | B61: Applicants must provide a breakdown of depreciation and amortization expense in the above format for all relevant accounts. Asset Retirement Obligations (AROs), depreciation and accretion expense should be disclosed separately consistent with the Notes of historical Audited Financial Statements.

Sheet App.2-CF_CGAAP_OldDepExp_2013
L1: File Number: | M1: 0
L2: Exhibit: | M2: 2
L3: Tab: | M3: 1
L4: Schedule: | M4: 5
L5: Page: | M5: 1
L7: Date:
A9: Appendix 2-CA
A10: Depreciation and Amortization Expense
A11: Assumes the applicant adopted IFRS for financial reporting purposes January 1, 2015
C12: Year | D12: 2013 | E12: OldCGAAP
A14: Account | B14: Description | C14: Opening Regulatory Gross PP&E as at Jan 1, 2013 | D14: Less Fully Depreciated | E14: Net for Depreciation | F14: Additions | G14: Total for Depreciation | H14: Years | I14: Depreciation Rate | J14: Depreciation Expense | K14: 2013 Depreciation Expense per Appendix 2-B Fixed Assets, Column K (l) | L14: Variance 2
C15: (a) | D15: (b) | E15: (c) | F15: (d) | G15: (e) = (c) + ½ x (d) 1 | H15: (f) | I15: (g) = 1 / (f) | J15: (h) = (e) / (f) | L15: (m) = (h) - (l)
A16: 1611 | B16: Computer Software (Formally known as Account 1925) | C16: 181024.11 | D16: 81389 | E16: =C16-D16 -> 99635.11 | F16: 28000 | G16: =E16+0.5*F16 -> 113635.11 | H16: 5 | I16: =IF(H16=0,0,1/H16) -> 0.2 | J16: =IF(H16=0,0,G16/H16) -> 22727.022 | K16: 22727 | L16: =IF(ISERROR(+J16-K16), 0, +J16-K16) -> 0.022
A17: 1612 | B17: Land Rights (Formally known as Account 1906) | C17: 8588 | D17: 8588 | E17: =C17-D17 -> 0 | F17: 0 | G17: 0 | I17: 0 | J17: 0 | K17: 0 | L17: 0
A18: 1805 | B18: Land | C18: 10000 | D18: 10000 | E18: 0 | F18: 0 | G18: 0 | I18: 0 | J18: 0 | L18: 0
A19: 1808 | B19: Buildings | C19: 0 | D19: 0 | E19: 0 | F19: 0 | G19: 0 | I19: 0 | J19: 0 | L19: 0
A20: 1810 | B20: Leasehold Improvements | C20: 0 | D20: 0 | E20: 0 | F20: 0 | G20: 0 | I20: 0 | J20: 0 | L20: 0
A21: 1815 | B21: Transformer Station Equipment >50 kV | C21: 482801.74 | D21: 40402 | E21: 442399.74 | F21: 1547900 | G21: 1216349.74 | H21: 40 | I21: 0.025 | J21: 30408.7435 | K21: 30409 | L21: -0.2565
A22: 1820 | B22: Distribution Station Equipment <50 kV | C22: 256183.09 | D22: -137564 | E22: 393747.09 | F22: 800000 | G22: 793747.09 | H22: 30 | I22: 0.03333333333 | J22: 26458.23633 | K22: 26458 | L22: 0.2363333333
A23: 1825 | B23: Storage Battery Equipment | C23: 0 | D23: 0 | E23: 0 | F23: 0 | G23: 0 | I23: 0 | J23: 0 | L23: 0
A24: 1830 | B24: Poles, Towers & Fixtures | C24: 459627.23 | D24: -77073 | E24: 536700.23 | F24: 99000 | G24: 586200.23 | H24: 25 | I24: 0.04 | J24: 23448.0092 | K24: 23448 | L24: 0.0092
A25: 1835 | B25: Overhead Conductors & Devices | C25: 475830.16 | D25: -124495 | E25: 600325.16 | F25: 25000 | G25: 612825.16 | H25: 25 | I25: 0.04 | J25: 24513.0064 | K25: 24513 | L25: 0.006399999998
A26: 1840 | B26: Underground Conduit | C26: 113855.12 | D26: -23520 | E26: 137375.12 | F26: 500 | G26: 137625.12 | H26: 25 | I26: 0.04 | J26: 5505.0048 | K26: 5505 | L26: 0.0048
A27: 1845 | B27: Underground Conductors & Devices | C27: 265912.57 | D27: -35137 | E27: 301049.57 | F27: 17000 | G27: 309549.57 | H27: 25 | I27: 0.04 | J27: 12381.9828 | K27: 12382 | L27: -0.0172
A28: 1850 | B28: Line Transformers | C28: 408792.76 | D28: 22393 | E28: 386399.76 | F28: 28000 | G28: 400399.76 | H28: 25 | I28: 0.04 | J28: 16015.9904 | K28: 16016 | L28: -0.009599999998
A29: 1855 | B29: Services (Overhead & Underground) | C29: 32419.82 | D29: 20 | E29: 32399.82 | F29: 3000 | G29: 33899.82 | H29: 25 | I29: 0.04 | J29: 1355.9928 | K29: 1356 | L29: -0.0072
A30: 1860 | B30: Meters | C30: 254843.38 | D30: 28493 | E30: 226350.38 | F30: 0 | G30: 226350.38 | H30: 25 | I30: 0.04 | J30: 9054.0152 | K30: 9054 | L30: 0.0152
A31: 1860 | B31: Meters (Smart Meters) | C31: 618898.5 | D31: -7 | E31: 618905.5 | F31: 3500 | G31: 620655.5 | H31: 15 | I31: 0.06666666667 | J31: 41377.03333 | K31: 41377 | L31: 0.03333333333
A32: 1905 | B32: Land | C32: 28299.7 | D32: 0 | E32: 28299.7 | F32: 0 | G32: 28299.7 | I32: 0 | J32: 0 | L32: 0
A33: 1908 | B33: Buildings & Fixtures | C33: 824124 | D33: -25826 | E33: 849950 | F33: 37500 | G33: 868700 | H33: 50 | I33: 0.02 | J33: 17374 | K33: 17374 | L33: 0 | O33: `
A34: 1910 | B34: Leasehold Improvements | D34: 0 | E34: 0 | G34: 0 | I34: 0 | J34: 0 | L34: 0
A35: 1915 | B35: Office Furniture & Equipment (10 years) | C35: 33783.96 | D35: 6234 | E35: 27549.96 | F35: 5700 | G35: 30399.96 | H35: 10 | I35: 0.1 | J35: 3039.996 | K35: 3040 | L35: -0.004
A36: 1915 | B36: Office Furniture & Equipment (5 years) | C36: 0 | D36: 0 | E36: 0 | F36: 0 | G36: 0 | I36: 0 | J36: 0 | L36: 0
A37: 1920 | B37: Computer Equipment - Hardware | C37: 54878.11 | D37: 41508 | E37: 13370.11 | F37: 3000 | G37: 14870.11 | H37: 5 | I37: 0.2 | J37: 2974.022 | K37: 2974 | L37: 0.022
A38: 1920 | B38: Computer Equip.-Hardware(Post Mar. 22/04) | C38: 0 | D38: 0 | E38: 0 | F38: 0 | G38: 0 | I38: 0 | J38: 0 | L38: 0
A39: 1920 | B39: Computer Equip.-Hardware(Post Mar. 19/07) | C39: 0 | D39: 0 | E39: 0 | F39: 0 | G39: 0 | I39: 0 | J39: 0 | L39: 0
A40: 1930 | B40: Transportation Equipment | C40: 204793.8 | D40: 184346 | E40: 20447.8 | F40: 0 | G40: 20447.8 | H40: 8 | I40: 0.125 | J40: 2555.975 | K40: 2556 | L40: -0.025
A41: 1935 | B41: Stores Equipment | C41: 0 | D41: 0 | E41: 0 | F41: 0 | G41: 0 | I41: 0 | J41: 0 | L41: 0
A42: 1940 | B42: Tools, Shop & Garage Equipment | C42: 27996.47 | D42: 5066 | E42: =C42-D42 -> 22930.47 | F42: 3000 | G42: 24430.47 | H42: 10 | I42: 0.1 | J42: 2443.047 | K42: 2443 | L42: 0.047
A43: 1945 | B43: Measurement & Testing Equipment | C43: 0 | D43: 0 | E43: 0 | F43: 0 | G43: 0 | I43: 0 | J43: 0 | L43: 0
A44: 1950 | B44: Power Operated Equipment | C44: 4363.29 | D44: 2163 | E44: 2200.29 | F44: 2000 | G44: 3200.29 | H44: 8 | I44: 0.125 | J44: 400.03625 | K44: 400 | L44: 0.03625
A45: 1955 | B45: Communications Equipment | E45: 0 | G45: 0 | I45: 0 | J45: 0 | L45: 0
A46: 1955 | B46: Communication Equipment (Smart Meters) | E46: 0 | G46: 0 | I46: 0 | J46: 0 | L46: 0
A47: 1960 | B47: Miscellaneous Equipment | E47: 0 | G47: 0 | I47: 0 | J47: 0 | L47: 0
A48: 1975 | B48: Load Management Controls Utility Premises | E48: 0 | G48: 0 | I48: 0 | J48: 0 | L48: 0
A49: 1980 | B49: System Supervisor Equipment | E49: 0 | G49: 0 | I49: 0 | J49: 0 | L49: 0
A50: 1985 | B50: Miscellaneous Fixed Assets | E50: 0 | G50: 0 | I50: 0 | J50: 0 | L50: 0
A51: 1995 | B51: Contributions & Grants | C51: -254514 | E51: -254514 | F51: -20113 | G51: -264570.5 | H51: 25 | I51: 0.04 | J51: -10582.82 | K51: -10581.81 | L51: -1.01
A52: etc. | E52: 0 | G52: 0 | I52: 0 | J52: 0 | L52: 0
E53: 0 | G53: 0 | I53: 0 | J53: 0 | L53: 0
B54: Total | C54: =SUM(C16:C53) -> 4492501.81 | D54: =SUM(D16:D53) -> 6980 | E54: =SUM(E16:E53) -> 4485521.81 | F54: =SUM(F16:F53) -> 2582987 | G54: =SUM(G16:G53) -> 5777015.31 | J54: =SUM(J16:J53) -> 231449.293 | K54: =SUM(K16:K53) -> 231450.19 | L54: =SUM(L16:L53) -> -0.8969833333
A56: Notes:
A58: 1 | B58: Board policy of the "half-year" rule - the applicant must ensure that additions in the year attract a half-year depreciation expense in the first year. Deviations from this standard practice must be supported in the application.
A59: 2 | B59: The applicant must provide an explanation of material variances in evidence
A61: General | B61: Applicants must provide a breakdown of depreciation and amortization expense in the above format for all relevant accounts. Asset Retirement Obligations (AROs), depreciation and accretion expense should be disclosed separately consistent with the Notes of historical Audited Financial Statements.

Sheet App.2-CF_CGAAP_NewDepExp_2013
K1: File Number: | L1: 0
K2: Exhibit: | L2: 2
K3: Tab: | L3: 1
K4: Schedule: | L4: 6
K5: Page: | L5: 2
K7: Date:
A9: Appendix 2-CA
A10: Depreciation and Amortization Expense
A11: Assumes the applicant adopted IFRS for financial reporting purposes January 1, 2015
C12: Year | D12: 2013 | E12: NewCGAAP
A14: Account | B14: Description | C14: Opening Regulatory Gross PP&E as at Jan 1, 2013 | D14: Less Fully Depreciated | E14: Net for Depreciation | F14: Additions | G14: Total for Depreciation | H14: Years | I14: Depreciation Rate | J14: Depreciation Expense | K14: 2013 Depreciation Expense per Appendix 2-B Fixed Assets, Column K (l) | L14: Variance 2
C15: (a) | D15: (b) | E15: (c) | F15: (d) | G15: (e) = (c) + ½ x (d) 1 | H15: (f) | I15: (g) = 1 / (f) | J15: (h) = (e) / (f) | L15: (m) = (h) - (l)
A16: 1611 | B16: Computer Software (Formally known as Account 1925) | C16: ='App 2-B FixAsset 2013-NewCGAAP'!E16 -> 181024.11 | D16: 81389.11 | E16: =C16-D16 -> 99635 | F16: ='App 2-B FixAsset 2013-NewCGAAP'!F16 -> 28000 | G16: =E16+0.5*F16 -> 113635 | H16: 5 | I16: =IF(H16=0,0,1/H16) -> 0.2 | J16: =IF(H16=0,0,G16/H16) -> 22727 | K16: 22727 | L16: =IF(ISERROR(+J16-K16), 0, +J16-K16) -> 3.637978807e-12 | M16: =L16/I16 -> 1.818989404e-11
A17: 1612 | B17: Land Rights (Formally known as Account 1906) | C17: ='App 2-B FixAsset 2013-NewCGAAP'!E17 -> 8588 | D17: 8588 | E17: =C17-D17 -> 0 | F17: ='App 2-B FixAsset 2013-NewCGAAP'!F17 -> 0 | G17: =E17+0.5*F17 -> 0 | I17: 0 | J17: 0 | K17: 0 | L17: 0
A18: 1805 | B18: Land | C18: ='App 2-B FixAsset 2013-NewCGAAP'!E18 -> 10000 | D18: 10000 | E18: 0 | F18: ='App 2-B FixAsset 2013-NewCGAAP'!F18 -> 0 | G18: 0 | I18: 0 | J18: 0 | K18: 0 | L18: 0
A19: 1808 | B19: Buildings | C19: ='App 2-B FixAsset 2013-NewCGAAP'!E19 -> 0 | D19: 0 | E19: 0 | F19: ='App 2-B FixAsset 2013-NewCGAAP'!F19 -> 0 | G19: 0 | I19: 0 | J19: 0 | L19: 0
A20: 1810 | B20: Leasehold Improvements | C20: ='App 2-B FixAsset 2013-NewCGAAP'!E20 -> 0 | D20: 0 | E20: 0 | F20: ='App 2-B FixAsset 2013-NewCGAAP'!F20 -> 0 | G20: 0 | I20: 0 | J20: 0 | L20: 0
A21: 1815 | B21: Transformer Station Equipment >50 kV | C21: ='App 2-B FixAsset 2013-NewCGAAP'!E21 -> 482801.74 | D21: 40402 | E21: 442399.74 | F21: ='App 2-B FixAsset 2013-NewCGAAP'!F21 -> 1547900 | G21: 1216349.74 | H21: 45 | I21: 0.02222222222 | J21: 27029.99422 | K21: 27030 | L21: -0.005777777777
A22: 1820 | B22: Distribution Station Equipment <50 kV | C22: ='App 2-B FixAsset 2013-NewCGAAP'!E22 -> 256183.09 | D22: -137564 | E22: 393747.09 | F22: ='App 2-B FixAsset 2013-NewCGAAP'!F22 -> 800000 | G22: 793747.09 | H22: 45 | I22: 0.02222222222 | J22: 17638.82422 | K22: 17639 | L22: -0.1757777778
A23: 1825 | B23: Storage Battery Equipment | C23: ='App 2-B FixAsset 2013-NewCGAAP'!E23 -> 0 | D23: 0 | E23: 0 | F23: ='App 2-B FixAsset 2013-NewCGAAP'!F23 -> 0 | G23: 0 | I23: 0 | J23: 0 | L23: 0
A24: 1830 | B24: Poles, Towers & Fixtures | C24: ='App 2-B FixAsset 2013-NewCGAAP'!E24 -> 459627.23 | D24: -95987.77 | E24: 555615 | F24: ='App 2-B FixAsset 2013-NewCGAAP'!F24 -> 99000 | G24: 605115 | H24: 45 | I24: 0.02222222222 | J24: 13447 | K24: 13447 | L24: 0
A25: 1835 | B25: Overhead Conductors & Devices | C25: ='App 2-B FixAsset 2013-NewCGAAP'!E25 -> 475830.16 | D25: -124389.84 | E25: 600220 | F25: ='App 2-B FixAsset 2013-NewCGAAP'!F25 -> 25000 | G25: 612720 | H25: 60 | I25: 0.01666666667 | J25: 10212 | K25: 10212 | L25: 0
A26: 1840 | B26: Underground Conduit | C26: ='App 2-B FixAsset 2013-NewCGAAP'!E26 -> 113855.12 | D26: -23694.88 | E26: 137550 | F26: ='App 2-B FixAsset 2013-NewCGAAP'!F26 -> 500 | G26: 137800 | H26: 50 | I26: 0.02 | J26: 2756 | K26: 2756 | L26: 0
A27: 1845 | B27: Underground Conductors & Devices | C27: ='App 2-B FixAsset 2013-NewCGAAP'!E27 -> 265912.57 | D27: -35217.43 | E27: 301130 | F27: ='App 2-B FixAsset 2013-NewCGAAP'!F27 -> 17000 | G27: 309630 | H27: 30 | I27: 0.03333333333 | J27: 10321 | K27: 10321 | L27: 0
A28: 1850 | B28: Line Transformers | C28: ='App 2-B FixAsset 2013-NewCGAAP'!E28 -> 408792.76 | D28: 22312.76 | E28: 386480 | F28: ='App 2-B FixAsset 2013-NewCGAAP'!F28 -> 28000 | G28: 400480 | H28: 40 | I28: 0.025 | J28: 10012 | K28: 10012 | L28: 1.818989404e-12
A29: 1855 | B29: Services (Overhead & Underground) | C29: ='App 2-B FixAsset 2013-NewCGAAP'!E29 -> 32419.82 | D29: 19.82 | E29: 32400 | F29: ='App 2-B FixAsset 2013-NewCGAAP'!F29 -> 3000 | G29: 33900 | H29: 30 | I29: 0.03333333333 | J29: 1130 | K29: 1130 | L29: 0
A30: 1860 | B30: Meters | C30: ='App 2-B FixAsset 2013-NewCGAAP'!E30 -> 254843.38 | D30: 28468.38 | E30: 226375 | F30: ='App 2-B FixAsset 2013-NewCGAAP'!F30 -> 0 | G30: 226375 | H30: 25 | I30: 0.04 | J30: 9055 | K30: 9055 | L30: 0
A31: 1860 | B31: Meters (Smart Meters) | C31: ='App 2-B FixAsset 2013-NewCGAAP'!E31 -> 618898.5 | D31: 0 | E31: 618898.5 | F31: ='App 2-B FixAsset 2013-NewCGAAP'!F31 -> 3500 | G31: 620648.5 | H31: 15 | I31: 0.06666666667 | J31: 41376.56667 | K31: 41377 | L31: -0.4333333333
A32: 1905 | B32: Land | C32: ='App 2-B FixAsset 2013-NewCGAAP'!E32 -> 28299.7 | D32: 0 | E32: 28299.7 | F32: ='App 2-B FixAsset 2013-NewCGAAP'!F32 -> 0 | G32: 28299.7 | I32: 0 | J32: 0 | L32: 0
A33: 1908 | B33: Buildings & Fixtures - BUILDING ROOF | C33: ='App 2-B FixAsset 2013-NewCGAAP'!E33 -> 165167 | D33: 0 | E33: 165167 | F33: ='App 2-B FixAsset 2013-NewCGAAP'!F33 -> 18040 | G33: 174187 | H33: 25 | I33: 0.04 | J33: 6967.48 | K33: 6968 | L33: -0.52
A34: 1908 | B34: Buildings & Fixtures - INTERIOR FIXTURES | C34: ='App 2-B FixAsset 2013-NewCGAAP'!E34 -> 246040.77 | D34: 0 | E34: 246040.77 | F34: ='App 2-B FixAsset 2013-NewCGAAP'!F34 -> 19460 | G34: 255770.77 | H34: 15 | I34: 0.06666666667 | J34: 17051.38467 | K34: 17053 | L34: -1.615333333
A35: 1908 | B35: Buildings & Fixtures - STRUCTURE | C35: ='App 2-B FixAsset 2013-NewCGAAP'!E35 -> 412916 | D35: 0 | E35: 412916 | F35: ='App 2-B FixAsset 2013-NewCGAAP'!F35 -> 0 | G35: 412916 | H35: 50 | I35: 0.02 | J35: 8258.32 | K35: 8258 | L35: 0.32
A36: 1910 | B36: Leasehold Improvements | C36: ='App 2-B FixAsset 2013-NewCGAAP'!E36 -> 0 | D36: 0 | E36: 0 | F36: ='App 2-B FixAsset 2013-NewCGAAP'!F36 -> 0 | G36: 0 | I36: 0 | J36: 0 | L36: 0
A37: 1915 | B37: Office Furniture & Equipment (10 years) | C37: ='App 2-B FixAsset 2013-NewCGAAP'!E37 -> 33783.96 | D37: 6223.96 | E37: 27560 | F37: ='App 2-B FixAsset 2013-NewCGAAP'!F37 -> 5700 | G37: 30410 | H37: 10 | I37: 0.1 | J37: 3041 | K37: 3041 | L37: 0
A38: 1915 | B38: Office Furniture & Equipment (5 years) | C38: ='App 2-B FixAsset 2013-NewCGAAP'!E38 -> 0 | D38: 0 | E38: 0 | F38: ='App 2-B FixAsset 2013-NewCGAAP'!F38 -> 0 | G38: 0 | I38: 0 | J38: 0 | L38: 0
A39: 1920 | B39: Computer Equipment - Hardware | C39: ='App 2-B FixAsset 2013-NewCGAAP'!E39 -> 54878.11 | D39: 41508.11 | E39: 13370 | F39: ='App 2-B FixAsset 2013-NewCGAAP'!F39 -> 3000 | G39: 14870 | H39: 5 | I39: 0.2 | J39: 2974 | K39: 2974 | L39: -1.364242053e-12
A40: 1920 | B40: Computer Equip.-Hardware(Post Mar. 22/04) | C40: ='App 2-B FixAsset 2013-NewCGAAP'!E40 -> 0 | D40: 0 | E40: 0 | F40: ='App 2-B FixAsset 2013-NewCGAAP'!F40 -> 0 | G40: 0 | I40: 0 | J40: 0 | L40: 0
A41: 1920 | B41: Computer Equip.-Hardware(Post Mar. 19/07) | C41: ='App 2-B FixAsset 2013-NewCGAAP'!E41 -> 0 | D41: 0 | E41: 0 | F41: ='App 2-B FixAsset 2013-NewCGAAP'!F41 -> 0 | G41: 0 | I41: 0 | J41: 0 | L41: 0
A42: 1930 | B42: Transportation Equipment | C42: ='App 2-B FixAsset 2013-NewCGAAP'!E42 -> 204793.8 | D42: 184345.8 | E42: 20448 | F42: ='App 2-B FixAsset 2013-NewCGAAP'!F42 -> 0 | G42: 20448 | H42: 8 | I42: 0.125 | J42: 2556 | K42: 2556 | L42: 0
A43: 1935 | B43: Stores Equipment | C43: ='App 2-B FixAsset 2013-NewCGAAP'!E43 -> 0 | D43: 0 | E43: 0 | F43: ='App 2-B FixAsset 2013-NewCGAAP'!F43 -> 0 | G43: 0 | I43: 0 | J43: 0 | L43: 0
A44: 1940 | B44: Tools, Shop & Garage Equipment | C44: ='App 2-B FixAsset 2013-NewCGAAP'!E44 -> 27996.47 | D44: 5066.47 | E44: 22930 | F44: ='App 2-B FixAsset 2013-NewCGAAP'!F44 -> 3000 | G44: 24430 | H44: 10 | I44: 0.1 | J44: 2443 | K44: 2443 | L44: 0
A45: 1945 | B45: Measurement & Testing Equipment | C45: ='App 2-B FixAsset 2013-NewCGAAP'!E45 -> 0 | D45: 0 | E45: 0 | F45: ='App 2-B FixAsset 2013-NewCGAAP'!F45 -> 0 | G45: 0 | I45: 0 | J45: 0 | L45: 0
A46: 1950 | B46: Power Operated Equipment | C46: ='App 2-B FixAsset 2013-NewCGAAP'!E46 -> 4363.29 | D46: 2163.29 | E46: 2200 | F46: ='App 2-B FixAsset 2013-NewCGAAP'!F46 -> 2000 | G46: 3200 | H46: 8 | I46: 0.125 | J46: 400 | K46: 400 | L46: 0
A47: 1955 | B47: Communications Equipment | C47: ='App 2-B FixAsset 2013-NewCGAAP'!E47 -> 0 | D47: 0 | E47: 0 | F47: ='App 2-B FixAsset 2013-NewCGAAP'!F47 -> 0 | G47: 0 | I47: 0 | J47: 0 | L47: 0
A48: 1955 | B48: Communication Equipment (Smart Meters) | C48: ='App 2-B FixAsset 2013-NewCGAAP'!E48 -> 0 | D48: 0 | E48: 0 | F48: ='App 2-B FixAsset 2013-NewCGAAP'!F48 -> 0 | G48: 0 | I48: 0 | J48: 0 | L48: 0
A49: 1960 | B49: Miscellaneous Equipment | C49: ='App 2-B FixAsset 2013-NewCGAAP'!E49 -> 0 | D49: 0 | E49: 0 | F49: ='App 2-B FixAsset 2013-NewCGAAP'!F49 -> 0 | G49: 0 | I49: 0 | J49: 0 | L49: 0
A50: 1975 | B50: Load Management Controls Utility Premises | C50: ='App 2-B FixAsset 2013-NewCGAAP'!E50 -> 0 | D50: 0 | E50: 0 | F50: ='App 2-B FixAsset 2013-NewCGAAP'!F50 -> 0 | G50: 0 | I50: 0 | J50: 0 | L50: 0
A51: 1980 | B51: System Supervisor Equipment | C51: ='App 2-B FixAsset 2013-NewCGAAP'!E51 -> 0 | D51: 0 | E51: 0 | F51: ='App 2-B FixAsset 2013-NewCGAAP'!F51 -> 0 | G51: 0 | I51: 0 | J51: 0 | L51: 0
A52: 1985 | B52: Miscellaneous Fixed Assets | C52: ='App 2-B FixAsset 2013-NewCGAAP'!E52 -> 0 | D52: 0 | E52: 0 | F52: ='App 2-B FixAsset 2013-NewCGAAP'!F52 -> 0 | G52: 0 | I52: 0 | J52: 0 | L52: 0
A53: 1995 | B53: Contributions & Grants - ACCT 1830 | C53: ='App 2-B FixAsset 2013-NewCGAAP'!E53 -> -77570.38 | D53: 0 | E53: -77570.38 | F53: ='App 2-B FixAsset 2013-NewCGAAP'!F53 -> 0 | G53: -77570.38 | H53: 45 | I53: 0.02222222222 | J53: -1723.786222 | K53: -1724 | L53: 0.2137777778
A54: 1995 | B54: Contributions & Grants - ACCT 1835 | C54: ='App 2-B FixAsset 2013-NewCGAAP'!E54 -> -49660.65 | D54: 0 | E54: -49660.65 | F54: ='App 2-B FixAsset 2013-NewCGAAP'!F54 -> 0 | G54: -49660.65 | H54: 60 | I54: 0.01666666667 | J54: -827.6775 | K54: -828 | L54: 0.3225
A55: 1995 | B55: Contributions & Grants - ACCT 1840 | C55: ='App 2-B FixAsset 2013-NewCGAAP'!E55 -> -219.86 | D55: 0 | E55: -219.86 | F55: ='App 2-B FixAsset 2013-NewCGAAP'!F55 -> 0 | G55: -219.86 | H55: 50 | I55: 0.02 | J55: -4.3972 | K55: -4 | L55: -0.3972
A56: 1995 | B56: Contributions & Grants - ACCT 1845 | C56: ='App 2-B FixAsset 2013-NewCGAAP'!E56 -> -80350.46 | D56: 0 | E56: -80350.46 | F56: ='App 2-B FixAsset 2013-NewCGAAP'!F56 -> -7643 | G56: -80350.46 | H56: 30 | I56: 0.03333333333 | J56: -2805 | K56: -2805 | L56: 0
A57: 1995 | B57: Contributions & Grants - ACCT 1850 | C57: ='App 2-B FixAsset 2013-NewCGAAP'!E57 -> -46712.83 | D57: 0 | E57: -46712.83 | F57: ='App 2-B FixAsset 2013-NewCGAAP'!F57 -> -12470 | G57: -46712.83 | H57: 40 | I57: 0.025 | J57: -1324 | K57: -1324 | L57: 0
E58: 0 | G58: 0 | I58: 0 | J58: 0 | L58: 0
B59: Total | C59: =SUM(C16:C58) -> 4492501.4 | D59: =SUM(D16:D58) -> 13633.78 | E59: =SUM(E16:E58) -> 4478867.62 | F59: =SUM(F16:F58) -> 2582987 | G59: =SUM(G16:G58) -> 5780417.62 | J59: =SUM(J16:J58) -> 202711.7089 | K59: =SUM(K16:K58) -> 202714 | L59: =SUM(L16:L58) -> -2.291144444
A61: Notes:
A63: 1 | B63: Board policy of the "half-year" rule - the applicant must ensure that additions in the year attract a half-year depreciation expense in the first year. Deviations from this standard practice must be supported in the application.
A64: 2 | B64: The applicant must provide an explanation of material variances in evidence
A66: General | B66: Applicants must provide a breakdown of depreciation and amortization expense in the above format for all relevant accounts. Asset Retirement Obligations (AROs), depreciation and accretion expense should be disclosed separately consistent with the Notes of historical Audited Financial Statements.

Sheet App.2-CF_OldCGAAP_DepExp_2014
K1: File Number: | L1: 0
K2: Exhibit: | L2: 2
K3: Tab: | L3: 1
K4: Schedule: | L4: 6
K5: Page: | L5: 3
K7: Date:
A9: Appendix 2-CA
A10: Depreciation and Amortization Expense
A11: Assumes the applicant adopted IFRS for financial reporting purposes January 1, 2015
C12: Year | D12: 2014 | E12: OldCGAAP
A14: Account | B14: Description | C14: Opening Regulatory Gross PP&E as at Jan 1, 2014 | D14: Less Fully Depreciated | E14: Net for Depreciation | F14: Additions | G14: Total for Depreciation | H14: Years | I14: Depreciation Rate | J14: Depreciation Expense | K14: 2014 Depreciation Expense per Appendix 2-B Fixed Assets, Column K (l) | L14: Variance 2
C15: (a) | D15: (b) | E15: (c) | F15: (d) | G15: (e) = (c) + ½ x (d) 1 | H15: (f) | I15: (g) = 1 / (f) | J15: (h) = (e) / (f) | L15: (m) = (h) - (l)
A16: 1611 | B16: Computer Software (Formally known as Account 1925) | C16: ='[5]App.2-B_FixAsset 2014-NewCGAAP'!E16 -> 209024.11 | D16: 113414.11 | E16: =C16-D16 -> 95610 | F16: ='[5]App.2-B_FixAsset 2014-NewCGAAP'!F16 -> 17000 | G16: =E16+0.5*F16 -> 104110 | H16: 5 | I16: =IF(H16=0,0,1/H16) -> 0.2 | J16: =IF(H16=0,0,G16/H16) -> 20822 | K16: 20822 | L16: =IF(ISERROR(+J16-K16), 0, +J16-K16) -> 3.637978807e-12 | M16: =+L16/I16 -> 1.818989404e-11
A17: 1612 | B17: Land Rights (Formally known as Account 1906) | C17: ='[5]App.2-B_FixAsset 2014-NewCGAAP'!E17 -> 8588 | D17: 0 | E17: =C17-D17 -> 8588 | F17: ='[5]App.2-B_FixAsset 2014-NewCGAAP'!F17 -> 0 | G17: =E17+0.5*F17 -> 8588 | I17: 0 | J17: 0 | K17: 0 | L17: 0
A18: 1805 | B18: Land | C18: ='[5]App.2-B_FixAsset 2014-NewCGAAP'!E18 -> 10000 | D18: 0 | E18: 10000 | F18: ='[5]App.2-B_FixAsset 2014-NewCGAAP'!F18 -> 0 | G18: 10000 | I18: 0 | J18: 0 | K18: 0 | L18: 0
A19: 1808 | B19: Buildings | C19: ='[5]App.2-B_FixAsset 2014-NewCGAAP'!E19 -> 0 | D19: 0 | E19: 0 | F19: ='[5]App.2-B_FixAsset 2014-NewCGAAP'!F19 -> 0 | G19: 0 | I19: 0 | J19: 0 | K19: 0 | L19: 0
A20: 1810 | B20: Leasehold Improvements | C20: ='[5]App.2-B_FixAsset 2014-NewCGAAP'!E20 -> 0 | D20: 0 | E20: 0 | F20: ='[5]App.2-B_FixAsset 2014-NewCGAAP'!F20 -> 0 | G20: 0 | I20: 0 | J20: 0 | K20: 0 | L20: 0
A21: 1815 | B21: Transformer Station Equipment >50 kV | C21: ='[5]App.2-B_FixAsset 2014-NewCGAAP'!E21 -> 2030701.74 | D21: 40386.74 | E21: 1990315 | F21: ='[5]App.2-B_FixAsset 2014-NewCGAAP'!F21 -> 25000 | G21: 2002815 | H21: 40 | I21: 0.025 | J21: 50070.375 | K21: 50070.375 | L21: 0
A22: 1820 | B22: Distribution Station Equipment <50 kV | C22: ='[5]App.2-B_FixAsset 2014-NewCGAAP'!E22 -> 1056183 | D22: -137592 | E22: 1193775 | F22: ='[5]App.2-B_FixAsset 2014-NewCGAAP'!F22 -> 60000 | G22: 1223775 | H22: 30 | I22: 0.03333333333 | J22: 40792.5 | K22: 40792.5 | L22: 0
A23: 1825 | B23: Storage Battery Equipment | C23: ='[5]App.2-B_FixAsset 2014-NewCGAAP'!E23 -> 0 | D23: ='[5]App.2-B_FixAsset 2014-NewCGAAP'!G23 -> 0 | E23: 0 | F23: ='[5]App.2-B_FixAsset 2014-NewCGAAP'!F23 -> 0 | G23: 0 | I23: 0 | J23: 0 | K23: 0 | L23: 0
A24: 1830 | B24: Poles, Towers & Fixtures | C24: ='[5]App.2-B_FixAsset 2014-NewCGAAP'!E24 -> 558627.23 | D24: 50402.23 | E24: 508225 | F24: ='[5]App.2-B_FixAsset 2014-NewCGAAP'!F24 -> 89000 | G24: 552725 | H24: 25 | I24: 0.04 | J24: 22109 | K24: 22109 | L24: 0
A25: 1835 | B25: Overhead Conductors & Devices | C25: ='[5]App.2-B_FixAsset 2014-NewCGAAP'!E25 -> 500830.16 | D25: -63694.84 | E25: 564525 | F25: ='[5]App.2-B_FixAsset 2014-NewCGAAP'!F25 -> 20000 | G25: 574525 | H25: 25 | I25: 0.04 | J25: 22981 | K25: 22981 | L25: 0
A26: 1840 | B26: Underground Conduit | C26: ='[5]App.2-B_FixAsset 2014-NewCGAAP'!E26 -> 114355.12 | D26: -22094.88 | E26: 136450 | F26: ='[5]App.2-B_FixAsset 2014-NewCGAAP'!F26 -> 500 | G26: 136700 | H26: 25 | I26: 0.04 | J26: 5468 | K26: 5468 | L26: 0
A27: 1845 | B27: Underground Conductors & Devices | C27: ='[5]App.2-B_FixAsset 2014-NewCGAAP'!E27 -> 282912.57 | D27: -32912.43 | E27: 315825 | F27: ='[5]App.2-B_FixAsset 2014-NewCGAAP'!F27 -> 17500 | G27: 324575 | H27: 25 | I27: 0.04 | J27: 12983 | K27: 12983 | L27: 0
A28: 1850 | B28: Line Transformers | C28: ='[5]App.2-B_FixAsset 2014-NewCGAAP'!E28 -> 435244.76 | D28: 47044.76 | E28: 388200 | F28: ='[5]App.2-B_FixAsset 2014-NewCGAAP'!F28 -> 12500 | G28: 394450 | H28: 25 | I28: 0.04 | J28: 15778 | K28: 15778 | L28: 1.818989404e-12
A29: 1855 | B29: Services (Overhead & Underground) | C29: ='[5]App.2-B_FixAsset 2014-NewCGAAP'!E29 -> 35419.82 | D29: ='[5]App.2-B_FixAsset 2014-NewCGAAP'!G29 -> 0 | E29: 35419.82 | F29: ='[5]App.2-B_FixAsset 2014-NewCGAAP'!F29 -> 3100 | G29: 36969.82 | H29: 25 | I29: 0.04 | J29: 1478.7928 | K29: 1478.7928 | L29: 0
A30: 1860 | B30: Meters | C30: ='[5]App.2-B_FixAsset 2014-NewCGAAP'!E30 -> 254843.38 | D30: 246912.13 | E30: 7931.25 | F30: ='[5]App.2-B_FixAsset 2014-NewCGAAP'!F30 -> 0 | G30: 7931.25 | H30: 25 | I30: 0.04 | J30: 317.25 | K30: 317 | L30: 0.25
A31: 1860 | B31: Meters (Smart Meters) | C31: ='[5]App.2-B_FixAsset 2014-NewCGAAP'!E31 -> 622398.5 | D31: ='[5]App.2-B_FixAsset 2014-NewCGAAP'!G31 -> 0 | E31: 622398.5 | F31: ='[5]App.2-B_FixAsset 2014-NewCGAAP'!F31 -> 3500 | G31: 624148.5 | H31: 15 | I31: 0.06666666667 | J31: 41609.9 | K31: 41609.9 | L31: 0
A32: 1905 | B32: Land | C32: ='[5]App.2-B_FixAsset 2014-NewCGAAP'!E32 -> 28299.7 | D32: ='[5]App.2-B_FixAsset 2014-NewCGAAP'!G32 -> 0 | E32: 28299.7 | F32: ='[5]App.2-B_FixAsset 2014-NewCGAAP'!F32 -> 0 | G32: 28299.7 | I32: 0 | J32: 0 | K32: 0 | L32: 0
A33: 1908 | B33: Buildings & Fixtures - BUILDING ROOF | C33: 861624 | D33: -25826 | E33: 887450 | F33: 12500 | G33: 893700 | H33: 50 | I33: 0.02 | J33: 17874 | K33: 17874 | L33: 0
A36: 1910 | B36: Leasehold Improvements | C36: ='[5]App.2-B_FixAsset 2014-NewCGAAP'!E36 -> 0 | D36: ='[5]App.2-B_FixAsset 2014-NewCGAAP'!G36 -> 0 | E36: 0 | F36: ='[5]App.2-B_FixAsset 2014-NewCGAAP'!F36 -> 0 | G36: 0 | I36: 0 | J36: 0 | K36: 0 | L36: 0
A37: 1915 | B37: Office Furniture & Equipment (10 years) | C37: ='[5]App.2-B_FixAsset 2014-NewCGAAP'!E37 -> 39483.96 | D37: 25588.96 | E37: 13895 | F37: ='[5]App.2-B_FixAsset 2014-NewCGAAP'!F37 -> 3500 | G37: 15645 | H37: 5 | I37: 0.2 | J37: 3129 | K37: 3129 | L37: 0
A38: 1915 | B38: Office Furniture & Equipment (5 years) | C38: ='[5]App.2-B_FixAsset 2014-NewCGAAP'!E38 -> 0 | D38: ='[5]App.2-B_FixAsset 2014-NewCGAAP'!G38 -> 0 | E38: 0 | F38: ='[5]App.2-B_FixAsset 2014-NewCGAAP'!F38 -> 0 | G38: 0 | I38: 0 | J38: 0 | K38: 0 | L38: 0
A39: 1920 | B39: Computer Equipment - Hardware | C39: ='[5]App.2-B_FixAsset 2014-NewCGAAP'!E39 -> 57878.11 | D39: 44523.11 | E39: 13355 | F39: ='[5]App.2-B_FixAsset 2014-NewCGAAP'!F39 -> 3100 | G39: 14905 | H39: 5 | I39: 0.2 | J39: 2981 | K39: 2981 | L39: -1.364242053e-12
A40: 1920 | B40: Computer Equip.-Hardware(Post Mar. 22/04) | C40: ='[5]App.2-B_FixAsset 2014-NewCGAAP'!E40 -> 0 | D40: ='[5]App.2-B_FixAsset 2014-NewCGAAP'!G40 -> 0 | E40: 0 | F40: ='[5]App.2-B_FixAsset 2014-NewCGAAP'!F40 -> 0 | G40: 0 | H40: 8 | I40: 0.125 | J40: 0 | K40: 0 | L40: 0
A41: 1920 | B41: Computer Equip.-Hardware(Post Mar. 19/07) | C41: ='[5]App.2-B_FixAsset 2014-NewCGAAP'!E41 -> 0 | D41: ='[5]App.2-B_FixAsset 2014-NewCGAAP'!G41 -> 0 | E41: 0 | F41: ='[5]App.2-B_FixAsset 2014-NewCGAAP'!F41 -> 0 | G41: 0 | I41: 0 | J41: 0 | K41: 0 | L41: 0
A42: 1930 | B42: Transportation Equipment | C42: ='[5]App.2-B_FixAsset 2014-NewCGAAP'!E42 -> 204793.8 | D42: 179233 | E42: 25560.8 | F42: ='[5]App.2-B_FixAsset 2014-NewCGAAP'!F42 -> 0 | G42: 25560.8 | H42: 10 | I42: 0.1 | J42: 2556.08 | K42: 2556 | L42: 0.08
A43: 1935 | B43: Stores Equipment | C43: ='[5]App.2-B_FixAsset 2014-NewCGAAP'!E43 -> 0 | D43: ='[5]App.2-B_FixAsset 2014-NewCGAAP'!G43 -> 0 | E43: 0 | F43: ='[5]App.2-B_FixAsset 2014-NewCGAAP'!F43 -> 0 | G43: 0 | I43: 0 | J43: 0 | K43: 0 | L43: 0
A44: 1940 | B44: Tools, Shop & Garage Equipment | C44: ='[5]App.2-B_FixAsset 2014-NewCGAAP'!E44 -> 30996.47 | D44: 11938.47 | E44: 19058 | F44: ='[5]App.2-B_FixAsset 2014-NewCGAAP'!F44 -> 3100 | G44: 20608 | H44: 8 | I44: 0.125 | J44: 2576 | K44: 2576 | L44: 0
A45: 1945 | B45: Measurement & Testing Equipment | C45: ='[5]App.2-B_FixAsset 2014-NewCGAAP'!E45 -> 0 | D45: ='[5]App.2-B_FixAsset 2014-NewCGAAP'!G45 -> 0 | E45: 0 | F45: ='[5]App.2-B_FixAsset 2014-NewCGAAP'!F45 -> 0 | G45: 0 | I45: 0 | J45: 0 | K45: 0 | L45: 0
A46: 1950 | B46: Power Operated Equipment | C46: ='[5]App.2-B_FixAsset 2014-NewCGAAP'!E46 -> 6363.29 | D46: 4363.29 | E46: 2000 | F46: ='[5]App.2-B_FixAsset 2014-NewCGAAP'!F46 -> 2000 | G46: 3000 | H46: 8 | I46: 0.125 | J46: 375 | K46: 375 | L46: 0
A47: 1955 | B47: Communications Equipment | C47: ='[5]App.2-B_FixAsset 2014-NewCGAAP'!E47 -> 0 | D47: ='[5]App.2-B_FixAsset 2014-NewCGAAP'!G47 -> 0 | E47: 0 | F47: ='[5]App.2-B_FixAsset 2014-NewCGAAP'!F47 -> 0 | G47: 0 | I47: 0 | J47: 0 | K47: 0 | L47: 0
A48: 1955 | B48: Communication Equipment (Smart Meters) | C48: ='[5]App.2-B_FixAsset 2014-NewCGAAP'!E48 -> 0 | D48: ='[5]App.2-B_FixAsset 2014-NewCGAAP'!G48 -> 0 | E48: 0 | F48: ='[5]App.2-B_FixAsset 2014-NewCGAAP'!F48 -> 0 | G48: 0 | I48: 0 | J48: 0 | K48: 0 | L48: 0
A49: 1960 | B49: Miscellaneous Equipment | C49: ='[5]App.2-B_FixAsset 2014-NewCGAAP'!E49 -> 0 | D49: ='[5]App.2-B_FixAsset 2014-NewCGAAP'!G49 -> 0 | E49: 0 | F49: ='[5]App.2-B_FixAsset 2014-NewCGAAP'!F49 -> 0 | G49: 0 | I49: 0 | J49: 0 | K49: 0 | L49: 0
A50: 1975 | B50: Load Management Controls Utility Premises | C50: ='[5]App.2-B_FixAsset 2014-NewCGAAP'!E50 -> 0 | D50: ='[5]App.2-B_FixAsset 2014-NewCGAAP'!G50 -> 0 | E50: 0 | F50: ='[5]App.2-B_FixAsset 2014-NewCGAAP'!F50 -> 0 | G50: 0 | I50: 0 | J50: 0 | K50: 0 | L50: 0
A51: 1980 | B51: System Supervisor Equipment | C51: ='[5]App.2-B_FixAsset 2014-NewCGAAP'!E51 -> 0 | D51: ='[5]App.2-B_FixAsset 2014-NewCGAAP'!G51 -> 0 | E51: 0 | F51: ='[5]App.2-B_FixAsset 2014-NewCGAAP'!F51 -> 0 | G51: 0 | H51: 25 | I51: 0.04 | J51: 0 | K51: 0 | L51: 0
A52: 1985 | B52: Miscellaneous Fixed Assets | C52: ='[5]App.2-B_FixAsset 2014-NewCGAAP'!E52 -> 0 | D52: ='[5]App.2-B_FixAsset 2014-NewCGAAP'!G52 -> 0 | E52: 0 | F52: ='[5]App.2-B_FixAsset 2014-NewCGAAP'!F52 -> 0 | G52: 0 | I52: 0 | J52: 0 | K52: 0 | L52: 0
A53: 1995 | B53: Contributions & Grants - ACCT 1830 | C53: -77570.38 | D53: 0 | E53: -77570.38 | F53: ='[5]App.2-B_FixAsset 2014-NewCGAAP'!F53 -> 0 | G53: -77570.38 | H53: 25 | I53: 0.04 | J53: -3102.8152 | K53: -3103.41 | L53: 0.5948
A54: 1995 | B54: Contributions & Grants - ACCT 1835 | C54: -49660.65 | D54: 0 | E54: -49660.65 | F54: ='[5]App.2-B_FixAsset 2014-NewCGAAP'!F54 -> 0 | G54: -49660.65 | H54: 25 | I54: 0.04 | J54: -1986.426 | K54: -1986 | L54: -0.426
A55: 1995 | B55: Contributions & Grants - ACCT 1840 | C55: -219.86 | D55: 0 | E55: -219.86 | F55: ='[5]App.2-B_FixAsset 2014-NewCGAAP'!F55 -> 0 | G55: -219.86 | H55: 25 | I55: 0.04 | J55: -8.7944 | K55: -9 | L55: 0.2056
A56: 1995 | B56: Contributions & Grants - ACCT 1845 | C56: -87993.46 | D56: 0 | E56: -80350.46 | F56: -10431 | G56: -80350.46 | H56: 25 | I56: 0.04 | J56: -3728.4 | K56: -3728.4 | L56: 0
A57: 1995 | B57: Contributions & Grants - ACCT 1850 | C57: -59182.83 | D57: 0 | E57: -46712.83 | F57: -17019 | G57: -46712.83 | H57: 25 | I57: 0.04 | J57: -2707 | K57: -2707 | L57: 0
G58: 0 | I58: 0 | J58: 0 | L58: 0
B59: Total | C59: =SUM(C16:C58) -> 7073940.54 | D59: =SUM(D16:D58) -> 481686.65 | E59: =SUM(E16:E58) -> 6612366.89 | F59: =SUM(F16:F58) -> 244850 | G59: =SUM(G16:G58) -> 6748516.89 | J59: =SUM(J16:J58) -> 252367.4622 | K59: =SUM(K16:K58) -> 252366.7578 | L59: =SUM(L16:L58) -> 0.7044
A61: Notes:
A63: 1 | B63: Board policy of the "half-year" rule - the applicant must ensure that additions in the year attract a half-year depreciation expense in the first year. Deviations from this standard practice must be supported in the application.
A64: 2 | B64: The applicant must provide an explanation of material variances in evidence
A66: General | B66: Applicants must provide a breakdown of depreciation and amortization expense in the above format for all relevant accounts. Asset Retirement Obligations (AROs), depreciation and accretion expense should be disclosed separately consistent with the Notes of historical Audited Financial Statements.

Sheet App.2-CF_CGAAP_DepExp_2014
K1: File Number: | L1: 0
K2: Exhibit: | L2: 2
K3: Tab: | L3: 1
K4: Schedule: | L4: 6
K5: Page: | L5: 3
K7: Date:
A9: Appendix 2-CA
A10: Depreciation and Amortization Expense
A11: Assumes the applicant adopted IFRS for financial reporting purposes January 1, 2015
C12: Year | D12: 2014 | E12: NewCGAAP
A14: Account | B14: Description | C14: Opening Regulatory Gross PP&E as at Jan 1, 2014 | D14: Less Fully Depreciated | E14: Net for Depreciation | F14: Additions | G14: Total for Depreciation | H14: Years | I14: Depreciation Rate | J14: Depreciation Expense | K14: 2014 Depreciation Expense per Appendix 2-B Fixed Assets, Column K (l) | L14: Variance 2
C15: (a) | D15: (b) | E15: (c) | F15: (d) | G15: (e) = (c) + ½ x (d) 1 | H15: (f) | I15: (g) = 1 / (f) | J15: (h) = (e) / (f) | L15: (m) = (h) - (l)
A16: 1611 | B16: Computer Software (Formally known as Account 1925) | C16: ='App.2-B_FixAsset 2014-NewCGAAP'!E16 -> 209024.11 | D16: 113414.11 | E16: =C16-D16 -> 95610 | F16: ='App.2-B_FixAsset 2014-NewCGAAP'!F16 -> 17000 | G16: =E16+0.5*F16 -> 104110 | H16: 5 | I16: =IF(H16=0,0,1/H16) -> 0.2 | J16: =IF(H16=0,0,G16/H16) -> 20822 | K16: 20822 | L16: =IF(ISERROR(+J16-K16), 0, +J16-K16) -> 3.637978807e-12 | M16: =+L16/I16 -> 1.818989404e-11
A17: 1612 | B17: Land Rights (Formally known as Account 1906) | C17: ='App.2-B_FixAsset 2014-NewCGAAP'!E17 -> 8588 | D17: 0 | E17: =C17-D17 -> 8588 | F17: ='App.2-B_FixAsset 2014-NewCGAAP'!F17 -> 0 | G17: =E17+0.5*F17 -> 8588 | I17: 0 | J17: 0 | L17: 0
A18: 1805 | B18: Land | C18: ='App.2-B_FixAsset 2014-NewCGAAP'!E18 -> 10000 | D18: 0 | E18: 10000 | F18: ='App.2-B_FixAsset 2014-NewCGAAP'!F18 -> 0 | G18: 10000 | I18: 0 | J18: 0 | L18: 0
A19: 1808 | B19: Buildings | C19: ='App.2-B_FixAsset 2014-NewCGAAP'!E19 -> 0 | D19: 0 | E19: 0 | F19: ='App.2-B_FixAsset 2014-NewCGAAP'!F19 -> 0 | G19: 0 | I19: 0 | J19: 0 | L19: 0
A20: 1810 | B20: Leasehold Improvements | C20: ='App.2-B_FixAsset 2014-NewCGAAP'!E20 -> 0 | D20: 0 | E20: 0 | F20: ='App.2-B_FixAsset 2014-NewCGAAP'!F20 -> 0 | G20: 0 | I20: 0 | J20: 0 | L20: 0
A21: 1815 | B21: Transformer Station Equipment >50 kV | C21: ='App.2-B_FixAsset 2014-NewCGAAP'!E21 -> 2030701.74 | D21: 40386.74 | E21: 1990315 | F21: ='App.2-B_FixAsset 2014-NewCGAAP'!F21 -> 25000 | G21: 2002815 | H21: 45 | I21: 0.02222222222 | J21: 44507 | K21: 44507 | L21: 0
A22: 1820 | B22: Distribution Station Equipment <50 kV | C22: ='App.2-B_FixAsset 2014-NewCGAAP'!E22 -> 1056183 | D22: -137592 | E22: 1193775 | F22: ='App.2-B_FixAsset 2014-NewCGAAP'!F22 -> 60000 | G22: 1223775 | H22: 45 | I22: 0.02222222222 | J22: 27195 | K22: 27195 | L22: 0
A23: 1825 | B23: Storage Battery Equipment | C23: ='App.2-B_FixAsset 2014-NewCGAAP'!E23 -> 0 | D23: ='App.2-B_FixAsset 2014-NewCGAAP'!G23 -> 0 | E23: 0 | F23: ='App.2-B_FixAsset 2014-NewCGAAP'!F23 -> 0 | G23: 0 | I23: 0 | J23: 0 | L23: 0
A24: 1830 | B24: Poles, Towers & Fixtures | C24: ='App.2-B_FixAsset 2014-NewCGAAP'!E24 -> 558627.23 | D24: -32767.77 | E24: 591395 | F24: ='App.2-B_FixAsset 2014-NewCGAAP'!F24 -> 89000 | G24: 635895 | H24: 45 | I24: 0.02222222222 | J24: 14131 | K24: 14131 | L24: 0
A25: 1835 | B25: Overhead Conductors & Devices | C25: ='App.2-B_FixAsset 2014-NewCGAAP'!E25 -> 500830.16 | D25: -124449.84 | E25: 625280 | F25: ='App.2-B_FixAsset 2014-NewCGAAP'!F25 -> 20000 | G25: 635280 | H25: 60 | I25: 0.01666666667 | J25: 10588 | K25: 10588 | L25: 0
A26: 1840 | B26: Underground Conduit | C26: ='App.2-B_FixAsset 2014-NewCGAAP'!E26 -> 114355.12 | D26: -23544.88 | E26: 137900 | F26: ='App.2-B_FixAsset 2014-NewCGAAP'!F26 -> 500 | G26: 138150 | H26: 50 | I26: 0.02 | J26: 2763 | K26: 2763 | L26: 0
A27: 1845 | B27: Underground Conductors & Devices | C27: ='App.2-B_FixAsset 2014-NewCGAAP'!E27 -> 282912.57 | D27: -33447.43 | E27: 316360 | F27: ='App.2-B_FixAsset 2014-NewCGAAP'!F27 -> 17500 | G27: 325110 | H27: 30 | I27: 0.03333333333 | J27: 10837 | K27: 10837 | L27: 0
A28: 1850 | B28: Line Transformers | C28: ='App.2-B_FixAsset 2014-NewCGAAP'!E28 -> 435244.76 | D28: 31494.76 | E28: 403750 | F28: ='App.2-B_FixAsset 2014-NewCGAAP'!F28 -> 12500 | G28: 410000 | H28: 40 | I28: 0.025 | J28: 10250 | K28: 10250 | L28: 1.818989404e-12
A29: 1855 | B29: Services (Overhead & Underground) | C29: ='App.2-B_FixAsset 2014-NewCGAAP'!E29 -> 35419.82 | D29: ='App.2-B_FixAsset 2014-NewCGAAP'!G29 -> 0 | E29: 35419.82 | F29: ='App.2-B_FixAsset 2014-NewCGAAP'!F29 -> 3100 | G29: 36969.82 | H29: 30 | I29: 0.03333333333 | J29: 1232.327333 | K29: 1232 | L29: 0.3273333333
A30: 1860 | B30: Meters | C30: ='App.2-B_FixAsset 2014-NewCGAAP'!E30 -> 254843.38 | D30: =-'App.2-B_FixAsset 2014-NewCGAAP'!G30 -> 246912.13 | E30: 7931.25 | F30: ='App.2-B_FixAsset 2014-NewCGAAP'!F30 -> 0 | G30: 7931.25 | H30: 25 | I30: 0.04 | J30: 317.25 | K30: 317 | L30: 0.25
A31: 1860 | B31: Meters (Smart Meters) | C31: ='App.2-B_FixAsset 2014-NewCGAAP'!E31 -> 622398.5 | D31: ='App.2-B_FixAsset 2014-NewCGAAP'!G31 -> 0 | E31: 622398.5 | F31: ='App.2-B_FixAsset 2014-NewCGAAP'!F31 -> 3500 | G31: 624148.5 | H31: 15 | I31: 0.06666666667 | J31: 41609.9 | K31: 41610 | L31: -0.1
A32: 1905 | B32: Land | C32: ='App.2-B_FixAsset 2014-NewCGAAP'!E32 -> 28299.7 | D32: ='App.2-B_FixAsset 2014-NewCGAAP'!G32 -> 0 | E32: 28299.7 | F32: ='App.2-B_FixAsset 2014-NewCGAAP'!F32 -> 0 | G32: 28299.7 | I32: 0 | J32: 0 | L32: 0
A33: 1908 | B33: Buildings & Fixtures - BUILDING ROOF | C33: 183207 | D33: 0 | E33: 183207 | F33: ='App.2-B_FixAsset 2014-NewCGAAP'!F33 -> 0 | G33: 183207 | H33: 25 | I33: 0.04 | J33: 7328.28 | K33: 7329 | L33: -0.72
A34: 1908 | B34: Buildings & Fixtures - INTERIOR FIXTURES | C34: 265500.77 | D34: 0 | E34: 265500.77 | F34: ='App.2-B_FixAsset 2014-NewCGAAP'!F34 -> 12500 | G34: 271750.77 | H34: 15 | I34: =IF(H34=0,0,1/H34) -> 0.06666666667 | J34: =IF(H34=0,0,G34/H34) -> 18116.718 | K34: 18118 | L34: -1.282
A35: 1908 | B35: Buildings & Fixtures - STRUCTURE | C35: 412916 | D35: 0 | E35: 412916 | F35: ='App.2-B_FixAsset 2014-NewCGAAP'!F35 -> 0 | G35: 412916 | H35: 50 | I35: 0.02 | J35: 8258.32 | K35: 8258 | L35: 0.32
A36: 1910 | B36: Leasehold Improvements | C36: ='App.2-B_FixAsset 2014-NewCGAAP'!E36 -> 0 | D36: ='App.2-B_FixAsset 2014-NewCGAAP'!G36 -> 0 | E36: 0 | F36: ='App.2-B_FixAsset 2014-NewCGAAP'!F36 -> 0 | G36: 0 | I36: 0 | J36: 0 | L36: 0
A37: 1915 | B37: Office Furniture & Equipment (10 years) | C37: ='App.2-B_FixAsset 2014-NewCGAAP'!E37 -> 39483.96 | D37: 9953.96 | E37: 29530 | F37: ='App.2-B_FixAsset 2014-NewCGAAP'!F37 -> 3500 | G37: 31280 | H37: 10 | I37: 0.1 | J37: 3128 | K37: 3128 | L37: 0
A38: 1915 | B38: Office Furniture & Equipment (5 years) | C38: ='App.2-B_FixAsset 2014-NewCGAAP'!E38 -> 0 | D38: ='App.2-B_FixAsset 2014-NewCGAAP'!G38 -> 0 | E38: 0 | F38: ='App.2-B_FixAsset 2014-NewCGAAP'!F38 -> 0 | G38: 0 | I38: 0 | J38: 0 | L38: 0
A39: 1920 | B39: Computer Equipment - Hardware | C39: ='App.2-B_FixAsset 2014-NewCGAAP'!E39 -> 57878.11 | D39: 44523.11 | E39: 13355 | F39: ='App.2-B_FixAsset 2014-NewCGAAP'!F39 -> 3100 | G39: 14905 | H39: 5 | I39: 0.2 | J39: 2981 | K39: 2981 | L39: -1.364242053e-12
A40: 1920 | B40: Computer Equip.-Hardware(Post Mar. 22/04) | C40: ='App.2-B_FixAsset 2014-NewCGAAP'!E40 -> 0 | D40: ='App.2-B_FixAsset 2014-NewCGAAP'!G40 -> 0 | E40: 0 | F40: ='App.2-B_FixAsset 2014-NewCGAAP'!F40 -> 0 | G40: 0 | I40: 0 | J40: 0 | L40: 0
A41: 1920 | B41: Computer Equip.-Hardware(Post Mar. 19/07) | C41: ='App.2-B_FixAsset 2014-NewCGAAP'!E41 -> 0 | D41: ='App.2-B_FixAsset 2014-NewCGAAP'!G41 -> 0 | E41: 0 | F41: ='App.2-B_FixAsset 2014-NewCGAAP'!F41 -> 0 | G41: 0 | I41: 0 | J41: 0 | L41: 0
A42: 1930 | B42: Transportation Equipment | C42: ='App.2-B_FixAsset 2014-NewCGAAP'!E42 -> 204793.8 | D42: 184345.8 | E42: 20448 | F42: ='App.2-B_FixAsset 2014-NewCGAAP'!F42 -> 0 | G42: 20448 | H42: 8 | I42: 0.125 | J42: 2556 | K42: 2556 | L42: 0
A43: 1935 | B43: Stores Equipment | C43: ='App.2-B_FixAsset 2014-NewCGAAP'!E43 -> 0 | D43: ='App.2-B_FixAsset 2014-NewCGAAP'!G43 -> 0 | E43: 0 | F43: ='App.2-B_FixAsset 2014-NewCGAAP'!F43 -> 0 | G43: 0 | I43: 0 | J43: 0 | L43: 0
A44: 1940 | B44: Tools, Shop & Garage Equipment | C44: ='App.2-B_FixAsset 2014-NewCGAAP'!E44 -> 30996.47 | D44: 6786.47 | E44: 24210 | F44: ='App.2-B_FixAsset 2014-NewCGAAP'!F44 -> 3100 | G44: 25760 | H44: 10 | I44: 0.1 | J44: 2576 | K44: 2576 | L44: 0
A45: 1945 | B45: Measurement & Testing Equipment | C45: ='App.2-B_FixAsset 2014-NewCGAAP'!E45 -> 0 | D45: ='App.2-B_FixAsset 2014-NewCGAAP'!G45 -> 0 | E45: 0 | F45: ='App.2-B_FixAsset 2014-NewCGAAP'!F45 -> 0 | G45: 0 | I45: 0 | J45: 0 | L45: 0
A46: 1950 | B46: Power Operated Equipment | C46: ='App.2-B_FixAsset 2014-NewCGAAP'!E46 -> 6363.29 | D46: 4363.29 | E46: 2000 | F46: ='App.2-B_FixAsset 2014-NewCGAAP'!F46 -> 2000 | G46: 3000 | H46: 8 | I46: 0.125 | J46: 375 | K46: 375 | L46: 0
A47: 1955 | B47: Communications Equipment | C47: ='App.2-B_FixAsset 2014-NewCGAAP'!E47 -> 0 | D47: ='App.2-B_FixAsset 2014-NewCGAAP'!G47 -> 0 | E47: 0 | F47: ='App.2-B_FixAsset 2014-NewCGAAP'!F47 -> 0 | G47: 0 | I47: 0 | J47: 0 | L47: 0
A48: 1955 | B48: Communication Equipment (Smart Meters) | C48: ='App.2-B_FixAsset 2014-NewCGAAP'!E48 -> 0 | D48: ='App.2-B_FixAsset 2014-NewCGAAP'!G48 -> 0 | E48: 0 | F48: ='App.2-B_FixAsset 2014-NewCGAAP'!F48 -> 0 | G48: 0 | I48: 0 | J48: 0 | L48: 0
A49: 1960 | B49: Miscellaneous Equipment | C49: ='App.2-B_FixAsset 2014-NewCGAAP'!E49 -> 0 | D49: ='App.2-B_FixAsset 2014-NewCGAAP'!G49 -> 0 | E49: 0 | F49: ='App.2-B_FixAsset 2014-NewCGAAP'!F49 -> 0 | G49: 0 | I49: 0 | J49: 0 | L49: 0
A50: 1975 | B50: Load Management Controls Utility Premises | C50: ='App.2-B_FixAsset 2014-NewCGAAP'!E50 -> 0 | D50: ='App.2-B_FixAsset 2014-NewCGAAP'!G50 -> 0 | E50: 0 | F50: ='App.2-B_FixAsset 2014-NewCGAAP'!F50 -> 0 | G50: 0 | I50: 0 | J50: 0 | L50: 0
A51: 1980 | B51: System Supervisor Equipment | C51: ='App.2-B_FixAsset 2014-NewCGAAP'!E51 -> 0 | D51: ='App.2-B_FixAsset 2014-NewCGAAP'!G51 -> 0 | E51: 0 | F51: ='App.2-B_FixAsset 2014-NewCGAAP'!F51 -> 0 | G51: 0 | I51: 0 | J51: 0 | L51: 0
A52: 1985 | B52: Miscellaneous Fixed Assets | C52: ='App.2-B_FixAsset 2014-NewCGAAP'!E52 -> 0 | D52: ='App.2-B_FixAsset 2014-NewCGAAP'!G52 -> 0 | E52: 0 | F52: ='App.2-B_FixAsset 2014-NewCGAAP'!F52 -> 0 | G52: 0 | I52: 0 | J52: 0 | L52: 0
A53: 1995 | B53: Contributions & Grants - ACCT 1830 | C53: -77570.38 | D53: 0 | E53: -77570.38 | F53: ='App.2-B_FixAsset 2014-NewCGAAP'!F53 -> 0 | G53: -77570.38 | H53: 45 | I53: 0.02222222222 | J53: -1723.786222 | K53: -1724 | L53: 0.2137777778
A54: 1995 | B54: Contributions & Grants - ACCT 1835 | C54: -49660.65 | D54: 0 | E54: -49660.65 | F54: ='App.2-B_FixAsset 2014-NewCGAAP'!F54 -> 0 | G54: -49660.65 | H54: 60 | I54: =IF(H54=0,0,1/H54) -> 0.01666666667 | J54: =IF(H54=0,0,G54/H54) -> -827.6775 | K54: -828 | L54: 0.3225
A55: 1995 | B55: Contributions & Grants - ACCT 1840 | C55: -219.86 | D55: 0 | E55: -219.86 | F55: ='App.2-B_FixAsset 2014-NewCGAAP'!F55 -> 0 | G55: -219.86 | H55: 50 | I55: 0.02 | J55: -4.3972 | K55: -4 | L55: -0.3972
A56: 1995 | B56: Contributions & Grants - ACCT 1845 | C56: -87993.46 | D56: 0 | E56: -80350.46 | F56: ='App.2-B_FixAsset 2014-NewCGAAP'!F56 -> -10431 | G56: -80350.46 | H56: 30 | I56: 0.03333333333 | J56: -3107 | K56: -3107 | L56: 0
A57: 1995 | B57: Contributions & Grants - ACCT 1850 | C57: -59182.83 | D57: 0 | E57: -46712.83 | F57: ='App.2-B_FixAsset 2014-NewCGAAP'!F57 -> -17019 | G57: -46712.83 | H57: 40 | I57: 0.025 | J57: -1693 | K57: -1693 | L57: 0
G58: 0 | I58: 0 | J58: 0 | L58: 0
B59: Total | C59: =SUM(C16:C58) -> 7073940.31 | D59: =SUM(D16:D58) -> 330378.45 | E59: =SUM(E16:E58) -> 6763674.86 | F59: =SUM(F16:F58) -> 244850 | G59: =SUM(G16:G58) -> 6899824.86 | J59: =SUM(J16:J58) -> 222215.9344 | K59: =SUM(K16:K58) -> 222217 | L59: =SUM(L16:L58) -> -1.065588889
A61: Notes:
A63: 1 | B63: Board policy of the "half-year" rule - the applicant must ensure that additions in the year attract a half-year depreciation expense in the first year. Deviations from this standard practice must be supported in the application.
A64: 2 | B64: The applicant must provide an explanation of material variances in evidence
A66: General | B66: Applicants must provide a breakdown of depreciation and amortization expense in the above format for all relevant accounts. Asset Retirement Obligations (AROs), depreciation and accretion expense should be disclosed separately consistent with the Notes of historical Audited Financial Statements.

Sheet App 2-EE Account 1576
H1: File Number: | I1: =EBNUMBER -> 0
H2: Exhibit:
H3: Tab:
H4: Schedule:
H5: Page:
H7: Date:
A9: Appendix 2-EE
A10: Account 1576 - Accounting Changes under CGAAP
A11: 2013 Changes in Accounting Policies under CGAAP
A13: Assumes the applicant made capitalization and depreciation expense accounting policy changes under CGAAP effective January 1, 2013
B17: 2010 Rebasing Year | C17: 2011 | D17: 2012 | E17: 2013 | F17: 2014 Rebasing Year | G17: 2015 | H17: 2016 | I17: 2016 | J17: 2017
A18: Reporting Basis | B18: CGAAP | C18: IRM | D18: IRM | E18: IRM | F18: CGAAP - ASPE | G18: IRM | H18: IRM | I18: IRM | J18: IRM
A19: Forecast vs. Actual Used in Rebasing Year | B19: Forecast | C19: Actual | D19: Actual | E19: Forecast | F19: Forecast
E20: $ | F20: $ | G20: $ | H20: $ | I20: $ | J20: $
A21: PP&E Values under former CGAAP
A22: Opening net PP&E - Note 1 | E22: ='App 2-B FixAsset 2013-OldCGAAP'!E54 -> 4492501.58
A23: Net Additions - Note 4 | E23: ='App 2-B FixAsset 2013-OldCGAAP'!F54 -> 2587987
A24: Net Depreciation (amounts should be negative) - Note 4 | E24: ='App 2-B FixAsset 2013-OldCGAAP'!K54 -> -231450.19
A25: Closing net PP&E (1) | E25: =SUM(E22:E24) -> 6849038.39
A27: PP&E Values under revised CGAAP (Starts from 2013)
A28: Opening net PP&E - Note 1 | E28: ='App 2-B FixAsset 2013-NewCGAAP'!E60 -> 4492501.4
A29: Net Additions - Note 4 | E29: ='App 2-B FixAsset 2013-NewCGAAP'!F60 -> 2582987
A30: Net Depreciation (amounts should be negative) - Note 4 | E30: ='App 2-B FixAsset 2013-NewCGAAP'!K60 -> -202714
A31: Closing net PP&E (2) | E31: =SUM(E28:E30) -> 6872774.4
A33: Difference in Closing net PP&E, former CGAAP vs. revised CGAAP | E33: =E25-E31 -> -23736.01
A36: Effect on Deferral and Variance Account Rate Riders
A37: Closing balance in Account 1576 | F37: =IF(ISERROR(E33), 0, E33) -> -23736.01 | H37: WACC | I37: 0.0598
A38: Return on Rate Base Associated with Account 1576 balance at WACC - Note 2 | F38: =E33*I37*I38 -> -1419.413398 | G38: # of years of rate rider disposition period | I38: 1
A39: Amount included in Deferral and Variance Account Rate Rider Calculation | F39: =F37+F38 -> -25155.4234
A41: Notes:
A42: 1 For an applicant that made the capitalization and depreciation expense accounting policy changes on January 1, 2013, the PP&E values as of January 1, 2013 under both former CGAAP and revised CGAAP should be the same.
A43: 2 Return on rate base associated with Account 1576 balance is calculated as:
A44: the variance account opening balance as of 2014 rebasing year x WACC X # of years of rate rider disposition period
A45: * Please note that the calculation should be adjusted once WACC is updated and finalized in the rate application.
A46: 3 Account 1576 is cleared by including the total balance in the deferral and variance account rate rider calculation.
A47: 4 Net additions are additions net of disposals; Net depreciation is additions to depreciation net of disposals.

Sheet App 2-YB Acct Changes Sum
H1: File Number: | I1: =EBNUMBER -> 0
H2: Exhibit:
H3: Tab:
H4: Schedule:
H5: Page:
H7: Date:
A9: Appendix 2-YB
A10: Summary of Impacts to Revenue Requirement
A11: from Accounting Changes under CGAAP or ASPE
A15: Revenue Requirement Component | D15: =TestYear -> 2014 | E15: =TestYear -> 2014 | F15: Difference | G15: Reasons why the revenue requirement
D16: CGAAP or ASPE | E16: CGAAP | G16: component is different under
D17: with the | E17: without the | G17: CGAAP or ASPE with the changes to the policies
D18: changes to | E18: changes to | G18: versus CGAAP without the changes to the policies
D19: the policies | E19: the policies
A20: Closing NBV 2013 | D20: ='App 2-B FixAsset 2013-NewCGAAP'!N60 -> 4833148.55 | E20: ='App 2-B FixAsset 2013-OldCGAAP'!N54 -> 4804411.89 | F20: =+D20-E20 -> 28736.66 | G20: Change due to adoption of new useful lives as per Kinetrics report
A21: Closing NBV 2014 | D21: ='App.2-B_FixAsset 2014-NewCGAAP'!N60 -> 4801423.46 | E21: ='App.2-B_FixAsset 2014-OldCGAAP'!N60 -> 4742536.852 | F21: 58886.6078 | G21: Change due to adoption of new useful lives as per Kinetrics report
A22: Average NBV | D22: =AVERAGE(D20:D21) -> 4817286.005 | E22: =AVERAGE(E20:E21) -> 4773474.371 | F22: =(F20+F21)/2 -> 43811.6339 | G22: Change due to adoption of new useful lives as per Kinetrics report
A23: Working Capital | D23: ='Rate Base'!D31 -> 2282269.511 | E23: ='Rate Base'!D31+6224 -> 2288493.511 | F23: -6224 | G23: Change due to addition of formally cap. Burdens in OM&A
A24: Rate Base | D24: =SUM(D22:D23) -> 7099555.516 | E24: =SUM(E22:E23) -> 7061967.882 | F24: =SUM(F22:F23) -> 37587.6339
A26: Return on Rate Base | D26: 422564.6255 | E26: 419987.7892 | F26: =+D26-E26 -> 2576.836235 | G26: Change due to change in Rate Base
F27: 0
A28: OM&A | D28: ='App.2-G_Detailed_OM&A_Expenses'!H119 -> 1126665 | E28: =D28+6224 -> 1132889 | F28: -6224 | G28: Change due to addition of formally cap. Burdens in OM&A
A29: Depreciation | D29: ='App.2-CF_CGAAP_DepExp_2014'!J59 -> 222215.9344 | E29: ='App.2-CF_OldCGAAP_DepExp_2014'!J59 -> 252367.4622 | F29: -30151.52779 | G29: Change due to adoption of new useful lives as per Kinetrics report
A30: PILs or Income Taxes | D30: ='Revenue Requirement'!C21 -> 18398.51299 | E30: 30744.48674 | F30: -12345.97374 | G30: Change due to change in Rate Base
F31: 0
A32: Less: Revenue Offsets | D32: ='Revenue Requirement'!E24 -> 157139.44 | E32: =D32 -> 157139.44 | F32: 0 | G32: no change
F33: 0
F34: 0
F35: 0
A36: Insert description of additional item(s) and new rows if needed. | F36: 0
A37: Total Base Revenue Requirement | D37: =SUM(D26:D36) -> 1946983.513 | E37: =SUM(E26:E36) -> 1993128.178 | F37: =SUM(F26:F36) -> -46144.6653
A40: For CGAAP or ASPE applications, the applicants must provide a summary of the dollar impacts of CGAAP or ASPE to each component of the revenue requirement (e.g. rate base, operating costs, etc.), including the overall impact on the proposed revenue requirement. Accordingly, the applicants must identify financial differences and resulting revenue requirement impacts arising from making capitalization and depreciation expense policy changes under CGAAP or ASPE.

Sheet App.2-G_Detailed_OM&A_Expenses
G1: File Number: | I1: ='LDC Info'!$E$18 -> EB-2013-0139
G2: Exhibit: | I2: 4
G3: Tab: | I3: 1
G4: Schedule: | I4: 3
G5: Page:
G7: Date:
A9: Appendix 2-G
A10: Detailed, Account by Account, OM&A Expense Table
A11: (excluding Depreciation and Amortization)
A14: Account | B14: Description | C14: ="Last Rebasing Year (" & 'LDC Info'!E30 & " Actuals)" -> Last Rebasing Year (2010 Actuals) | D14: ='LDC Info'!E26-2 & " Actual" -> 2011 Actual | E14: ='LDC Info'!E26-1 & " Actual"& CHAR(178) -> 2012 Actual² | F14: ="Bridge Year " & 'LDC Info'!E26& CHAR(179) -> Bridge Year 2013³ | G14: ="Bridge Year " & 'LDC Info'!E26& CHAR(179) -> Bridge Year 2013³ | H14: ="Test Year " & 'LDC Info'!E28 -> Test Year 2014 | I14: ="Test Year " & 'LDC Info'!E28 -> Test Year 2014
A15: Reporting Basis | C15: CGAAP | D15: CGAAP | E15: CGAAP | F15: CGAAP | G15: MIFRS | H15: CGAAP | I15: MIFRS
A16: Operations
A17: 5005 | B17: Operation Supervision and Engineering | C17: =HistoricalBalances!I366 -> 0 | D17: =HistoricalBalances!H366 -> 0 | E17: =HistoricalBalances!G366 -> 0 | F17: =HistoricalBalances!F366 -> 0 | H17: =HistoricalBalances!E366 -> 0
A18: 5010 | B18: Load Dispatching | C18: =HistoricalBalances!I367 -> 0 | D18: =HistoricalBalances!H367 -> 0 | E18: =HistoricalBalances!G367 -> 0 | F18: =HistoricalBalances!F367 -> 0 | H18: =HistoricalBalances!E367 -> 0
A19: 5012 | B19: Station Buildings and Fixtures Expense | C19: =HistoricalBalances!I368 -> 0 | D19: =HistoricalBalances!H368 -> 0 | E19: =HistoricalBalances!G368 -> 0 | F19: =HistoricalBalances!F368 -> 0 | H19: =HistoricalBalances!E368 -> 0
A20: 5014 | B20: Transformer Station Equipment - Operation Labour | C20: =HistoricalBalances!I369 -> 3289.9 | D20: =HistoricalBalances!H369 -> 11350.91 | E20: =HistoricalBalances!G369 -> 6356 | F20: =HistoricalBalances!F369 -> 9500 | H20: =HistoricalBalances!E369 -> 10000
A21: 5015 | B21: Transformer Station Equipment - Operation Supplies and Expenses | C21: =HistoricalBalances!I370 -> 8023.04 | D21: =HistoricalBalances!H370 -> 3779.67 | E21: =HistoricalBalances!G370 -> 5261 | F21: =HistoricalBalances!F370 -> 8500 | H21: =HistoricalBalances!E370 -> 9000
A22: 5016 | B22: Distribution Station Equipment - Operation Labour | C22: =HistoricalBalances!I371 -> 4358.85 | D22: =HistoricalBalances!H371 -> 10381.08 | E22: =HistoricalBalances!G371 -> 8507 | F22: =HistoricalBalances!F371 -> 10000 | H22: =HistoricalBalances!E371 -> 12000
A23: 5017 | B23: Distribution Station Equipment - Operation Supplies and Expenses | C23: =HistoricalBalances!I372 -> 4905.24 | D23: =HistoricalBalances!H372 -> 2053.11 | E23: =HistoricalBalances!G372 -> 6400 | F23: =HistoricalBalances!F372 -> 5000 | H23: =HistoricalBalances!E372 -> 6500
A24: 5020 | B24: Overhead Distribution Lines and Feeders - Operation Labour | C24: =HistoricalBalances!I373 -> 9936.49 | D24: =HistoricalBalances!H373 -> 9930.66 | E24: =HistoricalBalances!G373 -> 11028 | F24: =HistoricalBalances!F373 -> 11500 | H24: =HistoricalBalances!E373 -> 13500
A25: 5025 | B25: Overhead Distribution Lines and Feeders - Operation Supplies and Expenses | C25: =HistoricalBalances!I374 -> 1171.07 | D25: =HistoricalBalances!H374 -> 1750.8 | E25: =HistoricalBalances!G374 -> 1404 | F25: =HistoricalBalances!F374 -> 1500 | H25: =HistoricalBalances!E374 -> 1600
A26: 5030 | B26: Overhead Sub-transmission Feeders - Operation | C26: =HistoricalBalances!I375 -> 0 | D26: =HistoricalBalances!H375 -> 0 | E26: =HistoricalBalances!G375 -> 0 | F26: =HistoricalBalances!F375 -> 0 | H26: =HistoricalBalances!E375 -> 0
A27: 5035 | B27: Overhead Distribution Transformers - Operation | C27: =HistoricalBalances!I376 -> 7628.04 | D27: =HistoricalBalances!H376 -> 4195.49 | E27: =HistoricalBalances!G376 -> 5585 | F27: =HistoricalBalances!F376 -> 8000 | H27: =HistoricalBalances!E376 -> 10000
A28: 5040 | B28: Underground Distribution Lines and Feeders - Operation Labour | C28: =HistoricalBalances!I377 -> 911.05 | D28: =HistoricalBalances!H377 -> 3095.89 | E28: =HistoricalBalances!G377 -> 1920 | F28: =HistoricalBalances!F377 -> 2100 | H28: =HistoricalBalances!E377 -> 2500
A29: 5045 | B29: Underground Distribution Lines and Feeders - Operation Supplies and Expenses | C29: =HistoricalBalances!I378 -> 31.74 | D29: =HistoricalBalances!H378 -> 31.74 | E29: =HistoricalBalances!G378 -> 50 | F29: =HistoricalBalances!F378 -> 50 | H29: =HistoricalBalances!E378 -> 50
A30: 5050 | B30: Underground Sub-transmission Feeders - Operation | C30: =HistoricalBalances!I379 -> 0 | D30: =HistoricalBalances!H379 -> 0 | E30: =HistoricalBalances!G379 -> 0 | F30: =HistoricalBalances!F379 -> 0 | H30: =HistoricalBalances!E379 -> 0
A31: 5055 | B31: Underground Distribution Transformers - Operation | C31: =HistoricalBalances!I380 -> 316.59 | D31: =HistoricalBalances!H380 -> 1836.82 | E31: =HistoricalBalances!G380 -> 1274 | F31: =HistoricalBalances!F380 -> 3000 | H31: =HistoricalBalances!E380 -> 3500
A32: 5060 | B32: Street Lighting and Signal System Expense | C32: =HistoricalBalances!I381 -> 0 | D32: =HistoricalBalances!H381 -> 0 | E32: =HistoricalBalances!G381 -> 0 | F32: =HistoricalBalances!F381 -> 0 | H32: =HistoricalBalances!E381 -> 0
A33: 5065 | B33: Meter Expense | C33: =HistoricalBalances!I382 -> 33645.26 | D33: =HistoricalBalances!H382 -> 21738.16 | E33: =HistoricalBalances!G382 -> 25715 | F33: =HistoricalBalances!F382 -> 24600 | H33: =HistoricalBalances!E382 -> 26300
A34: 5070 | B34: Customer Premises - Operation Labour | C34: =HistoricalBalances!I383 -> 0 | D34: =HistoricalBalances!H383 -> 0 | E34: =HistoricalBalances!G383 -> 0 | F34: =HistoricalBalances!F383 -> 0 | H34: =HistoricalBalances!E383 -> 0
A35: 5075 | B35: Customer Premises - Operation Materials and Expenses | C35: =HistoricalBalances!I384 -> 0 | D35: =HistoricalBalances!H384 -> 0 | E35: =HistoricalBalances!G384 -> 0 | F35: =HistoricalBalances!F384 -> 0 | H35: =HistoricalBalances!E384 -> 0
A36: 5085 | B36: Miscellaneous Distribution Expenses | C36: =HistoricalBalances!I385 -> 0 | D36: =HistoricalBalances!H385 -> 0 | E36: =HistoricalBalances!G385 -> 0 | F36: =HistoricalBalances!F385 -> 0 | H36: =HistoricalBalances!E385 -> 0
A37: 5090 | B37: Underground Distribution Lines and Feeders - Rental Paid | C37: =HistoricalBalances!I386 -> 0 | D37: =HistoricalBalances!H386 -> 0 | E37: =HistoricalBalances!G386 -> 0 | F37: =HistoricalBalances!F386 -> 0 | H37: =HistoricalBalances!E386 -> 0
A38: 5095 | B38: Overhead Distribution Lines and Feeders - Rental Paid | C38: =HistoricalBalances!I387 -> 886.91 | D38: =HistoricalBalances!H387 -> 886.91 | E38: =HistoricalBalances!G387 -> 887 | F38: =HistoricalBalances!F387 -> 1500 | H38: =HistoricalBalances!E387 -> 1600
A39: 5096 | B39: Other Rent | C39: =HistoricalBalances!I388 -> 0 | D39: =HistoricalBalances!H388 -> 0 | E39: =HistoricalBalances!G388 -> 0 | F39: =HistoricalBalances!F388 -> 0 | H39: =HistoricalBalances!E388 -> 0
A40: Total - Operations | C40: =SUM(C17:C39) -> 75104.18 | D40: 71031.24 | E40: 74387 | F40: 85250 | G40: 0 | H40: 96550 | I40: 0
A41: Account | B41: Description | C41: =C14 -> Last Rebasing Year (2010 Actuals) | D41: 2011 Actual | E41: 2012 Actual² | F41: Bridge Year 2013³ | G41: Bridge Year 2013³ | H41: Test Year 2014 | I41: Test Year 2014
A42: Maintenance
A43: 5105 | B43: Maintenance Supervision and Engineering | C43: =HistoricalBalances!I389 -> 720 | D43: =HistoricalBalances!H389 -> 0 | E43: =HistoricalBalances!G389 -> 0 | F43: =HistoricalBalances!F389 -> 1000 | H43: =HistoricalBalances!E389 -> 1100
A44: 5110 | B44: Maintenance of Buildings and Fixtures - Distribution Stations | C44: =HistoricalBalances!I390 -> 0 | D44: =HistoricalBalances!H390 -> 0 | E44: =HistoricalBalances!G390 -> 0 | F44: =HistoricalBalances!F390 -> 0 | H44: =HistoricalBalances!E390 -> 0
A45: 5112 | B45: Maintenance of Transformer Station Equipment | C45: =HistoricalBalances!I391 -> 0 | D45: =HistoricalBalances!H391 -> 0 | E45: =HistoricalBalances!G391 -> 0 | F45: =HistoricalBalances!F391 -> 0 | H45: =HistoricalBalances!E391 -> 0
A46: 5114 | B46: Maintenance of Distribution Station Equipment | C46: =HistoricalBalances!I392 -> 0 | D46: =HistoricalBalances!H392 -> 0 | E46: =HistoricalBalances!G392 -> 0 | F46: =HistoricalBalances!F392 -> 0 | H46: =HistoricalBalances!E392 -> 0
A47: 5120 | B47: Maintenance of Poles, Towers and Fixtures | C47: =HistoricalBalances!I393 -> 5216.54 | D47: =HistoricalBalances!H393 -> 3986.57 | E47: =HistoricalBalances!G393 -> 11552 | F47: =HistoricalBalances!F393 -> 10000 | H47: =HistoricalBalances!E393 -> 11000
A48: 5125 | B48: Maintenance of Overhead Conductors and Devices | C48: =HistoricalBalances!I394 -> 36894.46 | D48: =HistoricalBalances!H394 -> 28090.02 | E48: =HistoricalBalances!G394 -> 35188 | F48: =HistoricalBalances!F394 -> 34000 | H48: =HistoricalBalances!E394 -> 35000
A49: 5130 | B49: Maintenance of Overhead Services | C49: =HistoricalBalances!I395 -> 28277.95 | D49: =HistoricalBalances!H395 -> 34875.1 | E49: =HistoricalBalances!G395 -> 42724 | F49: =HistoricalBalances!F395 -> 46000 | H49: =HistoricalBalances!E395 -> 50000
A50: 5135 | B50: Overhead Distribution Lines and Feeders - Right of Way | C50: =HistoricalBalances!I396 -> 40522.91 | D50: =HistoricalBalances!H396 -> 44239.08 | E50: =HistoricalBalances!G396 -> 62172 | F50: =HistoricalBalances!F396 -> 65000 | H50: =HistoricalBalances!E396 -> 70000
A51: 5145 | B51: Maintenance of Underground Conduit | C51: =HistoricalBalances!I397 -> 333.17 | D51: =HistoricalBalances!H397 -> 545.37 | E51: =HistoricalBalances!G397 -> 1606 | F51: =HistoricalBalances!F397 -> 1500 | H51: =HistoricalBalances!E397 -> 1500
A52: 5150 | B52: Maintenance of Underground Conductors and Devices | C52: =HistoricalBalances!I398 -> 5407.59 | D52: =HistoricalBalances!H398 -> 15280.2 | E52: =HistoricalBalances!G398 -> 4084 | F52: =HistoricalBalances!F398 -> 8900 | H52: =HistoricalBalances!E398 -> 10300
A53: 5155 | B53: Maintenance of Underground Services | C53: =HistoricalBalances!I399 -> 7402.01 | D53: =HistoricalBalances!H399 -> 7581.97 | E53: =HistoricalBalances!G399 -> 7468 | F53: =HistoricalBalances!F399 -> 8500 | H53: =HistoricalBalances!E399 -> 9900
A54: 5160 | B54: Maintenance of Line Transformers | C54: =HistoricalBalances!I400 -> 7716.53 | D54: =HistoricalBalances!H400 -> 11805.91 | E54: =HistoricalBalances!G400 -> 11988 | F54: =HistoricalBalances!F400 -> 13000 | H54: =HistoricalBalances!E400 -> 15000
A55: 5165 | B55: Maintenance of Street Lighting and Signal Systems | C55: =HistoricalBalances!I401 -> 0 | D55: =HistoricalBalances!H401 -> 0 | E55: =HistoricalBalances!G401 -> 0 | F55: =HistoricalBalances!F401 -> 0 | H55: =HistoricalBalances!E401 -> 0
A56: 5170 | B56: Sentinel Lights - Labour | C56: =HistoricalBalances!I402 -> 0 | D56: =HistoricalBalances!H402 -> 0 | E56: =HistoricalBalances!G402 -> 0 | F56: =HistoricalBalances!F402 -> 0 | H56: =HistoricalBalances!E402 -> 0
A57: 5172 | B57: Sentinel Lights - Materials and Expenses | C57: =HistoricalBalances!I403 -> 0 | D57: =HistoricalBalances!H403 -> 0 | E57: =HistoricalBalances!G403 -> 0 | F57: =HistoricalBalances!F403 -> 0 | H57: =HistoricalBalances!E403 -> 0
A58: 5175 | B58: Maintenance of Meters | C58: =HistoricalBalances!I404 -> -981.88 | D58: =HistoricalBalances!H404 -> 1229.42 | E58: =HistoricalBalances!G404 -> 1963 | F58: =HistoricalBalances!F404 -> 1800 | H58: =HistoricalBalances!E404 -> 1900
A59: 5178 | B59: Customer Installations Expenses - Leased Property | C59: =HistoricalBalances!I405 -> 0 | D59: =HistoricalBalances!H405 -> 0 | E59: =HistoricalBalances!G405 -> 0 | F59: =HistoricalBalances!F405 -> 0 | H59: =HistoricalBalances!E405 -> 0
A60: 5195 | B60: Maintenance of Other Installations on Customer Premises | C60: =HistoricalBalances!I406 -> 0 | D60: =HistoricalBalances!H406 -> 0 | E60: =HistoricalBalances!G406 -> 0 | F60: =HistoricalBalances!F406 -> 0 | H60: =HistoricalBalances!E406 -> 0
A61: Total - Maintenance | C61: =SUM(C43:C60) -> 131509.28 | D61: 147633.64 | E61: 178745 | F61: 189700 | G61: 0 | H61: 205700 | I61: 0
A62: Account | B62: Description | C62: =C41 -> Last Rebasing Year (2010 Actuals) | D62: =D41 -> 2011 Actual | E62: =E41 -> 2012 Actual² | F62: =F41 -> Bridge Year 2013³ | G62: =G41 -> Bridge Year 2013³ | I62: =I41 -> Test Year 2014
A63: Billing and Collecting
A64: 5305 | B64: Supervision | C64: =HistoricalBalances!I414 -> 0 | D64: =HistoricalBalances!H414 -> 0 | E64: =HistoricalBalances!G414 -> 0 | F64: =HistoricalBalances!F414 -> 0 | H64: =HistoricalBalances!E414 -> 0
A65: 5310 | B65: Meter Reading Expense | C65: =HistoricalBalances!I415 -> 29863.73 | D65: =HistoricalBalances!H415 -> 42061.58 | E65: =HistoricalBalances!G415 -> 35200 | F65: =HistoricalBalances!F415 -> 38000 | H65: =HistoricalBalances!E415 -> 45000
A66: 5315 | B66: Customer Billing | C66: =HistoricalBalances!I416 -> 175731.13 | D66: =HistoricalBalances!H416 -> 185552.18 | E66: =HistoricalBalances!G416 -> 211800 | F66: =HistoricalBalances!F416 -> 230000 | H66: =HistoricalBalances!E416 -> 245000
A67: 5320 | B67: Collecting | C67: =HistoricalBalances!I417 -> 100396.13 | D67: =HistoricalBalances!H417 -> 94826.84 | E67: =HistoricalBalances!G417 -> 97931 | F67: =HistoricalBalances!F417 -> 102130 | H67: =HistoricalBalances!E417 -> 106250
A68: 5325 | B68: Collecting - Cash Over and Short | C68: =HistoricalBalances!I418 -> 0 | D68: =HistoricalBalances!H418 -> 5 | E68: =HistoricalBalances!G418 -> 0 | F68: =HistoricalBalances!F418 -> 60 | H68: =HistoricalBalances!E418 -> 65
A69: 5330 | B69: Collection Charges | C69: =HistoricalBalances!I419 -> 0 | D69: =HistoricalBalances!H419 -> 0 | E69: =HistoricalBalances!G419 -> 0 | F69: =HistoricalBalances!F419 -> 0 | H69: =HistoricalBalances!E419 -> 0
A70: 5335 | B70: Bad Debt Expense | C70: =HistoricalBalances!I420 -> 19528.13 | D70: =HistoricalBalances!H420 -> 17496.83 | E70: =HistoricalBalances!G420 -> 2800 | F70: =HistoricalBalances!F420 -> 20000 | H70: =HistoricalBalances!E420 -> 30000
A71: 5340 | B71: Miscellaneous Customer Accounts Expenses | C71: =HistoricalBalances!I421 -> 0 | D71: =HistoricalBalances!H421 -> 0 | E71: =HistoricalBalances!G421 -> 0 | F71: =HistoricalBalances!F421 -> 0 | H71: =HistoricalBalances!E421 -> 0
A72: Total - Billing and Collecting | C72: =SUM(C64:C71) -> 325519.12 | D72: 339942.43 | E72: 347731 | F72: 390190 | G72: 0 | H72: 426315 | I72: 0
A73: Account | B73: Description | C73: =C62 -> Last Rebasing Year (2010 Actuals) | D73: =D62 -> 2011 Actual | E73: =E62 -> 2012 Actual² | F73: =F62 -> Bridge Year 2013³ | G73: =G62 -> Bridge Year 2013³ | I73: =I62 -> Test Year 2014
A74: Community Relations
A75: 5405 | B75: Supervision | C75: =HistoricalBalances!I422 -> 0 | D75: =HistoricalBalances!H422 -> 0 | E75: =HistoricalBalances!G422 -> 0 | F75: =HistoricalBalances!F422 -> 0 | H75: =HistoricalBalances!E422 -> 0
A76: 5410 | B76: Community Relations - Sundry | C76: =HistoricalBalances!I423 -> 100 | D76: =HistoricalBalances!H423 -> 225 | E76: =HistoricalBalances!G423 -> 0 | F76: =HistoricalBalances!F423 -> 200 | H76: =HistoricalBalances!E423 -> 200
A77: 5415 | B77: Energy Conservation | C77: =HistoricalBalances!I424 -> 0 | D77: =HistoricalBalances!H424 -> 0 | E77: =HistoricalBalances!G424 -> 0 | F77: =HistoricalBalances!F424 -> 0 | H77: =HistoricalBalances!E424 -> 0
A78: 5420 | B78: Community Safety Program | C78: =HistoricalBalances!I425 -> 0 | D78: =HistoricalBalances!H425 -> 0 | E78: =HistoricalBalances!G425 -> 0 | F78: =HistoricalBalances!F425 -> 0 | H78: =HistoricalBalances!E425 -> 0
A79: 5425 | B79: Miscellaneous Customer Service and Informational Expenses | C79: =HistoricalBalances!I426 -> 0 | D79: =HistoricalBalances!H426 -> 0 | E79: =HistoricalBalances!G426 -> 0 | F79: =HistoricalBalances!F426 -> 0 | H79: =HistoricalBalances!E426 -> 0
A80: 5505 | B80: Supervision | C80: =HistoricalBalances!I427 -> 0 | D80: =HistoricalBalances!H427 -> 0 | E80: =HistoricalBalances!G427 -> 0 | F80: =HistoricalBalances!F427 -> 0 | H80: =HistoricalBalances!E427 -> 0
A81: 5510 | B81: Demonstrating and Selling Expense | C81: =HistoricalBalances!I428 -> 0 | D81: =HistoricalBalances!H428 -> 0 | E81: =HistoricalBalances!G428 -> 0 | F81: =HistoricalBalances!F428 -> 0 | H81: =HistoricalBalances!E428 -> 0
A82: 5515 | B82: Advertising Expenses | C82: =HistoricalBalances!I429 -> 0 | D82: =HistoricalBalances!H429 -> 0 | E82: =HistoricalBalances!G429 -> 0 | F82: =HistoricalBalances!F429 -> 0 | H82: =HistoricalBalances!E429 -> 0
A83: 5520 | B83: Miscellaneous Sales Expense | C83: =HistoricalBalances!I430 -> 0 | D83: =HistoricalBalances!H430 -> 0 | E83: =HistoricalBalances!G430 -> 0 | F83: =HistoricalBalances!F430 -> 0 | H83: =HistoricalBalances!E430 -> 0
A84: Total - Community Relations | C84: =SUM(C75:C83) -> 100 | D84: 225 | E84: 0 | F84: 200 | G84: 0 | H84: 200 | I84: 0
A85: Account | B85: Description | C85: =C73 -> Last Rebasing Year (2010 Actuals) | D85: =D73 -> 2011 Actual | E85: =E73 -> 2012 Actual² | F85: =F73 -> Bridge Year 2013³ | G85: =G73 -> Bridge Year 2013³ | I85: =I73 -> Test Year 2014
A86: Administrative and General Expenses
A87: 5605 | B87: Executive Salaries and Expenses | C87: =HistoricalBalances!I431 -> 105990.16 | D87: =HistoricalBalances!H431 -> 105071.87 | E87: =HistoricalBalances!G431 -> 105734 | F87: =HistoricalBalances!F431 -> 109000 | H87: =HistoricalBalances!E431 -> 112000
A88: 5610 | B88: Management Salaries and Expenses | C88: =HistoricalBalances!I432 -> 69180.62 | D88: =HistoricalBalances!H432 -> 72506.75 | E88: =HistoricalBalances!G432 -> 74249 | F88: =HistoricalBalances!F432 -> 76000 | H88: =HistoricalBalances!E432 -> 78000
A89: 5615 | B89: General Administrative Salaries and Expenses | C89: =HistoricalBalances!I433 -> 0 | D89: =HistoricalBalances!H433 -> 0 | E89: =HistoricalBalances!G433 -> 0 | F89: =HistoricalBalances!F433 -> 0 | H89: =HistoricalBalances!E433 -> 0
A90: 5620 | B90: Office Supplies and Expenses | C90: =HistoricalBalances!I434 -> 21409.29 | D90: =HistoricalBalances!H434 -> 24654.78 | E90: =HistoricalBalances!G434 -> 22744 | F90: =HistoricalBalances!F434 -> 27000 | H90: =HistoricalBalances!E434 -> 30000
A91: 5625 | B91: Administrative Expense Transferred - Credit | C91: =HistoricalBalances!I435 -> 0 | D91: =HistoricalBalances!H435 -> 0 | E91: =HistoricalBalances!G435 -> 0 | F91: =HistoricalBalances!F435 -> 0 | H91: =HistoricalBalances!E435 -> 0
A92: 5630 | B92: Outside Services Employed | C92: =HistoricalBalances!I436 -> 11212.5 | D92: =HistoricalBalances!H436 -> 19494.95 | E92: =HistoricalBalances!G436 -> 17784 | F92: =HistoricalBalances!F436 -> 19850 | H92: =HistoricalBalances!E436 -> 20600
A93: 5635 | B93: Property Insurance | C93: =HistoricalBalances!I437 -> 4566.42 | D93: =HistoricalBalances!H437 -> 4657.86 | E93: =HistoricalBalances!G437 -> 4798 | F93: =HistoricalBalances!F437 -> 7700 | H93: =HistoricalBalances!E437 -> 12000
